Workbook

Sheet Legal
A1: DISCLAIMER: Content provided in this spreadsheet is intended for entertainment purposes only and should not be construed as medical advice. It should not be relied upon or acted upon without review by qualified medical personnel to provide specific advice based upon your particular situation, jurisdiction and circumstances. No duties are assumed, intended or created by this document. No attorney-client or doctor-client relationship is being created by your review or use of this material. Drug tapering must be discussed and supervised by a qualified physician (good luck finding one). By adding your name or mark below, you certify that you have read this discalimer and agree to its terms (the spreadsheet will not function properly without a name/mark below).
A19: I agree:
B20: (type your name above)
A26: ©2021 rrichins

Sheet Daily Dosing
A1: Instructions: Enter the date, your current dose and other requested info in the blue-shaded cells below (most of the other cells are locked, so cannot be selected). Your current dose will appear in the table below and the graph. Enter your symptom ratings for today and voila - a suggested taper rate and dose info will appear. | J1: Blue and Pink cell contents may be changed. Choose appropriate symptom categories for your situation. You may choose fewer than 10, but total basis must equal 100. First column is mandatory. If the suggested dose is overridden, the new (override) weight or liquid amount will be calculated in the green dosage cell.
A3: Current Dose (mg) | B3: 1.96 | R3: Tapering Setpoints
A4: Dose in Intact Pill or Amt Added if Liquid (mg) | B4: 2 | R4: 30-39 | T4: (1) .33 * rate
A5: Proposed Taper Duration (days) | B5: 730 | C5: =2*B3/B5 -> 0.005369863014 | E5: base taper decrease | R5: 40-54 | T5: (2) .67 * rate
A6: Taper Start Date (mm/dd/yyyy) | B6: 2021-09-28 | C6: =(B3-C5)/B3 -> 0.997260274 | E6: base taper rate | R6: 55-69 | T6: (3) Std rate
A7: Dry or Liquid Taper (enter 'Dry' or 'Liquid') | B7: Dry | C7: =AVERAGE(1,C6,C6) -> 0.998173516 | E7: slower taper rate | R7: 70-79 | T7: (4) Hybrid rate
A8: Liquid Taperers Only - Enter Initial Liquid Volume (ml) | C8: =AVERAGE(1,1,C6) -> 0.999086758 | E8: way slow taper rate | R8: 80-89 | T8: (5) Linear rate
A9: Dry Cutters Only - Enter Average Intact Pill Weight (g) | B9: 0.265 | R9: 90+ | T9: (6) 1.5 * Linear
A11: Your Base Tapering Rate is: | B11: =E11/B3 -> 0.274% | C11: equals | E11: =B3-C13*C6 -> 0.0054 | F11: mg/day (initially) | G11: =ROUND(B11*700,1) & "% per week" -> 1.9% per week | H11: Daily Symptom Ratings (10 - symptomless; 7-9 - minor, annoying, still able to function; 4-6 - significant, interferes with some functions; 0-3 - severe, disabling, unable to perform most activities) | R11: You may override the suggested rate.
A12: Day Number | B12: Date | C12: Yesterday's Dose (mg) | D12: Dose for Graph | E12: Suggested Dose (mg) | F12: Amount to take (ml if liquid, g if dry) | G12: Today's Cut (%) | H12: Pain* | I12: Heart | J12: GI Health | K12: Shakes | L12: Stamina | M12: Sleep | N12: Clarity | O12: Vertigo | P12: Anxiety | Q12: Fear | R12: Overall Rating | S12: Adjusted Rating | T12: Suggested Taper Rate
A13: 1 | B13: =B6 -> 2021-09-28 | C13: =B3 -> 1.960 | D13: =IF(C13="",-5,C13) -> 1.960 | E13: =IF(T13="","",IF(T13=0,C13,IF(T13=1,(C13*C$8),IF(T13=2,(C13*C$7),IF(T13=3,(C13*C$6),IF(T13=4,AVERAGE((C13*C$6),(C13*C$6),(C13*C$6),(C13*C$6),(C13-C$5)),IF(T13=5,(C13-C$5),IF(T13=6,(C13-1.5*C$5),"blue")))))))) -> 1.960 | F13: =IF(H13="","",IF(B$7="Dry",ROUND(E13/B$4*B$9,3)&" grams",IF(B$7="Liquid",ROUND(E13/B$4*B$8,2)&" ml","Error"))) ->  | G13: =IF(T13="","",(C13-E13)/C13) -> 0.000% | R13: =IF(Legal!B$19="",0,IF(H13="","",SUM(H13:Q13))) -> 0 | S13: =IF(R13="",-5,IF(AVERAGE((B$3-E13)/B$3*100,R13)>100,100,AVERAGE((B$3-E13)/B$3*100,R13))) -> 0.0 | T13: =IF(R13="","",IF(R13>89,6,IF(R13>79,5,IF(R13>69,4,IF(R13>54,3,IF(R13>39,2,IF(R13>29,1,0))))))) -> 0
A14: =A13+1 -> 2 | B14: =B13+1 -> 2021-09-29 | C14: =E13 -> 1.960 | D14: =IF(C14="",-5,C14) -> 1.960 | E14: =IF(T14="","",IF(T14=0,C14,IF(T14=1,(C14*C$8),IF(T14=2,(C14*C$7),IF(T14=3,(C14*C$6),IF(T14=4,AVERAGE((C14*C$6),(C14*C$6),(C14*C$6),(C14*C$6),(C14-C$5)),IF(T14=5,(C14-C$5),IF(T14=6,(C14-1.5*C$5),"blue")))))))) -> 1.960 | F14: =IF(H14="","",IF(B$7="Dry",ROUND(E14/B$4*B$9,3)&" grams",IF(B$7="Liquid",ROUND(E14/B$4*B$8,2)&" ml","Error"))) ->  | G14: 0.000% | R14: =IF(Legal!B$19="",0,IF(H14="","",SUM(H14:Q14))) -> 0 | S14: =IF(R14="",-5,IF(AVERAGE((B$3-E14)/B$3*100,R14)>100,100,AVERAGE((B$3-E14)/B$3*100,R14))) -> 0.0 | T14: =IF(R14="","",IF(R14>89,6,IF(R14>79,5,IF(R14>69,4,IF(R14>54,3,IF(R14>39,2,IF(R14>29,1,0))))))) -> 0
A15: =A14+1 -> 3 | B15: =B14+1 -> 2021-09-30 | C15: =E14 -> 1.960 | D15: =IF(C15="",-5,C15) -> 1.960 | E15: =IF(T15="","",IF(T15=0,C15,IF(T15=1,(C15*C$8),IF(T15=2,(C15*C$7),IF(T15=3,(C15*C$6),IF(T15=4,AVERAGE((C15*C$6),(C15*C$6),(C15*C$6),(C15*C$6),(C15-C$5)),IF(T15=5,(C15-C$5),IF(T15=6,(C15-1.5*C$5),"blue")))))))) -> 1.960 | G15: 0.000% | R15: =IF(Legal!B$19="",0,IF(H15="","",SUM(H15:Q15))) -> 0 | S15: 0.0 | T15: =IF(R15="","",IF(R15>89,6,IF(R15>79,5,IF(R15>69,4,IF(R15>54,3,IF(R15>39,2,IF(R15>29,1,0))))))) -> 0
A16: 4 | B16: =B15+1 -> 2021-10-01 | C16: =E15 -> 1.960 | D16: 1.960 | E16: 1.960 | G16: 0.000% | R16: =IF(Legal!B$19="",0,IF(H16="","",SUM(H16:Q16))) -> 0 | S16: 0.0 | T16: =IF(R16="","",IF(R16>89,6,IF(R16>79,5,IF(R16>69,4,IF(R16>54,3,IF(R16>39,2,IF(R16>29,1,0))))))) -> 0
A17: 5 | B17: =B16+1 -> 2021-10-02 | C17: =E16 -> 1.960 | D17: 1.960 | E17: 1.960 | G17: 0.000% | R17: =IF(Legal!B$19="",0,IF(H17="","",SUM(H17:Q17))) -> 0 | S17: 0.0 | T17: 0
A18: 6 | B18: 2021-10-03 | C18: 1.960 | D18: 1.960 | E18: 1.960 | G18: 0.000% | R18: =IF(Legal!B$19="",0,IF(H18="","",SUM(H18:Q18))) -> 0 | S18: 0.0 | T18: 0
A19: 7 | B19: 2021-10-04 | C19: 1.960 | D19: 1.960 | E19: 1.960 | G19: 0.000% | R19: =IF(Legal!B$19="",0,IF(H19="","",SUM(H19:Q19))) -> 0 | S19: 0.0 | T19: 0
A20: 8 | B20: 2021-10-05 | C20: 1.960 | D20: 1.960 | E20: 1.960 | G20: =IF(T20="","",(C20-E20)/C20) -> 0.000% | R20: =IF(Legal!B$19="",0,IF(H20="","",SUM(H20:Q20))) -> 0 | S20: 0.0 | T20: 0
A21: 9 | B21: 2021-10-06 | C21: 1.960 | D21: 1.960 | E21: 1.960 | G21: 0.000% | R21: =IF(Legal!B$19="",0,IF(H21="","",SUM(H21:Q21))) -> 0 | S21: 0.0 | T21: 0
A22: 10 | B22: 2021-10-07 | C22: 1.960 | D22: 1.960 | E22: 1.960 | G22: 0.000% | R22: =IF(Legal!B$19="",0,IF(H22="","",SUM(H22:Q22))) -> 0 | S22: 0.0 | T22: 0
A23: 11 | B23: 2021-10-08 | C23: 1.960 | D23: 1.960 | E23: 1.960 | G23: 0.000% | R23: =IF(Legal!B$19="",0,IF(H23="","",SUM(H23:Q23))) -> 0 | S23: 0.0 | T23: 0
A24: 12 | B24: 2021-10-09 | C24: 1.960 | D24: 1.960 | E24: 1.960 | G24: 0.000% | R24: =IF(Legal!B$19="",0,IF(H24="","",SUM(H24:Q24))) -> 0 | S24: 0.0 | T24: 0
A25: 13 | B25: 2021-10-10 | C25: 1.960 | D25: 1.960 | E25: 1.960 | G25: 0.000% | R25: =IF(Legal!B$19="",0,IF(H25="","",SUM(H25:Q25))) -> 0 | S25: 0.0 | T25: 0
A26: 14 | B26: 2021-10-11 | C26: 1.960 | D26: 1.960 | E26: 1.960 | G26: 0.000% | R26: =IF(Legal!B$19="",0,IF(H26="","",SUM(H26:Q26))) -> 0 | S26: 0.0 | T26: 0
A27: 15 | B27: 2021-10-12 | C27: 1.960 | D27: 1.960 | E27: 1.960 | G27: 0.000% | R27: =IF(Legal!B$19="",0,IF(H27="","",SUM(H27:Q27))) -> 0 | S27: 0.0 | T27: 0
A28: 16 | B28: 2021-10-13 | C28: 1.960 | D28: 1.960 | E28: 1.960 | G28: 0.000% | R28: =IF(Legal!B$19="",0,IF(H28="","",SUM(H28:Q28))) -> 0 | S28: 0.0 | T28: 0
A29: 17 | B29: 2021-10-14 | C29: 1.960 | D29: 1.960 | E29: 1.960 | G29: 0.000% | R29: =IF(Legal!B$19="",0,IF(H29="","",SUM(H29:Q29))) -> 0 | S29: 0.0 | T29: 0
A30: 18 | B30: 2021-10-15 | C30: 1.960 | D30: 1.960 | E30: 1.960 | G30: 0.000% | R30: =IF(Legal!B$19="",0,IF(H30="","",SUM(H30:Q30))) -> 0 | S30: 0.0 | T30: 0
A31: 19 | B31: 2021-10-16 | C31: 1.960 | D31: 1.960 | E31: 1.960 | G31: 0.000% | R31: =IF(Legal!B$19="",0,IF(H31="","",SUM(H31:Q31))) -> 0 | S31: 0.0 | T31: 0
A32: 20 | B32: 2021-10-17 | C32: 1.960 | D32: 1.960 | E32: 1.960 | G32: 0.000% | R32: =IF(Legal!B$19="",0,IF(H32="","",SUM(H32:Q32))) -> 0 | S32: 0.0 | T32: 0
A33: 21 | B33: 2021-10-18 | C33: 1.960 | D33: 1.960 | E33: 1.960 | G33: 0.000% | R33: =IF(Legal!B$19="",0,IF(H33="","",SUM(H33:Q33))) -> 0 | S33: 0.0 | T33: 0
A34: 22 | B34: 2021-10-19 | C34: 1.960 | D34: 1.960 | E34: 1.960 | G34: 0.000% | R34: =IF(Legal!B$19="",0,IF(H34="","",SUM(H34:Q34))) -> 0 | S34: 0.0 | T34: 0
A35: 23 | B35: 2021-10-20 | C35: 1.960 | D35: 1.960 | E35: 1.960 | G35: 0.000% | R35: =IF(Legal!B$19="",0,IF(H35="","",SUM(H35:Q35))) -> 0 | S35: 0.0 | T35: 0
A36: 24 | B36: 2021-10-21 | C36: 1.960 | D36: 1.960 | E36: 1.960 | G36: 0.000% | R36: =IF(Legal!B$19="",0,IF(H36="","",SUM(H36:Q36))) -> 0 | S36: 0.0 | T36: 0
A37: 25 | B37: 2021-10-22 | C37: 1.960 | D37: 1.960 | E37: 1.960 | G37: 0.000% | R37: =IF(Legal!B$19="",0,IF(H37="","",SUM(H37:Q37))) -> 0 | S37: 0.0 | T37: 0
A38: 26 | B38: 2021-10-23 | C38: 1.960 | D38: 1.960 | E38: 1.960 | G38: 0.000% | R38: =IF(Legal!B$19="",0,IF(H38="","",SUM(H38:Q38))) -> 0 | S38: 0.0 | T38: 0
A39: 27 | B39: 2021-10-24 | C39: 1.960 | D39: 1.960 | E39: 1.960 | G39: 0.000% | R39: =IF(Legal!B$19="",0,IF(H39="","",SUM(H39:Q39))) -> 0 | S39: 0.0 | T39: 0
A40: 28 | B40: 2021-10-25 | C40: 1.960 | D40: 1.960 | E40: 1.960 | G40: 0.000% | R40: =IF(Legal!B$19="",0,IF(H40="","",SUM(H40:Q40))) -> 0 | S40: 0.0 | T40: 0
A41: 29 | B41: 2021-10-26 | C41: 1.960 | D41: 1.960 | E41: 1.960 | G41: 0.000% | R41: =IF(Legal!B$19="",0,IF(H41="","",SUM(H41:Q41))) -> 0 | S41: 0.0 | T41: 0
A42: 30 | B42: 2021-10-27 | C42: 1.960 | D42: 1.960 | E42: 1.960 | G42: 0.000% | R42: =IF(Legal!B$19="",0,IF(H42="","",SUM(H42:Q42))) -> 0 | S42: 0.0 | T42: 0
A43: =A42+1 -> 31 | B43: =B42+1 -> 2021-10-28 | C43: 1.960 | D43: 1.960 | E43: 1.960 | G43: 0.000% | R43: =IF(Legal!B$19="",0,IF(H43="","",SUM(H43:Q43))) -> 0 | S43: 0.0 | T43: 0
A44: 32 | B44: 2021-10-29 | C44: 1.960 | D44: 1.960 | E44: 1.960 | G44: 0.000% | R44: =IF(Legal!B$19="",0,IF(H44="","",SUM(H44:Q44))) -> 0 | S44: 0.0 | T44: 0
A45: 33 | B45: 2021-10-30 | C45: 1.960 | D45: 1.960 | E45: 1.960 | G45: 0.000% | R45: =IF(Legal!B$19="",0,IF(H45="","",SUM(H45:Q45))) -> 0 | S45: 0.0 | T45: 0
A46: 34 | B46: 2021-10-31 | C46: 1.960 | D46: 1.960 | E46: 1.960 | G46: 0.000% | R46: =IF(Legal!B$19="",0,IF(H46="","",SUM(H46:Q46))) -> 0 | S46: 0.0 | T46: 0
A47: 35 | B47: 2021-11-01 | C47: 1.960 | D47: 1.960 | E47: 1.960 | G47: 0.000% | R47: =IF(Legal!B$19="",0,IF(H47="","",SUM(H47:Q47))) -> 0 | S47: 0.0 | T47: 0
A48: 36 | B48: 2021-11-02 | C48: 1.960 | D48: 1.960 | E48: 1.960 | G48: 0.000% | R48: =IF(Legal!B$19="",0,IF(H48="","",SUM(H48:Q48))) -> 0 | S48: 0.0 | T48: 0
A49: 37 | B49: 2021-11-03 | C49: 1.960 | D49: 1.960 | E49: 1.960 | G49: 0.000% | R49: =IF(Legal!B$19="",0,IF(H49="","",SUM(H49:Q49))) -> 0 | S49: 0.0 | T49: 0
A50: 38 | B50: 2021-11-04 | C50: 1.960 | D50: 1.960 | E50: 1.960 | G50: 0.000% | R50: =IF(Legal!B$19="",0,IF(H50="","",SUM(H50:Q50))) -> 0 | S50: 0.0 | T50: 0
A51: 39 | B51: 2021-11-05 | C51: 1.960 | D51: 1.960 | E51: 1.960 | G51: 0.000% | R51: =IF(Legal!B$19="",0,IF(H51="","",SUM(H51:Q51))) -> 0 | S51: 0.0 | T51: 0
A52: 40 | B52: 2021-11-06 | C52: 1.960 | D52: 1.960 | E52: 1.960 | G52: 0.000% | R52: =IF(Legal!B$19="",0,IF(H52="","",SUM(H52:Q52))) -> 0 | S52: 0.0 | T52: 0
A53: 41 | B53: 2021-11-07 | C53: 1.960 | D53: 1.960 | E53: 1.960 | G53: 0.000% | R53: =IF(Legal!B$19="",0,IF(H53="","",SUM(H53:Q53))) -> 0 | S53: 0.0 | T53: 0
A54: 42 | B54: 2021-11-08 | C54: 1.960 | D54: 1.960 | E54: 1.960 | G54: 0.000% | R54: =IF(Legal!B$19="",0,IF(H54="","",SUM(H54:Q54))) -> 0 | S54: 0.0 | T54: 0
A55: 43 | B55: 2021-11-09 | C55: 1.960 | D55: 1.960 | E55: 1.960 | G55: 0.000% | R55: =IF(Legal!B$19="",0,IF(H55="","",SUM(H55:Q55))) -> 0 | S55: 0.0 | T55: 0
A56: 44 | B56: 2021-11-10 | C56: 1.960 | D56: 1.960 | E56: 1.960 | G56: 0.000% | R56: =IF(Legal!B$19="",0,IF(H56="","",SUM(H56:Q56))) -> 0 | S56: 0.0 | T56: 0
A57: 45 | B57: 2021-11-11 | C57: 1.960 | D57: 1.960 | E57: 1.960 | G57: 0.000% | R57: =IF(Legal!B$19="",0,IF(H57="","",SUM(H57:Q57))) -> 0 | S57: 0.0 | T57: 0
A58: 46 | B58: 2021-11-12 | C58: 1.960 | D58: 1.960 | E58: 1.960 | G58: 0.000% | R58: =IF(Legal!B$19="",0,IF(H58="","",SUM(H58:Q58))) -> 0 | S58: 0.0 | T58: 0
A59: 47 | B59: 2021-11-13 | C59: 1.960 | D59: 1.960 | E59: 1.960 | G59: 0.000% | R59: =IF(Legal!B$19="",0,IF(H59="","",SUM(H59:Q59))) -> 0 | S59: 0.0 | T59: 0
A60: 48 | B60: 2021-11-14 | C60: 1.960 | D60: 1.960 | E60: 1.960 | G60: 0.000% | R60: =IF(Legal!B$19="",0,IF(H60="","",SUM(H60:Q60))) -> 0 | S60: 0.0 | T60: 0
A61: 49 | B61: 2021-11-15 | C61: 1.960 | D61: 1.960 | E61: 1.960 | G61: 0.000% | R61: =IF(Legal!B$19="",0,IF(H61="","",SUM(H61:Q61))) -> 0 | S61: 0.0 | T61: 0
A62: 50 | B62: 2021-11-16 | C62: 1.960 | D62: 1.960 | E62: 1.960 | G62: 0.000% | R62: =IF(Legal!B$19="",0,IF(H62="","",SUM(H62:Q62))) -> 0 | S62: 0.0 | T62: 0
A63: 51 | B63: 2021-11-17 | C63: 1.960 | D63: 1.960 | E63: 1.960 | G63: 0.000% | R63: =IF(Legal!B$19="",0,IF(H63="","",SUM(H63:Q63))) -> 0 | S63: 0.0 | T63: 0
A64: 52 | B64: 2021-11-18 | C64: 1.960 | D64: 1.960 | E64: 1.960 | G64: 0.000% | R64: =IF(Legal!B$19="",0,IF(H64="","",SUM(H64:Q64))) -> 0 | S64: 0.0 | T64: 0
A65: 53 | B65: 2021-11-19 | C65: 1.960 | D65: 1.960 | E65: 1.960 | G65: 0.000% | R65: =IF(Legal!B$19="",0,IF(H65="","",SUM(H65:Q65))) -> 0 | S65: 0.0 | T65: 0
A66: 54 | B66: 2021-11-20 | C66: 1.960 | D66: 1.960 | E66: 1.960 | G66: 0.000% | R66: =IF(Legal!B$19="",0,IF(H66="","",SUM(H66:Q66))) -> 0 | S66: 0.0 | T66: 0
A67: 55 | B67: 2021-11-21 | C67: 1.960 | D67: 1.960 | E67: 1.960 | G67: 0.000% | R67: =IF(Legal!B$19="",0,IF(H67="","",SUM(H67:Q67))) -> 0 | S67: 0.0 | T67: 0
A68: 56 | B68: 2021-11-22 | C68: 1.960 | D68: 1.960 | E68: 1.960 | G68: 0.000% | R68: =IF(Legal!B$19="",0,IF(H68="","",SUM(H68:Q68))) -> 0 | S68: 0.0 | T68: 0
A69: 57 | B69: 2021-11-23 | C69: 1.960 | D69: 1.960 | E69: 1.960 | G69: 0.000% | R69: =IF(Legal!B$19="",0,IF(H69="","",SUM(H69:Q69))) -> 0 | S69: 0.0 | T69: 0
A70: 58 | B70: 2021-11-24 | C70: 1.960 | D70: 1.960 | E70: 1.960 | G70: 0.000% | R70: =IF(Legal!B$19="",0,IF(H70="","",SUM(H70:Q70))) -> 0 | S70: 0.0 | T70: 0
A71: 59 | B71: 2021-11-25 | C71: 1.960 | D71: 1.960 | E71: 1.960 | G71: 0.000% | R71: =IF(Legal!B$19="",0,IF(H71="","",SUM(H71:Q71))) -> 0 | S71: 0.0 | T71: 0
A72: 60 | B72: 2021-11-26 | C72: 1.960 | D72: 1.960 | E72: 1.960 | G72: 0.000% | R72: =IF(Legal!B$19="",0,IF(H72="","",SUM(H72:Q72))) -> 0 | S72: 0.0 | T72: 0
A73: 61 | B73: 2021-11-27 | C73: 1.960 | D73: 1.960 | E73: 1.960 | G73: 0.000% | R73: =IF(Legal!B$19="",0,IF(H73="","",SUM(H73:Q73))) -> 0 | S73: 0.0 | T73: 0
A74: 62 | B74: 2021-11-28 | C74: 1.960 | D74: 1.960 | E74: 1.960 | G74: 0.000% | R74: =IF(Legal!B$19="",0,IF(H74="","",SUM(H74:Q74))) -> 0 | S74: 0.0 | T74: 0
A75: 63 | B75: 2021-11-29 | C75: 1.960 | D75: 1.960 | E75: 1.960 | G75: 0.000% | R75: =IF(Legal!B$19="",0,IF(H75="","",SUM(H75:Q75))) -> 0 | S75: 0.0 | T75: 0
A76: 64 | B76: 2021-11-30 | C76: 1.960 | D76: 1.960 | E76: 1.960 | G76: 0.000% | R76: =IF(Legal!B$19="",0,IF(H76="","",SUM(H76:Q76))) -> 0 | S76: 0.0 | T76: 0
A77: 65 | B77: 2021-12-01 | C77: 1.960 | D77: 1.960 | E77: 1.960 | F77: =IF(H77="","",IF(B$7="Dry",ROUND(E77/B$4*B$9,3)&" grams",IF(B$7="Liquid",ROUND(E77/B$4*B$8,2)&" ml","Error"))) ->  | G77: 0.000% | R77: =IF(Legal!B$19="",0,IF(H77="","",SUM(H77:Q77))) -> 0 | S77: 0.0 | T77: 0
A78: 66 | B78: 2021-12-02 | C78: 1.960 | D78: 1.960 | E78: 1.960 | G78: 0.000% | R78: =IF(Legal!B$19="",0,IF(H78="","",SUM(H78:Q78))) -> 0 | S78: =IF(R78="",-5,IF(AVERAGE((B$3-E78)/B$3*100,R78)>100,100,AVERAGE((B$3-E78)/B$3*100,R78))) -> 0.0 | T78: 0
A79: 67 | B79: 2021-12-03 | C79: 1.960 | D79: =IF(C79="",-5,C79) -> 1.960 | E79: =IF(T79="","",IF(T79=0,C79,IF(T79=1,(C79*C$8),IF(T79=2,(C79*C$7),IF(T79=3,(C79*C$6),IF(T79=4,AVERAGE((C79*C$6),(C79*C$6),(C79*C$6),(C79*C$6),(C79-C$5)),IF(T79=5,(C79-C$5),IF(T79=6,(C79-1.5*C$5),"blue")))))))) -> 1.960 | G79: 0.000% | R79: =IF(Legal!B$19="",0,IF(H79="","",SUM(H79:Q79))) -> 0 | S79: 0.0 | T79: 0
A80: 68 | B80: 2021-12-04 | C80: 1.960 | D80: 1.960 | E80: 1.960 | G80: 0.000% | R80: =IF(Legal!B$19="",0,IF(H80="","",SUM(H80:Q80))) -> 0 | S80: 0.0 | T80: =IF(R80="","",IF(R80>89,6,IF(R80>79,5,IF(R80>69,4,IF(R80>54,3,IF(R80>39,2,IF(R80>29,1,0))))))) -> 0
A81: 69 | B81: 2021-12-05 | C81: =E80 -> 1.960 | D81: 1.960 | E81: 1.960 | G81: 0.000% | R81: =IF(Legal!B$19="",0,IF(H81="","",SUM(H81:Q81))) -> 0 | S81: 0.0 | T81: 0
A82: 70 | B82: 2021-12-06 | C82: 1.960 | D82: 1.960 | E82: 1.960 | G82: 0.000% | R82: =IF(Legal!B$19="",0,IF(H82="","",SUM(H82:Q82))) -> 0 | S82: 0.0 | T82: 0
A83: 71 | B83: 2021-12-07 | C83: 1.960 | D83: 1.960 | E83: 1.960 | G83: 0.000% | R83: =IF(Legal!B$19="",0,IF(H83="","",SUM(H83:Q83))) -> 0 | S83: 0.0 | T83: 0
A84: 72 | B84: 2021-12-08 | C84: 1.960 | D84: 1.960 | E84: 1.960 | G84: =IF(T84="","",(C84-E84)/C84) -> 0.000% | R84: =IF(Legal!B$19="",0,IF(H84="","",SUM(H84:Q84))) -> 0 | S84: 0.0 | T84: 0
A85: 73 | B85: 2021-12-09 | C85: 1.960 | D85: 1.960 | E85: 1.960 | G85: 0.000% | R85: =IF(Legal!B$19="",0,IF(H85="","",SUM(H85:Q85))) -> 0 | S85: 0.0 | T85: 0
A86: 74 | B86: 2021-12-10 | C86: 1.960 | D86: 1.960 | E86: 1.960 | G86: 0.000% | R86: =IF(Legal!B$19="",0,IF(H86="","",SUM(H86:Q86))) -> 0 | S86: 0.0 | T86: 0
A87: 75 | B87: 2021-12-11 | C87: 1.960 | D87: 1.960 | E87: 1.960 | G87: 0.000% | R87: =IF(Legal!B$19="",0,IF(H87="","",SUM(H87:Q87))) -> 0 | S87: 0.0 | T87: 0
A88: 76 | B88: 2021-12-12 | C88: 1.960 | D88: 1.960 | E88: 1.960 | G88: 0.000% | R88: =IF(Legal!B$19="",0,IF(H88="","",SUM(H88:Q88))) -> 0 | S88: 0.0 | T88: 0
A89: 77 | B89: 2021-12-13 | C89: 1.960 | D89: 1.960 | E89: 1.960 | G89: 0.000% | R89: =IF(Legal!B$19="",0,IF(H89="","",SUM(H89:Q89))) -> 0 | S89: 0.0 | T89: 0
A90: 78 | B90: 2021-12-14 | C90: 1.960 | D90: 1.960 | E90: 1.960 | G90: 0.000% | R90: =IF(Legal!B$19="",0,IF(H90="","",SUM(H90:Q90))) -> 0 | S90: 0.0 | T90: 0
A91: 79 | B91: 2021-12-15 | C91: 1.960 | D91: 1.960 | E91: 1.960 | G91: 0.000% | R91: =IF(Legal!B$19="",0,IF(H91="","",SUM(H91:Q91))) -> 0 | S91: 0.0 | T91: 0
A92: 80 | B92: 2021-12-16 | C92: 1.960 | D92: 1.960 | E92: 1.960 | G92: 0.000% | R92: =IF(Legal!B$19="",0,IF(H92="","",SUM(H92:Q92))) -> 0 | S92: 0.0 | T92: 0
A93: 81 | B93: 2021-12-17 | C93: 1.960 | D93: 1.960 | E93: 1.960 | G93: 0.000% | R93: =IF(Legal!B$19="",0,IF(H93="","",SUM(H93:Q93))) -> 0 | S93: 0.0 | T93: 0
A94: 82 | B94: 2021-12-18 | C94: 1.960 | D94: 1.960 | E94: 1.960 | G94: 0.000% | R94: =IF(Legal!B$19="",0,IF(H94="","",SUM(H94:Q94))) -> 0 | S94: 0.0 | T94: 0
A95: 83 | B95: 2021-12-19 | C95: 1.960 | D95: 1.960 | E95: 1.960 | G95: 0.000% | R95: =IF(Legal!B$19="",0,IF(H95="","",SUM(H95:Q95))) -> 0 | S95: 0.0 | T95: 0
A96: 84 | B96: 2021-12-20 | C96: 1.960 | D96: 1.960 | E96: 1.960 | G96: 0.000% | R96: =IF(Legal!B$19="",0,IF(H96="","",SUM(H96:Q96))) -> 0 | S96: 0.0 | T96: 0
A97: 85 | B97: 2021-12-21 | C97: 1.960 | D97: 1.960 | E97: 1.960 | G97: 0.000% | R97: =IF(Legal!B$19="",0,IF(H97="","",SUM(H97:Q97))) -> 0 | S97: 0.0 | T97: 0
A98: 86 | B98: 2021-12-22 | C98: 1.960 | D98: 1.960 | E98: 1.960 | G98: 0.000% | R98: =IF(Legal!B$19="",0,IF(H98="","",SUM(H98:Q98))) -> 0 | S98: 0.0 | T98: 0
A99: 87 | B99: 2021-12-23 | C99: 1.960 | D99: 1.960 | E99: 1.960 | G99: 0.000% | R99: =IF(Legal!B$19="",0,IF(H99="","",SUM(H99:Q99))) -> 0 | S99: 0.0 | T99: 0
A100: 88 | B100: 2021-12-24 | C100: 1.960 | D100: 1.960 | E100: 1.960 | G100: 0.000% | R100: =IF(Legal!B$19="",0,IF(H100="","",SUM(H100:Q100))) -> 0 | S100: 0.0 | T100: 0
A101: 89 | B101: 2021-12-25 | C101: 1.960 | D101: 1.960 | E101: 1.960 | G101: 0.000% | R101: =IF(Legal!B$19="",0,IF(H101="","",SUM(H101:Q101))) -> 0 | S101: 0.0 | T101: 0
A102: 90 | B102: 2021-12-26 | C102: 1.960 | D102: 1.960 | E102: 1.960 | G102: 0.000% | R102: =IF(Legal!B$19="",0,IF(H102="","",SUM(H102:Q102))) -> 0 | S102: 0.0 | T102: 0
A103: 91 | B103: 2021-12-27 | C103: 1.960 | D103: 1.960 | E103: 1.960 | G103: 0.000% | R103: =IF(Legal!B$19="",0,IF(H103="","",SUM(H103:Q103))) -> 0 | S103: 0.0 | T103: 0
A104: 92 | B104: 2021-12-28 | C104: 1.960 | D104: 1.960 | E104: 1.960 | G104: 0.000% | R104: =IF(Legal!B$19="",0,IF(H104="","",SUM(H104:Q104))) -> 0 | S104: 0.0 | T104: 0
A105: 93 | B105: 2021-12-29 | C105: 1.960 | D105: 1.960 | E105: 1.960 | G105: 0.000% | R105: =IF(Legal!B$19="",0,IF(H105="","",SUM(H105:Q105))) -> 0 | S105: 0.0 | T105: 0
A106: 94 | B106: 2021-12-30 | C106: 1.960 | D106: 1.960 | E106: 1.960 | G106: 0.000% | R106: =IF(Legal!B$19="",0,IF(H106="","",SUM(H106:Q106))) -> 0 | S106: 0.0 | T106: 0
A107: =A106+1 -> 95 | B107: =B106+1 -> 2021-12-31 | C107: 1.960 | D107: 1.960 | E107: 1.960 | G107: 0.000% | R107: =IF(Legal!B$19="",0,IF(H107="","",SUM(H107:Q107))) -> 0 | S107: 0.0 | T107: 0
A108: 96 | B108: 2022-01-01 | C108: 1.960 | D108: 1.960 | E108: 1.960 | G108: 0.000% | R108: =IF(Legal!B$19="",0,IF(H108="","",SUM(H108:Q108))) -> 0 | S108: 0.0 | T108: 0
A109: 97 | B109: 2022-01-02 | C109: 1.960 | D109: 1.960 | E109: 1.960 | G109: 0.000% | R109: =IF(Legal!B$19="",0,IF(H109="","",SUM(H109:Q109))) -> 0 | S109: 0.0 | T109: 0
A110: 98 | B110: 2022-01-03 | C110: 1.960 | D110: 1.960 | E110: 1.960 | G110: 0.000% | R110: =IF(Legal!B$19="",0,IF(H110="","",SUM(H110:Q110))) -> 0 | S110: 0.0 | T110: 0
A111: 99 | B111: 2022-01-04 | C111: 1.960 | D111: 1.960 | E111: 1.960 | G111: 0.000% | R111: =IF(Legal!B$19="",0,IF(H111="","",SUM(H111:Q111))) -> 0 | S111: 0.0 | T111: 0
A112: 100 | B112: 2022-01-05 | C112: 1.960 | D112: 1.960 | E112: 1.960 | G112: 0.000% | R112: =IF(Legal!B$19="",0,IF(H112="","",SUM(H112:Q112))) -> 0 | S112: 0.0 | T112: 0
A113: 101 | B113: 2022-01-06 | C113: 1.960 | D113: 1.960 | E113: 1.960 | G113: 0.000% | R113: =IF(Legal!B$19="",0,IF(H113="","",SUM(H113:Q113))) -> 0 | S113: 0.0 | T113: 0
A114: 102 | B114: 2022-01-07 | C114: 1.960 | D114: 1.960 | E114: 1.960 | G114: 0.000% | R114: =IF(Legal!B$19="",0,IF(H114="","",SUM(H114:Q114))) -> 0 | S114: 0.0 | T114: 0
A115: 103 | B115: 2022-01-08 | C115: 1.960 | D115: 1.960 | E115: 1.960 | G115: 0.000% | R115: =IF(Legal!B$19="",0,IF(H115="","",SUM(H115:Q115))) -> 0 | S115: 0.0 | T115: 0
A116: 104 | B116: 2022-01-09 | C116: 1.960 | D116: 1.960 | E116: 1.960 | G116: 0.000% | R116: =IF(Legal!B$19="",0,IF(H116="","",SUM(H116:Q116))) -> 0 | S116: 0.0 | T116: 0
A117: 105 | B117: 2022-01-10 | C117: 1.960 | D117: 1.960 | E117: 1.960 | G117: 0.000% | R117: =IF(Legal!B$19="",0,IF(H117="","",SUM(H117:Q117))) -> 0 | S117: 0.0 | T117: 0
A118: 106 | B118: 2022-01-11 | C118: 1.960 | D118: 1.960 | E118: 1.960 | G118: 0.000% | R118: =IF(Legal!B$19="",0,IF(H118="","",SUM(H118:Q118))) -> 0 | S118: 0.0 | T118: 0
A119: 107 | B119: 2022-01-12 | C119: 1.960 | D119: 1.960 | E119: 1.960 | G119: 0.000% | R119: =IF(Legal!B$19="",0,IF(H119="","",SUM(H119:Q119))) -> 0 | S119: 0.0 | T119: 0
A120: 108 | B120: 2022-01-13 | C120: 1.960 | D120: 1.960 | E120: 1.960 | G120: 0.000% | R120: =IF(Legal!B$19="",0,IF(H120="","",SUM(H120:Q120))) -> 0 | S120: 0.0 | T120: 0
A121: 109 | B121: 2022-01-14 | C121: 1.960 | D121: 1.960 | E121: 1.960 | G121: 0.000% | R121: =IF(Legal!B$19="",0,IF(H121="","",SUM(H121:Q121))) -> 0 | S121: 0.0 | T121: 0
A122: 110 | B122: 2022-01-15 | C122: 1.960 | D122: 1.960 | E122: 1.960 | G122: 0.000% | R122: =IF(Legal!B$19="",0,IF(H122="","",SUM(H122:Q122))) -> 0 | S122: 0.0 | T122: 0
A123: 111 | B123: 2022-01-16 | C123: 1.960 | D123: 1.960 | E123: 1.960 | G123: 0.000% | R123: =IF(Legal!B$19="",0,IF(H123="","",SUM(H123:Q123))) -> 0 | S123: 0.0 | T123: 0
A124: 112 | B124: 2022-01-17 | C124: 1.960 | D124: 1.960 | E124: 1.960 | G124: 0.000% | R124: =IF(Legal!B$19="",0,IF(H124="","",SUM(H124:Q124))) -> 0 | S124: 0.0 | T124: 0
A125: 113 | B125: 2022-01-18 | C125: 1.960 | D125: 1.960 | E125: 1.960 | G125: 0.000% | R125: =IF(Legal!B$19="",0,IF(H125="","",SUM(H125:Q125))) -> 0 | S125: 0.0 | T125: 0
A126: 114 | B126: 2022-01-19 | C126: 1.960 | D126: 1.960 | E126: 1.960 | G126: 0.000% | R126: =IF(Legal!B$19="",0,IF(H126="","",SUM(H126:Q126))) -> 0 | S126: 0.0 | T126: 0
A127: 115 | B127: 2022-01-20 | C127: 1.960 | D127: 1.960 | E127: 1.960 | G127: 0.000% | R127: =IF(Legal!B$19="",0,IF(H127="","",SUM(H127:Q127))) -> 0 | S127: 0.0 | T127: 0
A128: 116 | B128: 2022-01-21 | C128: 1.960 | D128: 1.960 | E128: 1.960 | G128: 0.000% | R128: =IF(Legal!B$19="",0,IF(H128="","",SUM(H128:Q128))) -> 0 | S128: 0.0 | T128: 0
A129: 117 | B129: 2022-01-22 | C129: 1.960 | D129: 1.960 | E129: 1.960 | G129: 0.000% | R129: =IF(Legal!B$19="",0,IF(H129="","",SUM(H129:Q129))) -> 0 | S129: 0.0 | T129: 0
A130: 118 | B130: 2022-01-23 | C130: 1.960 | D130: 1.960 | E130: 1.960 | G130: 0.000% | R130: =IF(Legal!B$19="",0,IF(H130="","",SUM(H130:Q130))) -> 0 | S130: 0.0 | T130: 0
A131: 119 | B131: 2022-01-24 | C131: 1.960 | D131: 1.960 | E131: 1.960 | G131: 0.000% | R131: =IF(Legal!B$19="",0,IF(H131="","",SUM(H131:Q131))) -> 0 | S131: 0.0 | T131: 0
A132: 120 | B132: 2022-01-25 | C132: 1.960 | D132: 1.960 | E132: 1.960 | G132: 0.000% | R132: =IF(Legal!B$19="",0,IF(H132="","",SUM(H132:Q132))) -> 0 | S132: 0.0 | T132: 0
A133: 121 | B133: 2022-01-26 | C133: 1.960 | D133: 1.960 | E133: 1.960 | G133: 0.000% | R133: =IF(Legal!B$19="",0,IF(H133="","",SUM(H133:Q133))) -> 0 | S133: 0.0 | T133: 0
A134: 122 | B134: 2022-01-27 | C134: 1.960 | D134: 1.960 | E134: 1.960 | G134: 0.000% | R134: =IF(Legal!B$19="",0,IF(H134="","",SUM(H134:Q134))) -> 0 | S134: 0.0 | T134: 0
A135: 123 | B135: 2022-01-28 | C135: 1.960 | D135: 1.960 | E135: 1.960 | G135: 0.000% | R135: =IF(Legal!B$19="",0,IF(H135="","",SUM(H135:Q135))) -> 0 | S135: 0.0 | T135: 0
A136: 124 | B136: 2022-01-29 | C136: 1.960 | D136: 1.960 | E136: 1.960 | G136: 0.000% | R136: =IF(Legal!B$19="",0,IF(H136="","",SUM(H136:Q136))) -> 0 | S136: 0.0 | T136: 0
A137: 125 | B137: 2022-01-30 | C137: 1.960 | D137: 1.960 | E137: 1.960 | G137: 0.000% | R137: =IF(Legal!B$19="",0,IF(H137="","",SUM(H137:Q137))) -> 0 | S137: 0.0 | T137: 0
A138: 126 | B138: 2022-01-31 | C138: 1.960 | D138: 1.960 | E138: 1.960 | G138: 0.000% | R138: =IF(Legal!B$19="",0,IF(H138="","",SUM(H138:Q138))) -> 0 | S138: 0.0 | T138: 0
A139: 127 | B139: 2022-02-01 | C139: 1.960 | D139: 1.960 | E139: 1.960 | G139: 0.000% | R139: =IF(Legal!B$19="",0,IF(H139="","",SUM(H139:Q139))) -> 0 | S139: 0.0 | T139: 0
A140: 128 | B140: 2022-02-02 | C140: 1.960 | D140: 1.960 | E140: 1.960 | G140: 0.000% | R140: =IF(Legal!B$19="",0,IF(H140="","",SUM(H140:Q140))) -> 0 | S140: 0.0 | T140: 0
A141: 129 | B141: 2022-02-03 | C141: 1.960 | D141: 1.960 | E141: 1.960 | F141: =IF(H141="","",IF(B$7="Dry",ROUND(E141/B$4*B$9,3)&" grams",IF(B$7="Liquid",ROUND(E141/B$4*B$8,2)&" ml","Error"))) ->  | G141: 0.000% | R141: =IF(Legal!B$19="",0,IF(H141="","",SUM(H141:Q141))) -> 0 | S141: 0.0 | T141: 0
A142: 130 | B142: 2022-02-04 | C142: 1.960 | D142: 1.960 | E142: 1.960 | G142: 0.000% | R142: =IF(Legal!B$19="",0,IF(H142="","",SUM(H142:Q142))) -> 0 | S142: =IF(R142="",-5,IF(AVERAGE((B$3-E142)/B$3*100,R142)>100,100,AVERAGE((B$3-E142)/B$3*100,R142))) -> 0.0 | T142: 0
A143: 131 | B143: 2022-02-05 | C143: 1.960 | D143: =IF(C143="",-5,C143) -> 1.960 | E143: =IF(T143="","",IF(T143=0,C143,IF(T143=1,(C143*C$8),IF(T143=2,(C143*C$7),IF(T143=3,(C143*C$6),IF(T143=4,AVERAGE((C143*C$6),(C143*C$6),(C143*C$6),(C143*C$6),(C143-C$5)),IF(T143=5,(C143-C$5),IF(T143=6,(C143-1.5*C$5),"blue")))))))) -> 1.960 | G143: 0.000% | R143: =IF(Legal!B$19="",0,IF(H143="","",SUM(H143:Q143))) -> 0 | S143: 0.0 | T143: 0
A144: 132 | B144: 2022-02-06 | C144: 1.960 | D144: 1.960 | E144: 1.960 | G144: 0.000% | R144: =IF(Legal!B$19="",0,IF(H144="","",SUM(H144:Q144))) -> 0 | S144: 0.0 | T144: =IF(R144="","",IF(R144>89,6,IF(R144>79,5,IF(R144>69,4,IF(R144>54,3,IF(R144>39,2,IF(R144>29,1,0))))))) -> 0
A145: 133 | B145: 2022-02-07 | C145: =E144 -> 1.960 | D145: 1.960 | E145: 1.960 | G145: 0.000% | R145: =IF(Legal!B$19="",0,IF(H145="","",SUM(H145:Q145))) -> 0 | S145: 0.0 | T145: 0
A146: 134 | B146: 2022-02-08 | C146: 1.960 | D146: 1.960 | E146: 1.960 | G146: 0.000% | R146: =IF(Legal!B$19="",0,IF(H146="","",SUM(H146:Q146))) -> 0 | S146: 0.0 | T146: 0
A147: 135 | B147: 2022-02-09 | C147: 1.960 | D147: 1.960 | E147: 1.960 | G147: 0.000% | R147: =IF(Legal!B$19="",0,IF(H147="","",SUM(H147:Q147))) -> 0 | S147: 0.0 | T147: 0
A148: 136 | B148: 2022-02-10 | C148: 1.960 | D148: 1.960 | E148: 1.960 | G148: =IF(T148="","",(C148-E148)/C148) -> 0.000% | R148: =IF(Legal!B$19="",0,IF(H148="","",SUM(H148:Q148))) -> 0 | S148: 0.0 | T148: 0
A149: 137 | B149: 2022-02-11 | C149: 1.960 | D149: 1.960 | E149: 1.960 | G149: 0.000% | R149: =IF(Legal!B$19="",0,IF(H149="","",SUM(H149:Q149))) -> 0 | S149: 0.0 | T149: 0
A150: 138 | B150: 2022-02-12 | C150: 1.960 | D150: 1.960 | E150: 1.960 | G150: 0.000% | R150: =IF(Legal!B$19="",0,IF(H150="","",SUM(H150:Q150))) -> 0 | S150: 0.0 | T150: 0
A151: 139 | B151: 2022-02-13 | C151: 1.960 | D151: 1.960 | E151: 1.960 | G151: 0.000% | R151: =IF(Legal!B$19="",0,IF(H151="","",SUM(H151:Q151))) -> 0 | S151: 0.0 | T151: 0
A152: 140 | B152: 2022-02-14 | C152: 1.960 | D152: 1.960 | E152: 1.960 | G152: 0.000% | R152: =IF(Legal!B$19="",0,IF(H152="","",SUM(H152:Q152))) -> 0 | S152: 0.0 | T152: 0
A153: 141 | B153: 2022-02-15 | C153: 1.960 | D153: 1.960 | E153: 1.960 | G153: 0.000% | R153: =IF(Legal!B$19="",0,IF(H153="","",SUM(H153:Q153))) -> 0 | S153: 0.0 | T153: 0
A154: 142 | B154: 2022-02-16 | C154: 1.960 | D154: 1.960 | E154: 1.960 | G154: 0.000% | R154: =IF(Legal!B$19="",0,IF(H154="","",SUM(H154:Q154))) -> 0 | S154: 0.0 | T154: 0
A155: 143 | B155: 2022-02-17 | C155: 1.960 | D155: 1.960 | E155: 1.960 | G155: 0.000% | R155: =IF(Legal!B$19="",0,IF(H155="","",SUM(H155:Q155))) -> 0 | S155: 0.0 | T155: 0
A156: 144 | B156: 2022-02-18 | C156: 1.960 | D156: 1.960 | E156: 1.960 | G156: 0.000% | R156: =IF(Legal!B$19="",0,IF(H156="","",SUM(H156:Q156))) -> 0 | S156: 0.0 | T156: 0
A157: 145 | B157: 2022-02-19 | C157: 1.960 | D157: 1.960 | E157: 1.960 | G157: 0.000% | R157: =IF(Legal!B$19="",0,IF(H157="","",SUM(H157:Q157))) -> 0 | S157: 0.0 | T157: 0
A158: 146 | B158: 2022-02-20 | C158: 1.960 | D158: 1.960 | E158: 1.960 | G158: 0.000% | R158: =IF(Legal!B$19="",0,IF(H158="","",SUM(H158:Q158))) -> 0 | S158: 0.0 | T158: 0
A159: 147 | B159: 2022-02-21 | C159: 1.960 | D159: 1.960 | E159: 1.960 | G159: 0.000% | R159: =IF(Legal!B$19="",0,IF(H159="","",SUM(H159:Q159))) -> 0 | S159: 0.0 | T159: 0
A160: 148 | B160: 2022-02-22 | C160: 1.960 | D160: 1.960 | E160: 1.960 | G160: 0.000% | R160: =IF(Legal!B$19="",0,IF(H160="","",SUM(H160:Q160))) -> 0 | S160: 0.0 | T160: 0
A161: 149 | B161: 2022-02-23 | C161: 1.960 | D161: 1.960 | E161: 1.960 | G161: 0.000% | R161: =IF(Legal!B$19="",0,IF(H161="","",SUM(H161:Q161))) -> 0 | S161: 0.0 | T161: 0
A162: 150 | B162: 2022-02-24 | C162: 1.960 | D162: 1.960 | E162: 1.960 | G162: 0.000% | R162: =IF(Legal!B$19="",0,IF(H162="","",SUM(H162:Q162))) -> 0 | S162: 0.0 | T162: 0
A163: 151 | B163: 2022-02-25 | C163: 1.960 | D163: 1.960 | E163: 1.960 | G163: 0.000% | R163: =IF(Legal!B$19="",0,IF(H163="","",SUM(H163:Q163))) -> 0 | S163: 0.0 | T163: 0
A164: 152 | B164: 2022-02-26 | C164: 1.960 | D164: 1.960 | E164: 1.960 | G164: 0.000% | R164: =IF(Legal!B$19="",0,IF(H164="","",SUM(H164:Q164))) -> 0 | S164: 0.0 | T164: 0
A165: 153 | B165: 2022-02-27 | C165: 1.960 | D165: 1.960 | E165: 1.960 | G165: 0.000% | R165: =IF(Legal!B$19="",0,IF(H165="","",SUM(H165:Q165))) -> 0 | S165: 0.0 | T165: 0
A166: 154 | B166: 2022-02-28 | C166: 1.960 | D166: 1.960 | E166: 1.960 | G166: 0.000% | R166: =IF(Legal!B$19="",0,IF(H166="","",SUM(H166:Q166))) -> 0 | S166: 0.0 | T166: 0
A167: 155 | B167: 2022-03-01 | C167: 1.960 | D167: 1.960 | E167: 1.960 | G167: 0.000% | R167: =IF(Legal!B$19="",0,IF(H167="","",SUM(H167:Q167))) -> 0 | S167: 0.0 | T167: 0
A168: 156 | B168: 2022-03-02 | C168: 1.960 | D168: 1.960 | E168: 1.960 | G168: 0.000% | R168: =IF(Legal!B$19="",0,IF(H168="","",SUM(H168:Q168))) -> 0 | S168: 0.0 | T168: 0
A169: 157 | B169: 2022-03-03 | C169: 1.960 | D169: 1.960 | E169: 1.960 | G169: 0.000% | R169: =IF(Legal!B$19="",0,IF(H169="","",SUM(H169:Q169))) -> 0 | S169: 0.0 | T169: 0
A170: 158 | B170: 2022-03-04 | C170: 1.960 | D170: 1.960 | E170: 1.960 | G170: 0.000% | R170: =IF(Legal!B$19="",0,IF(H170="","",SUM(H170:Q170))) -> 0 | S170: 0.0 | T170: 0
A171: =A170+1 -> 159 | B171: =B170+1 -> 2022-03-05 | C171: 1.960 | D171: 1.960 | E171: 1.960 | G171: 0.000% | R171: =IF(Legal!B$19="",0,IF(H171="","",SUM(H171:Q171))) -> 0 | S171: 0.0 | T171: 0
A172: 160 | B172: 2022-03-06 | C172: 1.960 | D172: 1.960 | E172: 1.960 | G172: 0.000% | R172: =IF(Legal!B$19="",0,IF(H172="","",SUM(H172:Q172))) -> 0 | S172: 0.0 | T172: 0
A173: 161 | B173: 2022-03-07 | C173: 1.960 | D173: 1.960 | E173: 1.960 | G173: 0.000% | R173: =IF(Legal!B$19="",0,IF(H173="","",SUM(H173:Q173))) -> 0 | S173: 0.0 | T173: 0
A174: 162 | B174: 2022-03-08 | C174: 1.960 | D174: 1.960 | E174: 1.960 | G174: 0.000% | R174: =IF(Legal!B$19="",0,IF(H174="","",SUM(H174:Q174))) -> 0 | S174: 0.0 | T174: 0
A175: 163 | B175: 2022-03-09 | C175: 1.960 | D175: 1.960 | E175: 1.960 | G175: 0.000% | R175: =IF(Legal!B$19="",0,IF(H175="","",SUM(H175:Q175))) -> 0 | S175: 0.0 | T175: 0
A176: 164 | B176: 2022-03-10 | C176: 1.960 | D176: 1.960 | E176: 1.960 | G176: 0.000% | R176: =IF(Legal!B$19="",0,IF(H176="","",SUM(H176:Q176))) -> 0 | S176: 0.0 | T176: 0
A177: 165 | B177: 2022-03-11 | C177: 1.960 | D177: 1.960 | E177: 1.960 | G177: 0.000% | R177: =IF(Legal!B$19="",0,IF(H177="","",SUM(H177:Q177))) -> 0 | S177: 0.0 | T177: 0
A178: 166 | B178: 2022-03-12 | C178: 1.960 | D178: 1.960 | E178: 1.960 | G178: 0.000% | R178: =IF(Legal!B$19="",0,IF(H178="","",SUM(H178:Q178))) -> 0 | S178: 0.0 | T178: 0
A179: 167 | B179: 2022-03-13 | C179: 1.960 | D179: 1.960 | E179: 1.960 | G179: 0.000% | R179: =IF(Legal!B$19="",0,IF(H179="","",SUM(H179:Q179))) -> 0 | S179: 0.0 | T179: 0
A180: 168 | B180: 2022-03-14 | C180: 1.960 | D180: 1.960 | E180: 1.960 | G180: 0.000% | R180: =IF(Legal!B$19="",0,IF(H180="","",SUM(H180:Q180))) -> 0 | S180: 0.0 | T180: 0
A181: 169 | B181: 2022-03-15 | C181: 1.960 | D181: 1.960 | E181: 1.960 | G181: 0.000% | R181: =IF(Legal!B$19="",0,IF(H181="","",SUM(H181:Q181))) -> 0 | S181: 0.0 | T181: 0
A182: 170 | B182: 2022-03-16 | C182: 1.960 | D182: 1.960 | E182: 1.960 | G182: 0.000% | R182: =IF(Legal!B$19="",0,IF(H182="","",SUM(H182:Q182))) -> 0 | S182: 0.0 | T182: 0
A183: 171 | B183: 2022-03-17 | C183: 1.960 | D183: 1.960 | E183: 1.960 | G183: 0.000% | R183: =IF(Legal!B$19="",0,IF(H183="","",SUM(H183:Q183))) -> 0 | S183: 0.0 | T183: 0
A184: 172 | B184: 2022-03-18 | C184: 1.960 | D184: 1.960 | E184: 1.960 | G184: 0.000% | R184: =IF(Legal!B$19="",0,IF(H184="","",SUM(H184:Q184))) -> 0 | S184: 0.0 | T184: 0
A185: 173 | B185: 2022-03-19 | C185: 1.960 | D185: 1.960 | E185: 1.960 | G185: 0.000% | R185: =IF(Legal!B$19="",0,IF(H185="","",SUM(H185:Q185))) -> 0 | S185: 0.0 | T185: 0
A186: 174 | B186: 2022-03-20 | C186: 1.960 | D186: 1.960 | E186: 1.960 | G186: 0.000% | R186: =IF(Legal!B$19="",0,IF(H186="","",SUM(H186:Q186))) -> 0 | S186: 0.0 | T186: 0
A187: 175 | B187: 2022-03-21 | C187: 1.960 | D187: 1.960 | E187: 1.960 | G187: 0.000% | R187: =IF(Legal!B$19="",0,IF(H187="","",SUM(H187:Q187))) -> 0 | S187: 0.0 | T187: 0
A188: 176 | B188: 2022-03-22 | C188: 1.960 | D188: 1.960 | E188: 1.960 | G188: 0.000% | R188: =IF(Legal!B$19="",0,IF(H188="","",SUM(H188:Q188))) -> 0 | S188: 0.0 | T188: 0
A189: 177 | B189: 2022-03-23 | C189: 1.960 | D189: 1.960 | E189: 1.960 | G189: 0.000% | R189: =IF(Legal!B$19="",0,IF(H189="","",SUM(H189:Q189))) -> 0 | S189: 0.0 | T189: 0
A190: 178 | B190: 2022-03-24 | C190: 1.960 | D190: 1.960 | E190: 1.960 | G190: 0.000% | R190: =IF(Legal!B$19="",0,IF(H190="","",SUM(H190:Q190))) -> 0 | S190: 0.0 | T190: 0
A191: 179 | B191: 2022-03-25 | C191: 1.960 | D191: 1.960 | E191: 1.960 | G191: 0.000% | R191: =IF(Legal!B$19="",0,IF(H191="","",SUM(H191:Q191))) -> 0 | S191: 0.0 | T191: 0
A192: 180 | B192: 2022-03-26 | C192: 1.960 | D192: 1.960 | E192: 1.960 | G192: 0.000% | R192: =IF(Legal!B$19="",0,IF(H192="","",SUM(H192:Q192))) -> 0 | S192: 0.0 | T192: 0
A193: 181 | B193: 2022-03-27 | C193: 1.960 | D193: 1.960 | E193: 1.960 | G193: 0.000% | R193: =IF(Legal!B$19="",0,IF(H193="","",SUM(H193:Q193))) -> 0 | S193: 0.0 | T193: 0
A194: 182 | B194: 2022-03-28 | C194: 1.960 | D194: 1.960 | E194: 1.960 | G194: 0.000% | R194: =IF(Legal!B$19="",0,IF(H194="","",SUM(H194:Q194))) -> 0 | S194: 0.0 | T194: 0
A195: 183 | B195: 2022-03-29 | C195: 1.960 | D195: 1.960 | E195: 1.960 | G195: 0.000% | R195: =IF(Legal!B$19="",0,IF(H195="","",SUM(H195:Q195))) -> 0 | S195: 0.0 | T195: 0
A196: 184 | B196: 2022-03-30 | C196: 1.960 | D196: 1.960 | E196: 1.960 | G196: 0.000% | R196: =IF(Legal!B$19="",0,IF(H196="","",SUM(H196:Q196))) -> 0 | S196: 0.0 | T196: 0
A197: 185 | B197: 2022-03-31 | C197: 1.960 | D197: 1.960 | E197: 1.960 | G197: 0.000% | R197: =IF(Legal!B$19="",0,IF(H197="","",SUM(H197:Q197))) -> 0 | S197: 0.0 | T197: 0
A198: 186 | B198: 2022-04-01 | C198: 1.960 | D198: 1.960 | E198: 1.960 | G198: 0.000% | R198: =IF(Legal!B$19="",0,IF(H198="","",SUM(H198:Q198))) -> 0 | S198: 0.0 | T198: 0
A199: 187 | B199: 2022-04-02 | C199: 1.960 | D199: 1.960 | E199: 1.960 | G199: 0.000% | R199: =IF(Legal!B$19="",0,IF(H199="","",SUM(H199:Q199))) -> 0 | S199: 0.0 | T199: 0
A200: 188 | B200: 2022-04-03 | C200: 1.960 | D200: 1.960 | E200: 1.960 | G200: 0.000% | R200: =IF(Legal!B$19="",0,IF(H200="","",SUM(H200:Q200))) -> 0 | S200: 0.0 | T200: 0
A201: 189 | B201: 2022-04-04 | C201: 1.960 | D201: 1.960 | E201: 1.960 | G201: 0.000% | R201: =IF(Legal!B$19="",0,IF(H201="","",SUM(H201:Q201))) -> 0 | S201: 0.0 | T201: 0
A202: 190 | B202: 2022-04-05 | C202: 1.960 | D202: 1.960 | E202: 1.960 | G202: 0.000% | R202: =IF(Legal!B$19="",0,IF(H202="","",SUM(H202:Q202))) -> 0 | S202: 0.0 | T202: 0
... 710 more rows

Sheet Sub-Dosing
A1: Sub-Dosing | E1: Sub-Dose Timing
E2: 07:15:00 | F2: 13:15:00 | G2: 18:15:00 | H2: 23:30:00 | I2: =IF($D3>4,"Time5","") ->  | J2: =IF($D3>5,"Time6","") ->  | K2: =IF($D3>6,"Time7","") ->  | L2: =IF($D3>7,"Time8","") -> 
A3: Taper Type | B3: ='Daily Dosing'!B7 -> Dry | C3: Sub-Doses Per Day | D3: 4 | E3: Percentage of Sub-Dose Taken at Each Time Point | M3: Total
A4: Day Number | B4: Date | C4: Suggested Daily Dose (mg) | D4: Daily Dose (ml if liquid, g if dry) | E4: 25.0% | F4: 25.0% | G4: 25.0% | H4: =IF($D3=4,1-SUM($E4:G4),IF($D3>3,100%/$D3,"N/A")) -> 25.0% | I4: =IF($D3=5,1-SUM($E4:H4),IF($D3>4,100%/$D3,"N/A")) -> N/A | J4: =IF($D3=6,1-SUM($E4:I4),IF($D3>5,100%/$D3,"N/A")) -> N/A | K4: =IF($D3=7,1-SUM($E4:J4),IF($D3>6,100%/$D3,"N/A")) -> N/A | L4: =IF($D3=8,1-SUM($E4:K4),IF($D3>7,100%/$D3,"N/A")) -> N/A | M4: =SUM(E4:L4) -> 100%
E5: Sub-Dose | F5: Sub-Dose | G5: Sub-Dose | H5: Sub-Dose | I5: Sub-Dose | J5: Sub-Dose | K5: Sub-Dose | L5: Sub-Dose | M5: Today's Rating
A6: 1 | B6: ='Daily Dosing'!B13 -> 2021-09-28 | C6: ='Daily Dosing'!E13 -> 1.960 | D6: =IF('Daily Dosing'!H13="","",IF('Daily Dosing'!B$7="Dry",ROUND('Daily Dosing'!E13/'Daily Dosing'!B$4*'Daily Dosing'!B$9,3)&" g",IF('Daily Dosing'!B$7="Liquid",ROUND('Daily Dosing'!E13/'Daily Dosing'!B$4*'Daily Dosing'!B$8,2)&" ml","Error"))) ->  | E6: =IF('Daily Dosing'!$H13="","",IF(E$4="N/A","N/A",IF('Daily Dosing'!$B$7="Dry",ROUND(E$4*'Daily Dosing'!$E13/'Daily Dosing'!$B$4*'Daily Dosing'!$B$9,3)&" g",IF('Daily Dosing'!$B$7="Liquid",ROUND(E$4*'Daily Dosing'!$E13/'Daily Dosing'!$B$4*'Daily Dosing'!$B$8,2)&" ml","Error")))) ->  | F6: =IF('Daily Dosing'!$H13="","",IF(F$4="N/A","N/A",IF('Daily Dosing'!$B$7="Dry",ROUND(F$4*'Daily Dosing'!$E13/'Daily Dosing'!$B$4*'Daily Dosing'!$B$9,3)&" g",IF('Daily Dosing'!$B$7="Liquid",ROUND(F$4*'Daily Dosing'!$E13/'Daily Dosing'!$B$4*'Daily Dosing'!$B$8,2)&" ml","Error")))) ->  | G6: =IF('Daily Dosing'!$H13="","",IF(G$4="N/A","N/A",IF('Daily Dosing'!$B$7="Dry",ROUND(G$4*'Daily Dosing'!$E13/'Daily Dosing'!$B$4*'Daily Dosing'!$B$9,3)&" g",IF('Daily Dosing'!$B$7="Liquid",ROUND(G$4*'Daily Dosing'!$E13/'Daily Dosing'!$B$4*'Daily Dosing'!$B$8,2)&" ml","Error")))) ->  | H6: =IF('Daily Dosing'!$H13="","",IF(H$4="N/A","N/A",IF('Daily Dosing'!$B$7="Dry",ROUND(H$4*'Daily Dosing'!$E13/'Daily Dosing'!$B$4*'Daily Dosing'!$B$9,3)&" g",IF('Daily Dosing'!$B$7="Liquid",ROUND(H$4*'Daily Dosing'!$E13/'Daily Dosing'!$B$4*'Daily Dosing'!$B$8,2)&" ml","Error")))) ->  | I6: =IF('Daily Dosing'!$H13="","",IF(I$4="N/A","N/A",IF('Daily Dosing'!$B$7="Dry",ROUND(I$4*'Daily Dosing'!$E13/'Daily Dosing'!$B$4*'Daily Dosing'!$B$9,3)&" g",IF('Daily Dosing'!$B$7="Liquid",ROUND(I$4*'Daily Dosing'!$E13/'Daily Dosing'!$B$4*'Daily Dosing'!$B$8,2)&" ml","Error")))) ->  | J6: =IF('Daily Dosing'!$H13="","",IF(J$4="N/A","N/A",IF('Daily Dosing'!$B$7="Dry",ROUND(J$4*'Daily Dosing'!$E13/'Daily Dosing'!$B$4*'Daily Dosing'!$B$9,3)&" g",IF('Daily Dosing'!$B$7="Liquid",ROUND(J$4*'Daily Dosing'!$E13/'Daily Dosing'!$B$4*'Daily Dosing'!$B$8,2)&" ml","Error")))) ->  | K6: =IF('Daily Dosing'!$H13="","",IF(K$4="N/A","N/A",IF('Daily Dosing'!$B$7="Dry",ROUND(K$4*'Daily Dosing'!$E13/'Daily Dosing'!$B$4*'Daily Dosing'!$B$9,3)&" g",IF('Daily Dosing'!$B$7="Liquid",ROUND(K$4*'Daily Dosing'!$E13/'Daily Dosing'!$B$4*'Daily Dosing'!$B$8,2)&" ml","Error")))) ->  | L6: =IF('Daily Dosing'!$H13="","",IF(L$4="N/A","N/A",IF('Daily Dosing'!$B$7="Dry",ROUND(L$4*'Daily Dosing'!$E13/'Daily Dosing'!$B$4*'Daily Dosing'!$B$9,3)&" g",IF('Daily Dosing'!$B$7="Liquid",ROUND(L$4*'Daily Dosing'!$E13/'Daily Dosing'!$B$4*'Daily Dosing'!$B$8,2)&" ml","Error")))) ->  | M6: ='Daily Dosing'!R13 -> 0.0
A7: =A6+1 -> 2 | B7: =B6+1 -> 2021-09-29 | C7: ='Daily Dosing'!E14 -> 1.960 | D7: =IF('Daily Dosing'!H14="","",IF('Daily Dosing'!B$7="Dry",ROUND('Daily Dosing'!E14/'Daily Dosing'!B$4*'Daily Dosing'!B$9,3)&" g",IF('Daily Dosing'!B$7="Liquid",ROUND('Daily Dosing'!E14/'Daily Dosing'!B$4*'Daily Dosing'!B$8,2)&" ml","Error"))) ->  | E7: =IF('Daily Dosing'!$H14="","",IF(E$4="N/A","N/A",IF('Daily Dosing'!$B$7="Dry",ROUND(E$4*'Daily Dosing'!$E14/'Daily Dosing'!$B$4*'Daily Dosing'!$B$9,3)&" g",IF('Daily Dosing'!$B$7="Liquid",ROUND(E$4*'Daily Dosing'!$E14/'Daily Dosing'!$B$4*'Daily Dosing'!$B$8,2)&" ml","Error")))) ->  | F7: =IF('Daily Dosing'!$H14="","",IF(F$4="N/A","N/A",IF('Daily Dosing'!$B$7="Dry",ROUND(F$4*'Daily Dosing'!$E14/'Daily Dosing'!$B$4*'Daily Dosing'!$B$9,3)&" g",IF('Daily Dosing'!$B$7="Liquid",ROUND(F$4*'Daily Dosing'!$E14/'Daily Dosing'!$B$4*'Daily Dosing'!$B$8,2)&" ml","Error")))) ->  | G7: =IF('Daily Dosing'!$H14="","",IF(G$4="N/A","N/A",IF('Daily Dosing'!$B$7="Dry",ROUND(G$4*'Daily Dosing'!$E14/'Daily Dosing'!$B$4*'Daily Dosing'!$B$9,3)&" g",IF('Daily Dosing'!$B$7="Liquid",ROUND(G$4*'Daily Dosing'!$E14/'Daily Dosing'!$B$4*'Daily Dosing'!$B$8,2)&" ml","Error")))) ->  | H7: =IF('Daily Dosing'!$H14="","",IF(H$4="N/A","N/A",IF('Daily Dosing'!$B$7="Dry",ROUND(H$4*'Daily Dosing'!$E14/'Daily Dosing'!$B$4*'Daily Dosing'!$B$9,3)&" g",IF('Daily Dosing'!$B$7="Liquid",ROUND(H$4*'Daily Dosing'!$E14/'Daily Dosing'!$B$4*'Daily Dosing'!$B$8,2)&" ml","Error")))) ->  | I7: =IF('Daily Dosing'!$H14="","",IF(I$4="N/A","N/A",IF('Daily Dosing'!$B$7="Dry",ROUND(I$4*'Daily Dosing'!$E14/'Daily Dosing'!$B$4*'Daily Dosing'!$B$9,3)&" g",IF('Daily Dosing'!$B$7="Liquid",ROUND(I$4*'Daily Dosing'!$E14/'Daily Dosing'!$B$4*'Daily Dosing'!$B$8,2)&" ml","Error")))) ->  | J7: =IF('Daily Dosing'!$H14="","",IF(J$4="N/A","N/A",IF('Daily Dosing'!$B$7="Dry",ROUND(J$4*'Daily Dosing'!$E14/'Daily Dosing'!$B$4*'Daily Dosing'!$B$9,3)&" g",IF('Daily Dosing'!$B$7="Liquid",ROUND(J$4*'Daily Dosing'!$E14/'Daily Dosing'!$B$4*'Daily Dosing'!$B$8,2)&" ml","Error")))) ->  | K7: =IF('Daily Dosing'!$H14="","",IF(K$4="N/A","N/A",IF('Daily Dosing'!$B$7="Dry",ROUND(K$4*'Daily Dosing'!$E14/'Daily Dosing'!$B$4*'Daily Dosing'!$B$9,3)&" g",IF('Daily Dosing'!$B$7="Liquid",ROUND(K$4*'Daily Dosing'!$E14/'Daily Dosing'!$B$4*'Daily Dosing'!$B$8,2)&" ml","Error")))) ->  | L7: =IF('Daily Dosing'!$H14="","",IF(L$4="N/A","N/A",IF('Daily Dosing'!$B$7="Dry",ROUND(L$4*'Daily Dosing'!$E14/'Daily Dosing'!$B$4*'Daily Dosing'!$B$9,3)&" g",IF('Daily Dosing'!$B$7="Liquid",ROUND(L$4*'Daily Dosing'!$E14/'Daily Dosing'!$B$4*'Daily Dosing'!$B$8,2)&" ml","Error")))) ->  | M7: ='Daily Dosing'!R14 -> 0.0
A8: =A7+1 -> 3 | B8: =B7+1 -> 2021-09-30 | C8: ='Daily Dosing'!E15 -> 1.960 | D8: =IF('Daily Dosing'!H15="","",IF('Daily Dosing'!B$7="Dry",ROUND('Daily Dosing'!E15/'Daily Dosing'!B$4*'Daily Dosing'!B$9,3)&" g",IF('Daily Dosing'!B$7="Liquid",ROUND('Daily Dosing'!E15/'Daily Dosing'!B$4*'Daily Dosing'!B$8,2)&" ml","Error"))) ->  | E8: =IF('Daily Dosing'!$H15="","",IF(E$4="N/A","N/A",IF('Daily Dosing'!$B$7="Dry",ROUND(E$4*'Daily Dosing'!$E15/'Daily Dosing'!$B$4*'Daily Dosing'!$B$9,3)&" g",IF('Daily Dosing'!$B$7="Liquid",ROUND(E$4*'Daily Dosing'!$E15/'Daily Dosing'!$B$4*'Daily Dosing'!$B$8,2)&" ml","Error")))) ->  | F8: =IF('Daily Dosing'!$H15="","",IF(F$4="N/A","N/A",IF('Daily Dosing'!$B$7="Dry",ROUND(F$4*'Daily Dosing'!$E15/'Daily Dosing'!$B$4*'Daily Dosing'!$B$9,3)&" g",IF('Daily Dosing'!$B$7="Liquid",ROUND(F$4*'Daily Dosing'!$E15/'Daily Dosing'!$B$4*'Daily Dosing'!$B$8,2)&" ml","Error")))) ->  | G8: =IF('Daily Dosing'!$H15="","",IF(G$4="N/A","N/A",IF('Daily Dosing'!$B$7="Dry",ROUND(G$4*'Daily Dosing'!$E15/'Daily Dosing'!$B$4*'Daily Dosing'!$B$9,3)&" g",IF('Daily Dosing'!$B$7="Liquid",ROUND(G$4*'Daily Dosing'!$E15/'Daily Dosing'!$B$4*'Daily Dosing'!$B$8,2)&" ml","Error")))) ->  | H8: =IF('Daily Dosing'!$H15="","",IF(H$4="N/A","N/A",IF('Daily Dosing'!$B$7="Dry",ROUND(H$4*'Daily Dosing'!$E15/'Daily Dosing'!$B$4*'Daily Dosing'!$B$9,3)&" g",IF('Daily Dosing'!$B$7="Liquid",ROUND(H$4*'Daily Dosing'!$E15/'Daily Dosing'!$B$4*'Daily Dosing'!$B$8,2)&" ml","Error")))) ->  | I8: =IF('Daily Dosing'!$H15="","",IF(I$4="N/A","N/A",IF('Daily Dosing'!$B$7="Dry",ROUND(I$4*'Daily Dosing'!$E15/'Daily Dosing'!$B$4*'Daily Dosing'!$B$9,3)&" g",IF('Daily Dosing'!$B$7="Liquid",ROUND(I$4*'Daily Dosing'!$E15/'Daily Dosing'!$B$4*'Daily Dosing'!$B$8,2)&" ml","Error")))) ->  | J8: =IF('Daily Dosing'!$H15="","",IF(J$4="N/A","N/A",IF('Daily Dosing'!$B$7="Dry",ROUND(J$4*'Daily Dosing'!$E15/'Daily Dosing'!$B$4*'Daily Dosing'!$B$9,3)&" g",IF('Daily Dosing'!$B$7="Liquid",ROUND(J$4*'Daily Dosing'!$E15/'Daily Dosing'!$B$4*'Daily Dosing'!$B$8,2)&" ml","Error")))) ->  | K8: =IF('Daily Dosing'!$H15="","",IF(K$4="N/A","N/A",IF('Daily Dosing'!$B$7="Dry",ROUND(K$4*'Daily Dosing'!$E15/'Daily Dosing'!$B$4*'Daily Dosing'!$B$9,3)&" g",IF('Daily Dosing'!$B$7="Liquid",ROUND(K$4*'Daily Dosing'!$E15/'Daily Dosing'!$B$4*'Daily Dosing'!$B$8,2)&" ml","Error")))) ->  | L8: =IF('Daily Dosing'!$H15="","",IF(L$4="N/A","N/A",IF('Daily Dosing'!$B$7="Dry",ROUND(L$4*'Daily Dosing'!$E15/'Daily Dosing'!$B$4*'Daily Dosing'!$B$9,3)&" g",IF('Daily Dosing'!$B$7="Liquid",ROUND(L$4*'Daily Dosing'!$E15/'Daily Dosing'!$B$4*'Daily Dosing'!$B$8,2)&" ml","Error")))) ->  | M8: ='Daily Dosing'!R15 -> 0.0 | O8: 0.125 | P8: =O8/O$13 -> 0.2856489945
A9: 4 | B9: =B8+1 -> 2021-10-01 | C9: ='Daily Dosing'!E16 -> 1.960 | D9: =IF('Daily Dosing'!H16="","",IF('Daily Dosing'!B$7="Dry",ROUND('Daily Dosing'!E16/'Daily Dosing'!B$4*'Daily Dosing'!B$9,3)&" g",IF('Daily Dosing'!B$7="Liquid",ROUND('Daily Dosing'!E16/'Daily Dosing'!B$4*'Daily Dosing'!B$8,2)&" ml","Error"))) ->  | E9: =IF('Daily Dosing'!$H16="","",IF(E$4="N/A","N/A",IF('Daily Dosing'!$B$7="Dry",ROUND(E$4*'Daily Dosing'!$E16/'Daily Dosing'!$B$4*'Daily Dosing'!$B$9,3)&" g",IF('Daily Dosing'!$B$7="Liquid",ROUND(E$4*'Daily Dosing'!$E16/'Daily Dosing'!$B$4*'Daily Dosing'!$B$8,2)&" ml","Error")))) ->  | F9: =IF('Daily Dosing'!$H16="","",IF(F$4="N/A","N/A",IF('Daily Dosing'!$B$7="Dry",ROUND(F$4*'Daily Dosing'!$E16/'Daily Dosing'!$B$4*'Daily Dosing'!$B$9,3)&" g",IF('Daily Dosing'!$B$7="Liquid",ROUND(F$4*'Daily Dosing'!$E16/'Daily Dosing'!$B$4*'Daily Dosing'!$B$8,2)&" ml","Error")))) ->  | G9: =IF('Daily Dosing'!$H16="","",IF(G$4="N/A","N/A",IF('Daily Dosing'!$B$7="Dry",ROUND(G$4*'Daily Dosing'!$E16/'Daily Dosing'!$B$4*'Daily Dosing'!$B$9,3)&" g",IF('Daily Dosing'!$B$7="Liquid",ROUND(G$4*'Daily Dosing'!$E16/'Daily Dosing'!$B$4*'Daily Dosing'!$B$8,2)&" ml","Error")))) ->  | H9: =IF('Daily Dosing'!$H16="","",IF(H$4="N/A","N/A",IF('Daily Dosing'!$B$7="Dry",ROUND(H$4*'Daily Dosing'!$E16/'Daily Dosing'!$B$4*'Daily Dosing'!$B$9,3)&" g",IF('Daily Dosing'!$B$7="Liquid",ROUND(H$4*'Daily Dosing'!$E16/'Daily Dosing'!$B$4*'Daily Dosing'!$B$8,2)&" ml","Error")))) ->  | I9: =IF('Daily Dosing'!$H16="","",IF(I$4="N/A","N/A",IF('Daily Dosing'!$B$7="Dry",ROUND(I$4*'Daily Dosing'!$E16/'Daily Dosing'!$B$4*'Daily Dosing'!$B$9,3)&" g",IF('Daily Dosing'!$B$7="Liquid",ROUND(I$4*'Daily Dosing'!$E16/'Daily Dosing'!$B$4*'Daily Dosing'!$B$8,2)&" ml","Error")))) ->  | J9: =IF('Daily Dosing'!$H16="","",IF(J$4="N/A","N/A",IF('Daily Dosing'!$B$7="Dry",ROUND(J$4*'Daily Dosing'!$E16/'Daily Dosing'!$B$4*'Daily Dosing'!$B$9,3)&" g",IF('Daily Dosing'!$B$7="Liquid",ROUND(J$4*'Daily Dosing'!$E16/'Daily Dosing'!$B$4*'Daily Dosing'!$B$8,2)&" ml","Error")))) ->  | K9: =IF('Daily Dosing'!$H16="","",IF(K$4="N/A","N/A",IF('Daily Dosing'!$B$7="Dry",ROUND(K$4*'Daily Dosing'!$E16/'Daily Dosing'!$B$4*'Daily Dosing'!$B$9,3)&" g",IF('Daily Dosing'!$B$7="Liquid",ROUND(K$4*'Daily Dosing'!$E16/'Daily Dosing'!$B$4*'Daily Dosing'!$B$8,2)&" ml","Error")))) ->  | L9: =IF('Daily Dosing'!$H16="","",IF(L$4="N/A","N/A",IF('Daily Dosing'!$B$7="Dry",ROUND(L$4*'Daily Dosing'!$E16/'Daily Dosing'!$B$4*'Daily Dosing'!$B$9,3)&" g",IF('Daily Dosing'!$B$7="Liquid",ROUND(L$4*'Daily Dosing'!$E16/'Daily Dosing'!$B$4*'Daily Dosing'!$B$8,2)&" ml","Error")))) ->  | M9: ='Daily Dosing'!R16 -> 0.0 | O9: 0.0938 | P9: =O9/O$13 -> 0.2143510055
A10: 5 | B10: 2021-10-02 | C10: ='Daily Dosing'!E17 -> 1.960 | D10: =IF('Daily Dosing'!H17="","",IF('Daily Dosing'!B$7="Dry",ROUND('Daily Dosing'!E17/'Daily Dosing'!B$4*'Daily Dosing'!B$9,3)&" g",IF('Daily Dosing'!B$7="Liquid",ROUND('Daily Dosing'!E17/'Daily Dosing'!B$4*'Daily Dosing'!B$8,2)&" ml","Error"))) ->  | E10: =IF('Daily Dosing'!$H17="","",IF(E$4="N/A","N/A",IF('Daily Dosing'!$B$7="Dry",ROUND(E$4*'Daily Dosing'!$E17/'Daily Dosing'!$B$4*'Daily Dosing'!$B$9,3)&" g",IF('Daily Dosing'!$B$7="Liquid",ROUND(E$4*'Daily Dosing'!$E17/'Daily Dosing'!$B$4*'Daily Dosing'!$B$8,2)&" ml","Error")))) ->  | F10: =IF('Daily Dosing'!$H17="","",IF(F$4="N/A","N/A",IF('Daily Dosing'!$B$7="Dry",ROUND(F$4*'Daily Dosing'!$E17/'Daily Dosing'!$B$4*'Daily Dosing'!$B$9,3)&" g",IF('Daily Dosing'!$B$7="Liquid",ROUND(F$4*'Daily Dosing'!$E17/'Daily Dosing'!$B$4*'Daily Dosing'!$B$8,2)&" ml","Error")))) ->  | G10: =IF('Daily Dosing'!$H17="","",IF(G$4="N/A","N/A",IF('Daily Dosing'!$B$7="Dry",ROUND(G$4*'Daily Dosing'!$E17/'Daily Dosing'!$B$4*'Daily Dosing'!$B$9,3)&" g",IF('Daily Dosing'!$B$7="Liquid",ROUND(G$4*'Daily Dosing'!$E17/'Daily Dosing'!$B$4*'Daily Dosing'!$B$8,2)&" ml","Error")))) ->  | H10: =IF('Daily Dosing'!$H17="","",IF(H$4="N/A","N/A",IF('Daily Dosing'!$B$7="Dry",ROUND(H$4*'Daily Dosing'!$E17/'Daily Dosing'!$B$4*'Daily Dosing'!$B$9,3)&" g",IF('Daily Dosing'!$B$7="Liquid",ROUND(H$4*'Daily Dosing'!$E17/'Daily Dosing'!$B$4*'Daily Dosing'!$B$8,2)&" ml","Error")))) ->  | I10: =IF('Daily Dosing'!$H17="","",IF(I$4="N/A","N/A",IF('Daily Dosing'!$B$7="Dry",ROUND(I$4*'Daily Dosing'!$E17/'Daily Dosing'!$B$4*'Daily Dosing'!$B$9,3)&" g",IF('Daily Dosing'!$B$7="Liquid",ROUND(I$4*'Daily Dosing'!$E17/'Daily Dosing'!$B$4*'Daily Dosing'!$B$8,2)&" ml","Error")))) ->  | J10: =IF('Daily Dosing'!$H17="","",IF(J$4="N/A","N/A",IF('Daily Dosing'!$B$7="Dry",ROUND(J$4*'Daily Dosing'!$E17/'Daily Dosing'!$B$4*'Daily Dosing'!$B$9,3)&" g",IF('Daily Dosing'!$B$7="Liquid",ROUND(J$4*'Daily Dosing'!$E17/'Daily Dosing'!$B$4*'Daily Dosing'!$B$8,2)&" ml","Error")))) ->  | K10: =IF('Daily Dosing'!$H17="","",IF(K$4="N/A","N/A",IF('Daily Dosing'!$B$7="Dry",ROUND(K$4*'Daily Dosing'!$E17/'Daily Dosing'!$B$4*'Daily Dosing'!$B$9,3)&" g",IF('Daily Dosing'!$B$7="Liquid",ROUND(K$4*'Daily Dosing'!$E17/'Daily Dosing'!$B$4*'Daily Dosing'!$B$8,2)&" ml","Error")))) ->  | L10: =IF('Daily Dosing'!$H17="","",IF(L$4="N/A","N/A",IF('Daily Dosing'!$B$7="Dry",ROUND(L$4*'Daily Dosing'!$E17/'Daily Dosing'!$B$4*'Daily Dosing'!$B$9,3)&" g",IF('Daily Dosing'!$B$7="Liquid",ROUND(L$4*'Daily Dosing'!$E17/'Daily Dosing'!$B$4*'Daily Dosing'!$B$8,2)&" ml","Error")))) ->  | M10: ='Daily Dosing'!R17 -> 0.0 | O10: 0.0938 | P10: =O10/O$13 -> 0.2143510055
A11: 6 | B11: 2021-10-03 | C11: ='Daily Dosing'!E18 -> 1.960 | D11: =IF('Daily Dosing'!H18="","",IF('Daily Dosing'!B$7="Dry",ROUND('Daily Dosing'!E18/'Daily Dosing'!B$4*'Daily Dosing'!B$9,3)&" g",IF('Daily Dosing'!B$7="Liquid",ROUND('Daily Dosing'!E18/'Daily Dosing'!B$4*'Daily Dosing'!B$8,2)&" ml","Error"))) ->  | E11: =IF('Daily Dosing'!$H18="","",IF(E$4="N/A","N/A",IF('Daily Dosing'!$B$7="Dry",ROUND(E$4*'Daily Dosing'!$E18/'Daily Dosing'!$B$4*'Daily Dosing'!$B$9,3)&" g",IF('Daily Dosing'!$B$7="Liquid",ROUND(E$4*'Daily Dosing'!$E18/'Daily Dosing'!$B$4*'Daily Dosing'!$B$8,2)&" ml","Error")))) ->  | F11: =IF('Daily Dosing'!$H18="","",IF(F$4="N/A","N/A",IF('Daily Dosing'!$B$7="Dry",ROUND(F$4*'Daily Dosing'!$E18/'Daily Dosing'!$B$4*'Daily Dosing'!$B$9,3)&" g",IF('Daily Dosing'!$B$7="Liquid",ROUND(F$4*'Daily Dosing'!$E18/'Daily Dosing'!$B$4*'Daily Dosing'!$B$8,2)&" ml","Error")))) ->  | G11: =IF('Daily Dosing'!$H18="","",IF(G$4="N/A","N/A",IF('Daily Dosing'!$B$7="Dry",ROUND(G$4*'Daily Dosing'!$E18/'Daily Dosing'!$B$4*'Daily Dosing'!$B$9,3)&" g",IF('Daily Dosing'!$B$7="Liquid",ROUND(G$4*'Daily Dosing'!$E18/'Daily Dosing'!$B$4*'Daily Dosing'!$B$8,2)&" ml","Error")))) ->  | H11: =IF('Daily Dosing'!$H18="","",IF(H$4="N/A","N/A",IF('Daily Dosing'!$B$7="Dry",ROUND(H$4*'Daily Dosing'!$E18/'Daily Dosing'!$B$4*'Daily Dosing'!$B$9,3)&" g",IF('Daily Dosing'!$B$7="Liquid",ROUND(H$4*'Daily Dosing'!$E18/'Daily Dosing'!$B$4*'Daily Dosing'!$B$8,2)&" ml","Error")))) ->  | I11: =IF('Daily Dosing'!$H18="","",IF(I$4="N/A","N/A",IF('Daily Dosing'!$B$7="Dry",ROUND(I$4*'Daily Dosing'!$E18/'Daily Dosing'!$B$4*'Daily Dosing'!$B$9,3)&" g",IF('Daily Dosing'!$B$7="Liquid",ROUND(I$4*'Daily Dosing'!$E18/'Daily Dosing'!$B$4*'Daily Dosing'!$B$8,2)&" ml","Error")))) ->  | J11: =IF('Daily Dosing'!$H18="","",IF(J$4="N/A","N/A",IF('Daily Dosing'!$B$7="Dry",ROUND(J$4*'Daily Dosing'!$E18/'Daily Dosing'!$B$4*'Daily Dosing'!$B$9,3)&" g",IF('Daily Dosing'!$B$7="Liquid",ROUND(J$4*'Daily Dosing'!$E18/'Daily Dosing'!$B$4*'Daily Dosing'!$B$8,2)&" ml","Error")))) ->  | K11: =IF('Daily Dosing'!$H18="","",IF(K$4="N/A","N/A",IF('Daily Dosing'!$B$7="Dry",ROUND(K$4*'Daily Dosing'!$E18/'Daily Dosing'!$B$4*'Daily Dosing'!$B$9,3)&" g",IF('Daily Dosing'!$B$7="Liquid",ROUND(K$4*'Daily Dosing'!$E18/'Daily Dosing'!$B$4*'Daily Dosing'!$B$8,2)&" ml","Error")))) ->  | L11: =IF('Daily Dosing'!$H18="","",IF(L$4="N/A","N/A",IF('Daily Dosing'!$B$7="Dry",ROUND(L$4*'Daily Dosing'!$E18/'Daily Dosing'!$B$4*'Daily Dosing'!$B$9,3)&" g",IF('Daily Dosing'!$B$7="Liquid",ROUND(L$4*'Daily Dosing'!$E18/'Daily Dosing'!$B$4*'Daily Dosing'!$B$8,2)&" ml","Error")))) ->  | M11: ='Daily Dosing'!R18 -> 0.0 | O11: 0.125 | P11: =O11/O$13 -> 0.2856489945
A12: 7 | B12: 2021-10-04 | C12: ='Daily Dosing'!E19 -> 1.960 | D12: =IF('Daily Dosing'!H19="","",IF('Daily Dosing'!B$7="Dry",ROUND('Daily Dosing'!E19/'Daily Dosing'!B$4*'Daily Dosing'!B$9,3)&" g",IF('Daily Dosing'!B$7="Liquid",ROUND('Daily Dosing'!E19/'Daily Dosing'!B$4*'Daily Dosing'!B$8,2)&" ml","Error"))) ->  | E12: =IF('Daily Dosing'!$H19="","",IF(E$4="N/A","N/A",IF('Daily Dosing'!$B$7="Dry",ROUND(E$4*'Daily Dosing'!$E19/'Daily Dosing'!$B$4*'Daily Dosing'!$B$9,3)&" g",IF('Daily Dosing'!$B$7="Liquid",ROUND(E$4*'Daily Dosing'!$E19/'Daily Dosing'!$B$4*'Daily Dosing'!$B$8,2)&" ml","Error")))) ->  | F12: =IF('Daily Dosing'!$H19="","",IF(F$4="N/A","N/A",IF('Daily Dosing'!$B$7="Dry",ROUND(F$4*'Daily Dosing'!$E19/'Daily Dosing'!$B$4*'Daily Dosing'!$B$9,3)&" g",IF('Daily Dosing'!$B$7="Liquid",ROUND(F$4*'Daily Dosing'!$E19/'Daily Dosing'!$B$4*'Daily Dosing'!$B$8,2)&" ml","Error")))) ->  | G12: =IF('Daily Dosing'!$H19="","",IF(G$4="N/A","N/A",IF('Daily Dosing'!$B$7="Dry",ROUND(G$4*'Daily Dosing'!$E19/'Daily Dosing'!$B$4*'Daily Dosing'!$B$9,3)&" g",IF('Daily Dosing'!$B$7="Liquid",ROUND(G$4*'Daily Dosing'!$E19/'Daily Dosing'!$B$4*'Daily Dosing'!$B$8,2)&" ml","Error")))) ->  | H12: =IF('Daily Dosing'!$H19="","",IF(H$4="N/A","N/A",IF('Daily Dosing'!$B$7="Dry",ROUND(H$4*'Daily Dosing'!$E19/'Daily Dosing'!$B$4*'Daily Dosing'!$B$9,3)&" g",IF('Daily Dosing'!$B$7="Liquid",ROUND(H$4*'Daily Dosing'!$E19/'Daily Dosing'!$B$4*'Daily Dosing'!$B$8,2)&" ml","Error")))) ->  | I12: =IF('Daily Dosing'!$H19="","",IF(I$4="N/A","N/A",IF('Daily Dosing'!$B$7="Dry",ROUND(I$4*'Daily Dosing'!$E19/'Daily Dosing'!$B$4*'Daily Dosing'!$B$9,3)&" g",IF('Daily Dosing'!$B$7="Liquid",ROUND(I$4*'Daily Dosing'!$E19/'Daily Dosing'!$B$4*'Daily Dosing'!$B$8,2)&" ml","Error")))) ->  | J12: =IF('Daily Dosing'!$H19="","",IF(J$4="N/A","N/A",IF('Daily Dosing'!$B$7="Dry",ROUND(J$4*'Daily Dosing'!$E19/'Daily Dosing'!$B$4*'Daily Dosing'!$B$9,3)&" g",IF('Daily Dosing'!$B$7="Liquid",ROUND(J$4*'Daily Dosing'!$E19/'Daily Dosing'!$B$4*'Daily Dosing'!$B$8,2)&" ml","Error")))) ->  | K12: =IF('Daily Dosing'!$H19="","",IF(K$4="N/A","N/A",IF('Daily Dosing'!$B$7="Dry",ROUND(K$4*'Daily Dosing'!$E19/'Daily Dosing'!$B$4*'Daily Dosing'!$B$9,3)&" g",IF('Daily Dosing'!$B$7="Liquid",ROUND(K$4*'Daily Dosing'!$E19/'Daily Dosing'!$B$4*'Daily Dosing'!$B$8,2)&" ml","Error")))) ->  | L12: =IF('Daily Dosing'!$H19="","",IF(L$4="N/A","N/A",IF('Daily Dosing'!$B$7="Dry",ROUND(L$4*'Daily Dosing'!$E19/'Daily Dosing'!$B$4*'Daily Dosing'!$B$9,3)&" g",IF('Daily Dosing'!$B$7="Liquid",ROUND(L$4*'Daily Dosing'!$E19/'Daily Dosing'!$B$4*'Daily Dosing'!$B$8,2)&" ml","Error")))) ->  | M12: ='Daily Dosing'!R19 -> 0.0
A13: 8 | B13: 2021-10-05 | C13: ='Daily Dosing'!E20 -> 1.960 | D13: =IF('Daily Dosing'!H20="","",IF('Daily Dosing'!B$7="Dry",ROUND('Daily Dosing'!E20/'Daily Dosing'!B$4*'Daily Dosing'!B$9,3)&" g",IF('Daily Dosing'!B$7="Liquid",ROUND('Daily Dosing'!E20/'Daily Dosing'!B$4*'Daily Dosing'!B$8,2)&" ml","Error"))) ->  | E13: =IF('Daily Dosing'!$H20="","",IF(E$4="N/A","N/A",IF('Daily Dosing'!$B$7="Dry",ROUND(E$4*'Daily Dosing'!$E20/'Daily Dosing'!$B$4*'Daily Dosing'!$B$9,3)&" g",IF('Daily Dosing'!$B$7="Liquid",ROUND(E$4*'Daily Dosing'!$E20/'Daily Dosing'!$B$4*'Daily Dosing'!$B$8,2)&" ml","Error")))) ->  | F13: =IF('Daily Dosing'!$H20="","",IF(F$4="N/A","N/A",IF('Daily Dosing'!$B$7="Dry",ROUND(F$4*'Daily Dosing'!$E20/'Daily Dosing'!$B$4*'Daily Dosing'!$B$9,3)&" g",IF('Daily Dosing'!$B$7="Liquid",ROUND(F$4*'Daily Dosing'!$E20/'Daily Dosing'!$B$4*'Daily Dosing'!$B$8,2)&" ml","Error")))) ->  | G13: =IF('Daily Dosing'!$H20="","",IF(G$4="N/A","N/A",IF('Daily Dosing'!$B$7="Dry",ROUND(G$4*'Daily Dosing'!$E20/'Daily Dosing'!$B$4*'Daily Dosing'!$B$9,3)&" g",IF('Daily Dosing'!$B$7="Liquid",ROUND(G$4*'Daily Dosing'!$E20/'Daily Dosing'!$B$4*'Daily Dosing'!$B$8,2)&" ml","Error")))) ->  | H13: =IF('Daily Dosing'!$H20="","",IF(H$4="N/A","N/A",IF('Daily Dosing'!$B$7="Dry",ROUND(H$4*'Daily Dosing'!$E20/'Daily Dosing'!$B$4*'Daily Dosing'!$B$9,3)&" g",IF('Daily Dosing'!$B$7="Liquid",ROUND(H$4*'Daily Dosing'!$E20/'Daily Dosing'!$B$4*'Daily Dosing'!$B$8,2)&" ml","Error")))) ->  | I13: =IF('Daily Dosing'!$H20="","",IF(I$4="N/A","N/A",IF('Daily Dosing'!$B$7="Dry",ROUND(I$4*'Daily Dosing'!$E20/'Daily Dosing'!$B$4*'Daily Dosing'!$B$9,3)&" g",IF('Daily Dosing'!$B$7="Liquid",ROUND(I$4*'Daily Dosing'!$E20/'Daily Dosing'!$B$4*'Daily Dosing'!$B$8,2)&" ml","Error")))) ->  | J13: =IF('Daily Dosing'!$H20="","",IF(J$4="N/A","N/A",IF('Daily Dosing'!$B$7="Dry",ROUND(J$4*'Daily Dosing'!$E20/'Daily Dosing'!$B$4*'Daily Dosing'!$B$9,3)&" g",IF('Daily Dosing'!$B$7="Liquid",ROUND(J$4*'Daily Dosing'!$E20/'Daily Dosing'!$B$4*'Daily Dosing'!$B$8,2)&" ml","Error")))) ->  | K13: =IF('Daily Dosing'!$H20="","",IF(K$4="N/A","N/A",IF('Daily Dosing'!$B$7="Dry",ROUND(K$4*'Daily Dosing'!$E20/'Daily Dosing'!$B$4*'Daily Dosing'!$B$9,3)&" g",IF('Daily Dosing'!$B$7="Liquid",ROUND(K$4*'Daily Dosing'!$E20/'Daily Dosing'!$B$4*'Daily Dosing'!$B$8,2)&" ml","Error")))) ->  | L13: =IF('Daily Dosing'!$H20="","",IF(L$4="N/A","N/A",IF('Daily Dosing'!$B$7="Dry",ROUND(L$4*'Daily Dosing'!$E20/'Daily Dosing'!$B$4*'Daily Dosing'!$B$9,3)&" g",IF('Daily Dosing'!$B$7="Liquid",ROUND(L$4*'Daily Dosing'!$E20/'Daily Dosing'!$B$4*'Daily Dosing'!$B$8,2)&" ml","Error")))) ->  | M13: ='Daily Dosing'!R20 -> 0.0 | O13: =SUM(O8:O11) -> 0.4376
A14: 9 | B14: 2021-10-06 | C14: ='Daily Dosing'!E21 -> 1.960 | D14: =IF('Daily Dosing'!H21="","",IF('Daily Dosing'!B$7="Dry",ROUND('Daily Dosing'!E21/'Daily Dosing'!B$4*'Daily Dosing'!B$9,3)&" g",IF('Daily Dosing'!B$7="Liquid",ROUND('Daily Dosing'!E21/'Daily Dosing'!B$4*'Daily Dosing'!B$8,2)&" ml","Error"))) ->  | E14: =IF('Daily Dosing'!$H21="","",IF(E$4="N/A","N/A",IF('Daily Dosing'!$B$7="Dry",ROUND(E$4*'Daily Dosing'!$E21/'Daily Dosing'!$B$4*'Daily Dosing'!$B$9,3)&" g",IF('Daily Dosing'!$B$7="Liquid",ROUND(E$4*'Daily Dosing'!$E21/'Daily Dosing'!$B$4*'Daily Dosing'!$B$8,2)&" ml","Error")))) ->  | F14: =IF('Daily Dosing'!$H21="","",IF(F$4="N/A","N/A",IF('Daily Dosing'!$B$7="Dry",ROUND(F$4*'Daily Dosing'!$E21/'Daily Dosing'!$B$4*'Daily Dosing'!$B$9,3)&" g",IF('Daily Dosing'!$B$7="Liquid",ROUND(F$4*'Daily Dosing'!$E21/'Daily Dosing'!$B$4*'Daily Dosing'!$B$8,2)&" ml","Error")))) ->  | G14: =IF('Daily Dosing'!$H21="","",IF(G$4="N/A","N/A",IF('Daily Dosing'!$B$7="Dry",ROUND(G$4*'Daily Dosing'!$E21/'Daily Dosing'!$B$4*'Daily Dosing'!$B$9,3)&" g",IF('Daily Dosing'!$B$7="Liquid",ROUND(G$4*'Daily Dosing'!$E21/'Daily Dosing'!$B$4*'Daily Dosing'!$B$8,2)&" ml","Error")))) ->  | H14: =IF('Daily Dosing'!$H21="","",IF(H$4="N/A","N/A",IF('Daily Dosing'!$B$7="Dry",ROUND(H$4*'Daily Dosing'!$E21/'Daily Dosing'!$B$4*'Daily Dosing'!$B$9,3)&" g",IF('Daily Dosing'!$B$7="Liquid",ROUND(H$4*'Daily Dosing'!$E21/'Daily Dosing'!$B$4*'Daily Dosing'!$B$8,2)&" ml","Error")))) ->  | I14: =IF('Daily Dosing'!$H21="","",IF(I$4="N/A","N/A",IF('Daily Dosing'!$B$7="Dry",ROUND(I$4*'Daily Dosing'!$E21/'Daily Dosing'!$B$4*'Daily Dosing'!$B$9,3)&" g",IF('Daily Dosing'!$B$7="Liquid",ROUND(I$4*'Daily Dosing'!$E21/'Daily Dosing'!$B$4*'Daily Dosing'!$B$8,2)&" ml","Error")))) ->  | J14: =IF('Daily Dosing'!$H21="","",IF(J$4="N/A","N/A",IF('Daily Dosing'!$B$7="Dry",ROUND(J$4*'Daily Dosing'!$E21/'Daily Dosing'!$B$4*'Daily Dosing'!$B$9,3)&" g",IF('Daily Dosing'!$B$7="Liquid",ROUND(J$4*'Daily Dosing'!$E21/'Daily Dosing'!$B$4*'Daily Dosing'!$B$8,2)&" ml","Error")))) ->  | K14: =IF('Daily Dosing'!$H21="","",IF(K$4="N/A","N/A",IF('Daily Dosing'!$B$7="Dry",ROUND(K$4*'Daily Dosing'!$E21/'Daily Dosing'!$B$4*'Daily Dosing'!$B$9,3)&" g",IF('Daily Dosing'!$B$7="Liquid",ROUND(K$4*'Daily Dosing'!$E21/'Daily Dosing'!$B$4*'Daily Dosing'!$B$8,2)&" ml","Error")))) ->  | L14: =IF('Daily Dosing'!$H21="","",IF(L$4="N/A","N/A",IF('Daily Dosing'!$B$7="Dry",ROUND(L$4*'Daily Dosing'!$E21/'Daily Dosing'!$B$4*'Daily Dosing'!$B$9,3)&" g",IF('Daily Dosing'!$B$7="Liquid",ROUND(L$4*'Daily Dosing'!$E21/'Daily Dosing'!$B$4*'Daily Dosing'!$B$8,2)&" ml","Error")))) ->  | M14: ='Daily Dosing'!R21 -> 0.0
A15: 10 | B15: 2021-10-07 | C15: ='Daily Dosing'!E22 -> 1.960 | D15: =IF('Daily Dosing'!H22="","",IF('Daily Dosing'!B$7="Dry",ROUND('Daily Dosing'!E22/'Daily Dosing'!B$4*'Daily Dosing'!B$9,3)&" g",IF('Daily Dosing'!B$7="Liquid",ROUND('Daily Dosing'!E22/'Daily Dosing'!B$4*'Daily Dosing'!B$8,2)&" ml","Error"))) ->  | E15: =IF('Daily Dosing'!$H22="","",IF(E$4="N/A","N/A",IF('Daily Dosing'!$B$7="Dry",ROUND(E$4*'Daily Dosing'!$E22/'Daily Dosing'!$B$4*'Daily Dosing'!$B$9,3)&" g",IF('Daily Dosing'!$B$7="Liquid",ROUND(E$4*'Daily Dosing'!$E22/'Daily Dosing'!$B$4*'Daily Dosing'!$B$8,2)&" ml","Error")))) ->  | F15: =IF('Daily Dosing'!$H22="","",IF(F$4="N/A","N/A",IF('Daily Dosing'!$B$7="Dry",ROUND(F$4*'Daily Dosing'!$E22/'Daily Dosing'!$B$4*'Daily Dosing'!$B$9,3)&" g",IF('Daily Dosing'!$B$7="Liquid",ROUND(F$4*'Daily Dosing'!$E22/'Daily Dosing'!$B$4*'Daily Dosing'!$B$8,2)&" ml","Error")))) ->  | G15: =IF('Daily Dosing'!$H22="","",IF(G$4="N/A","N/A",IF('Daily Dosing'!$B$7="Dry",ROUND(G$4*'Daily Dosing'!$E22/'Daily Dosing'!$B$4*'Daily Dosing'!$B$9,3)&" g",IF('Daily Dosing'!$B$7="Liquid",ROUND(G$4*'Daily Dosing'!$E22/'Daily Dosing'!$B$4*'Daily Dosing'!$B$8,2)&" ml","Error")))) ->  | H15: =IF('Daily Dosing'!$H22="","",IF(H$4="N/A","N/A",IF('Daily Dosing'!$B$7="Dry",ROUND(H$4*'Daily Dosing'!$E22/'Daily Dosing'!$B$4*'Daily Dosing'!$B$9,3)&" g",IF('Daily Dosing'!$B$7="Liquid",ROUND(H$4*'Daily Dosing'!$E22/'Daily Dosing'!$B$4*'Daily Dosing'!$B$8,2)&" ml","Error")))) ->  | I15: =IF('Daily Dosing'!$H22="","",IF(I$4="N/A","N/A",IF('Daily Dosing'!$B$7="Dry",ROUND(I$4*'Daily Dosing'!$E22/'Daily Dosing'!$B$4*'Daily Dosing'!$B$9,3)&" g",IF('Daily Dosing'!$B$7="Liquid",ROUND(I$4*'Daily Dosing'!$E22/'Daily Dosing'!$B$4*'Daily Dosing'!$B$8,2)&" ml","Error")))) ->  | J15: =IF('Daily Dosing'!$H22="","",IF(J$4="N/A","N/A",IF('Daily Dosing'!$B$7="Dry",ROUND(J$4*'Daily Dosing'!$E22/'Daily Dosing'!$B$4*'Daily Dosing'!$B$9,3)&" g",IF('Daily Dosing'!$B$7="Liquid",ROUND(J$4*'Daily Dosing'!$E22/'Daily Dosing'!$B$4*'Daily Dosing'!$B$8,2)&" ml","Error")))) ->  | K15: =IF('Daily Dosing'!$H22="","",IF(K$4="N/A","N/A",IF('Daily Dosing'!$B$7="Dry",ROUND(K$4*'Daily Dosing'!$E22/'Daily Dosing'!$B$4*'Daily Dosing'!$B$9,3)&" g",IF('Daily Dosing'!$B$7="Liquid",ROUND(K$4*'Daily Dosing'!$E22/'Daily Dosing'!$B$4*'Daily Dosing'!$B$8,2)&" ml","Error")))) ->  | L15: =IF('Daily Dosing'!$H22="","",IF(L$4="N/A","N/A",IF('Daily Dosing'!$B$7="Dry",ROUND(L$4*'Daily Dosing'!$E22/'Daily Dosing'!$B$4*'Daily Dosing'!$B$9,3)&" g",IF('Daily Dosing'!$B$7="Liquid",ROUND(L$4*'Daily Dosing'!$E22/'Daily Dosing'!$B$4*'Daily Dosing'!$B$8,2)&" ml","Error")))) ->  | M15: ='Daily Dosing'!R22 -> 0.0
A16: 11 | B16: 2021-10-08 | C16: ='Daily Dosing'!E23 -> 1.960 | D16: =IF('Daily Dosing'!H23="","",IF('Daily Dosing'!B$7="Dry",ROUND('Daily Dosing'!E23/'Daily Dosing'!B$4*'Daily Dosing'!B$9,3)&" g",IF('Daily Dosing'!B$7="Liquid",ROUND('Daily Dosing'!E23/'Daily Dosing'!B$4*'Daily Dosing'!B$8,2)&" ml","Error"))) ->  | E16: =IF('Daily Dosing'!$H23="","",IF(E$4="N/A","N/A",IF('Daily Dosing'!$B$7="Dry",ROUND(E$4*'Daily Dosing'!$E23/'Daily Dosing'!$B$4*'Daily Dosing'!$B$9,3)&" g",IF('Daily Dosing'!$B$7="Liquid",ROUND(E$4*'Daily Dosing'!$E23/'Daily Dosing'!$B$4*'Daily Dosing'!$B$8,2)&" ml","Error")))) ->  | F16: =IF('Daily Dosing'!$H23="","",IF(F$4="N/A","N/A",IF('Daily Dosing'!$B$7="Dry",ROUND(F$4*'Daily Dosing'!$E23/'Daily Dosing'!$B$4*'Daily Dosing'!$B$9,3)&" g",IF('Daily Dosing'!$B$7="Liquid",ROUND(F$4*'Daily Dosing'!$E23/'Daily Dosing'!$B$4*'Daily Dosing'!$B$8,2)&" ml","Error")))) ->  | G16: =IF('Daily Dosing'!$H23="","",IF(G$4="N/A","N/A",IF('Daily Dosing'!$B$7="Dry",ROUND(G$4*'Daily Dosing'!$E23/'Daily Dosing'!$B$4*'Daily Dosing'!$B$9,3)&" g",IF('Daily Dosing'!$B$7="Liquid",ROUND(G$4*'Daily Dosing'!$E23/'Daily Dosing'!$B$4*'Daily Dosing'!$B$8,2)&" ml","Error")))) ->  | H16: =IF('Daily Dosing'!$H23="","",IF(H$4="N/A","N/A",IF('Daily Dosing'!$B$7="Dry",ROUND(H$4*'Daily Dosing'!$E23/'Daily Dosing'!$B$4*'Daily Dosing'!$B$9,3)&" g",IF('Daily Dosing'!$B$7="Liquid",ROUND(H$4*'Daily Dosing'!$E23/'Daily Dosing'!$B$4*'Daily Dosing'!$B$8,2)&" ml","Error")))) ->  | I16: =IF('Daily Dosing'!$H23="","",IF(I$4="N/A","N/A",IF('Daily Dosing'!$B$7="Dry",ROUND(I$4*'Daily Dosing'!$E23/'Daily Dosing'!$B$4*'Daily Dosing'!$B$9,3)&" g",IF('Daily Dosing'!$B$7="Liquid",ROUND(I$4*'Daily Dosing'!$E23/'Daily Dosing'!$B$4*'Daily Dosing'!$B$8,2)&" ml","Error")))) ->  | J16: =IF('Daily Dosing'!$H23="","",IF(J$4="N/A","N/A",IF('Daily Dosing'!$B$7="Dry",ROUND(J$4*'Daily Dosing'!$E23/'Daily Dosing'!$B$4*'Daily Dosing'!$B$9,3)&" g",IF('Daily Dosing'!$B$7="Liquid",ROUND(J$4*'Daily Dosing'!$E23/'Daily Dosing'!$B$4*'Daily Dosing'!$B$8,2)&" ml","Error")))) ->  | K16: =IF('Daily Dosing'!$H23="","",IF(K$4="N/A","N/A",IF('Daily Dosing'!$B$7="Dry",ROUND(K$4*'Daily Dosing'!$E23/'Daily Dosing'!$B$4*'Daily Dosing'!$B$9,3)&" g",IF('Daily Dosing'!$B$7="Liquid",ROUND(K$4*'Daily Dosing'!$E23/'Daily Dosing'!$B$4*'Daily Dosing'!$B$8,2)&" ml","Error")))) ->  | L16: =IF('Daily Dosing'!$H23="","",IF(L$4="N/A","N/A",IF('Daily Dosing'!$B$7="Dry",ROUND(L$4*'Daily Dosing'!$E23/'Daily Dosing'!$B$4*'Daily Dosing'!$B$9,3)&" g",IF('Daily Dosing'!$B$7="Liquid",ROUND(L$4*'Daily Dosing'!$E23/'Daily Dosing'!$B$4*'Daily Dosing'!$B$8,2)&" ml","Error")))) ->  | M16: ='Daily Dosing'!R23 -> 0.0
A17: 12 | B17: 2021-10-09 | C17: ='Daily Dosing'!E24 -> 1.960 | D17: =IF('Daily Dosing'!H24="","",IF('Daily Dosing'!B$7="Dry",ROUND('Daily Dosing'!E24/'Daily Dosing'!B$4*'Daily Dosing'!B$9,3)&" g",IF('Daily Dosing'!B$7="Liquid",ROUND('Daily Dosing'!E24/'Daily Dosing'!B$4*'Daily Dosing'!B$8,2)&" ml","Error"))) ->  | E17: =IF('Daily Dosing'!$H24="","",IF(E$4="N/A","N/A",IF('Daily Dosing'!$B$7="Dry",ROUND(E$4*'Daily Dosing'!$E24/'Daily Dosing'!$B$4*'Daily Dosing'!$B$9,3)&" g",IF('Daily Dosing'!$B$7="Liquid",ROUND(E$4*'Daily Dosing'!$E24/'Daily Dosing'!$B$4*'Daily Dosing'!$B$8,2)&" ml","Error")))) ->  | F17: =IF('Daily Dosing'!$H24="","",IF(F$4="N/A","N/A",IF('Daily Dosing'!$B$7="Dry",ROUND(F$4*'Daily Dosing'!$E24/'Daily Dosing'!$B$4*'Daily Dosing'!$B$9,3)&" g",IF('Daily Dosing'!$B$7="Liquid",ROUND(F$4*'Daily Dosing'!$E24/'Daily Dosing'!$B$4*'Daily Dosing'!$B$8,2)&" ml","Error")))) ->  | G17: =IF('Daily Dosing'!$H24="","",IF(G$4="N/A","N/A",IF('Daily Dosing'!$B$7="Dry",ROUND(G$4*'Daily Dosing'!$E24/'Daily Dosing'!$B$4*'Daily Dosing'!$B$9,3)&" g",IF('Daily Dosing'!$B$7="Liquid",ROUND(G$4*'Daily Dosing'!$E24/'Daily Dosing'!$B$4*'Daily Dosing'!$B$8,2)&" ml","Error")))) ->  | H17: =IF('Daily Dosing'!$H24="","",IF(H$4="N/A","N/A",IF('Daily Dosing'!$B$7="Dry",ROUND(H$4*'Daily Dosing'!$E24/'Daily Dosing'!$B$4*'Daily Dosing'!$B$9,3)&" g",IF('Daily Dosing'!$B$7="Liquid",ROUND(H$4*'Daily Dosing'!$E24/'Daily Dosing'!$B$4*'Daily Dosing'!$B$8,2)&" ml","Error")))) ->  | I17: =IF('Daily Dosing'!$H24="","",IF(I$4="N/A","N/A",IF('Daily Dosing'!$B$7="Dry",ROUND(I$4*'Daily Dosing'!$E24/'Daily Dosing'!$B$4*'Daily Dosing'!$B$9,3)&" g",IF('Daily Dosing'!$B$7="Liquid",ROUND(I$4*'Daily Dosing'!$E24/'Daily Dosing'!$B$4*'Daily Dosing'!$B$8,2)&" ml","Error")))) ->  | J17: =IF('Daily Dosing'!$H24="","",IF(J$4="N/A","N/A",IF('Daily Dosing'!$B$7="Dry",ROUND(J$4*'Daily Dosing'!$E24/'Daily Dosing'!$B$4*'Daily Dosing'!$B$9,3)&" g",IF('Daily Dosing'!$B$7="Liquid",ROUND(J$4*'Daily Dosing'!$E24/'Daily Dosing'!$B$4*'Daily Dosing'!$B$8,2)&" ml","Error")))) ->  | K17: =IF('Daily Dosing'!$H24="","",IF(K$4="N/A","N/A",IF('Daily Dosing'!$B$7="Dry",ROUND(K$4*'Daily Dosing'!$E24/'Daily Dosing'!$B$4*'Daily Dosing'!$B$9,3)&" g",IF('Daily Dosing'!$B$7="Liquid",ROUND(K$4*'Daily Dosing'!$E24/'Daily Dosing'!$B$4*'Daily Dosing'!$B$8,2)&" ml","Error")))) ->  | L17: =IF('Daily Dosing'!$H24="","",IF(L$4="N/A","N/A",IF('Daily Dosing'!$B$7="Dry",ROUND(L$4*'Daily Dosing'!$E24/'Daily Dosing'!$B$4*'Daily Dosing'!$B$9,3)&" g",IF('Daily Dosing'!$B$7="Liquid",ROUND(L$4*'Daily Dosing'!$E24/'Daily Dosing'!$B$4*'Daily Dosing'!$B$8,2)&" ml","Error")))) ->  | M17: ='Daily Dosing'!R24 -> 0.0
A18: 13 | B18: 2021-10-10 | C18: ='Daily Dosing'!E25 -> 1.960 | D18: =IF('Daily Dosing'!H25="","",IF('Daily Dosing'!B$7="Dry",ROUND('Daily Dosing'!E25/'Daily Dosing'!B$4*'Daily Dosing'!B$9,3)&" g",IF('Daily Dosing'!B$7="Liquid",ROUND('Daily Dosing'!E25/'Daily Dosing'!B$4*'Daily Dosing'!B$8,2)&" ml","Error"))) ->  | E18: =IF('Daily Dosing'!$H25="","",IF(E$4="N/A","N/A",IF('Daily Dosing'!$B$7="Dry",ROUND(E$4*'Daily Dosing'!$E25/'Daily Dosing'!$B$4*'Daily Dosing'!$B$9,3)&" g",IF('Daily Dosing'!$B$7="Liquid",ROUND(E$4*'Daily Dosing'!$E25/'Daily Dosing'!$B$4*'Daily Dosing'!$B$8,2)&" ml","Error")))) ->  | F18: =IF('Daily Dosing'!$H25="","",IF(F$4="N/A","N/A",IF('Daily Dosing'!$B$7="Dry",ROUND(F$4*'Daily Dosing'!$E25/'Daily Dosing'!$B$4*'Daily Dosing'!$B$9,3)&" g",IF('Daily Dosing'!$B$7="Liquid",ROUND(F$4*'Daily Dosing'!$E25/'Daily Dosing'!$B$4*'Daily Dosing'!$B$8,2)&" ml","Error")))) ->  | G18: =IF('Daily Dosing'!$H25="","",IF(G$4="N/A","N/A",IF('Daily Dosing'!$B$7="Dry",ROUND(G$4*'Daily Dosing'!$E25/'Daily Dosing'!$B$4*'Daily Dosing'!$B$9,3)&" g",IF('Daily Dosing'!$B$7="Liquid",ROUND(G$4*'Daily Dosing'!$E25/'Daily Dosing'!$B$4*'Daily Dosing'!$B$8,2)&" ml","Error")))) ->  | H18: =IF('Daily Dosing'!$H25="","",IF(H$4="N/A","N/A",IF('Daily Dosing'!$B$7="Dry",ROUND(H$4*'Daily Dosing'!$E25/'Daily Dosing'!$B$4*'Daily Dosing'!$B$9,3)&" g",IF('Daily Dosing'!$B$7="Liquid",ROUND(H$4*'Daily Dosing'!$E25/'Daily Dosing'!$B$4*'Daily Dosing'!$B$8,2)&" ml","Error")))) ->  | I18: =IF('Daily Dosing'!$H25="","",IF(I$4="N/A","N/A",IF('Daily Dosing'!$B$7="Dry",ROUND(I$4*'Daily Dosing'!$E25/'Daily Dosing'!$B$4*'Daily Dosing'!$B$9,3)&" g",IF('Daily Dosing'!$B$7="Liquid",ROUND(I$4*'Daily Dosing'!$E25/'Daily Dosing'!$B$4*'Daily Dosing'!$B$8,2)&" ml","Error")))) ->  | J18: =IF('Daily Dosing'!$H25="","",IF(J$4="N/A","N/A",IF('Daily Dosing'!$B$7="Dry",ROUND(J$4*'Daily Dosing'!$E25/'Daily Dosing'!$B$4*'Daily Dosing'!$B$9,3)&" g",IF('Daily Dosing'!$B$7="Liquid",ROUND(J$4*'Daily Dosing'!$E25/'Daily Dosing'!$B$4*'Daily Dosing'!$B$8,2)&" ml","Error")))) ->  | K18: =IF('Daily Dosing'!$H25="","",IF(K$4="N/A","N/A",IF('Daily Dosing'!$B$7="Dry",ROUND(K$4*'Daily Dosing'!$E25/'Daily Dosing'!$B$4*'Daily Dosing'!$B$9,3)&" g",IF('Daily Dosing'!$B$7="Liquid",ROUND(K$4*'Daily Dosing'!$E25/'Daily Dosing'!$B$4*'Daily Dosing'!$B$8,2)&" ml","Error")))) ->  | L18: =IF('Daily Dosing'!$H25="","",IF(L$4="N/A","N/A",IF('Daily Dosing'!$B$7="Dry",ROUND(L$4*'Daily Dosing'!$E25/'Daily Dosing'!$B$4*'Daily Dosing'!$B$9,3)&" g",IF('Daily Dosing'!$B$7="Liquid",ROUND(L$4*'Daily Dosing'!$E25/'Daily Dosing'!$B$4*'Daily Dosing'!$B$8,2)&" ml","Error")))) ->  | M18: ='Daily Dosing'!R25 -> 0.0
A19: 14 | B19: 2021-10-11 | C19: ='Daily Dosing'!E26 -> 1.960 | D19: =IF('Daily Dosing'!H26="","",IF('Daily Dosing'!B$7="Dry",ROUND('Daily Dosing'!E26/'Daily Dosing'!B$4*'Daily Dosing'!B$9,3)&" g",IF('Daily Dosing'!B$7="Liquid",ROUND('Daily Dosing'!E26/'Daily Dosing'!B$4*'Daily Dosing'!B$8,2)&" ml","Error"))) ->  | E19: =IF('Daily Dosing'!$H26="","",IF(E$4="N/A","N/A",IF('Daily Dosing'!$B$7="Dry",ROUND(E$4*'Daily Dosing'!$E26/'Daily Dosing'!$B$4*'Daily Dosing'!$B$9,3)&" g",IF('Daily Dosing'!$B$7="Liquid",ROUND(E$4*'Daily Dosing'!$E26/'Daily Dosing'!$B$4*'Daily Dosing'!$B$8,2)&" ml","Error")))) ->  | F19: =IF('Daily Dosing'!$H26="","",IF(F$4="N/A","N/A",IF('Daily Dosing'!$B$7="Dry",ROUND(F$4*'Daily Dosing'!$E26/'Daily Dosing'!$B$4*'Daily Dosing'!$B$9,3)&" g",IF('Daily Dosing'!$B$7="Liquid",ROUND(F$4*'Daily Dosing'!$E26/'Daily Dosing'!$B$4*'Daily Dosing'!$B$8,2)&" ml","Error")))) ->  | G19: =IF('Daily Dosing'!$H26="","",IF(G$4="N/A","N/A",IF('Daily Dosing'!$B$7="Dry",ROUND(G$4*'Daily Dosing'!$E26/'Daily Dosing'!$B$4*'Daily Dosing'!$B$9,3)&" g",IF('Daily Dosing'!$B$7="Liquid",ROUND(G$4*'Daily Dosing'!$E26/'Daily Dosing'!$B$4*'Daily Dosing'!$B$8,2)&" ml","Error")))) ->  | H19: =IF('Daily Dosing'!$H26="","",IF(H$4="N/A","N/A",IF('Daily Dosing'!$B$7="Dry",ROUND(H$4*'Daily Dosing'!$E26/'Daily Dosing'!$B$4*'Daily Dosing'!$B$9,3)&" g",IF('Daily Dosing'!$B$7="Liquid",ROUND(H$4*'Daily Dosing'!$E26/'Daily Dosing'!$B$4*'Daily Dosing'!$B$8,2)&" ml","Error")))) ->  | I19: =IF('Daily Dosing'!$H26="","",IF(I$4="N/A","N/A",IF('Daily Dosing'!$B$7="Dry",ROUND(I$4*'Daily Dosing'!$E26/'Daily Dosing'!$B$4*'Daily Dosing'!$B$9,3)&" g",IF('Daily Dosing'!$B$7="Liquid",ROUND(I$4*'Daily Dosing'!$E26/'Daily Dosing'!$B$4*'Daily Dosing'!$B$8,2)&" ml","Error")))) ->  | J19: =IF('Daily Dosing'!$H26="","",IF(J$4="N/A","N/A",IF('Daily Dosing'!$B$7="Dry",ROUND(J$4*'Daily Dosing'!$E26/'Daily Dosing'!$B$4*'Daily Dosing'!$B$9,3)&" g",IF('Daily Dosing'!$B$7="Liquid",ROUND(J$4*'Daily Dosing'!$E26/'Daily Dosing'!$B$4*'Daily Dosing'!$B$8,2)&" ml","Error")))) ->  | K19: =IF('Daily Dosing'!$H26="","",IF(K$4="N/A","N/A",IF('Daily Dosing'!$B$7="Dry",ROUND(K$4*'Daily Dosing'!$E26/'Daily Dosing'!$B$4*'Daily Dosing'!$B$9,3)&" g",IF('Daily Dosing'!$B$7="Liquid",ROUND(K$4*'Daily Dosing'!$E26/'Daily Dosing'!$B$4*'Daily Dosing'!$B$8,2)&" ml","Error")))) ->  | L19: =IF('Daily Dosing'!$H26="","",IF(L$4="N/A","N/A",IF('Daily Dosing'!$B$7="Dry",ROUND(L$4*'Daily Dosing'!$E26/'Daily Dosing'!$B$4*'Daily Dosing'!$B$9,3)&" g",IF('Daily Dosing'!$B$7="Liquid",ROUND(L$4*'Daily Dosing'!$E26/'Daily Dosing'!$B$4*'Daily Dosing'!$B$8,2)&" ml","Error")))) ->  | M19: ='Daily Dosing'!R26 -> 0.0
A20: 15 | B20: 2021-10-12 | C20: ='Daily Dosing'!E27 -> 1.960 | D20: =IF('Daily Dosing'!H27="","",IF('Daily Dosing'!B$7="Dry",ROUND('Daily Dosing'!E27/'Daily Dosing'!B$4*'Daily Dosing'!B$9,3)&" g",IF('Daily Dosing'!B$7="Liquid",ROUND('Daily Dosing'!E27/'Daily Dosing'!B$4*'Daily Dosing'!B$8,2)&" ml","Error"))) ->  | E20: =IF('Daily Dosing'!$H27="","",IF(E$4="N/A","N/A",IF('Daily Dosing'!$B$7="Dry",ROUND(E$4*'Daily Dosing'!$E27/'Daily Dosing'!$B$4*'Daily Dosing'!$B$9,3)&" g",IF('Daily Dosing'!$B$7="Liquid",ROUND(E$4*'Daily Dosing'!$E27/'Daily Dosing'!$B$4*'Daily Dosing'!$B$8,2)&" ml","Error")))) ->  | F20: =IF('Daily Dosing'!$H27="","",IF(F$4="N/A","N/A",IF('Daily Dosing'!$B$7="Dry",ROUND(F$4*'Daily Dosing'!$E27/'Daily Dosing'!$B$4*'Daily Dosing'!$B$9,3)&" g",IF('Daily Dosing'!$B$7="Liquid",ROUND(F$4*'Daily Dosing'!$E27/'Daily Dosing'!$B$4*'Daily Dosing'!$B$8,2)&" ml","Error")))) ->  | G20: =IF('Daily Dosing'!$H27="","",IF(G$4="N/A","N/A",IF('Daily Dosing'!$B$7="Dry",ROUND(G$4*'Daily Dosing'!$E27/'Daily Dosing'!$B$4*'Daily Dosing'!$B$9,3)&" g",IF('Daily Dosing'!$B$7="Liquid",ROUND(G$4*'Daily Dosing'!$E27/'Daily Dosing'!$B$4*'Daily Dosing'!$B$8,2)&" ml","Error")))) ->  | H20: =IF('Daily Dosing'!$H27="","",IF(H$4="N/A","N/A",IF('Daily Dosing'!$B$7="Dry",ROUND(H$4*'Daily Dosing'!$E27/'Daily Dosing'!$B$4*'Daily Dosing'!$B$9,3)&" g",IF('Daily Dosing'!$B$7="Liquid",ROUND(H$4*'Daily Dosing'!$E27/'Daily Dosing'!$B$4*'Daily Dosing'!$B$8,2)&" ml","Error")))) ->  | I20: =IF('Daily Dosing'!$H27="","",IF(I$4="N/A","N/A",IF('Daily Dosing'!$B$7="Dry",ROUND(I$4*'Daily Dosing'!$E27/'Daily Dosing'!$B$4*'Daily Dosing'!$B$9,3)&" g",IF('Daily Dosing'!$B$7="Liquid",ROUND(I$4*'Daily Dosing'!$E27/'Daily Dosing'!$B$4*'Daily Dosing'!$B$8,2)&" ml","Error")))) ->  | J20: =IF('Daily Dosing'!$H27="","",IF(J$4="N/A","N/A",IF('Daily Dosing'!$B$7="Dry",ROUND(J$4*'Daily Dosing'!$E27/'Daily Dosing'!$B$4*'Daily Dosing'!$B$9,3)&" g",IF('Daily Dosing'!$B$7="Liquid",ROUND(J$4*'Daily Dosing'!$E27/'Daily Dosing'!$B$4*'Daily Dosing'!$B$8,2)&" ml","Error")))) ->  | K20: =IF('Daily Dosing'!$H27="","",IF(K$4="N/A","N/A",IF('Daily Dosing'!$B$7="Dry",ROUND(K$4*'Daily Dosing'!$E27/'Daily Dosing'!$B$4*'Daily Dosing'!$B$9,3)&" g",IF('Daily Dosing'!$B$7="Liquid",ROUND(K$4*'Daily Dosing'!$E27/'Daily Dosing'!$B$4*'Daily Dosing'!$B$8,2)&" ml","Error")))) ->  | L20: =IF('Daily Dosing'!$H27="","",IF(L$4="N/A","N/A",IF('Daily Dosing'!$B$7="Dry",ROUND(L$4*'Daily Dosing'!$E27/'Daily Dosing'!$B$4*'Daily Dosing'!$B$9,3)&" g",IF('Daily Dosing'!$B$7="Liquid",ROUND(L$4*'Daily Dosing'!$E27/'Daily Dosing'!$B$4*'Daily Dosing'!$B$8,2)&" ml","Error")))) ->  | M20: ='Daily Dosing'!R27 -> 0.0
A21: =A20+1 -> 16 | B21: =B20+1 -> 2021-10-13 | C21: ='Daily Dosing'!E28 -> 1.960 | D21: =IF('Daily Dosing'!H28="","",IF('Daily Dosing'!B$7="Dry",ROUND('Daily Dosing'!E28/'Daily Dosing'!B$4*'Daily Dosing'!B$9,3)&" g",IF('Daily Dosing'!B$7="Liquid",ROUND('Daily Dosing'!E28/'Daily Dosing'!B$4*'Daily Dosing'!B$8,2)&" ml","Error"))) ->  | E21: =IF('Daily Dosing'!$H28="","",IF(E$4="N/A","N/A",IF('Daily Dosing'!$B$7="Dry",ROUND(E$4*'Daily Dosing'!$E28/'Daily Dosing'!$B$4*'Daily Dosing'!$B$9,3)&" g",IF('Daily Dosing'!$B$7="Liquid",ROUND(E$4*'Daily Dosing'!$E28/'Daily Dosing'!$B$4*'Daily Dosing'!$B$8,2)&" ml","Error")))) ->  | F21: =IF('Daily Dosing'!$H28="","",IF(F$4="N/A","N/A",IF('Daily Dosing'!$B$7="Dry",ROUND(F$4*'Daily Dosing'!$E28/'Daily Dosing'!$B$4*'Daily Dosing'!$B$9,3)&" g",IF('Daily Dosing'!$B$7="Liquid",ROUND(F$4*'Daily Dosing'!$E28/'Daily Dosing'!$B$4*'Daily Dosing'!$B$8,2)&" ml","Error")))) ->  | G21: =IF('Daily Dosing'!$H28="","",IF(G$4="N/A","N/A",IF('Daily Dosing'!$B$7="Dry",ROUND(G$4*'Daily Dosing'!$E28/'Daily Dosing'!$B$4*'Daily Dosing'!$B$9,3)&" g",IF('Daily Dosing'!$B$7="Liquid",ROUND(G$4*'Daily Dosing'!$E28/'Daily Dosing'!$B$4*'Daily Dosing'!$B$8,2)&" ml","Error")))) ->  | H21: =IF('Daily Dosing'!$H28="","",IF(H$4="N/A","N/A",IF('Daily Dosing'!$B$7="Dry",ROUND(H$4*'Daily Dosing'!$E28/'Daily Dosing'!$B$4*'Daily Dosing'!$B$9,3)&" g",IF('Daily Dosing'!$B$7="Liquid",ROUND(H$4*'Daily Dosing'!$E28/'Daily Dosing'!$B$4*'Daily Dosing'!$B$8,2)&" ml","Error")))) ->  | I21: =IF('Daily Dosing'!$H28="","",IF(I$4="N/A","N/A",IF('Daily Dosing'!$B$7="Dry",ROUND(I$4*'Daily Dosing'!$E28/'Daily Dosing'!$B$4*'Daily Dosing'!$B$9,3)&" g",IF('Daily Dosing'!$B$7="Liquid",ROUND(I$4*'Daily Dosing'!$E28/'Daily Dosing'!$B$4*'Daily Dosing'!$B$8,2)&" ml","Error")))) ->  | J21: =IF('Daily Dosing'!$H28="","",IF(J$4="N/A","N/A",IF('Daily Dosing'!$B$7="Dry",ROUND(J$4*'Daily Dosing'!$E28/'Daily Dosing'!$B$4*'Daily Dosing'!$B$9,3)&" g",IF('Daily Dosing'!$B$7="Liquid",ROUND(J$4*'Daily Dosing'!$E28/'Daily Dosing'!$B$4*'Daily Dosing'!$B$8,2)&" ml","Error")))) ->  | K21: =IF('Daily Dosing'!$H28="","",IF(K$4="N/A","N/A",IF('Daily Dosing'!$B$7="Dry",ROUND(K$4*'Daily Dosing'!$E28/'Daily Dosing'!$B$4*'Daily Dosing'!$B$9,3)&" g",IF('Daily Dosing'!$B$7="Liquid",ROUND(K$4*'Daily Dosing'!$E28/'Daily Dosing'!$B$4*'Daily Dosing'!$B$8,2)&" ml","Error")))) ->  | L21: =IF('Daily Dosing'!$H28="","",IF(L$4="N/A","N/A",IF('Daily Dosing'!$B$7="Dry",ROUND(L$4*'Daily Dosing'!$E28/'Daily Dosing'!$B$4*'Daily Dosing'!$B$9,3)&" g",IF('Daily Dosing'!$B$7="Liquid",ROUND(L$4*'Daily Dosing'!$E28/'Daily Dosing'!$B$4*'Daily Dosing'!$B$8,2)&" ml","Error")))) ->  | M21: ='Daily Dosing'!R28 -> 0.0
A22: 17 | B22: 2021-10-14 | C22: ='Daily Dosing'!E29 -> 1.960 | D22: =IF('Daily Dosing'!H29="","",IF('Daily Dosing'!B$7="Dry",ROUND('Daily Dosing'!E29/'Daily Dosing'!B$4*'Daily Dosing'!B$9,3)&" g",IF('Daily Dosing'!B$7="Liquid",ROUND('Daily Dosing'!E29/'Daily Dosing'!B$4*'Daily Dosing'!B$8,2)&" ml","Error"))) ->  | E22: =IF('Daily Dosing'!$H29="","",IF(E$4="N/A","N/A",IF('Daily Dosing'!$B$7="Dry",ROUND(E$4*'Daily Dosing'!$E29/'Daily Dosing'!$B$4*'Daily Dosing'!$B$9,3)&" g",IF('Daily Dosing'!$B$7="Liquid",ROUND(E$4*'Daily Dosing'!$E29/'Daily Dosing'!$B$4*'Daily Dosing'!$B$8,2)&" ml","Error")))) ->  | F22: =IF('Daily Dosing'!$H29="","",IF(F$4="N/A","N/A",IF('Daily Dosing'!$B$7="Dry",ROUND(F$4*'Daily Dosing'!$E29/'Daily Dosing'!$B$4*'Daily Dosing'!$B$9,3)&" g",IF('Daily Dosing'!$B$7="Liquid",ROUND(F$4*'Daily Dosing'!$E29/'Daily Dosing'!$B$4*'Daily Dosing'!$B$8,2)&" ml","Error")))) ->  | G22: =IF('Daily Dosing'!$H29="","",IF(G$4="N/A","N/A",IF('Daily Dosing'!$B$7="Dry",ROUND(G$4*'Daily Dosing'!$E29/'Daily Dosing'!$B$4*'Daily Dosing'!$B$9,3)&" g",IF('Daily Dosing'!$B$7="Liquid",ROUND(G$4*'Daily Dosing'!$E29/'Daily Dosing'!$B$4*'Daily Dosing'!$B$8,2)&" ml","Error")))) ->  | H22: =IF('Daily Dosing'!$H29="","",IF(H$4="N/A","N/A",IF('Daily Dosing'!$B$7="Dry",ROUND(H$4*'Daily Dosing'!$E29/'Daily Dosing'!$B$4*'Daily Dosing'!$B$9,3)&" g",IF('Daily Dosing'!$B$7="Liquid",ROUND(H$4*'Daily Dosing'!$E29/'Daily Dosing'!$B$4*'Daily Dosing'!$B$8,2)&" ml","Error")))) ->  | I22: =IF('Daily Dosing'!$H29="","",IF(I$4="N/A","N/A",IF('Daily Dosing'!$B$7="Dry",ROUND(I$4*'Daily Dosing'!$E29/'Daily Dosing'!$B$4*'Daily Dosing'!$B$9,3)&" g",IF('Daily Dosing'!$B$7="Liquid",ROUND(I$4*'Daily Dosing'!$E29/'Daily Dosing'!$B$4*'Daily Dosing'!$B$8,2)&" ml","Error")))) ->  | J22: =IF('Daily Dosing'!$H29="","",IF(J$4="N/A","N/A",IF('Daily Dosing'!$B$7="Dry",ROUND(J$4*'Daily Dosing'!$E29/'Daily Dosing'!$B$4*'Daily Dosing'!$B$9,3)&" g",IF('Daily Dosing'!$B$7="Liquid",ROUND(J$4*'Daily Dosing'!$E29/'Daily Dosing'!$B$4*'Daily Dosing'!$B$8,2)&" ml","Error")))) ->  | K22: =IF('Daily Dosing'!$H29="","",IF(K$4="N/A","N/A",IF('Daily Dosing'!$B$7="Dry",ROUND(K$4*'Daily Dosing'!$E29/'Daily Dosing'!$B$4*'Daily Dosing'!$B$9,3)&" g",IF('Daily Dosing'!$B$7="Liquid",ROUND(K$4*'Daily Dosing'!$E29/'Daily Dosing'!$B$4*'Daily Dosing'!$B$8,2)&" ml","Error")))) ->  | L22: =IF('Daily Dosing'!$H29="","",IF(L$4="N/A","N/A",IF('Daily Dosing'!$B$7="Dry",ROUND(L$4*'Daily Dosing'!$E29/'Daily Dosing'!$B$4*'Daily Dosing'!$B$9,3)&" g",IF('Daily Dosing'!$B$7="Liquid",ROUND(L$4*'Daily Dosing'!$E29/'Daily Dosing'!$B$4*'Daily Dosing'!$B$8,2)&" ml","Error")))) ->  | M22: ='Daily Dosing'!R29 -> 0.0
A23: 18 | B23: 2021-10-15 | C23: ='Daily Dosing'!E30 -> 1.960 | D23: =IF('Daily Dosing'!H30="","",IF('Daily Dosing'!B$7="Dry",ROUND('Daily Dosing'!E30/'Daily Dosing'!B$4*'Daily Dosing'!B$9,3)&" g",IF('Daily Dosing'!B$7="Liquid",ROUND('Daily Dosing'!E30/'Daily Dosing'!B$4*'Daily Dosing'!B$8,2)&" ml","Error"))) ->  | E23: =IF('Daily Dosing'!$H30="","",IF(E$4="N/A","N/A",IF('Daily Dosing'!$B$7="Dry",ROUND(E$4*'Daily Dosing'!$E30/'Daily Dosing'!$B$4*'Daily Dosing'!$B$9,3)&" g",IF('Daily Dosing'!$B$7="Liquid",ROUND(E$4*'Daily Dosing'!$E30/'Daily Dosing'!$B$4*'Daily Dosing'!$B$8,2)&" ml","Error")))) ->  | F23: =IF('Daily Dosing'!$H30="","",IF(F$4="N/A","N/A",IF('Daily Dosing'!$B$7="Dry",ROUND(F$4*'Daily Dosing'!$E30/'Daily Dosing'!$B$4*'Daily Dosing'!$B$9,3)&" g",IF('Daily Dosing'!$B$7="Liquid",ROUND(F$4*'Daily Dosing'!$E30/'Daily Dosing'!$B$4*'Daily Dosing'!$B$8,2)&" ml","Error")))) ->  | G23: =IF('Daily Dosing'!$H30="","",IF(G$4="N/A","N/A",IF('Daily Dosing'!$B$7="Dry",ROUND(G$4*'Daily Dosing'!$E30/'Daily Dosing'!$B$4*'Daily Dosing'!$B$9,3)&" g",IF('Daily Dosing'!$B$7="Liquid",ROUND(G$4*'Daily Dosing'!$E30/'Daily Dosing'!$B$4*'Daily Dosing'!$B$8,2)&" ml","Error")))) ->  | H23: =IF('Daily Dosing'!$H30="","",IF(H$4="N/A","N/A",IF('Daily Dosing'!$B$7="Dry",ROUND(H$4*'Daily Dosing'!$E30/'Daily Dosing'!$B$4*'Daily Dosing'!$B$9,3)&" g",IF('Daily Dosing'!$B$7="Liquid",ROUND(H$4*'Daily Dosing'!$E30/'Daily Dosing'!$B$4*'Daily Dosing'!$B$8,2)&" ml","Error")))) ->  | I23: =IF('Daily Dosing'!$H30="","",IF(I$4="N/A","N/A",IF('Daily Dosing'!$B$7="Dry",ROUND(I$4*'Daily Dosing'!$E30/'Daily Dosing'!$B$4*'Daily Dosing'!$B$9,3)&" g",IF('Daily Dosing'!$B$7="Liquid",ROUND(I$4*'Daily Dosing'!$E30/'Daily Dosing'!$B$4*'Daily Dosing'!$B$8,2)&" ml","Error")))) ->  | J23: =IF('Daily Dosing'!$H30="","",IF(J$4="N/A","N/A",IF('Daily Dosing'!$B$7="Dry",ROUND(J$4*'Daily Dosing'!$E30/'Daily Dosing'!$B$4*'Daily Dosing'!$B$9,3)&" g",IF('Daily Dosing'!$B$7="Liquid",ROUND(J$4*'Daily Dosing'!$E30/'Daily Dosing'!$B$4*'Daily Dosing'!$B$8,2)&" ml","Error")))) ->  | K23: =IF('Daily Dosing'!$H30="","",IF(K$4="N/A","N/A",IF('Daily Dosing'!$B$7="Dry",ROUND(K$4*'Daily Dosing'!$E30/'Daily Dosing'!$B$4*'Daily Dosing'!$B$9,3)&" g",IF('Daily Dosing'!$B$7="Liquid",ROUND(K$4*'Daily Dosing'!$E30/'Daily Dosing'!$B$4*'Daily Dosing'!$B$8,2)&" ml","Error")))) ->  | L23: =IF('Daily Dosing'!$H30="","",IF(L$4="N/A","N/A",IF('Daily Dosing'!$B$7="Dry",ROUND(L$4*'Daily Dosing'!$E30/'Daily Dosing'!$B$4*'Daily Dosing'!$B$9,3)&" g",IF('Daily Dosing'!$B$7="Liquid",ROUND(L$4*'Daily Dosing'!$E30/'Daily Dosing'!$B$4*'Daily Dosing'!$B$8,2)&" ml","Error")))) ->  | M23: ='Daily Dosing'!R30 -> 0.0
A24: 19 | B24: 2021-10-16 | C24: ='Daily Dosing'!E31 -> 1.960 | D24: =IF('Daily Dosing'!H31="","",IF('Daily Dosing'!B$7="Dry",ROUND('Daily Dosing'!E31/'Daily Dosing'!B$4*'Daily Dosing'!B$9,3)&" g",IF('Daily Dosing'!B$7="Liquid",ROUND('Daily Dosing'!E31/'Daily Dosing'!B$4*'Daily Dosing'!B$8,2)&" ml","Error"))) ->  | E24: =IF('Daily Dosing'!$H31="","",IF(E$4="N/A","N/A",IF('Daily Dosing'!$B$7="Dry",ROUND(E$4*'Daily Dosing'!$E31/'Daily Dosing'!$B$4*'Daily Dosing'!$B$9,3)&" g",IF('Daily Dosing'!$B$7="Liquid",ROUND(E$4*'Daily Dosing'!$E31/'Daily Dosing'!$B$4*'Daily Dosing'!$B$8,2)&" ml","Error")))) ->  | F24: =IF('Daily Dosing'!$H31="","",IF(F$4="N/A","N/A",IF('Daily Dosing'!$B$7="Dry",ROUND(F$4*'Daily Dosing'!$E31/'Daily Dosing'!$B$4*'Daily Dosing'!$B$9,3)&" g",IF('Daily Dosing'!$B$7="Liquid",ROUND(F$4*'Daily Dosing'!$E31/'Daily Dosing'!$B$4*'Daily Dosing'!$B$8,2)&" ml","Error")))) ->  | G24: =IF('Daily Dosing'!$H31="","",IF(G$4="N/A","N/A",IF('Daily Dosing'!$B$7="Dry",ROUND(G$4*'Daily Dosing'!$E31/'Daily Dosing'!$B$4*'Daily Dosing'!$B$9,3)&" g",IF('Daily Dosing'!$B$7="Liquid",ROUND(G$4*'Daily Dosing'!$E31/'Daily Dosing'!$B$4*'Daily Dosing'!$B$8,2)&" ml","Error")))) ->  | H24: =IF('Daily Dosing'!$H31="","",IF(H$4="N/A","N/A",IF('Daily Dosing'!$B$7="Dry",ROUND(H$4*'Daily Dosing'!$E31/'Daily Dosing'!$B$4*'Daily Dosing'!$B$9,3)&" g",IF('Daily Dosing'!$B$7="Liquid",ROUND(H$4*'Daily Dosing'!$E31/'Daily Dosing'!$B$4*'Daily Dosing'!$B$8,2)&" ml","Error")))) ->  | I24: =IF('Daily Dosing'!$H31="","",IF(I$4="N/A","N/A",IF('Daily Dosing'!$B$7="Dry",ROUND(I$4*'Daily Dosing'!$E31/'Daily Dosing'!$B$4*'Daily Dosing'!$B$9,3)&" g",IF('Daily Dosing'!$B$7="Liquid",ROUND(I$4*'Daily Dosing'!$E31/'Daily Dosing'!$B$4*'Daily Dosing'!$B$8,2)&" ml","Error")))) ->  | J24: =IF('Daily Dosing'!$H31="","",IF(J$4="N/A","N/A",IF('Daily Dosing'!$B$7="Dry",ROUND(J$4*'Daily Dosing'!$E31/'Daily Dosing'!$B$4*'Daily Dosing'!$B$9,3)&" g",IF('Daily Dosing'!$B$7="Liquid",ROUND(J$4*'Daily Dosing'!$E31/'Daily Dosing'!$B$4*'Daily Dosing'!$B$8,2)&" ml","Error")))) ->  | K24: =IF('Daily Dosing'!$H31="","",IF(K$4="N/A","N/A",IF('Daily Dosing'!$B$7="Dry",ROUND(K$4*'Daily Dosing'!$E31/'Daily Dosing'!$B$4*'Daily Dosing'!$B$9,3)&" g",IF('Daily Dosing'!$B$7="Liquid",ROUND(K$4*'Daily Dosing'!$E31/'Daily Dosing'!$B$4*'Daily Dosing'!$B$8,2)&" ml","Error")))) ->  | L24: =IF('Daily Dosing'!$H31="","",IF(L$4="N/A","N/A",IF('Daily Dosing'!$B$7="Dry",ROUND(L$4*'Daily Dosing'!$E31/'Daily Dosing'!$B$4*'Daily Dosing'!$B$9,3)&" g",IF('Daily Dosing'!$B$7="Liquid",ROUND(L$4*'Daily Dosing'!$E31/'Daily Dosing'!$B$4*'Daily Dosing'!$B$8,2)&" ml","Error")))) ->  | M24: ='Daily Dosing'!R31 -> 0.0
A25: 20 | B25: 2021-10-17 | C25: ='Daily Dosing'!E32 -> 1.960 | D25: =IF('Daily Dosing'!H32="","",IF('Daily Dosing'!B$7="Dry",ROUND('Daily Dosing'!E32/'Daily Dosing'!B$4*'Daily Dosing'!B$9,3)&" g",IF('Daily Dosing'!B$7="Liquid",ROUND('Daily Dosing'!E32/'Daily Dosing'!B$4*'Daily Dosing'!B$8,2)&" ml","Error"))) ->  | E25: =IF('Daily Dosing'!$H32="","",IF(E$4="N/A","N/A",IF('Daily Dosing'!$B$7="Dry",ROUND(E$4*'Daily Dosing'!$E32/'Daily Dosing'!$B$4*'Daily Dosing'!$B$9,3)&" g",IF('Daily Dosing'!$B$7="Liquid",ROUND(E$4*'Daily Dosing'!$E32/'Daily Dosing'!$B$4*'Daily Dosing'!$B$8,2)&" ml","Error")))) ->  | F25: =IF('Daily Dosing'!$H32="","",IF(F$4="N/A","N/A",IF('Daily Dosing'!$B$7="Dry",ROUND(F$4*'Daily Dosing'!$E32/'Daily Dosing'!$B$4*'Daily Dosing'!$B$9,3)&" g",IF('Daily Dosing'!$B$7="Liquid",ROUND(F$4*'Daily Dosing'!$E32/'Daily Dosing'!$B$4*'Daily Dosing'!$B$8,2)&" ml","Error")))) ->  | G25: =IF('Daily Dosing'!$H32="","",IF(G$4="N/A","N/A",IF('Daily Dosing'!$B$7="Dry",ROUND(G$4*'Daily Dosing'!$E32/'Daily Dosing'!$B$4*'Daily Dosing'!$B$9,3)&" g",IF('Daily Dosing'!$B$7="Liquid",ROUND(G$4*'Daily Dosing'!$E32/'Daily Dosing'!$B$4*'Daily Dosing'!$B$8,2)&" ml","Error")))) ->  | H25: =IF('Daily Dosing'!$H32="","",IF(H$4="N/A","N/A",IF('Daily Dosing'!$B$7="Dry",ROUND(H$4*'Daily Dosing'!$E32/'Daily Dosing'!$B$4*'Daily Dosing'!$B$9,3)&" g",IF('Daily Dosing'!$B$7="Liquid",ROUND(H$4*'Daily Dosing'!$E32/'Daily Dosing'!$B$4*'Daily Dosing'!$B$8,2)&" ml","Error")))) ->  | I25: =IF('Daily Dosing'!$H32="","",IF(I$4="N/A","N/A",IF('Daily Dosing'!$B$7="Dry",ROUND(I$4*'Daily Dosing'!$E32/'Daily Dosing'!$B$4*'Daily Dosing'!$B$9,3)&" g",IF('Daily Dosing'!$B$7="Liquid",ROUND(I$4*'Daily Dosing'!$E32/'Daily Dosing'!$B$4*'Daily Dosing'!$B$8,2)&" ml","Error")))) ->  | J25: =IF('Daily Dosing'!$H32="","",IF(J$4="N/A","N/A",IF('Daily Dosing'!$B$7="Dry",ROUND(J$4*'Daily Dosing'!$E32/'Daily Dosing'!$B$4*'Daily Dosing'!$B$9,3)&" g",IF('Daily Dosing'!$B$7="Liquid",ROUND(J$4*'Daily Dosing'!$E32/'Daily Dosing'!$B$4*'Daily Dosing'!$B$8,2)&" ml","Error")))) ->  | K25: =IF('Daily Dosing'!$H32="","",IF(K$4="N/A","N/A",IF('Daily Dosing'!$B$7="Dry",ROUND(K$4*'Daily Dosing'!$E32/'Daily Dosing'!$B$4*'Daily Dosing'!$B$9,3)&" g",IF('Daily Dosing'!$B$7="Liquid",ROUND(K$4*'Daily Dosing'!$E32/'Daily Dosing'!$B$4*'Daily Dosing'!$B$8,2)&" ml","Error")))) ->  | L25: =IF('Daily Dosing'!$H32="","",IF(L$4="N/A","N/A",IF('Daily Dosing'!$B$7="Dry",ROUND(L$4*'Daily Dosing'!$E32/'Daily Dosing'!$B$4*'Daily Dosing'!$B$9,3)&" g",IF('Daily Dosing'!$B$7="Liquid",ROUND(L$4*'Daily Dosing'!$E32/'Daily Dosing'!$B$4*'Daily Dosing'!$B$8,2)&" ml","Error")))) ->  | M25: ='Daily Dosing'!R32 -> 0.0
A26: 21 | B26: 2021-10-18 | C26: ='Daily Dosing'!E33 -> 1.960 | D26: =IF('Daily Dosing'!H33="","",IF('Daily Dosing'!B$7="Dry",ROUND('Daily Dosing'!E33/'Daily Dosing'!B$4*'Daily Dosing'!B$9,3)&" g",IF('Daily Dosing'!B$7="Liquid",ROUND('Daily Dosing'!E33/'Daily Dosing'!B$4*'Daily Dosing'!B$8,2)&" ml","Error"))) ->  | E26: =IF('Daily Dosing'!$H33="","",IF(E$4="N/A","N/A",IF('Daily Dosing'!$B$7="Dry",ROUND(E$4*'Daily Dosing'!$E33/'Daily Dosing'!$B$4*'Daily Dosing'!$B$9,3)&" g",IF('Daily Dosing'!$B$7="Liquid",ROUND(E$4*'Daily Dosing'!$E33/'Daily Dosing'!$B$4*'Daily Dosing'!$B$8,2)&" ml","Error")))) ->  | F26: =IF('Daily Dosing'!$H33="","",IF(F$4="N/A","N/A",IF('Daily Dosing'!$B$7="Dry",ROUND(F$4*'Daily Dosing'!$E33/'Daily Dosing'!$B$4*'Daily Dosing'!$B$9,3)&" g",IF('Daily Dosing'!$B$7="Liquid",ROUND(F$4*'Daily Dosing'!$E33/'Daily Dosing'!$B$4*'Daily Dosing'!$B$8,2)&" ml","Error")))) ->  | G26: =IF('Daily Dosing'!$H33="","",IF(G$4="N/A","N/A",IF('Daily Dosing'!$B$7="Dry",ROUND(G$4*'Daily Dosing'!$E33/'Daily Dosing'!$B$4*'Daily Dosing'!$B$9,3)&" g",IF('Daily Dosing'!$B$7="Liquid",ROUND(G$4*'Daily Dosing'!$E33/'Daily Dosing'!$B$4*'Daily Dosing'!$B$8,2)&" ml","Error")))) ->  | H26: =IF('Daily Dosing'!$H33="","",IF(H$4="N/A","N/A",IF('Daily Dosing'!$B$7="Dry",ROUND(H$4*'Daily Dosing'!$E33/'Daily Dosing'!$B$4*'Daily Dosing'!$B$9,3)&" g",IF('Daily Dosing'!$B$7="Liquid",ROUND(H$4*'Daily Dosing'!$E33/'Daily Dosing'!$B$4*'Daily Dosing'!$B$8,2)&" ml","Error")))) ->  | I26: =IF('Daily Dosing'!$H33="","",IF(I$4="N/A","N/A",IF('Daily Dosing'!$B$7="Dry",ROUND(I$4*'Daily Dosing'!$E33/'Daily Dosing'!$B$4*'Daily Dosing'!$B$9,3)&" g",IF('Daily Dosing'!$B$7="Liquid",ROUND(I$4*'Daily Dosing'!$E33/'Daily Dosing'!$B$4*'Daily Dosing'!$B$8,2)&" ml","Error")))) ->  | J26: =IF('Daily Dosing'!$H33="","",IF(J$4="N/A","N/A",IF('Daily Dosing'!$B$7="Dry",ROUND(J$4*'Daily Dosing'!$E33/'Daily Dosing'!$B$4*'Daily Dosing'!$B$9,3)&" g",IF('Daily Dosing'!$B$7="Liquid",ROUND(J$4*'Daily Dosing'!$E33/'Daily Dosing'!$B$4*'Daily Dosing'!$B$8,2)&" ml","Error")))) ->  | K26: =IF('Daily Dosing'!$H33="","",IF(K$4="N/A","N/A",IF('Daily Dosing'!$B$7="Dry",ROUND(K$4*'Daily Dosing'!$E33/'Daily Dosing'!$B$4*'Daily Dosing'!$B$9,3)&" g",IF('Daily Dosing'!$B$7="Liquid",ROUND(K$4*'Daily Dosing'!$E33/'Daily Dosing'!$B$4*'Daily Dosing'!$B$8,2)&" ml","Error")))) ->  | L26: =IF('Daily Dosing'!$H33="","",IF(L$4="N/A","N/A",IF('Daily Dosing'!$B$7="Dry",ROUND(L$4*'Daily Dosing'!$E33/'Daily Dosing'!$B$4*'Daily Dosing'!$B$9,3)&" g",IF('Daily Dosing'!$B$7="Liquid",ROUND(L$4*'Daily Dosing'!$E33/'Daily Dosing'!$B$4*'Daily Dosing'!$B$8,2)&" ml","Error")))) ->  | M26: ='Daily Dosing'!R33 -> 0.0
A27: 22 | B27: 2021-10-19 | C27: ='Daily Dosing'!E34 -> 1.960 | D27: =IF('Daily Dosing'!H34="","",IF('Daily Dosing'!B$7="Dry",ROUND('Daily Dosing'!E34/'Daily Dosing'!B$4*'Daily Dosing'!B$9,3)&" g",IF('Daily Dosing'!B$7="Liquid",ROUND('Daily Dosing'!E34/'Daily Dosing'!B$4*'Daily Dosing'!B$8,2)&" ml","Error"))) ->  | E27: =IF('Daily Dosing'!$H34="","",IF(E$4="N/A","N/A",IF('Daily Dosing'!$B$7="Dry",ROUND(E$4*'Daily Dosing'!$E34/'Daily Dosing'!$B$4*'Daily Dosing'!$B$9,3)&" g",IF('Daily Dosing'!$B$7="Liquid",ROUND(E$4*'Daily Dosing'!$E34/'Daily Dosing'!$B$4*'Daily Dosing'!$B$8,2)&" ml","Error")))) ->  | F27: =IF('Daily Dosing'!$H34="","",IF(F$4="N/A","N/A",IF('Daily Dosing'!$B$7="Dry",ROUND(F$4*'Daily Dosing'!$E34/'Daily Dosing'!$B$4*'Daily Dosing'!$B$9,3)&" g",IF('Daily Dosing'!$B$7="Liquid",ROUND(F$4*'Daily Dosing'!$E34/'Daily Dosing'!$B$4*'Daily Dosing'!$B$8,2)&" ml","Error")))) ->  | G27: =IF('Daily Dosing'!$H34="","",IF(G$4="N/A","N/A",IF('Daily Dosing'!$B$7="Dry",ROUND(G$4*'Daily Dosing'!$E34/'Daily Dosing'!$B$4*'Daily Dosing'!$B$9,3)&" g",IF('Daily Dosing'!$B$7="Liquid",ROUND(G$4*'Daily Dosing'!$E34/'Daily Dosing'!$B$4*'Daily Dosing'!$B$8,2)&" ml","Error")))) ->  | H27: =IF('Daily Dosing'!$H34="","",IF(H$4="N/A","N/A",IF('Daily Dosing'!$B$7="Dry",ROUND(H$4*'Daily Dosing'!$E34/'Daily Dosing'!$B$4*'Daily Dosing'!$B$9,3)&" g",IF('Daily Dosing'!$B$7="Liquid",ROUND(H$4*'Daily Dosing'!$E34/'Daily Dosing'!$B$4*'Daily Dosing'!$B$8,2)&" ml","Error")))) ->  | I27: =IF('Daily Dosing'!$H34="","",IF(I$4="N/A","N/A",IF('Daily Dosing'!$B$7="Dry",ROUND(I$4*'Daily Dosing'!$E34/'Daily Dosing'!$B$4*'Daily Dosing'!$B$9,3)&" g",IF('Daily Dosing'!$B$7="Liquid",ROUND(I$4*'Daily Dosing'!$E34/'Daily Dosing'!$B$4*'Daily Dosing'!$B$8,2)&" ml","Error")))) ->  | J27: =IF('Daily Dosing'!$H34="","",IF(J$4="N/A","N/A",IF('Daily Dosing'!$B$7="Dry",ROUND(J$4*'Daily Dosing'!$E34/'Daily Dosing'!$B$4*'Daily Dosing'!$B$9,3)&" g",IF('Daily Dosing'!$B$7="Liquid",ROUND(J$4*'Daily Dosing'!$E34/'Daily Dosing'!$B$4*'Daily Dosing'!$B$8,2)&" ml","Error")))) ->  | K27: =IF('Daily Dosing'!$H34="","",IF(K$4="N/A","N/A",IF('Daily Dosing'!$B$7="Dry",ROUND(K$4*'Daily Dosing'!$E34/'Daily Dosing'!$B$4*'Daily Dosing'!$B$9,3)&" g",IF('Daily Dosing'!$B$7="Liquid",ROUND(K$4*'Daily Dosing'!$E34/'Daily Dosing'!$B$4*'Daily Dosing'!$B$8,2)&" ml","Error")))) ->  | L27: =IF('Daily Dosing'!$H34="","",IF(L$4="N/A","N/A",IF('Daily Dosing'!$B$7="Dry",ROUND(L$4*'Daily Dosing'!$E34/'Daily Dosing'!$B$4*'Daily Dosing'!$B$9,3)&" g",IF('Daily Dosing'!$B$7="Liquid",ROUND(L$4*'Daily Dosing'!$E34/'Daily Dosing'!$B$4*'Daily Dosing'!$B$8,2)&" ml","Error")))) ->  | M27: ='Daily Dosing'!R34 -> 0.0
A28: 23 | B28: 2021-10-20 | C28: ='Daily Dosing'!E35 -> 1.960 | D28: =IF('Daily Dosing'!H35="","",IF('Daily Dosing'!B$7="Dry",ROUND('Daily Dosing'!E35/'Daily Dosing'!B$4*'Daily Dosing'!B$9,3)&" g",IF('Daily Dosing'!B$7="Liquid",ROUND('Daily Dosing'!E35/'Daily Dosing'!B$4*'Daily Dosing'!B$8,2)&" ml","Error"))) ->  | E28: =IF('Daily Dosing'!$H35="","",IF(E$4="N/A","N/A",IF('Daily Dosing'!$B$7="Dry",ROUND(E$4*'Daily Dosing'!$E35/'Daily Dosing'!$B$4*'Daily Dosing'!$B$9,3)&" g",IF('Daily Dosing'!$B$7="Liquid",ROUND(E$4*'Daily Dosing'!$E35/'Daily Dosing'!$B$4*'Daily Dosing'!$B$8,2)&" ml","Error")))) ->  | F28: =IF('Daily Dosing'!$H35="","",IF(F$4="N/A","N/A",IF('Daily Dosing'!$B$7="Dry",ROUND(F$4*'Daily Dosing'!$E35/'Daily Dosing'!$B$4*'Daily Dosing'!$B$9,3)&" g",IF('Daily Dosing'!$B$7="Liquid",ROUND(F$4*'Daily Dosing'!$E35/'Daily Dosing'!$B$4*'Daily Dosing'!$B$8,2)&" ml","Error")))) ->  | G28: =IF('Daily Dosing'!$H35="","",IF(G$4="N/A","N/A",IF('Daily Dosing'!$B$7="Dry",ROUND(G$4*'Daily Dosing'!$E35/'Daily Dosing'!$B$4*'Daily Dosing'!$B$9,3)&" g",IF('Daily Dosing'!$B$7="Liquid",ROUND(G$4*'Daily Dosing'!$E35/'Daily Dosing'!$B$4*'Daily Dosing'!$B$8,2)&" ml","Error")))) ->  | H28: =IF('Daily Dosing'!$H35="","",IF(H$4="N/A","N/A",IF('Daily Dosing'!$B$7="Dry",ROUND(H$4*'Daily Dosing'!$E35/'Daily Dosing'!$B$4*'Daily Dosing'!$B$9,3)&" g",IF('Daily Dosing'!$B$7="Liquid",ROUND(H$4*'Daily Dosing'!$E35/'Daily Dosing'!$B$4*'Daily Dosing'!$B$8,2)&" ml","Error")))) ->  | I28: =IF('Daily Dosing'!$H35="","",IF(I$4="N/A","N/A",IF('Daily Dosing'!$B$7="Dry",ROUND(I$4*'Daily Dosing'!$E35/'Daily Dosing'!$B$4*'Daily Dosing'!$B$9,3)&" g",IF('Daily Dosing'!$B$7="Liquid",ROUND(I$4*'Daily Dosing'!$E35/'Daily Dosing'!$B$4*'Daily Dosing'!$B$8,2)&" ml","Error")))) ->  | J28: =IF('Daily Dosing'!$H35="","",IF(J$4="N/A","N/A",IF('Daily Dosing'!$B$7="Dry",ROUND(J$4*'Daily Dosing'!$E35/'Daily Dosing'!$B$4*'Daily Dosing'!$B$9,3)&" g",IF('Daily Dosing'!$B$7="Liquid",ROUND(J$4*'Daily Dosing'!$E35/'Daily Dosing'!$B$4*'Daily Dosing'!$B$8,2)&" ml","Error")))) ->  | K28: =IF('Daily Dosing'!$H35="","",IF(K$4="N/A","N/A",IF('Daily Dosing'!$B$7="Dry",ROUND(K$4*'Daily Dosing'!$E35/'Daily Dosing'!$B$4*'Daily Dosing'!$B$9,3)&" g",IF('Daily Dosing'!$B$7="Liquid",ROUND(K$4*'Daily Dosing'!$E35/'Daily Dosing'!$B$4*'Daily Dosing'!$B$8,2)&" ml","Error")))) ->  | L28: =IF('Daily Dosing'!$H35="","",IF(L$4="N/A","N/A",IF('Daily Dosing'!$B$7="Dry",ROUND(L$4*'Daily Dosing'!$E35/'Daily Dosing'!$B$4*'Daily Dosing'!$B$9,3)&" g",IF('Daily Dosing'!$B$7="Liquid",ROUND(L$4*'Daily Dosing'!$E35/'Daily Dosing'!$B$4*'Daily Dosing'!$B$8,2)&" ml","Error")))) ->  | M28: ='Daily Dosing'!R35 -> 0.0
A29: 24 | B29: 2021-10-21 | C29: ='Daily Dosing'!E36 -> 1.960 | D29: =IF('Daily Dosing'!H36="","",IF('Daily Dosing'!B$7="Dry",ROUND('Daily Dosing'!E36/'Daily Dosing'!B$4*'Daily Dosing'!B$9,3)&" g",IF('Daily Dosing'!B$7="Liquid",ROUND('Daily Dosing'!E36/'Daily Dosing'!B$4*'Daily Dosing'!B$8,2)&" ml","Error"))) ->  | E29: =IF('Daily Dosing'!$H36="","",IF(E$4="N/A","N/A",IF('Daily Dosing'!$B$7="Dry",ROUND(E$4*'Daily Dosing'!$E36/'Daily Dosing'!$B$4*'Daily Dosing'!$B$9,3)&" g",IF('Daily Dosing'!$B$7="Liquid",ROUND(E$4*'Daily Dosing'!$E36/'Daily Dosing'!$B$4*'Daily Dosing'!$B$8,2)&" ml","Error")))) ->  | F29: =IF('Daily Dosing'!$H36="","",IF(F$4="N/A","N/A",IF('Daily Dosing'!$B$7="Dry",ROUND(F$4*'Daily Dosing'!$E36/'Daily Dosing'!$B$4*'Daily Dosing'!$B$9,3)&" g",IF('Daily Dosing'!$B$7="Liquid",ROUND(F$4*'Daily Dosing'!$E36/'Daily Dosing'!$B$4*'Daily Dosing'!$B$8,2)&" ml","Error")))) ->  | G29: =IF('Daily Dosing'!$H36="","",IF(G$4="N/A","N/A",IF('Daily Dosing'!$B$7="Dry",ROUND(G$4*'Daily Dosing'!$E36/'Daily Dosing'!$B$4*'Daily Dosing'!$B$9,3)&" g",IF('Daily Dosing'!$B$7="Liquid",ROUND(G$4*'Daily Dosing'!$E36/'Daily Dosing'!$B$4*'Daily Dosing'!$B$8,2)&" ml","Error")))) ->  | H29: =IF('Daily Dosing'!$H36="","",IF(H$4="N/A","N/A",IF('Daily Dosing'!$B$7="Dry",ROUND(H$4*'Daily Dosing'!$E36/'Daily Dosing'!$B$4*'Daily Dosing'!$B$9,3)&" g",IF('Daily Dosing'!$B$7="Liquid",ROUND(H$4*'Daily Dosing'!$E36/'Daily Dosing'!$B$4*'Daily Dosing'!$B$8,2)&" ml","Error")))) ->  | I29: =IF('Daily Dosing'!$H36="","",IF(I$4="N/A","N/A",IF('Daily Dosing'!$B$7="Dry",ROUND(I$4*'Daily Dosing'!$E36/'Daily Dosing'!$B$4*'Daily Dosing'!$B$9,3)&" g",IF('Daily Dosing'!$B$7="Liquid",ROUND(I$4*'Daily Dosing'!$E36/'Daily Dosing'!$B$4*'Daily Dosing'!$B$8,2)&" ml","Error")))) ->  | J29: =IF('Daily Dosing'!$H36="","",IF(J$4="N/A","N/A",IF('Daily Dosing'!$B$7="Dry",ROUND(J$4*'Daily Dosing'!$E36/'Daily Dosing'!$B$4*'Daily Dosing'!$B$9,3)&" g",IF('Daily Dosing'!$B$7="Liquid",ROUND(J$4*'Daily Dosing'!$E36/'Daily Dosing'!$B$4*'Daily Dosing'!$B$8,2)&" ml","Error")))) ->  | K29: =IF('Daily Dosing'!$H36="","",IF(K$4="N/A","N/A",IF('Daily Dosing'!$B$7="Dry",ROUND(K$4*'Daily Dosing'!$E36/'Daily Dosing'!$B$4*'Daily Dosing'!$B$9,3)&" g",IF('Daily Dosing'!$B$7="Liquid",ROUND(K$4*'Daily Dosing'!$E36/'Daily Dosing'!$B$4*'Daily Dosing'!$B$8,2)&" ml","Error")))) ->  | L29: =IF('Daily Dosing'!$H36="","",IF(L$4="N/A","N/A",IF('Daily Dosing'!$B$7="Dry",ROUND(L$4*'Daily Dosing'!$E36/'Daily Dosing'!$B$4*'Daily Dosing'!$B$9,3)&" g",IF('Daily Dosing'!$B$7="Liquid",ROUND(L$4*'Daily Dosing'!$E36/'Daily Dosing'!$B$4*'Daily Dosing'!$B$8,2)&" ml","Error")))) ->  | M29: ='Daily Dosing'!R36 -> 0.0
A30: 25 | B30: 2021-10-22 | C30: ='Daily Dosing'!E37 -> 1.960 | D30: =IF('Daily Dosing'!H37="","",IF('Daily Dosing'!B$7="Dry",ROUND('Daily Dosing'!E37/'Daily Dosing'!B$4*'Daily Dosing'!B$9,3)&" g",IF('Daily Dosing'!B$7="Liquid",ROUND('Daily Dosing'!E37/'Daily Dosing'!B$4*'Daily Dosing'!B$8,2)&" ml","Error"))) ->  | E30: =IF('Daily Dosing'!$H37="","",IF(E$4="N/A","N/A",IF('Daily Dosing'!$B$7="Dry",ROUND(E$4*'Daily Dosing'!$E37/'Daily Dosing'!$B$4*'Daily Dosing'!$B$9,3)&" g",IF('Daily Dosing'!$B$7="Liquid",ROUND(E$4*'Daily Dosing'!$E37/'Daily Dosing'!$B$4*'Daily Dosing'!$B$8,2)&" ml","Error")))) ->  | F30: =IF('Daily Dosing'!$H37="","",IF(F$4="N/A","N/A",IF('Daily Dosing'!$B$7="Dry",ROUND(F$4*'Daily Dosing'!$E37/'Daily Dosing'!$B$4*'Daily Dosing'!$B$9,3)&" g",IF('Daily Dosing'!$B$7="Liquid",ROUND(F$4*'Daily Dosing'!$E37/'Daily Dosing'!$B$4*'Daily Dosing'!$B$8,2)&" ml","Error")))) ->  | G30: =IF('Daily Dosing'!$H37="","",IF(G$4="N/A","N/A",IF('Daily Dosing'!$B$7="Dry",ROUND(G$4*'Daily Dosing'!$E37/'Daily Dosing'!$B$4*'Daily Dosing'!$B$9,3)&" g",IF('Daily Dosing'!$B$7="Liquid",ROUND(G$4*'Daily Dosing'!$E37/'Daily Dosing'!$B$4*'Daily Dosing'!$B$8,2)&" ml","Error")))) ->  | H30: =IF('Daily Dosing'!$H37="","",IF(H$4="N/A","N/A",IF('Daily Dosing'!$B$7="Dry",ROUND(H$4*'Daily Dosing'!$E37/'Daily Dosing'!$B$4*'Daily Dosing'!$B$9,3)&" g",IF('Daily Dosing'!$B$7="Liquid",ROUND(H$4*'Daily Dosing'!$E37/'Daily Dosing'!$B$4*'Daily Dosing'!$B$8,2)&" ml","Error")))) ->  | I30: =IF('Daily Dosing'!$H37="","",IF(I$4="N/A","N/A",IF('Daily Dosing'!$B$7="Dry",ROUND(I$4*'Daily Dosing'!$E37/'Daily Dosing'!$B$4*'Daily Dosing'!$B$9,3)&" g",IF('Daily Dosing'!$B$7="Liquid",ROUND(I$4*'Daily Dosing'!$E37/'Daily Dosing'!$B$4*'Daily Dosing'!$B$8,2)&" ml","Error")))) ->  | J30: =IF('Daily Dosing'!$H37="","",IF(J$4="N/A","N/A",IF('Daily Dosing'!$B$7="Dry",ROUND(J$4*'Daily Dosing'!$E37/'Daily Dosing'!$B$4*'Daily Dosing'!$B$9,3)&" g",IF('Daily Dosing'!$B$7="Liquid",ROUND(J$4*'Daily Dosing'!$E37/'Daily Dosing'!$B$4*'Daily Dosing'!$B$8,2)&" ml","Error")))) ->  | K30: =IF('Daily Dosing'!$H37="","",IF(K$4="N/A","N/A",IF('Daily Dosing'!$B$7="Dry",ROUND(K$4*'Daily Dosing'!$E37/'Daily Dosing'!$B$4*'Daily Dosing'!$B$9,3)&" g",IF('Daily Dosing'!$B$7="Liquid",ROUND(K$4*'Daily Dosing'!$E37/'Daily Dosing'!$B$4*'Daily Dosing'!$B$8,2)&" ml","Error")))) ->  | L30: =IF('Daily Dosing'!$H37="","",IF(L$4="N/A","N/A",IF('Daily Dosing'!$B$7="Dry",ROUND(L$4*'Daily Dosing'!$E37/'Daily Dosing'!$B$4*'Daily Dosing'!$B$9,3)&" g",IF('Daily Dosing'!$B$7="Liquid",ROUND(L$4*'Daily Dosing'!$E37/'Daily Dosing'!$B$4*'Daily Dosing'!$B$8,2)&" ml","Error")))) ->  | M30: ='Daily Dosing'!R37 -> 0.0
A31: 26 | B31: 2021-10-23 | C31: ='Daily Dosing'!E38 -> 1.960 | D31: =IF('Daily Dosing'!H38="","",IF('Daily Dosing'!B$7="Dry",ROUND('Daily Dosing'!E38/'Daily Dosing'!B$4*'Daily Dosing'!B$9,3)&" g",IF('Daily Dosing'!B$7="Liquid",ROUND('Daily Dosing'!E38/'Daily Dosing'!B$4*'Daily Dosing'!B$8,2)&" ml","Error"))) ->  | E31: =IF('Daily Dosing'!$H38="","",IF(E$4="N/A","N/A",IF('Daily Dosing'!$B$7="Dry",ROUND(E$4*'Daily Dosing'!$E38/'Daily Dosing'!$B$4*'Daily Dosing'!$B$9,3)&" g",IF('Daily Dosing'!$B$7="Liquid",ROUND(E$4*'Daily Dosing'!$E38/'Daily Dosing'!$B$4*'Daily Dosing'!$B$8,2)&" ml","Error")))) ->  | F31: =IF('Daily Dosing'!$H38="","",IF(F$4="N/A","N/A",IF('Daily Dosing'!$B$7="Dry",ROUND(F$4*'Daily Dosing'!$E38/'Daily Dosing'!$B$4*'Daily Dosing'!$B$9,3)&" g",IF('Daily Dosing'!$B$7="Liquid",ROUND(F$4*'Daily Dosing'!$E38/'Daily Dosing'!$B$4*'Daily Dosing'!$B$8,2)&" ml","Error")))) ->  | G31: =IF('Daily Dosing'!$H38="","",IF(G$4="N/A","N/A",IF('Daily Dosing'!$B$7="Dry",ROUND(G$4*'Daily Dosing'!$E38/'Daily Dosing'!$B$4*'Daily Dosing'!$B$9,3)&" g",IF('Daily Dosing'!$B$7="Liquid",ROUND(G$4*'Daily Dosing'!$E38/'Daily Dosing'!$B$4*'Daily Dosing'!$B$8,2)&" ml","Error")))) ->  | H31: =IF('Daily Dosing'!$H38="","",IF(H$4="N/A","N/A",IF('Daily Dosing'!$B$7="Dry",ROUND(H$4*'Daily Dosing'!$E38/'Daily Dosing'!$B$4*'Daily Dosing'!$B$9,3)&" g",IF('Daily Dosing'!$B$7="Liquid",ROUND(H$4*'Daily Dosing'!$E38/'Daily Dosing'!$B$4*'Daily Dosing'!$B$8,2)&" ml","Error")))) ->  | I31: =IF('Daily Dosing'!$H38="","",IF(I$4="N/A","N/A",IF('Daily Dosing'!$B$7="Dry",ROUND(I$4*'Daily Dosing'!$E38/'Daily Dosing'!$B$4*'Daily Dosing'!$B$9,3)&" g",IF('Daily Dosing'!$B$7="Liquid",ROUND(I$4*'Daily Dosing'!$E38/'Daily Dosing'!$B$4*'Daily Dosing'!$B$8,2)&" ml","Error")))) ->  | J31: =IF('Daily Dosing'!$H38="","",IF(J$4="N/A","N/A",IF('Daily Dosing'!$B$7="Dry",ROUND(J$4*'Daily Dosing'!$E38/'Daily Dosing'!$B$4*'Daily Dosing'!$B$9,3)&" g",IF('Daily Dosing'!$B$7="Liquid",ROUND(J$4*'Daily Dosing'!$E38/'Daily Dosing'!$B$4*'Daily Dosing'!$B$8,2)&" ml","Error")))) ->  | K31: =IF('Daily Dosing'!$H38="","",IF(K$4="N/A","N/A",IF('Daily Dosing'!$B$7="Dry",ROUND(K$4*'Daily Dosing'!$E38/'Daily Dosing'!$B$4*'Daily Dosing'!$B$9,3)&" g",IF('Daily Dosing'!$B$7="Liquid",ROUND(K$4*'Daily Dosing'!$E38/'Daily Dosing'!$B$4*'Daily Dosing'!$B$8,2)&" ml","Error")))) ->  | L31: =IF('Daily Dosing'!$H38="","",IF(L$4="N/A","N/A",IF('Daily Dosing'!$B$7="Dry",ROUND(L$4*'Daily Dosing'!$E38/'Daily Dosing'!$B$4*'Daily Dosing'!$B$9,3)&" g",IF('Daily Dosing'!$B$7="Liquid",ROUND(L$4*'Daily Dosing'!$E38/'Daily Dosing'!$B$4*'Daily Dosing'!$B$8,2)&" ml","Error")))) ->  | M31: ='Daily Dosing'!R38 -> 0.0
A32: 27 | B32: 2021-10-24 | C32: ='Daily Dosing'!E39 -> 1.960 | D32: =IF('Daily Dosing'!H39="","",IF('Daily Dosing'!B$7="Dry",ROUND('Daily Dosing'!E39/'Daily Dosing'!B$4*'Daily Dosing'!B$9,3)&" g",IF('Daily Dosing'!B$7="Liquid",ROUND('Daily Dosing'!E39/'Daily Dosing'!B$4*'Daily Dosing'!B$8,2)&" ml","Error"))) ->  | E32: =IF('Daily Dosing'!$H39="","",IF(E$4="N/A","N/A",IF('Daily Dosing'!$B$7="Dry",ROUND(E$4*'Daily Dosing'!$E39/'Daily Dosing'!$B$4*'Daily Dosing'!$B$9,3)&" g",IF('Daily Dosing'!$B$7="Liquid",ROUND(E$4*'Daily Dosing'!$E39/'Daily Dosing'!$B$4*'Daily Dosing'!$B$8,2)&" ml","Error")))) ->  | F32: =IF('Daily Dosing'!$H39="","",IF(F$4="N/A","N/A",IF('Daily Dosing'!$B$7="Dry",ROUND(F$4*'Daily Dosing'!$E39/'Daily Dosing'!$B$4*'Daily Dosing'!$B$9,3)&" g",IF('Daily Dosing'!$B$7="Liquid",ROUND(F$4*'Daily Dosing'!$E39/'Daily Dosing'!$B$4*'Daily Dosing'!$B$8,2)&" ml","Error")))) ->  | G32: =IF('Daily Dosing'!$H39="","",IF(G$4="N/A","N/A",IF('Daily Dosing'!$B$7="Dry",ROUND(G$4*'Daily Dosing'!$E39/'Daily Dosing'!$B$4*'Daily Dosing'!$B$9,3)&" g",IF('Daily Dosing'!$B$7="Liquid",ROUND(G$4*'Daily Dosing'!$E39/'Daily Dosing'!$B$4*'Daily Dosing'!$B$8,2)&" ml","Error")))) ->  | H32: =IF('Daily Dosing'!$H39="","",IF(H$4="N/A","N/A",IF('Daily Dosing'!$B$7="Dry",ROUND(H$4*'Daily Dosing'!$E39/'Daily Dosing'!$B$4*'Daily Dosing'!$B$9,3)&" g",IF('Daily Dosing'!$B$7="Liquid",ROUND(H$4*'Daily Dosing'!$E39/'Daily Dosing'!$B$4*'Daily Dosing'!$B$8,2)&" ml","Error")))) ->  | I32: =IF('Daily Dosing'!$H39="","",IF(I$4="N/A","N/A",IF('Daily Dosing'!$B$7="Dry",ROUND(I$4*'Daily Dosing'!$E39/'Daily Dosing'!$B$4*'Daily Dosing'!$B$9,3)&" g",IF('Daily Dosing'!$B$7="Liquid",ROUND(I$4*'Daily Dosing'!$E39/'Daily Dosing'!$B$4*'Daily Dosing'!$B$8,2)&" ml","Error")))) ->  | J32: =IF('Daily Dosing'!$H39="","",IF(J$4="N/A","N/A",IF('Daily Dosing'!$B$7="Dry",ROUND(J$4*'Daily Dosing'!$E39/'Daily Dosing'!$B$4*'Daily Dosing'!$B$9,3)&" g",IF('Daily Dosing'!$B$7="Liquid",ROUND(J$4*'Daily Dosing'!$E39/'Daily Dosing'!$B$4*'Daily Dosing'!$B$8,2)&" ml","Error")))) ->  | K32: =IF('Daily Dosing'!$H39="","",IF(K$4="N/A","N/A",IF('Daily Dosing'!$B$7="Dry",ROUND(K$4*'Daily Dosing'!$E39/'Daily Dosing'!$B$4*'Daily Dosing'!$B$9,3)&" g",IF('Daily Dosing'!$B$7="Liquid",ROUND(K$4*'Daily Dosing'!$E39/'Daily Dosing'!$B$4*'Daily Dosing'!$B$8,2)&" ml","Error")))) ->  | L32: =IF('Daily Dosing'!$H39="","",IF(L$4="N/A","N/A",IF('Daily Dosing'!$B$7="Dry",ROUND(L$4*'Daily Dosing'!$E39/'Daily Dosing'!$B$4*'Daily Dosing'!$B$9,3)&" g",IF('Daily Dosing'!$B$7="Liquid",ROUND(L$4*'Daily Dosing'!$E39/'Daily Dosing'!$B$4*'Daily Dosing'!$B$8,2)&" ml","Error")))) ->  | M32: ='Daily Dosing'!R39 -> 0.0
A33: 28 | B33: 2021-10-25 | C33: ='Daily Dosing'!E40 -> 1.960 | D33: =IF('Daily Dosing'!H40="","",IF('Daily Dosing'!B$7="Dry",ROUND('Daily Dosing'!E40/'Daily Dosing'!B$4*'Daily Dosing'!B$9,3)&" g",IF('Daily Dosing'!B$7="Liquid",ROUND('Daily Dosing'!E40/'Daily Dosing'!B$4*'Daily Dosing'!B$8,2)&" ml","Error"))) ->  | E33: =IF('Daily Dosing'!$H40="","",IF(E$4="N/A","N/A",IF('Daily Dosing'!$B$7="Dry",ROUND(E$4*'Daily Dosing'!$E40/'Daily Dosing'!$B$4*'Daily Dosing'!$B$9,3)&" g",IF('Daily Dosing'!$B$7="Liquid",ROUND(E$4*'Daily Dosing'!$E40/'Daily Dosing'!$B$4*'Daily Dosing'!$B$8,2)&" ml","Error")))) ->  | F33: =IF('Daily Dosing'!$H40="","",IF(F$4="N/A","N/A",IF('Daily Dosing'!$B$7="Dry",ROUND(F$4*'Daily Dosing'!$E40/'Daily Dosing'!$B$4*'Daily Dosing'!$B$9,3)&" g",IF('Daily Dosing'!$B$7="Liquid",ROUND(F$4*'Daily Dosing'!$E40/'Daily Dosing'!$B$4*'Daily Dosing'!$B$8,2)&" ml","Error")))) ->  | G33: =IF('Daily Dosing'!$H40="","",IF(G$4="N/A","N/A",IF('Daily Dosing'!$B$7="Dry",ROUND(G$4*'Daily Dosing'!$E40/'Daily Dosing'!$B$4*'Daily Dosing'!$B$9,3)&" g",IF('Daily Dosing'!$B$7="Liquid",ROUND(G$4*'Daily Dosing'!$E40/'Daily Dosing'!$B$4*'Daily Dosing'!$B$8,2)&" ml","Error")))) ->  | H33: =IF('Daily Dosing'!$H40="","",IF(H$4="N/A","N/A",IF('Daily Dosing'!$B$7="Dry",ROUND(H$4*'Daily Dosing'!$E40/'Daily Dosing'!$B$4*'Daily Dosing'!$B$9,3)&" g",IF('Daily Dosing'!$B$7="Liquid",ROUND(H$4*'Daily Dosing'!$E40/'Daily Dosing'!$B$4*'Daily Dosing'!$B$8,2)&" ml","Error")))) ->  | I33: =IF('Daily Dosing'!$H40="","",IF(I$4="N/A","N/A",IF('Daily Dosing'!$B$7="Dry",ROUND(I$4*'Daily Dosing'!$E40/'Daily Dosing'!$B$4*'Daily Dosing'!$B$9,3)&" g",IF('Daily Dosing'!$B$7="Liquid",ROUND(I$4*'Daily Dosing'!$E40/'Daily Dosing'!$B$4*'Daily Dosing'!$B$8,2)&" ml","Error")))) ->  | J33: =IF('Daily Dosing'!$H40="","",IF(J$4="N/A","N/A",IF('Daily Dosing'!$B$7="Dry",ROUND(J$4*'Daily Dosing'!$E40/'Daily Dosing'!$B$4*'Daily Dosing'!$B$9,3)&" g",IF('Daily Dosing'!$B$7="Liquid",ROUND(J$4*'Daily Dosing'!$E40/'Daily Dosing'!$B$4*'Daily Dosing'!$B$8,2)&" ml","Error")))) ->  | K33: =IF('Daily Dosing'!$H40="","",IF(K$4="N/A","N/A",IF('Daily Dosing'!$B$7="Dry",ROUND(K$4*'Daily Dosing'!$E40/'Daily Dosing'!$B$4*'Daily Dosing'!$B$9,3)&" g",IF('Daily Dosing'!$B$7="Liquid",ROUND(K$4*'Daily Dosing'!$E40/'Daily Dosing'!$B$4*'Daily Dosing'!$B$8,2)&" ml","Error")))) ->  | L33: =IF('Daily Dosing'!$H40="","",IF(L$4="N/A","N/A",IF('Daily Dosing'!$B$7="Dry",ROUND(L$4*'Daily Dosing'!$E40/'Daily Dosing'!$B$4*'Daily Dosing'!$B$9,3)&" g",IF('Daily Dosing'!$B$7="Liquid",ROUND(L$4*'Daily Dosing'!$E40/'Daily Dosing'!$B$4*'Daily Dosing'!$B$8,2)&" ml","Error")))) ->  | M33: ='Daily Dosing'!R40 -> 0.0
A34: 29 | B34: 2021-10-26 | C34: ='Daily Dosing'!E41 -> 1.960 | D34: =IF('Daily Dosing'!H41="","",IF('Daily Dosing'!B$7="Dry",ROUND('Daily Dosing'!E41/'Daily Dosing'!B$4*'Daily Dosing'!B$9,3)&" g",IF('Daily Dosing'!B$7="Liquid",ROUND('Daily Dosing'!E41/'Daily Dosing'!B$4*'Daily Dosing'!B$8,2)&" ml","Error"))) ->  | E34: =IF('Daily Dosing'!$H41="","",IF(E$4="N/A","N/A",IF('Daily Dosing'!$B$7="Dry",ROUND(E$4*'Daily Dosing'!$E41/'Daily Dosing'!$B$4*'Daily Dosing'!$B$9,3)&" g",IF('Daily Dosing'!$B$7="Liquid",ROUND(E$4*'Daily Dosing'!$E41/'Daily Dosing'!$B$4*'Daily Dosing'!$B$8,2)&" ml","Error")))) ->  | F34: =IF('Daily Dosing'!$H41="","",IF(F$4="N/A","N/A",IF('Daily Dosing'!$B$7="Dry",ROUND(F$4*'Daily Dosing'!$E41/'Daily Dosing'!$B$4*'Daily Dosing'!$B$9,3)&" g",IF('Daily Dosing'!$B$7="Liquid",ROUND(F$4*'Daily Dosing'!$E41/'Daily Dosing'!$B$4*'Daily Dosing'!$B$8,2)&" ml","Error")))) ->  | G34: =IF('Daily Dosing'!$H41="","",IF(G$4="N/A","N/A",IF('Daily Dosing'!$B$7="Dry",ROUND(G$4*'Daily Dosing'!$E41/'Daily Dosing'!$B$4*'Daily Dosing'!$B$9,3)&" g",IF('Daily Dosing'!$B$7="Liquid",ROUND(G$4*'Daily Dosing'!$E41/'Daily Dosing'!$B$4*'Daily Dosing'!$B$8,2)&" ml","Error")))) ->  | H34: =IF('Daily Dosing'!$H41="","",IF(H$4="N/A","N/A",IF('Daily Dosing'!$B$7="Dry",ROUND(H$4*'Daily Dosing'!$E41/'Daily Dosing'!$B$4*'Daily Dosing'!$B$9,3)&" g",IF('Daily Dosing'!$B$7="Liquid",ROUND(H$4*'Daily Dosing'!$E41/'Daily Dosing'!$B$4*'Daily Dosing'!$B$8,2)&" ml","Error")))) ->  | I34: =IF('Daily Dosing'!$H41="","",IF(I$4="N/A","N/A",IF('Daily Dosing'!$B$7="Dry",ROUND(I$4*'Daily Dosing'!$E41/'Daily Dosing'!$B$4*'Daily Dosing'!$B$9,3)&" g",IF('Daily Dosing'!$B$7="Liquid",ROUND(I$4*'Daily Dosing'!$E41/'Daily Dosing'!$B$4*'Daily Dosing'!$B$8,2)&" ml","Error")))) ->  | J34: =IF('Daily Dosing'!$H41="","",IF(J$4="N/A","N/A",IF('Daily Dosing'!$B$7="Dry",ROUND(J$4*'Daily Dosing'!$E41/'Daily Dosing'!$B$4*'Daily Dosing'!$B$9,3)&" g",IF('Daily Dosing'!$B$7="Liquid",ROUND(J$4*'Daily Dosing'!$E41/'Daily Dosing'!$B$4*'Daily Dosing'!$B$8,2)&" ml","Error")))) ->  | K34: =IF('Daily Dosing'!$H41="","",IF(K$4="N/A","N/A",IF('Daily Dosing'!$B$7="Dry",ROUND(K$4*'Daily Dosing'!$E41/'Daily Dosing'!$B$4*'Daily Dosing'!$B$9,3)&" g",IF('Daily Dosing'!$B$7="Liquid",ROUND(K$4*'Daily Dosing'!$E41/'Daily Dosing'!$B$4*'Daily Dosing'!$B$8,2)&" ml","Error")))) ->  | L34: =IF('Daily Dosing'!$H41="","",IF(L$4="N/A","N/A",IF('Daily Dosing'!$B$7="Dry",ROUND(L$4*'Daily Dosing'!$E41/'Daily Dosing'!$B$4*'Daily Dosing'!$B$9,3)&" g",IF('Daily Dosing'!$B$7="Liquid",ROUND(L$4*'Daily Dosing'!$E41/'Daily Dosing'!$B$4*'Daily Dosing'!$B$8,2)&" ml","Error")))) ->  | M34: ='Daily Dosing'!R41 -> 0.0
A35: 30 | B35: 2021-10-27 | C35: ='Daily Dosing'!E42 -> 1.960 | D35: =IF('Daily Dosing'!H42="","",IF('Daily Dosing'!B$7="Dry",ROUND('Daily Dosing'!E42/'Daily Dosing'!B$4*'Daily Dosing'!B$9,3)&" g",IF('Daily Dosing'!B$7="Liquid",ROUND('Daily Dosing'!E42/'Daily Dosing'!B$4*'Daily Dosing'!B$8,2)&" ml","Error"))) ->  | E35: =IF('Daily Dosing'!$H42="","",IF(E$4="N/A","N/A",IF('Daily Dosing'!$B$7="Dry",ROUND(E$4*'Daily Dosing'!$E42/'Daily Dosing'!$B$4*'Daily Dosing'!$B$9,3)&" g",IF('Daily Dosing'!$B$7="Liquid",ROUND(E$4*'Daily Dosing'!$E42/'Daily Dosing'!$B$4*'Daily Dosing'!$B$8,2)&" ml","Error")))) ->  | F35: =IF('Daily Dosing'!$H42="","",IF(F$4="N/A","N/A",IF('Daily Dosing'!$B$7="Dry",ROUND(F$4*'Daily Dosing'!$E42/'Daily Dosing'!$B$4*'Daily Dosing'!$B$9,3)&" g",IF('Daily Dosing'!$B$7="Liquid",ROUND(F$4*'Daily Dosing'!$E42/'Daily Dosing'!$B$4*'Daily Dosing'!$B$8,2)&" ml","Error")))) ->  | G35: =IF('Daily Dosing'!$H42="","",IF(G$4="N/A","N/A",IF('Daily Dosing'!$B$7="Dry",ROUND(G$4*'Daily Dosing'!$E42/'Daily Dosing'!$B$4*'Daily Dosing'!$B$9,3)&" g",IF('Daily Dosing'!$B$7="Liquid",ROUND(G$4*'Daily Dosing'!$E42/'Daily Dosing'!$B$4*'Daily Dosing'!$B$8,2)&" ml","Error")))) ->  | H35: =IF('Daily Dosing'!$H42="","",IF(H$4="N/A","N/A",IF('Daily Dosing'!$B$7="Dry",ROUND(H$4*'Daily Dosing'!$E42/'Daily Dosing'!$B$4*'Daily Dosing'!$B$9,3)&" g",IF('Daily Dosing'!$B$7="Liquid",ROUND(H$4*'Daily Dosing'!$E42/'Daily Dosing'!$B$4*'Daily Dosing'!$B$8,2)&" ml","Error")))) ->  | I35: =IF('Daily Dosing'!$H42="","",IF(I$4="N/A","N/A",IF('Daily Dosing'!$B$7="Dry",ROUND(I$4*'Daily Dosing'!$E42/'Daily Dosing'!$B$4*'Daily Dosing'!$B$9,3)&" g",IF('Daily Dosing'!$B$7="Liquid",ROUND(I$4*'Daily Dosing'!$E42/'Daily Dosing'!$B$4*'Daily Dosing'!$B$8,2)&" ml","Error")))) ->  | J35: =IF('Daily Dosing'!$H42="","",IF(J$4="N/A","N/A",IF('Daily Dosing'!$B$7="Dry",ROUND(J$4*'Daily Dosing'!$E42/'Daily Dosing'!$B$4*'Daily Dosing'!$B$9,3)&" g",IF('Daily Dosing'!$B$7="Liquid",ROUND(J$4*'Daily Dosing'!$E42/'Daily Dosing'!$B$4*'Daily Dosing'!$B$8,2)&" ml","Error")))) ->  | K35: =IF('Daily Dosing'!$H42="","",IF(K$4="N/A","N/A",IF('Daily Dosing'!$B$7="Dry",ROUND(K$4*'Daily Dosing'!$E42/'Daily Dosing'!$B$4*'Daily Dosing'!$B$9,3)&" g",IF('Daily Dosing'!$B$7="Liquid",ROUND(K$4*'Daily Dosing'!$E42/'Daily Dosing'!$B$4*'Daily Dosing'!$B$8,2)&" ml","Error")))) ->  | L35: =IF('Daily Dosing'!$H42="","",IF(L$4="N/A","N/A",IF('Daily Dosing'!$B$7="Dry",ROUND(L$4*'Daily Dosing'!$E42/'Daily Dosing'!$B$4*'Daily Dosing'!$B$9,3)&" g",IF('Daily Dosing'!$B$7="Liquid",ROUND(L$4*'Daily Dosing'!$E42/'Daily Dosing'!$B$4*'Daily Dosing'!$B$8,2)&" ml","Error")))) ->  | M35: ='Daily Dosing'!R42 -> 0.0
A36: 31 | B36: 2021-10-28 | C36: ='Daily Dosing'!E43 -> 1.960 | D36: =IF('Daily Dosing'!H43="","",IF('Daily Dosing'!B$7="Dry",ROUND('Daily Dosing'!E43/'Daily Dosing'!B$4*'Daily Dosing'!B$9,3)&" g",IF('Daily Dosing'!B$7="Liquid",ROUND('Daily Dosing'!E43/'Daily Dosing'!B$4*'Daily Dosing'!B$8,2)&" ml","Error"))) ->  | E36: =IF('Daily Dosing'!$H43="","",IF(E$4="N/A","N/A",IF('Daily Dosing'!$B$7="Dry",ROUND(E$4*'Daily Dosing'!$E43/'Daily Dosing'!$B$4*'Daily Dosing'!$B$9,3)&" g",IF('Daily Dosing'!$B$7="Liquid",ROUND(E$4*'Daily Dosing'!$E43/'Daily Dosing'!$B$4*'Daily Dosing'!$B$8,2)&" ml","Error")))) ->  | F36: =IF('Daily Dosing'!$H43="","",IF(F$4="N/A","N/A",IF('Daily Dosing'!$B$7="Dry",ROUND(F$4*'Daily Dosing'!$E43/'Daily Dosing'!$B$4*'Daily Dosing'!$B$9,3)&" g",IF('Daily Dosing'!$B$7="Liquid",ROUND(F$4*'Daily Dosing'!$E43/'Daily Dosing'!$B$4*'Daily Dosing'!$B$8,2)&" ml","Error")))) ->  | G36: =IF('Daily Dosing'!$H43="","",IF(G$4="N/A","N/A",IF('Daily Dosing'!$B$7="Dry",ROUND(G$4*'Daily Dosing'!$E43/'Daily Dosing'!$B$4*'Daily Dosing'!$B$9,3)&" g",IF('Daily Dosing'!$B$7="Liquid",ROUND(G$4*'Daily Dosing'!$E43/'Daily Dosing'!$B$4*'Daily Dosing'!$B$8,2)&" ml","Error")))) ->  | H36: =IF('Daily Dosing'!$H43="","",IF(H$4="N/A","N/A",IF('Daily Dosing'!$B$7="Dry",ROUND(H$4*'Daily Dosing'!$E43/'Daily Dosing'!$B$4*'Daily Dosing'!$B$9,3)&" g",IF('Daily Dosing'!$B$7="Liquid",ROUND(H$4*'Daily Dosing'!$E43/'Daily Dosing'!$B$4*'Daily Dosing'!$B$8,2)&" ml","Error")))) ->  | I36: =IF('Daily Dosing'!$H43="","",IF(I$4="N/A","N/A",IF('Daily Dosing'!$B$7="Dry",ROUND(I$4*'Daily Dosing'!$E43/'Daily Dosing'!$B$4*'Daily Dosing'!$B$9,3)&" g",IF('Daily Dosing'!$B$7="Liquid",ROUND(I$4*'Daily Dosing'!$E43/'Daily Dosing'!$B$4*'Daily Dosing'!$B$8,2)&" ml","Error")))) ->  | J36: =IF('Daily Dosing'!$H43="","",IF(J$4="N/A","N/A",IF('Daily Dosing'!$B$7="Dry",ROUND(J$4*'Daily Dosing'!$E43/'Daily Dosing'!$B$4*'Daily Dosing'!$B$9,3)&" g",IF('Daily Dosing'!$B$7="Liquid",ROUND(J$4*'Daily Dosing'!$E43/'Daily Dosing'!$B$4*'Daily Dosing'!$B$8,2)&" ml","Error")))) ->  | K36: =IF('Daily Dosing'!$H43="","",IF(K$4="N/A","N/A",IF('Daily Dosing'!$B$7="Dry",ROUND(K$4*'Daily Dosing'!$E43/'Daily Dosing'!$B$4*'Daily Dosing'!$B$9,3)&" g",IF('Daily Dosing'!$B$7="Liquid",ROUND(K$4*'Daily Dosing'!$E43/'Daily Dosing'!$B$4*'Daily Dosing'!$B$8,2)&" ml","Error")))) ->  | L36: =IF('Daily Dosing'!$H43="","",IF(L$4="N/A","N/A",IF('Daily Dosing'!$B$7="Dry",ROUND(L$4*'Daily Dosing'!$E43/'Daily Dosing'!$B$4*'Daily Dosing'!$B$9,3)&" g",IF('Daily Dosing'!$B$7="Liquid",ROUND(L$4*'Daily Dosing'!$E43/'Daily Dosing'!$B$4*'Daily Dosing'!$B$8,2)&" ml","Error")))) ->  | M36: ='Daily Dosing'!R43 -> 0.0
A37: 32 | B37: 2021-10-29 | C37: ='Daily Dosing'!E44 -> 1.960 | D37: =IF('Daily Dosing'!H44="","",IF('Daily Dosing'!B$7="Dry",ROUND('Daily Dosing'!E44/'Daily Dosing'!B$4*'Daily Dosing'!B$9,3)&" g",IF('Daily Dosing'!B$7="Liquid",ROUND('Daily Dosing'!E44/'Daily Dosing'!B$4*'Daily Dosing'!B$8,2)&" ml","Error"))) ->  | E37: =IF('Daily Dosing'!$H44="","",IF(E$4="N/A","N/A",IF('Daily Dosing'!$B$7="Dry",ROUND(E$4*'Daily Dosing'!$E44/'Daily Dosing'!$B$4*'Daily Dosing'!$B$9,3)&" g",IF('Daily Dosing'!$B$7="Liquid",ROUND(E$4*'Daily Dosing'!$E44/'Daily Dosing'!$B$4*'Daily Dosing'!$B$8,2)&" ml","Error")))) ->  | F37: =IF('Daily Dosing'!$H44="","",IF(F$4="N/A","N/A",IF('Daily Dosing'!$B$7="Dry",ROUND(F$4*'Daily Dosing'!$E44/'Daily Dosing'!$B$4*'Daily Dosing'!$B$9,3)&" g",IF('Daily Dosing'!$B$7="Liquid",ROUND(F$4*'Daily Dosing'!$E44/'Daily Dosing'!$B$4*'Daily Dosing'!$B$8,2)&" ml","Error")))) ->  | G37: =IF('Daily Dosing'!$H44="","",IF(G$4="N/A","N/A",IF('Daily Dosing'!$B$7="Dry",ROUND(G$4*'Daily Dosing'!$E44/'Daily Dosing'!$B$4*'Daily Dosing'!$B$9,3)&" g",IF('Daily Dosing'!$B$7="Liquid",ROUND(G$4*'Daily Dosing'!$E44/'Daily Dosing'!$B$4*'Daily Dosing'!$B$8,2)&" ml","Error")))) ->  | H37: =IF('Daily Dosing'!$H44="","",IF(H$4="N/A","N/A",IF('Daily Dosing'!$B$7="Dry",ROUND(H$4*'Daily Dosing'!$E44/'Daily Dosing'!$B$4*'Daily Dosing'!$B$9,3)&" g",IF('Daily Dosing'!$B$7="Liquid",ROUND(H$4*'Daily Dosing'!$E44/'Daily Dosing'!$B$4*'Daily Dosing'!$B$8,2)&" ml","Error")))) ->  | I37: =IF('Daily Dosing'!$H44="","",IF(I$4="N/A","N/A",IF('Daily Dosing'!$B$7="Dry",ROUND(I$4*'Daily Dosing'!$E44/'Daily Dosing'!$B$4*'Daily Dosing'!$B$9,3)&" g",IF('Daily Dosing'!$B$7="Liquid",ROUND(I$4*'Daily Dosing'!$E44/'Daily Dosing'!$B$4*'Daily Dosing'!$B$8,2)&" ml","Error")))) ->  | J37: =IF('Daily Dosing'!$H44="","",IF(J$4="N/A","N/A",IF('Daily Dosing'!$B$7="Dry",ROUND(J$4*'Daily Dosing'!$E44/'Daily Dosing'!$B$4*'Daily Dosing'!$B$9,3)&" g",IF('Daily Dosing'!$B$7="Liquid",ROUND(J$4*'Daily Dosing'!$E44/'Daily Dosing'!$B$4*'Daily Dosing'!$B$8,2)&" ml","Error")))) ->  | K37: =IF('Daily Dosing'!$H44="","",IF(K$4="N/A","N/A",IF('Daily Dosing'!$B$7="Dry",ROUND(K$4*'Daily Dosing'!$E44/'Daily Dosing'!$B$4*'Daily Dosing'!$B$9,3)&" g",IF('Daily Dosing'!$B$7="Liquid",ROUND(K$4*'Daily Dosing'!$E44/'Daily Dosing'!$B$4*'Daily Dosing'!$B$8,2)&" ml","Error")))) ->  | L37: =IF('Daily Dosing'!$H44="","",IF(L$4="N/A","N/A",IF('Daily Dosing'!$B$7="Dry",ROUND(L$4*'Daily Dosing'!$E44/'Daily Dosing'!$B$4*'Daily Dosing'!$B$9,3)&" g",IF('Daily Dosing'!$B$7="Liquid",ROUND(L$4*'Daily Dosing'!$E44/'Daily Dosing'!$B$4*'Daily Dosing'!$B$8,2)&" ml","Error")))) ->  | M37: ='Daily Dosing'!R44 -> 0.0
A38: 33 | B38: 2021-10-30 | C38: ='Daily Dosing'!E45 -> 1.960 | D38: =IF('Daily Dosing'!H45="","",IF('Daily Dosing'!B$7="Dry",ROUND('Daily Dosing'!E45/'Daily Dosing'!B$4*'Daily Dosing'!B$9,3)&" g",IF('Daily Dosing'!B$7="Liquid",ROUND('Daily Dosing'!E45/'Daily Dosing'!B$4*'Daily Dosing'!B$8,2)&" ml","Error"))) ->  | E38: =IF('Daily Dosing'!$H45="","",IF(E$4="N/A","N/A",IF('Daily Dosing'!$B$7="Dry",ROUND(E$4*'Daily Dosing'!$E45/'Daily Dosing'!$B$4*'Daily Dosing'!$B$9,3)&" g",IF('Daily Dosing'!$B$7="Liquid",ROUND(E$4*'Daily Dosing'!$E45/'Daily Dosing'!$B$4*'Daily Dosing'!$B$8,2)&" ml","Error")))) ->  | F38: =IF('Daily Dosing'!$H45="","",IF(F$4="N/A","N/A",IF('Daily Dosing'!$B$7="Dry",ROUND(F$4*'Daily Dosing'!$E45/'Daily Dosing'!$B$4*'Daily Dosing'!$B$9,3)&" g",IF('Daily Dosing'!$B$7="Liquid",ROUND(F$4*'Daily Dosing'!$E45/'Daily Dosing'!$B$4*'Daily Dosing'!$B$8,2)&" ml","Error")))) ->  | G38: =IF('Daily Dosing'!$H45="","",IF(G$4="N/A","N/A",IF('Daily Dosing'!$B$7="Dry",ROUND(G$4*'Daily Dosing'!$E45/'Daily Dosing'!$B$4*'Daily Dosing'!$B$9,3)&" g",IF('Daily Dosing'!$B$7="Liquid",ROUND(G$4*'Daily Dosing'!$E45/'Daily Dosing'!$B$4*'Daily Dosing'!$B$8,2)&" ml","Error")))) ->  | H38: =IF('Daily Dosing'!$H45="","",IF(H$4="N/A","N/A",IF('Daily Dosing'!$B$7="Dry",ROUND(H$4*'Daily Dosing'!$E45/'Daily Dosing'!$B$4*'Daily Dosing'!$B$9,3)&" g",IF('Daily Dosing'!$B$7="Liquid",ROUND(H$4*'Daily Dosing'!$E45/'Daily Dosing'!$B$4*'Daily Dosing'!$B$8,2)&" ml","Error")))) ->  | I38: =IF('Daily Dosing'!$H45="","",IF(I$4="N/A","N/A",IF('Daily Dosing'!$B$7="Dry",ROUND(I$4*'Daily Dosing'!$E45/'Daily Dosing'!$B$4*'Daily Dosing'!$B$9,3)&" g",IF('Daily Dosing'!$B$7="Liquid",ROUND(I$4*'Daily Dosing'!$E45/'Daily Dosing'!$B$4*'Daily Dosing'!$B$8,2)&" ml","Error")))) ->  | J38: =IF('Daily Dosing'!$H45="","",IF(J$4="N/A","N/A",IF('Daily Dosing'!$B$7="Dry",ROUND(J$4*'Daily Dosing'!$E45/'Daily Dosing'!$B$4*'Daily Dosing'!$B$9,3)&" g",IF('Daily Dosing'!$B$7="Liquid",ROUND(J$4*'Daily Dosing'!$E45/'Daily Dosing'!$B$4*'Daily Dosing'!$B$8,2)&" ml","Error")))) ->  | K38: =IF('Daily Dosing'!$H45="","",IF(K$4="N/A","N/A",IF('Daily Dosing'!$B$7="Dry",ROUND(K$4*'Daily Dosing'!$E45/'Daily Dosing'!$B$4*'Daily Dosing'!$B$9,3)&" g",IF('Daily Dosing'!$B$7="Liquid",ROUND(K$4*'Daily Dosing'!$E45/'Daily Dosing'!$B$4*'Daily Dosing'!$B$8,2)&" ml","Error")))) ->  | L38: =IF('Daily Dosing'!$H45="","",IF(L$4="N/A","N/A",IF('Daily Dosing'!$B$7="Dry",ROUND(L$4*'Daily Dosing'!$E45/'Daily Dosing'!$B$4*'Daily Dosing'!$B$9,3)&" g",IF('Daily Dosing'!$B$7="Liquid",ROUND(L$4*'Daily Dosing'!$E45/'Daily Dosing'!$B$4*'Daily Dosing'!$B$8,2)&" ml","Error")))) ->  | M38: ='Daily Dosing'!R45 -> 0.0
A39: 34 | B39: 2021-10-31 | C39: ='Daily Dosing'!E46 -> 1.960 | D39: =IF('Daily Dosing'!H46="","",IF('Daily Dosing'!B$7="Dry",ROUND('Daily Dosing'!E46/'Daily Dosing'!B$4*'Daily Dosing'!B$9,3)&" g",IF('Daily Dosing'!B$7="Liquid",ROUND('Daily Dosing'!E46/'Daily Dosing'!B$4*'Daily Dosing'!B$8,2)&" ml","Error"))) ->  | E39: =IF('Daily Dosing'!$H46="","",IF(E$4="N/A","N/A",IF('Daily Dosing'!$B$7="Dry",ROUND(E$4*'Daily Dosing'!$E46/'Daily Dosing'!$B$4*'Daily Dosing'!$B$9,3)&" g",IF('Daily Dosing'!$B$7="Liquid",ROUND(E$4*'Daily Dosing'!$E46/'Daily Dosing'!$B$4*'Daily Dosing'!$B$8,2)&" ml","Error")))) ->  | F39: =IF('Daily Dosing'!$H46="","",IF(F$4="N/A","N/A",IF('Daily Dosing'!$B$7="Dry",ROUND(F$4*'Daily Dosing'!$E46/'Daily Dosing'!$B$4*'Daily Dosing'!$B$9,3)&" g",IF('Daily Dosing'!$B$7="Liquid",ROUND(F$4*'Daily Dosing'!$E46/'Daily Dosing'!$B$4*'Daily Dosing'!$B$8,2)&" ml","Error")))) ->  | G39: =IF('Daily Dosing'!$H46="","",IF(G$4="N/A","N/A",IF('Daily Dosing'!$B$7="Dry",ROUND(G$4*'Daily Dosing'!$E46/'Daily Dosing'!$B$4*'Daily Dosing'!$B$9,3)&" g",IF('Daily Dosing'!$B$7="Liquid",ROUND(G$4*'Daily Dosing'!$E46/'Daily Dosing'!$B$4*'Daily Dosing'!$B$8,2)&" ml","Error")))) ->  | H39: =IF('Daily Dosing'!$H46="","",IF(H$4="N/A","N/A",IF('Daily Dosing'!$B$7="Dry",ROUND(H$4*'Daily Dosing'!$E46/'Daily Dosing'!$B$4*'Daily Dosing'!$B$9,3)&" g",IF('Daily Dosing'!$B$7="Liquid",ROUND(H$4*'Daily Dosing'!$E46/'Daily Dosing'!$B$4*'Daily Dosing'!$B$8,2)&" ml","Error")))) ->  | I39: =IF('Daily Dosing'!$H46="","",IF(I$4="N/A","N/A",IF('Daily Dosing'!$B$7="Dry",ROUND(I$4*'Daily Dosing'!$E46/'Daily Dosing'!$B$4*'Daily Dosing'!$B$9,3)&" g",IF('Daily Dosing'!$B$7="Liquid",ROUND(I$4*'Daily Dosing'!$E46/'Daily Dosing'!$B$4*'Daily Dosing'!$B$8,2)&" ml","Error")))) ->  | J39: =IF('Daily Dosing'!$H46="","",IF(J$4="N/A","N/A",IF('Daily Dosing'!$B$7="Dry",ROUND(J$4*'Daily Dosing'!$E46/'Daily Dosing'!$B$4*'Daily Dosing'!$B$9,3)&" g",IF('Daily Dosing'!$B$7="Liquid",ROUND(J$4*'Daily Dosing'!$E46/'Daily Dosing'!$B$4*'Daily Dosing'!$B$8,2)&" ml","Error")))) ->  | K39: =IF('Daily Dosing'!$H46="","",IF(K$4="N/A","N/A",IF('Daily Dosing'!$B$7="Dry",ROUND(K$4*'Daily Dosing'!$E46/'Daily Dosing'!$B$4*'Daily Dosing'!$B$9,3)&" g",IF('Daily Dosing'!$B$7="Liquid",ROUND(K$4*'Daily Dosing'!$E46/'Daily Dosing'!$B$4*'Daily Dosing'!$B$8,2)&" ml","Error")))) ->  | L39: =IF('Daily Dosing'!$H46="","",IF(L$4="N/A","N/A",IF('Daily Dosing'!$B$7="Dry",ROUND(L$4*'Daily Dosing'!$E46/'Daily Dosing'!$B$4*'Daily Dosing'!$B$9,3)&" g",IF('Daily Dosing'!$B$7="Liquid",ROUND(L$4*'Daily Dosing'!$E46/'Daily Dosing'!$B$4*'Daily Dosing'!$B$8,2)&" ml","Error")))) ->  | M39: ='Daily Dosing'!R46 -> 0.0
A40: 35 | B40: 2021-11-01 | C40: ='Daily Dosing'!E47 -> 1.960 | D40: =IF('Daily Dosing'!H47="","",IF('Daily Dosing'!B$7="Dry",ROUND('Daily Dosing'!E47/'Daily Dosing'!B$4*'Daily Dosing'!B$9,3)&" g",IF('Daily Dosing'!B$7="Liquid",ROUND('Daily Dosing'!E47/'Daily Dosing'!B$4*'Daily Dosing'!B$8,2)&" ml","Error"))) ->  | E40: =IF('Daily Dosing'!$H47="","",IF(E$4="N/A","N/A",IF('Daily Dosing'!$B$7="Dry",ROUND(E$4*'Daily Dosing'!$E47/'Daily Dosing'!$B$4*'Daily Dosing'!$B$9,3)&" g",IF('Daily Dosing'!$B$7="Liquid",ROUND(E$4*'Daily Dosing'!$E47/'Daily Dosing'!$B$4*'Daily Dosing'!$B$8,2)&" ml","Error")))) ->  | F40: =IF('Daily Dosing'!$H47="","",IF(F$4="N/A","N/A",IF('Daily Dosing'!$B$7="Dry",ROUND(F$4*'Daily Dosing'!$E47/'Daily Dosing'!$B$4*'Daily Dosing'!$B$9,3)&" g",IF('Daily Dosing'!$B$7="Liquid",ROUND(F$4*'Daily Dosing'!$E47/'Daily Dosing'!$B$4*'Daily Dosing'!$B$8,2)&" ml","Error")))) ->  | G40: =IF('Daily Dosing'!$H47="","",IF(G$4="N/A","N/A",IF('Daily Dosing'!$B$7="Dry",ROUND(G$4*'Daily Dosing'!$E47/'Daily Dosing'!$B$4*'Daily Dosing'!$B$9,3)&" g",IF('Daily Dosing'!$B$7="Liquid",ROUND(G$4*'Daily Dosing'!$E47/'Daily Dosing'!$B$4*'Daily Dosing'!$B$8,2)&" ml","Error")))) ->  | H40: =IF('Daily Dosing'!$H47="","",IF(H$4="N/A","N/A",IF('Daily Dosing'!$B$7="Dry",ROUND(H$4*'Daily Dosing'!$E47/'Daily Dosing'!$B$4*'Daily Dosing'!$B$9,3)&" g",IF('Daily Dosing'!$B$7="Liquid",ROUND(H$4*'Daily Dosing'!$E47/'Daily Dosing'!$B$4*'Daily Dosing'!$B$8,2)&" ml","Error")))) ->  | I40: =IF('Daily Dosing'!$H47="","",IF(I$4="N/A","N/A",IF('Daily Dosing'!$B$7="Dry",ROUND(I$4*'Daily Dosing'!$E47/'Daily Dosing'!$B$4*'Daily Dosing'!$B$9,3)&" g",IF('Daily Dosing'!$B$7="Liquid",ROUND(I$4*'Daily Dosing'!$E47/'Daily Dosing'!$B$4*'Daily Dosing'!$B$8,2)&" ml","Error")))) ->  | J40: =IF('Daily Dosing'!$H47="","",IF(J$4="N/A","N/A",IF('Daily Dosing'!$B$7="Dry",ROUND(J$4*'Daily Dosing'!$E47/'Daily Dosing'!$B$4*'Daily Dosing'!$B$9,3)&" g",IF('Daily Dosing'!$B$7="Liquid",ROUND(J$4*'Daily Dosing'!$E47/'Daily Dosing'!$B$4*'Daily Dosing'!$B$8,2)&" ml","Error")))) ->  | K40: =IF('Daily Dosing'!$H47="","",IF(K$4="N/A","N/A",IF('Daily Dosing'!$B$7="Dry",ROUND(K$4*'Daily Dosing'!$E47/'Daily Dosing'!$B$4*'Daily Dosing'!$B$9,3)&" g",IF('Daily Dosing'!$B$7="Liquid",ROUND(K$4*'Daily Dosing'!$E47/'Daily Dosing'!$B$4*'Daily Dosing'!$B$8,2)&" ml","Error")))) ->  | L40: =IF('Daily Dosing'!$H47="","",IF(L$4="N/A","N/A",IF('Daily Dosing'!$B$7="Dry",ROUND(L$4*'Daily Dosing'!$E47/'Daily Dosing'!$B$4*'Daily Dosing'!$B$9,3)&" g",IF('Daily Dosing'!$B$7="Liquid",ROUND(L$4*'Daily Dosing'!$E47/'Daily Dosing'!$B$4*'Daily Dosing'!$B$8,2)&" ml","Error")))) ->  | M40: ='Daily Dosing'!R47 -> 0.0
A41: 36 | B41: 2021-11-02 | C41: ='Daily Dosing'!E48 -> 1.960 | D41: =IF('Daily Dosing'!H48="","",IF('Daily Dosing'!B$7="Dry",ROUND('Daily Dosing'!E48/'Daily Dosing'!B$4*'Daily Dosing'!B$9,3)&" g",IF('Daily Dosing'!B$7="Liquid",ROUND('Daily Dosing'!E48/'Daily Dosing'!B$4*'Daily Dosing'!B$8,2)&" ml","Error"))) ->  | E41: =IF('Daily Dosing'!$H48="","",IF(E$4="N/A","N/A",IF('Daily Dosing'!$B$7="Dry",ROUND(E$4*'Daily Dosing'!$E48/'Daily Dosing'!$B$4*'Daily Dosing'!$B$9,3)&" g",IF('Daily Dosing'!$B$7="Liquid",ROUND(E$4*'Daily Dosing'!$E48/'Daily Dosing'!$B$4*'Daily Dosing'!$B$8,2)&" ml","Error")))) ->  | F41: =IF('Daily Dosing'!$H48="","",IF(F$4="N/A","N/A",IF('Daily Dosing'!$B$7="Dry",ROUND(F$4*'Daily Dosing'!$E48/'Daily Dosing'!$B$4*'Daily Dosing'!$B$9,3)&" g",IF('Daily Dosing'!$B$7="Liquid",ROUND(F$4*'Daily Dosing'!$E48/'Daily Dosing'!$B$4*'Daily Dosing'!$B$8,2)&" ml","Error")))) ->  | G41: =IF('Daily Dosing'!$H48="","",IF(G$4="N/A","N/A",IF('Daily Dosing'!$B$7="Dry",ROUND(G$4*'Daily Dosing'!$E48/'Daily Dosing'!$B$4*'Daily Dosing'!$B$9,3)&" g",IF('Daily Dosing'!$B$7="Liquid",ROUND(G$4*'Daily Dosing'!$E48/'Daily Dosing'!$B$4*'Daily Dosing'!$B$8,2)&" ml","Error")))) ->  | H41: =IF('Daily Dosing'!$H48="","",IF(H$4="N/A","N/A",IF('Daily Dosing'!$B$7="Dry",ROUND(H$4*'Daily Dosing'!$E48/'Daily Dosing'!$B$4*'Daily Dosing'!$B$9,3)&" g",IF('Daily Dosing'!$B$7="Liquid",ROUND(H$4*'Daily Dosing'!$E48/'Daily Dosing'!$B$4*'Daily Dosing'!$B$8,2)&" ml","Error")))) ->  | I41: =IF('Daily Dosing'!$H48="","",IF(I$4="N/A","N/A",IF('Daily Dosing'!$B$7="Dry",ROUND(I$4*'Daily Dosing'!$E48/'Daily Dosing'!$B$4*'Daily Dosing'!$B$9,3)&" g",IF('Daily Dosing'!$B$7="Liquid",ROUND(I$4*'Daily Dosing'!$E48/'Daily Dosing'!$B$4*'Daily Dosing'!$B$8,2)&" ml","Error")))) ->  | J41: =IF('Daily Dosing'!$H48="","",IF(J$4="N/A","N/A",IF('Daily Dosing'!$B$7="Dry",ROUND(J$4*'Daily Dosing'!$E48/'Daily Dosing'!$B$4*'Daily Dosing'!$B$9,3)&" g",IF('Daily Dosing'!$B$7="Liquid",ROUND(J$4*'Daily Dosing'!$E48/'Daily Dosing'!$B$4*'Daily Dosing'!$B$8,2)&" ml","Error")))) ->  | K41: =IF('Daily Dosing'!$H48="","",IF(K$4="N/A","N/A",IF('Daily Dosing'!$B$7="Dry",ROUND(K$4*'Daily Dosing'!$E48/'Daily Dosing'!$B$4*'Daily Dosing'!$B$9,3)&" g",IF('Daily Dosing'!$B$7="Liquid",ROUND(K$4*'Daily Dosing'!$E48/'Daily Dosing'!$B$4*'Daily Dosing'!$B$8,2)&" ml","Error")))) ->  | L41: =IF('Daily Dosing'!$H48="","",IF(L$4="N/A","N/A",IF('Daily Dosing'!$B$7="Dry",ROUND(L$4*'Daily Dosing'!$E48/'Daily Dosing'!$B$4*'Daily Dosing'!$B$9,3)&" g",IF('Daily Dosing'!$B$7="Liquid",ROUND(L$4*'Daily Dosing'!$E48/'Daily Dosing'!$B$4*'Daily Dosing'!$B$8,2)&" ml","Error")))) ->  | M41: ='Daily Dosing'!R48 -> 0.0
A42: 37 | B42: 2021-11-03 | C42: ='Daily Dosing'!E49 -> 1.960 | D42: =IF('Daily Dosing'!H49="","",IF('Daily Dosing'!B$7="Dry",ROUND('Daily Dosing'!E49/'Daily Dosing'!B$4*'Daily Dosing'!B$9,3)&" g",IF('Daily Dosing'!B$7="Liquid",ROUND('Daily Dosing'!E49/'Daily Dosing'!B$4*'Daily Dosing'!B$8,2)&" ml","Error"))) ->  | E42: =IF('Daily Dosing'!$H49="","",IF(E$4="N/A","N/A",IF('Daily Dosing'!$B$7="Dry",ROUND(E$4*'Daily Dosing'!$E49/'Daily Dosing'!$B$4*'Daily Dosing'!$B$9,3)&" g",IF('Daily Dosing'!$B$7="Liquid",ROUND(E$4*'Daily Dosing'!$E49/'Daily Dosing'!$B$4*'Daily Dosing'!$B$8,2)&" ml","Error")))) ->  | F42: =IF('Daily Dosing'!$H49="","",IF(F$4="N/A","N/A",IF('Daily Dosing'!$B$7="Dry",ROUND(F$4*'Daily Dosing'!$E49/'Daily Dosing'!$B$4*'Daily Dosing'!$B$9,3)&" g",IF('Daily Dosing'!$B$7="Liquid",ROUND(F$4*'Daily Dosing'!$E49/'Daily Dosing'!$B$4*'Daily Dosing'!$B$8,2)&" ml","Error")))) ->  | G42: =IF('Daily Dosing'!$H49="","",IF(G$4="N/A","N/A",IF('Daily Dosing'!$B$7="Dry",ROUND(G$4*'Daily Dosing'!$E49/'Daily Dosing'!$B$4*'Daily Dosing'!$B$9,3)&" g",IF('Daily Dosing'!$B$7="Liquid",ROUND(G$4*'Daily Dosing'!$E49/'Daily Dosing'!$B$4*'Daily Dosing'!$B$8,2)&" ml","Error")))) ->  | H42: =IF('Daily Dosing'!$H49="","",IF(H$4="N/A","N/A",IF('Daily Dosing'!$B$7="Dry",ROUND(H$4*'Daily Dosing'!$E49/'Daily Dosing'!$B$4*'Daily Dosing'!$B$9,3)&" g",IF('Daily Dosing'!$B$7="Liquid",ROUND(H$4*'Daily Dosing'!$E49/'Daily Dosing'!$B$4*'Daily Dosing'!$B$8,2)&" ml","Error")))) ->  | I42: =IF('Daily Dosing'!$H49="","",IF(I$4="N/A","N/A",IF('Daily Dosing'!$B$7="Dry",ROUND(I$4*'Daily Dosing'!$E49/'Daily Dosing'!$B$4*'Daily Dosing'!$B$9,3)&" g",IF('Daily Dosing'!$B$7="Liquid",ROUND(I$4*'Daily Dosing'!$E49/'Daily Dosing'!$B$4*'Daily Dosing'!$B$8,2)&" ml","Error")))) ->  | J42: =IF('Daily Dosing'!$H49="","",IF(J$4="N/A","N/A",IF('Daily Dosing'!$B$7="Dry",ROUND(J$4*'Daily Dosing'!$E49/'Daily Dosing'!$B$4*'Daily Dosing'!$B$9,3)&" g",IF('Daily Dosing'!$B$7="Liquid",ROUND(J$4*'Daily Dosing'!$E49/'Daily Dosing'!$B$4*'Daily Dosing'!$B$8,2)&" ml","Error")))) ->  | K42: =IF('Daily Dosing'!$H49="","",IF(K$4="N/A","N/A",IF('Daily Dosing'!$B$7="Dry",ROUND(K$4*'Daily Dosing'!$E49/'Daily Dosing'!$B$4*'Daily Dosing'!$B$9,3)&" g",IF('Daily Dosing'!$B$7="Liquid",ROUND(K$4*'Daily Dosing'!$E49/'Daily Dosing'!$B$4*'Daily Dosing'!$B$8,2)&" ml","Error")))) ->  | L42: =IF('Daily Dosing'!$H49="","",IF(L$4="N/A","N/A",IF('Daily Dosing'!$B$7="Dry",ROUND(L$4*'Daily Dosing'!$E49/'Daily Dosing'!$B$4*'Daily Dosing'!$B$9,3)&" g",IF('Daily Dosing'!$B$7="Liquid",ROUND(L$4*'Daily Dosing'!$E49/'Daily Dosing'!$B$4*'Daily Dosing'!$B$8,2)&" ml","Error")))) ->  | M42: ='Daily Dosing'!R49 -> 0.0
A43: 38 | B43: 2021-11-04 | C43: ='Daily Dosing'!E50 -> 1.960 | D43: =IF('Daily Dosing'!H50="","",IF('Daily Dosing'!B$7="Dry",ROUND('Daily Dosing'!E50/'Daily Dosing'!B$4*'Daily Dosing'!B$9,3)&" g",IF('Daily Dosing'!B$7="Liquid",ROUND('Daily Dosing'!E50/'Daily Dosing'!B$4*'Daily Dosing'!B$8,2)&" ml","Error"))) ->  | E43: =IF('Daily Dosing'!$H50="","",IF(E$4="N/A","N/A",IF('Daily Dosing'!$B$7="Dry",ROUND(E$4*'Daily Dosing'!$E50/'Daily Dosing'!$B$4*'Daily Dosing'!$B$9,3)&" g",IF('Daily Dosing'!$B$7="Liquid",ROUND(E$4*'Daily Dosing'!$E50/'Daily Dosing'!$B$4*'Daily Dosing'!$B$8,2)&" ml","Error")))) ->  | F43: =IF('Daily Dosing'!$H50="","",IF(F$4="N/A","N/A",IF('Daily Dosing'!$B$7="Dry",ROUND(F$4*'Daily Dosing'!$E50/'Daily Dosing'!$B$4*'Daily Dosing'!$B$9,3)&" g",IF('Daily Dosing'!$B$7="Liquid",ROUND(F$4*'Daily Dosing'!$E50/'Daily Dosing'!$B$4*'Daily Dosing'!$B$8,2)&" ml","Error")))) ->  | G43: =IF('Daily Dosing'!$H50="","",IF(G$4="N/A","N/A",IF('Daily Dosing'!$B$7="Dry",ROUND(G$4*'Daily Dosing'!$E50/'Daily Dosing'!$B$4*'Daily Dosing'!$B$9,3)&" g",IF('Daily Dosing'!$B$7="Liquid",ROUND(G$4*'Daily Dosing'!$E50/'Daily Dosing'!$B$4*'Daily Dosing'!$B$8,2)&" ml","Error")))) ->  | H43: =IF('Daily Dosing'!$H50="","",IF(H$4="N/A","N/A",IF('Daily Dosing'!$B$7="Dry",ROUND(H$4*'Daily Dosing'!$E50/'Daily Dosing'!$B$4*'Daily Dosing'!$B$9,3)&" g",IF('Daily Dosing'!$B$7="Liquid",ROUND(H$4*'Daily Dosing'!$E50/'Daily Dosing'!$B$4*'Daily Dosing'!$B$8,2)&" ml","Error")))) ->  | I43: =IF('Daily Dosing'!$H50="","",IF(I$4="N/A","N/A",IF('Daily Dosing'!$B$7="Dry",ROUND(I$4*'Daily Dosing'!$E50/'Daily Dosing'!$B$4*'Daily Dosing'!$B$9,3)&" g",IF('Daily Dosing'!$B$7="Liquid",ROUND(I$4*'Daily Dosing'!$E50/'Daily Dosing'!$B$4*'Daily Dosing'!$B$8,2)&" ml","Error")))) ->  | J43: =IF('Daily Dosing'!$H50="","",IF(J$4="N/A","N/A",IF('Daily Dosing'!$B$7="Dry",ROUND(J$4*'Daily Dosing'!$E50/'Daily Dosing'!$B$4*'Daily Dosing'!$B$9,3)&" g",IF('Daily Dosing'!$B$7="Liquid",ROUND(J$4*'Daily Dosing'!$E50/'Daily Dosing'!$B$4*'Daily Dosing'!$B$8,2)&" ml","Error")))) ->  | K43: =IF('Daily Dosing'!$H50="","",IF(K$4="N/A","N/A",IF('Daily Dosing'!$B$7="Dry",ROUND(K$4*'Daily Dosing'!$E50/'Daily Dosing'!$B$4*'Daily Dosing'!$B$9,3)&" g",IF('Daily Dosing'!$B$7="Liquid",ROUND(K$4*'Daily Dosing'!$E50/'Daily Dosing'!$B$4*'Daily Dosing'!$B$8,2)&" ml","Error")))) ->  | L43: =IF('Daily Dosing'!$H50="","",IF(L$4="N/A","N/A",IF('Daily Dosing'!$B$7="Dry",ROUND(L$4*'Daily Dosing'!$E50/'Daily Dosing'!$B$4*'Daily Dosing'!$B$9,3)&" g",IF('Daily Dosing'!$B$7="Liquid",ROUND(L$4*'Daily Dosing'!$E50/'Daily Dosing'!$B$4*'Daily Dosing'!$B$8,2)&" ml","Error")))) ->  | M43: ='Daily Dosing'!R50 -> 0.0
A44: 39 | B44: 2021-11-05 | C44: ='Daily Dosing'!E51 -> 1.960 | D44: =IF('Daily Dosing'!H51="","",IF('Daily Dosing'!B$7="Dry",ROUND('Daily Dosing'!E51/'Daily Dosing'!B$4*'Daily Dosing'!B$9,3)&" g",IF('Daily Dosing'!B$7="Liquid",ROUND('Daily Dosing'!E51/'Daily Dosing'!B$4*'Daily Dosing'!B$8,2)&" ml","Error"))) ->  | E44: =IF('Daily Dosing'!$H51="","",IF(E$4="N/A","N/A",IF('Daily Dosing'!$B$7="Dry",ROUND(E$4*'Daily Dosing'!$E51/'Daily Dosing'!$B$4*'Daily Dosing'!$B$9,3)&" g",IF('Daily Dosing'!$B$7="Liquid",ROUND(E$4*'Daily Dosing'!$E51/'Daily Dosing'!$B$4*'Daily Dosing'!$B$8,2)&" ml","Error")))) ->  | F44: =IF('Daily Dosing'!$H51="","",IF(F$4="N/A","N/A",IF('Daily Dosing'!$B$7="Dry",ROUND(F$4*'Daily Dosing'!$E51/'Daily Dosing'!$B$4*'Daily Dosing'!$B$9,3)&" g",IF('Daily Dosing'!$B$7="Liquid",ROUND(F$4*'Daily Dosing'!$E51/'Daily Dosing'!$B$4*'Daily Dosing'!$B$8,2)&" ml","Error")))) ->  | G44: =IF('Daily Dosing'!$H51="","",IF(G$4="N/A","N/A",IF('Daily Dosing'!$B$7="Dry",ROUND(G$4*'Daily Dosing'!$E51/'Daily Dosing'!$B$4*'Daily Dosing'!$B$9,3)&" g",IF('Daily Dosing'!$B$7="Liquid",ROUND(G$4*'Daily Dosing'!$E51/'Daily Dosing'!$B$4*'Daily Dosing'!$B$8,2)&" ml","Error")))) ->  | H44: =IF('Daily Dosing'!$H51="","",IF(H$4="N/A","N/A",IF('Daily Dosing'!$B$7="Dry",ROUND(H$4*'Daily Dosing'!$E51/'Daily Dosing'!$B$4*'Daily Dosing'!$B$9,3)&" g",IF('Daily Dosing'!$B$7="Liquid",ROUND(H$4*'Daily Dosing'!$E51/'Daily Dosing'!$B$4*'Daily Dosing'!$B$8,2)&" ml","Error")))) ->  | I44: =IF('Daily Dosing'!$H51="","",IF(I$4="N/A","N/A",IF('Daily Dosing'!$B$7="Dry",ROUND(I$4*'Daily Dosing'!$E51/'Daily Dosing'!$B$4*'Daily Dosing'!$B$9,3)&" g",IF('Daily Dosing'!$B$7="Liquid",ROUND(I$4*'Daily Dosing'!$E51/'Daily Dosing'!$B$4*'Daily Dosing'!$B$8,2)&" ml","Error")))) ->  | J44: =IF('Daily Dosing'!$H51="","",IF(J$4="N/A","N/A",IF('Daily Dosing'!$B$7="Dry",ROUND(J$4*'Daily Dosing'!$E51/'Daily Dosing'!$B$4*'Daily Dosing'!$B$9,3)&" g",IF('Daily Dosing'!$B$7="Liquid",ROUND(J$4*'Daily Dosing'!$E51/'Daily Dosing'!$B$4*'Daily Dosing'!$B$8,2)&" ml","Error")))) ->  | K44: =IF('Daily Dosing'!$H51="","",IF(K$4="N/A","N/A",IF('Daily Dosing'!$B$7="Dry",ROUND(K$4*'Daily Dosing'!$E51/'Daily Dosing'!$B$4*'Daily Dosing'!$B$9,3)&" g",IF('Daily Dosing'!$B$7="Liquid",ROUND(K$4*'Daily Dosing'!$E51/'Daily Dosing'!$B$4*'Daily Dosing'!$B$8,2)&" ml","Error")))) ->  | L44: =IF('Daily Dosing'!$H51="","",IF(L$4="N/A","N/A",IF('Daily Dosing'!$B$7="Dry",ROUND(L$4*'Daily Dosing'!$E51/'Daily Dosing'!$B$4*'Daily Dosing'!$B$9,3)&" g",IF('Daily Dosing'!$B$7="Liquid",ROUND(L$4*'Daily Dosing'!$E51/'Daily Dosing'!$B$4*'Daily Dosing'!$B$8,2)&" ml","Error")))) ->  | M44: ='Daily Dosing'!R51 -> 0.0
A45: 40 | B45: 2021-11-06 | C45: ='Daily Dosing'!E52 -> 1.960 | D45: =IF('Daily Dosing'!H52="","",IF('Daily Dosing'!B$7="Dry",ROUND('Daily Dosing'!E52/'Daily Dosing'!B$4*'Daily Dosing'!B$9,3)&" g",IF('Daily Dosing'!B$7="Liquid",ROUND('Daily Dosing'!E52/'Daily Dosing'!B$4*'Daily Dosing'!B$8,2)&" ml","Error"))) ->  | E45: =IF('Daily Dosing'!$H52="","",IF(E$4="N/A","N/A",IF('Daily Dosing'!$B$7="Dry",ROUND(E$4*'Daily Dosing'!$E52/'Daily Dosing'!$B$4*'Daily Dosing'!$B$9,3)&" g",IF('Daily Dosing'!$B$7="Liquid",ROUND(E$4*'Daily Dosing'!$E52/'Daily Dosing'!$B$4*'Daily Dosing'!$B$8,2)&" ml","Error")))) ->  | F45: =IF('Daily Dosing'!$H52="","",IF(F$4="N/A","N/A",IF('Daily Dosing'!$B$7="Dry",ROUND(F$4*'Daily Dosing'!$E52/'Daily Dosing'!$B$4*'Daily Dosing'!$B$9,3)&" g",IF('Daily Dosing'!$B$7="Liquid",ROUND(F$4*'Daily Dosing'!$E52/'Daily Dosing'!$B$4*'Daily Dosing'!$B$8,2)&" ml","Error")))) ->  | G45: =IF('Daily Dosing'!$H52="","",IF(G$4="N/A","N/A",IF('Daily Dosing'!$B$7="Dry",ROUND(G$4*'Daily Dosing'!$E52/'Daily Dosing'!$B$4*'Daily Dosing'!$B$9,3)&" g",IF('Daily Dosing'!$B$7="Liquid",ROUND(G$4*'Daily Dosing'!$E52/'Daily Dosing'!$B$4*'Daily Dosing'!$B$8,2)&" ml","Error")))) ->  | H45: =IF('Daily Dosing'!$H52="","",IF(H$4="N/A","N/A",IF('Daily Dosing'!$B$7="Dry",ROUND(H$4*'Daily Dosing'!$E52/'Daily Dosing'!$B$4*'Daily Dosing'!$B$9,3)&" g",IF('Daily Dosing'!$B$7="Liquid",ROUND(H$4*'Daily Dosing'!$E52/'Daily Dosing'!$B$4*'Daily Dosing'!$B$8,2)&" ml","Error")))) ->  | I45: =IF('Daily Dosing'!$H52="","",IF(I$4="N/A","N/A",IF('Daily Dosing'!$B$7="Dry",ROUND(I$4*'Daily Dosing'!$E52/'Daily Dosing'!$B$4*'Daily Dosing'!$B$9,3)&" g",IF('Daily Dosing'!$B$7="Liquid",ROUND(I$4*'Daily Dosing'!$E52/'Daily Dosing'!$B$4*'Daily Dosing'!$B$8,2)&" ml","Error")))) ->  | J45: =IF('Daily Dosing'!$H52="","",IF(J$4="N/A","N/A",IF('Daily Dosing'!$B$7="Dry",ROUND(J$4*'Daily Dosing'!$E52/'Daily Dosing'!$B$4*'Daily Dosing'!$B$9,3)&" g",IF('Daily Dosing'!$B$7="Liquid",ROUND(J$4*'Daily Dosing'!$E52/'Daily Dosing'!$B$4*'Daily Dosing'!$B$8,2)&" ml","Error")))) ->  | K45: =IF('Daily Dosing'!$H52="","",IF(K$4="N/A","N/A",IF('Daily Dosing'!$B$7="Dry",ROUND(K$4*'Daily Dosing'!$E52/'Daily Dosing'!$B$4*'Daily Dosing'!$B$9,3)&" g",IF('Daily Dosing'!$B$7="Liquid",ROUND(K$4*'Daily Dosing'!$E52/'Daily Dosing'!$B$4*'Daily Dosing'!$B$8,2)&" ml","Error")))) ->  | L45: =IF('Daily Dosing'!$H52="","",IF(L$4="N/A","N/A",IF('Daily Dosing'!$B$7="Dry",ROUND(L$4*'Daily Dosing'!$E52/'Daily Dosing'!$B$4*'Daily Dosing'!$B$9,3)&" g",IF('Daily Dosing'!$B$7="Liquid",ROUND(L$4*'Daily Dosing'!$E52/'Daily Dosing'!$B$4*'Daily Dosing'!$B$8,2)&" ml","Error")))) ->  | M45: ='Daily Dosing'!R52 -> 0.0
A46: 41 | B46: 2021-11-07 | C46: ='Daily Dosing'!E53 -> 1.960 | D46: =IF('Daily Dosing'!H53="","",IF('Daily Dosing'!B$7="Dry",ROUND('Daily Dosing'!E53/'Daily Dosing'!B$4*'Daily Dosing'!B$9,3)&" g",IF('Daily Dosing'!B$7="Liquid",ROUND('Daily Dosing'!E53/'Daily Dosing'!B$4*'Daily Dosing'!B$8,2)&" ml","Error"))) ->  | E46: =IF('Daily Dosing'!$H53="","",IF(E$4="N/A","N/A",IF('Daily Dosing'!$B$7="Dry",ROUND(E$4*'Daily Dosing'!$E53/'Daily Dosing'!$B$4*'Daily Dosing'!$B$9,3)&" g",IF('Daily Dosing'!$B$7="Liquid",ROUND(E$4*'Daily Dosing'!$E53/'Daily Dosing'!$B$4*'Daily Dosing'!$B$8,2)&" ml","Error")))) ->  | F46: =IF('Daily Dosing'!$H53="","",IF(F$4="N/A","N/A",IF('Daily Dosing'!$B$7="Dry",ROUND(F$4*'Daily Dosing'!$E53/'Daily Dosing'!$B$4*'Daily Dosing'!$B$9,3)&" g",IF('Daily Dosing'!$B$7="Liquid",ROUND(F$4*'Daily Dosing'!$E53/'Daily Dosing'!$B$4*'Daily Dosing'!$B$8,2)&" ml","Error")))) ->  | G46: =IF('Daily Dosing'!$H53="","",IF(G$4="N/A","N/A",IF('Daily Dosing'!$B$7="Dry",ROUND(G$4*'Daily Dosing'!$E53/'Daily Dosing'!$B$4*'Daily Dosing'!$B$9,3)&" g",IF('Daily Dosing'!$B$7="Liquid",ROUND(G$4*'Daily Dosing'!$E53/'Daily Dosing'!$B$4*'Daily Dosing'!$B$8,2)&" ml","Error")))) ->  | H46: =IF('Daily Dosing'!$H53="","",IF(H$4="N/A","N/A",IF('Daily Dosing'!$B$7="Dry",ROUND(H$4*'Daily Dosing'!$E53/'Daily Dosing'!$B$4*'Daily Dosing'!$B$9,3)&" g",IF('Daily Dosing'!$B$7="Liquid",ROUND(H$4*'Daily Dosing'!$E53/'Daily Dosing'!$B$4*'Daily Dosing'!$B$8,2)&" ml","Error")))) ->  | I46: =IF('Daily Dosing'!$H53="","",IF(I$4="N/A","N/A",IF('Daily Dosing'!$B$7="Dry",ROUND(I$4*'Daily Dosing'!$E53/'Daily Dosing'!$B$4*'Daily Dosing'!$B$9,3)&" g",IF('Daily Dosing'!$B$7="Liquid",ROUND(I$4*'Daily Dosing'!$E53/'Daily Dosing'!$B$4*'Daily Dosing'!$B$8,2)&" ml","Error")))) ->  | J46: =IF('Daily Dosing'!$H53="","",IF(J$4="N/A","N/A",IF('Daily Dosing'!$B$7="Dry",ROUND(J$4*'Daily Dosing'!$E53/'Daily Dosing'!$B$4*'Daily Dosing'!$B$9,3)&" g",IF('Daily Dosing'!$B$7="Liquid",ROUND(J$4*'Daily Dosing'!$E53/'Daily Dosing'!$B$4*'Daily Dosing'!$B$8,2)&" ml","Error")))) ->  | K46: =IF('Daily Dosing'!$H53="","",IF(K$4="N/A","N/A",IF('Daily Dosing'!$B$7="Dry",ROUND(K$4*'Daily Dosing'!$E53/'Daily Dosing'!$B$4*'Daily Dosing'!$B$9,3)&" g",IF('Daily Dosing'!$B$7="Liquid",ROUND(K$4*'Daily Dosing'!$E53/'Daily Dosing'!$B$4*'Daily Dosing'!$B$8,2)&" ml","Error")))) ->  | L46: =IF('Daily Dosing'!$H53="","",IF(L$4="N/A","N/A",IF('Daily Dosing'!$B$7="Dry",ROUND(L$4*'Daily Dosing'!$E53/'Daily Dosing'!$B$4*'Daily Dosing'!$B$9,3)&" g",IF('Daily Dosing'!$B$7="Liquid",ROUND(L$4*'Daily Dosing'!$E53/'Daily Dosing'!$B$4*'Daily Dosing'!$B$8,2)&" ml","Error")))) ->  | M46: ='Daily Dosing'!R53 -> 0.0
A47: 42 | B47: 2021-11-08 | C47: ='Daily Dosing'!E54 -> 1.960 | D47: =IF('Daily Dosing'!H54="","",IF('Daily Dosing'!B$7="Dry",ROUND('Daily Dosing'!E54/'Daily Dosing'!B$4*'Daily Dosing'!B$9,3)&" g",IF('Daily Dosing'!B$7="Liquid",ROUND('Daily Dosing'!E54/'Daily Dosing'!B$4*'Daily Dosing'!B$8,2)&" ml","Error"))) ->  | E47: =IF('Daily Dosing'!$H54="","",IF(E$4="N/A","N/A",IF('Daily Dosing'!$B$7="Dry",ROUND(E$4*'Daily Dosing'!$E54/'Daily Dosing'!$B$4*'Daily Dosing'!$B$9,3)&" g",IF('Daily Dosing'!$B$7="Liquid",ROUND(E$4*'Daily Dosing'!$E54/'Daily Dosing'!$B$4*'Daily Dosing'!$B$8,2)&" ml","Error")))) ->  | F47: =IF('Daily Dosing'!$H54="","",IF(F$4="N/A","N/A",IF('Daily Dosing'!$B$7="Dry",ROUND(F$4*'Daily Dosing'!$E54/'Daily Dosing'!$B$4*'Daily Dosing'!$B$9,3)&" g",IF('Daily Dosing'!$B$7="Liquid",ROUND(F$4*'Daily Dosing'!$E54/'Daily Dosing'!$B$4*'Daily Dosing'!$B$8,2)&" ml","Error")))) ->  | G47: =IF('Daily Dosing'!$H54="","",IF(G$4="N/A","N/A",IF('Daily Dosing'!$B$7="Dry",ROUND(G$4*'Daily Dosing'!$E54/'Daily Dosing'!$B$4*'Daily Dosing'!$B$9,3)&" g",IF('Daily Dosing'!$B$7="Liquid",ROUND(G$4*'Daily Dosing'!$E54/'Daily Dosing'!$B$4*'Daily Dosing'!$B$8,2)&" ml","Error")))) ->  | H47: =IF('Daily Dosing'!$H54="","",IF(H$4="N/A","N/A",IF('Daily Dosing'!$B$7="Dry",ROUND(H$4*'Daily Dosing'!$E54/'Daily Dosing'!$B$4*'Daily Dosing'!$B$9,3)&" g",IF('Daily Dosing'!$B$7="Liquid",ROUND(H$4*'Daily Dosing'!$E54/'Daily Dosing'!$B$4*'Daily Dosing'!$B$8,2)&" ml","Error")))) ->  | I47: =IF('Daily Dosing'!$H54="","",IF(I$4="N/A","N/A",IF('Daily Dosing'!$B$7="Dry",ROUND(I$4*'Daily Dosing'!$E54/'Daily Dosing'!$B$4*'Daily Dosing'!$B$9,3)&" g",IF('Daily Dosing'!$B$7="Liquid",ROUND(I$4*'Daily Dosing'!$E54/'Daily Dosing'!$B$4*'Daily Dosing'!$B$8,2)&" ml","Error")))) ->  | J47: =IF('Daily Dosing'!$H54="","",IF(J$4="N/A","N/A",IF('Daily Dosing'!$B$7="Dry",ROUND(J$4*'Daily Dosing'!$E54/'Daily Dosing'!$B$4*'Daily Dosing'!$B$9,3)&" g",IF('Daily Dosing'!$B$7="Liquid",ROUND(J$4*'Daily Dosing'!$E54/'Daily Dosing'!$B$4*'Daily Dosing'!$B$8,2)&" ml","Error")))) ->  | K47: =IF('Daily Dosing'!$H54="","",IF(K$4="N/A","N/A",IF('Daily Dosing'!$B$7="Dry",ROUND(K$4*'Daily Dosing'!$E54/'Daily Dosing'!$B$4*'Daily Dosing'!$B$9,3)&" g",IF('Daily Dosing'!$B$7="Liquid",ROUND(K$4*'Daily Dosing'!$E54/'Daily Dosing'!$B$4*'Daily Dosing'!$B$8,2)&" ml","Error")))) ->  | L47: =IF('Daily Dosing'!$H54="","",IF(L$4="N/A","N/A",IF('Daily Dosing'!$B$7="Dry",ROUND(L$4*'Daily Dosing'!$E54/'Daily Dosing'!$B$4*'Daily Dosing'!$B$9,3)&" g",IF('Daily Dosing'!$B$7="Liquid",ROUND(L$4*'Daily Dosing'!$E54/'Daily Dosing'!$B$4*'Daily Dosing'!$B$8,2)&" ml","Error")))) ->  | M47: ='Daily Dosing'!R54 -> 0.0
A48: 43 | B48: 2021-11-09 | C48: ='Daily Dosing'!E55 -> 1.960 | D48: =IF('Daily Dosing'!H55="","",IF('Daily Dosing'!B$7="Dry",ROUND('Daily Dosing'!E55/'Daily Dosing'!B$4*'Daily Dosing'!B$9,3)&" g",IF('Daily Dosing'!B$7="Liquid",ROUND('Daily Dosing'!E55/'Daily Dosing'!B$4*'Daily Dosing'!B$8,2)&" ml","Error"))) ->  | E48: =IF('Daily Dosing'!$H55="","",IF(E$4="N/A","N/A",IF('Daily Dosing'!$B$7="Dry",ROUND(E$4*'Daily Dosing'!$E55/'Daily Dosing'!$B$4*'Daily Dosing'!$B$9,3)&" g",IF('Daily Dosing'!$B$7="Liquid",ROUND(E$4*'Daily Dosing'!$E55/'Daily Dosing'!$B$4*'Daily Dosing'!$B$8,2)&" ml","Error")))) ->  | F48: =IF('Daily Dosing'!$H55="","",IF(F$4="N/A","N/A",IF('Daily Dosing'!$B$7="Dry",ROUND(F$4*'Daily Dosing'!$E55/'Daily Dosing'!$B$4*'Daily Dosing'!$B$9,3)&" g",IF('Daily Dosing'!$B$7="Liquid",ROUND(F$4*'Daily Dosing'!$E55/'Daily Dosing'!$B$4*'Daily Dosing'!$B$8,2)&" ml","Error")))) ->  | G48: =IF('Daily Dosing'!$H55="","",IF(G$4="N/A","N/A",IF('Daily Dosing'!$B$7="Dry",ROUND(G$4*'Daily Dosing'!$E55/'Daily Dosing'!$B$4*'Daily Dosing'!$B$9,3)&" g",IF('Daily Dosing'!$B$7="Liquid",ROUND(G$4*'Daily Dosing'!$E55/'Daily Dosing'!$B$4*'Daily Dosing'!$B$8,2)&" ml","Error")))) ->  | H48: =IF('Daily Dosing'!$H55="","",IF(H$4="N/A","N/A",IF('Daily Dosing'!$B$7="Dry",ROUND(H$4*'Daily Dosing'!$E55/'Daily Dosing'!$B$4*'Daily Dosing'!$B$9,3)&" g",IF('Daily Dosing'!$B$7="Liquid",ROUND(H$4*'Daily Dosing'!$E55/'Daily Dosing'!$B$4*'Daily Dosing'!$B$8,2)&" ml","Error")))) ->  | I48: =IF('Daily Dosing'!$H55="","",IF(I$4="N/A","N/A",IF('Daily Dosing'!$B$7="Dry",ROUND(I$4*'Daily Dosing'!$E55/'Daily Dosing'!$B$4*'Daily Dosing'!$B$9,3)&" g",IF('Daily Dosing'!$B$7="Liquid",ROUND(I$4*'Daily Dosing'!$E55/'Daily Dosing'!$B$4*'Daily Dosing'!$B$8,2)&" ml","Error")))) ->  | J48: =IF('Daily Dosing'!$H55="","",IF(J$4="N/A","N/A",IF('Daily Dosing'!$B$7="Dry",ROUND(J$4*'Daily Dosing'!$E55/'Daily Dosing'!$B$4*'Daily Dosing'!$B$9,3)&" g",IF('Daily Dosing'!$B$7="Liquid",ROUND(J$4*'Daily Dosing'!$E55/'Daily Dosing'!$B$4*'Daily Dosing'!$B$8,2)&" ml","Error")))) ->  | K48: =IF('Daily Dosing'!$H55="","",IF(K$4="N/A","N/A",IF('Daily Dosing'!$B$7="Dry",ROUND(K$4*'Daily Dosing'!$E55/'Daily Dosing'!$B$4*'Daily Dosing'!$B$9,3)&" g",IF('Daily Dosing'!$B$7="Liquid",ROUND(K$4*'Daily Dosing'!$E55/'Daily Dosing'!$B$4*'Daily Dosing'!$B$8,2)&" ml","Error")))) ->  | L48: =IF('Daily Dosing'!$H55="","",IF(L$4="N/A","N/A",IF('Daily Dosing'!$B$7="Dry",ROUND(L$4*'Daily Dosing'!$E55/'Daily Dosing'!$B$4*'Daily Dosing'!$B$9,3)&" g",IF('Daily Dosing'!$B$7="Liquid",ROUND(L$4*'Daily Dosing'!$E55/'Daily Dosing'!$B$4*'Daily Dosing'!$B$8,2)&" ml","Error")))) ->  | M48: ='Daily Dosing'!R55 -> 0.0
A49: 44 | B49: 2021-11-10 | C49: ='Daily Dosing'!E56 -> 1.960 | D49: =IF('Daily Dosing'!H56="","",IF('Daily Dosing'!B$7="Dry",ROUND('Daily Dosing'!E56/'Daily Dosing'!B$4*'Daily Dosing'!B$9,3)&" g",IF('Daily Dosing'!B$7="Liquid",ROUND('Daily Dosing'!E56/'Daily Dosing'!B$4*'Daily Dosing'!B$8,2)&" ml","Error"))) ->  | E49: =IF('Daily Dosing'!$H56="","",IF(E$4="N/A","N/A",IF('Daily Dosing'!$B$7="Dry",ROUND(E$4*'Daily Dosing'!$E56/'Daily Dosing'!$B$4*'Daily Dosing'!$B$9,3)&" g",IF('Daily Dosing'!$B$7="Liquid",ROUND(E$4*'Daily Dosing'!$E56/'Daily Dosing'!$B$4*'Daily Dosing'!$B$8,2)&" ml","Error")))) ->  | F49: =IF('Daily Dosing'!$H56="","",IF(F$4="N/A","N/A",IF('Daily Dosing'!$B$7="Dry",ROUND(F$4*'Daily Dosing'!$E56/'Daily Dosing'!$B$4*'Daily Dosing'!$B$9,3)&" g",IF('Daily Dosing'!$B$7="Liquid",ROUND(F$4*'Daily Dosing'!$E56/'Daily Dosing'!$B$4*'Daily Dosing'!$B$8,2)&" ml","Error")))) ->  | G49: =IF('Daily Dosing'!$H56="","",IF(G$4="N/A","N/A",IF('Daily Dosing'!$B$7="Dry",ROUND(G$4*'Daily Dosing'!$E56/'Daily Dosing'!$B$4*'Daily Dosing'!$B$9,3)&" g",IF('Daily Dosing'!$B$7="Liquid",ROUND(G$4*'Daily Dosing'!$E56/'Daily Dosing'!$B$4*'Daily Dosing'!$B$8,2)&" ml","Error")))) ->  | H49: =IF('Daily Dosing'!$H56="","",IF(H$4="N/A","N/A",IF('Daily Dosing'!$B$7="Dry",ROUND(H$4*'Daily Dosing'!$E56/'Daily Dosing'!$B$4*'Daily Dosing'!$B$9,3)&" g",IF('Daily Dosing'!$B$7="Liquid",ROUND(H$4*'Daily Dosing'!$E56/'Daily Dosing'!$B$4*'Daily Dosing'!$B$8,2)&" ml","Error")))) ->  | I49: =IF('Daily Dosing'!$H56="","",IF(I$4="N/A","N/A",IF('Daily Dosing'!$B$7="Dry",ROUND(I$4*'Daily Dosing'!$E56/'Daily Dosing'!$B$4*'Daily Dosing'!$B$9,3)&" g",IF('Daily Dosing'!$B$7="Liquid",ROUND(I$4*'Daily Dosing'!$E56/'Daily Dosing'!$B$4*'Daily Dosing'!$B$8,2)&" ml","Error")))) ->  | J49: =IF('Daily Dosing'!$H56="","",IF(J$4="N/A","N/A",IF('Daily Dosing'!$B$7="Dry",ROUND(J$4*'Daily Dosing'!$E56/'Daily Dosing'!$B$4*'Daily Dosing'!$B$9,3)&" g",IF('Daily Dosing'!$B$7="Liquid",ROUND(J$4*'Daily Dosing'!$E56/'Daily Dosing'!$B$4*'Daily Dosing'!$B$8,2)&" ml","Error")))) ->  | K49: =IF('Daily Dosing'!$H56="","",IF(K$4="N/A","N/A",IF('Daily Dosing'!$B$7="Dry",ROUND(K$4*'Daily Dosing'!$E56/'Daily Dosing'!$B$4*'Daily Dosing'!$B$9,3)&" g",IF('Daily Dosing'!$B$7="Liquid",ROUND(K$4*'Daily Dosing'!$E56/'Daily Dosing'!$B$4*'Daily Dosing'!$B$8,2)&" ml","Error")))) ->  | L49: =IF('Daily Dosing'!$H56="","",IF(L$4="N/A","N/A",IF('Daily Dosing'!$B$7="Dry",ROUND(L$4*'Daily Dosing'!$E56/'Daily Dosing'!$B$4*'Daily Dosing'!$B$9,3)&" g",IF('Daily Dosing'!$B$7="Liquid",ROUND(L$4*'Daily Dosing'!$E56/'Daily Dosing'!$B$4*'Daily Dosing'!$B$8,2)&" ml","Error")))) ->  | M49: ='Daily Dosing'!R56 -> 0.0
A50: 45 | B50: 2021-11-11 | C50: ='Daily Dosing'!E57 -> 1.960 | D50: =IF('Daily Dosing'!H57="","",IF('Daily Dosing'!B$7="Dry",ROUND('Daily Dosing'!E57/'Daily Dosing'!B$4*'Daily Dosing'!B$9,3)&" g",IF('Daily Dosing'!B$7="Liquid",ROUND('Daily Dosing'!E57/'Daily Dosing'!B$4*'Daily Dosing'!B$8,2)&" ml","Error"))) ->  | E50: =IF('Daily Dosing'!$H57="","",IF(E$4="N/A","N/A",IF('Daily Dosing'!$B$7="Dry",ROUND(E$4*'Daily Dosing'!$E57/'Daily Dosing'!$B$4*'Daily Dosing'!$B$9,3)&" g",IF('Daily Dosing'!$B$7="Liquid",ROUND(E$4*'Daily Dosing'!$E57/'Daily Dosing'!$B$4*'Daily Dosing'!$B$8,2)&" ml","Error")))) ->  | F50: =IF('Daily Dosing'!$H57="","",IF(F$4="N/A","N/A",IF('Daily Dosing'!$B$7="Dry",ROUND(F$4*'Daily Dosing'!$E57/'Daily Dosing'!$B$4*'Daily Dosing'!$B$9,3)&" g",IF('Daily Dosing'!$B$7="Liquid",ROUND(F$4*'Daily Dosing'!$E57/'Daily Dosing'!$B$4*'Daily Dosing'!$B$8,2)&" ml","Error")))) ->  | G50: =IF('Daily Dosing'!$H57="","",IF(G$4="N/A","N/A",IF('Daily Dosing'!$B$7="Dry",ROUND(G$4*'Daily Dosing'!$E57/'Daily Dosing'!$B$4*'Daily Dosing'!$B$9,3)&" g",IF('Daily Dosing'!$B$7="Liquid",ROUND(G$4*'Daily Dosing'!$E57/'Daily Dosing'!$B$4*'Daily Dosing'!$B$8,2)&" ml","Error")))) ->  | H50: =IF('Daily Dosing'!$H57="","",IF(H$4="N/A","N/A",IF('Daily Dosing'!$B$7="Dry",ROUND(H$4*'Daily Dosing'!$E57/'Daily Dosing'!$B$4*'Daily Dosing'!$B$9,3)&" g",IF('Daily Dosing'!$B$7="Liquid",ROUND(H$4*'Daily Dosing'!$E57/'Daily Dosing'!$B$4*'Daily Dosing'!$B$8,2)&" ml","Error")))) ->  | I50: =IF('Daily Dosing'!$H57="","",IF(I$4="N/A","N/A",IF('Daily Dosing'!$B$7="Dry",ROUND(I$4*'Daily Dosing'!$E57/'Daily Dosing'!$B$4*'Daily Dosing'!$B$9,3)&" g",IF('Daily Dosing'!$B$7="Liquid",ROUND(I$4*'Daily Dosing'!$E57/'Daily Dosing'!$B$4*'Daily Dosing'!$B$8,2)&" ml","Error")))) ->  | J50: =IF('Daily Dosing'!$H57="","",IF(J$4="N/A","N/A",IF('Daily Dosing'!$B$7="Dry",ROUND(J$4*'Daily Dosing'!$E57/'Daily Dosing'!$B$4*'Daily Dosing'!$B$9,3)&" g",IF('Daily Dosing'!$B$7="Liquid",ROUND(J$4*'Daily Dosing'!$E57/'Daily Dosing'!$B$4*'Daily Dosing'!$B$8,2)&" ml","Error")))) ->  | K50: =IF('Daily Dosing'!$H57="","",IF(K$4="N/A","N/A",IF('Daily Dosing'!$B$7="Dry",ROUND(K$4*'Daily Dosing'!$E57/'Daily Dosing'!$B$4*'Daily Dosing'!$B$9,3)&" g",IF('Daily Dosing'!$B$7="Liquid",ROUND(K$4*'Daily Dosing'!$E57/'Daily Dosing'!$B$4*'Daily Dosing'!$B$8,2)&" ml","Error")))) ->  | L50: =IF('Daily Dosing'!$H57="","",IF(L$4="N/A","N/A",IF('Daily Dosing'!$B$7="Dry",ROUND(L$4*'Daily Dosing'!$E57/'Daily Dosing'!$B$4*'Daily Dosing'!$B$9,3)&" g",IF('Daily Dosing'!$B$7="Liquid",ROUND(L$4*'Daily Dosing'!$E57/'Daily Dosing'!$B$4*'Daily Dosing'!$B$8,2)&" ml","Error")))) ->  | M50: ='Daily Dosing'!R57 -> 0.0
A51: 46 | B51: 2021-11-12 | C51: ='Daily Dosing'!E58 -> 1.960 | D51: =IF('Daily Dosing'!H58="","",IF('Daily Dosing'!B$7="Dry",ROUND('Daily Dosing'!E58/'Daily Dosing'!B$4*'Daily Dosing'!B$9,3)&" g",IF('Daily Dosing'!B$7="Liquid",ROUND('Daily Dosing'!E58/'Daily Dosing'!B$4*'Daily Dosing'!B$8,2)&" ml","Error"))) ->  | E51: =IF('Daily Dosing'!$H58="","",IF(E$4="N/A","N/A",IF('Daily Dosing'!$B$7="Dry",ROUND(E$4*'Daily Dosing'!$E58/'Daily Dosing'!$B$4*'Daily Dosing'!$B$9,3)&" g",IF('Daily Dosing'!$B$7="Liquid",ROUND(E$4*'Daily Dosing'!$E58/'Daily Dosing'!$B$4*'Daily Dosing'!$B$8,2)&" ml","Error")))) ->  | F51: =IF('Daily Dosing'!$H58="","",IF(F$4="N/A","N/A",IF('Daily Dosing'!$B$7="Dry",ROUND(F$4*'Daily Dosing'!$E58/'Daily Dosing'!$B$4*'Daily Dosing'!$B$9,3)&" g",IF('Daily Dosing'!$B$7="Liquid",ROUND(F$4*'Daily Dosing'!$E58/'Daily Dosing'!$B$4*'Daily Dosing'!$B$8,2)&" ml","Error")))) ->  | G51: =IF('Daily Dosing'!$H58="","",IF(G$4="N/A","N/A",IF('Daily Dosing'!$B$7="Dry",ROUND(G$4*'Daily Dosing'!$E58/'Daily Dosing'!$B$4*'Daily Dosing'!$B$9,3)&" g",IF('Daily Dosing'!$B$7="Liquid",ROUND(G$4*'Daily Dosing'!$E58/'Daily Dosing'!$B$4*'Daily Dosing'!$B$8,2)&" ml","Error")))) ->  | H51: =IF('Daily Dosing'!$H58="","",IF(H$4="N/A","N/A",IF('Daily Dosing'!$B$7="Dry",ROUND(H$4*'Daily Dosing'!$E58/'Daily Dosing'!$B$4*'Daily Dosing'!$B$9,3)&" g",IF('Daily Dosing'!$B$7="Liquid",ROUND(H$4*'Daily Dosing'!$E58/'Daily Dosing'!$B$4*'Daily Dosing'!$B$8,2)&" ml","Error")))) ->  | I51: =IF('Daily Dosing'!$H58="","",IF(I$4="N/A","N/A",IF('Daily Dosing'!$B$7="Dry",ROUND(I$4*'Daily Dosing'!$E58/'Daily Dosing'!$B$4*'Daily Dosing'!$B$9,3)&" g",IF('Daily Dosing'!$B$7="Liquid",ROUND(I$4*'Daily Dosing'!$E58/'Daily Dosing'!$B$4*'Daily Dosing'!$B$8,2)&" ml","Error")))) ->  | J51: =IF('Daily Dosing'!$H58="","",IF(J$4="N/A","N/A",IF('Daily Dosing'!$B$7="Dry",ROUND(J$4*'Daily Dosing'!$E58/'Daily Dosing'!$B$4*'Daily Dosing'!$B$9,3)&" g",IF('Daily Dosing'!$B$7="Liquid",ROUND(J$4*'Daily Dosing'!$E58/'Daily Dosing'!$B$4*'Daily Dosing'!$B$8,2)&" ml","Error")))) ->  | K51: =IF('Daily Dosing'!$H58="","",IF(K$4="N/A","N/A",IF('Daily Dosing'!$B$7="Dry",ROUND(K$4*'Daily Dosing'!$E58/'Daily Dosing'!$B$4*'Daily Dosing'!$B$9,3)&" g",IF('Daily Dosing'!$B$7="Liquid",ROUND(K$4*'Daily Dosing'!$E58/'Daily Dosing'!$B$4*'Daily Dosing'!$B$8,2)&" ml","Error")))) ->  | L51: =IF('Daily Dosing'!$H58="","",IF(L$4="N/A","N/A",IF('Daily Dosing'!$B$7="Dry",ROUND(L$4*'Daily Dosing'!$E58/'Daily Dosing'!$B$4*'Daily Dosing'!$B$9,3)&" g",IF('Daily Dosing'!$B$7="Liquid",ROUND(L$4*'Daily Dosing'!$E58/'Daily Dosing'!$B$4*'Daily Dosing'!$B$8,2)&" ml","Error")))) ->  | M51: ='Daily Dosing'!R58 -> 0.0
A52: 47 | B52: 2021-11-13 | C52: ='Daily Dosing'!E59 -> 1.960 | D52: =IF('Daily Dosing'!H59="","",IF('Daily Dosing'!B$7="Dry",ROUND('Daily Dosing'!E59/'Daily Dosing'!B$4*'Daily Dosing'!B$9,3)&" g",IF('Daily Dosing'!B$7="Liquid",ROUND('Daily Dosing'!E59/'Daily Dosing'!B$4*'Daily Dosing'!B$8,2)&" ml","Error"))) ->  | E52: =IF('Daily Dosing'!$H59="","",IF(E$4="N/A","N/A",IF('Daily Dosing'!$B$7="Dry",ROUND(E$4*'Daily Dosing'!$E59/'Daily Dosing'!$B$4*'Daily Dosing'!$B$9,3)&" g",IF('Daily Dosing'!$B$7="Liquid",ROUND(E$4*'Daily Dosing'!$E59/'Daily Dosing'!$B$4*'Daily Dosing'!$B$8,2)&" ml","Error")))) ->  | F52: =IF('Daily Dosing'!$H59="","",IF(F$4="N/A","N/A",IF('Daily Dosing'!$B$7="Dry",ROUND(F$4*'Daily Dosing'!$E59/'Daily Dosing'!$B$4*'Daily Dosing'!$B$9,3)&" g",IF('Daily Dosing'!$B$7="Liquid",ROUND(F$4*'Daily Dosing'!$E59/'Daily Dosing'!$B$4*'Daily Dosing'!$B$8,2)&" ml","Error")))) ->  | G52: =IF('Daily Dosing'!$H59="","",IF(G$4="N/A","N/A",IF('Daily Dosing'!$B$7="Dry",ROUND(G$4*'Daily Dosing'!$E59/'Daily Dosing'!$B$4*'Daily Dosing'!$B$9,3)&" g",IF('Daily Dosing'!$B$7="Liquid",ROUND(G$4*'Daily Dosing'!$E59/'Daily Dosing'!$B$4*'Daily Dosing'!$B$8,2)&" ml","Error")))) ->  | H52: =IF('Daily Dosing'!$H59="","",IF(H$4="N/A","N/A",IF('Daily Dosing'!$B$7="Dry",ROUND(H$4*'Daily Dosing'!$E59/'Daily Dosing'!$B$4*'Daily Dosing'!$B$9,3)&" g",IF('Daily Dosing'!$B$7="Liquid",ROUND(H$4*'Daily Dosing'!$E59/'Daily Dosing'!$B$4*'Daily Dosing'!$B$8,2)&" ml","Error")))) ->  | I52: =IF('Daily Dosing'!$H59="","",IF(I$4="N/A","N/A",IF('Daily Dosing'!$B$7="Dry",ROUND(I$4*'Daily Dosing'!$E59/'Daily Dosing'!$B$4*'Daily Dosing'!$B$9,3)&" g",IF('Daily Dosing'!$B$7="Liquid",ROUND(I$4*'Daily Dosing'!$E59/'Daily Dosing'!$B$4*'Daily Dosing'!$B$8,2)&" ml","Error")))) ->  | J52: =IF('Daily Dosing'!$H59="","",IF(J$4="N/A","N/A",IF('Daily Dosing'!$B$7="Dry",ROUND(J$4*'Daily Dosing'!$E59/'Daily Dosing'!$B$4*'Daily Dosing'!$B$9,3)&" g",IF('Daily Dosing'!$B$7="Liquid",ROUND(J$4*'Daily Dosing'!$E59/'Daily Dosing'!$B$4*'Daily Dosing'!$B$8,2)&" ml","Error")))) ->  | K52: =IF('Daily Dosing'!$H59="","",IF(K$4="N/A","N/A",IF('Daily Dosing'!$B$7="Dry",ROUND(K$4*'Daily Dosing'!$E59/'Daily Dosing'!$B$4*'Daily Dosing'!$B$9,3)&" g",IF('Daily Dosing'!$B$7="Liquid",ROUND(K$4*'Daily Dosing'!$E59/'Daily Dosing'!$B$4*'Daily Dosing'!$B$8,2)&" ml","Error")))) ->  | L52: =IF('Daily Dosing'!$H59="","",IF(L$4="N/A","N/A",IF('Daily Dosing'!$B$7="Dry",ROUND(L$4*'Daily Dosing'!$E59/'Daily Dosing'!$B$4*'Daily Dosing'!$B$9,3)&" g",IF('Daily Dosing'!$B$7="Liquid",ROUND(L$4*'Daily Dosing'!$E59/'Daily Dosing'!$B$4*'Daily Dosing'!$B$8,2)&" ml","Error")))) ->  | M52: ='Daily Dosing'!R59 -> 0.0
A53: 48 | B53: 2021-11-14 | C53: ='Daily Dosing'!E60 -> 1.960 | D53: =IF('Daily Dosing'!H60="","",IF('Daily Dosing'!B$7="Dry",ROUND('Daily Dosing'!E60/'Daily Dosing'!B$4*'Daily Dosing'!B$9,3)&" g",IF('Daily Dosing'!B$7="Liquid",ROUND('Daily Dosing'!E60/'Daily Dosing'!B$4*'Daily Dosing'!B$8,2)&" ml","Error"))) ->  | E53: =IF('Daily Dosing'!$H60="","",IF(E$4="N/A","N/A",IF('Daily Dosing'!$B$7="Dry",ROUND(E$4*'Daily Dosing'!$E60/'Daily Dosing'!$B$4*'Daily Dosing'!$B$9,3)&" g",IF('Daily Dosing'!$B$7="Liquid",ROUND(E$4*'Daily Dosing'!$E60/'Daily Dosing'!$B$4*'Daily Dosing'!$B$8,2)&" ml","Error")))) ->  | F53: =IF('Daily Dosing'!$H60="","",IF(F$4="N/A","N/A",IF('Daily Dosing'!$B$7="Dry",ROUND(F$4*'Daily Dosing'!$E60/'Daily Dosing'!$B$4*'Daily Dosing'!$B$9,3)&" g",IF('Daily Dosing'!$B$7="Liquid",ROUND(F$4*'Daily Dosing'!$E60/'Daily Dosing'!$B$4*'Daily Dosing'!$B$8,2)&" ml","Error")))) ->  | G53: =IF('Daily Dosing'!$H60="","",IF(G$4="N/A","N/A",IF('Daily Dosing'!$B$7="Dry",ROUND(G$4*'Daily Dosing'!$E60/'Daily Dosing'!$B$4*'Daily Dosing'!$B$9,3)&" g",IF('Daily Dosing'!$B$7="Liquid",ROUND(G$4*'Daily Dosing'!$E60/'Daily Dosing'!$B$4*'Daily Dosing'!$B$8,2)&" ml","Error")))) ->  | H53: =IF('Daily Dosing'!$H60="","",IF(H$4="N/A","N/A",IF('Daily Dosing'!$B$7="Dry",ROUND(H$4*'Daily Dosing'!$E60/'Daily Dosing'!$B$4*'Daily Dosing'!$B$9,3)&" g",IF('Daily Dosing'!$B$7="Liquid",ROUND(H$4*'Daily Dosing'!$E60/'Daily Dosing'!$B$4*'Daily Dosing'!$B$8,2)&" ml","Error")))) ->  | I53: =IF('Daily Dosing'!$H60="","",IF(I$4="N/A","N/A",IF('Daily Dosing'!$B$7="Dry",ROUND(I$4*'Daily Dosing'!$E60/'Daily Dosing'!$B$4*'Daily Dosing'!$B$9,3)&" g",IF('Daily Dosing'!$B$7="Liquid",ROUND(I$4*'Daily Dosing'!$E60/'Daily Dosing'!$B$4*'Daily Dosing'!$B$8,2)&" ml","Error")))) ->  | J53: =IF('Daily Dosing'!$H60="","",IF(J$4="N/A","N/A",IF('Daily Dosing'!$B$7="Dry",ROUND(J$4*'Daily Dosing'!$E60/'Daily Dosing'!$B$4*'Daily Dosing'!$B$9,3)&" g",IF('Daily Dosing'!$B$7="Liquid",ROUND(J$4*'Daily Dosing'!$E60/'Daily Dosing'!$B$4*'Daily Dosing'!$B$8,2)&" ml","Error")))) ->  | K53: =IF('Daily Dosing'!$H60="","",IF(K$4="N/A","N/A",IF('Daily Dosing'!$B$7="Dry",ROUND(K$4*'Daily Dosing'!$E60/'Daily Dosing'!$B$4*'Daily Dosing'!$B$9,3)&" g",IF('Daily Dosing'!$B$7="Liquid",ROUND(K$4*'Daily Dosing'!$E60/'Daily Dosing'!$B$4*'Daily Dosing'!$B$8,2)&" ml","Error")))) ->  | L53: =IF('Daily Dosing'!$H60="","",IF(L$4="N/A","N/A",IF('Daily Dosing'!$B$7="Dry",ROUND(L$4*'Daily Dosing'!$E60/'Daily Dosing'!$B$4*'Daily Dosing'!$B$9,3)&" g",IF('Daily Dosing'!$B$7="Liquid",ROUND(L$4*'Daily Dosing'!$E60/'Daily Dosing'!$B$4*'Daily Dosing'!$B$8,2)&" ml","Error")))) ->  | M53: ='Daily Dosing'!R60 -> 0.0
A54: 49 | B54: 2021-11-15 | C54: ='Daily Dosing'!E61 -> 1.960 | D54: =IF('Daily Dosing'!H61="","",IF('Daily Dosing'!B$7="Dry",ROUND('Daily Dosing'!E61/'Daily Dosing'!B$4*'Daily Dosing'!B$9,3)&" g",IF('Daily Dosing'!B$7="Liquid",ROUND('Daily Dosing'!E61/'Daily Dosing'!B$4*'Daily Dosing'!B$8,2)&" ml","Error"))) ->  | E54: =IF('Daily Dosing'!$H61="","",IF(E$4="N/A","N/A",IF('Daily Dosing'!$B$7="Dry",ROUND(E$4*'Daily Dosing'!$E61/'Daily Dosing'!$B$4*'Daily Dosing'!$B$9,3)&" g",IF('Daily Dosing'!$B$7="Liquid",ROUND(E$4*'Daily Dosing'!$E61/'Daily Dosing'!$B$4*'Daily Dosing'!$B$8,2)&" ml","Error")))) ->  | F54: =IF('Daily Dosing'!$H61="","",IF(F$4="N/A","N/A",IF('Daily Dosing'!$B$7="Dry",ROUND(F$4*'Daily Dosing'!$E61/'Daily Dosing'!$B$4*'Daily Dosing'!$B$9,3)&" g",IF('Daily Dosing'!$B$7="Liquid",ROUND(F$4*'Daily Dosing'!$E61/'Daily Dosing'!$B$4*'Daily Dosing'!$B$8,2)&" ml","Error")))) ->  | G54: =IF('Daily Dosing'!$H61="","",IF(G$4="N/A","N/A",IF('Daily Dosing'!$B$7="Dry",ROUND(G$4*'Daily Dosing'!$E61/'Daily Dosing'!$B$4*'Daily Dosing'!$B$9,3)&" g",IF('Daily Dosing'!$B$7="Liquid",ROUND(G$4*'Daily Dosing'!$E61/'Daily Dosing'!$B$4*'Daily Dosing'!$B$8,2)&" ml","Error")))) ->  | H54: =IF('Daily Dosing'!$H61="","",IF(H$4="N/A","N/A",IF('Daily Dosing'!$B$7="Dry",ROUND(H$4*'Daily Dosing'!$E61/'Daily Dosing'!$B$4*'Daily Dosing'!$B$9,3)&" g",IF('Daily Dosing'!$B$7="Liquid",ROUND(H$4*'Daily Dosing'!$E61/'Daily Dosing'!$B$4*'Daily Dosing'!$B$8,2)&" ml","Error")))) ->  | I54: =IF('Daily Dosing'!$H61="","",IF(I$4="N/A","N/A",IF('Daily Dosing'!$B$7="Dry",ROUND(I$4*'Daily Dosing'!$E61/'Daily Dosing'!$B$4*'Daily Dosing'!$B$9,3)&" g",IF('Daily Dosing'!$B$7="Liquid",ROUND(I$4*'Daily Dosing'!$E61/'Daily Dosing'!$B$4*'Daily Dosing'!$B$8,2)&" ml","Error")))) ->  | J54: =IF('Daily Dosing'!$H61="","",IF(J$4="N/A","N/A",IF('Daily Dosing'!$B$7="Dry",ROUND(J$4*'Daily Dosing'!$E61/'Daily Dosing'!$B$4*'Daily Dosing'!$B$9,3)&" g",IF('Daily Dosing'!$B$7="Liquid",ROUND(J$4*'Daily Dosing'!$E61/'Daily Dosing'!$B$4*'Daily Dosing'!$B$8,2)&" ml","Error")))) ->  | K54: =IF('Daily Dosing'!$H61="","",IF(K$4="N/A","N/A",IF('Daily Dosing'!$B$7="Dry",ROUND(K$4*'Daily Dosing'!$E61/'Daily Dosing'!$B$4*'Daily Dosing'!$B$9,3)&" g",IF('Daily Dosing'!$B$7="Liquid",ROUND(K$4*'Daily Dosing'!$E61/'Daily Dosing'!$B$4*'Daily Dosing'!$B$8,2)&" ml","Error")))) ->  | L54: =IF('Daily Dosing'!$H61="","",IF(L$4="N/A","N/A",IF('Daily Dosing'!$B$7="Dry",ROUND(L$4*'Daily Dosing'!$E61/'Daily Dosing'!$B$4*'Daily Dosing'!$B$9,3)&" g",IF('Daily Dosing'!$B$7="Liquid",ROUND(L$4*'Daily Dosing'!$E61/'Daily Dosing'!$B$4*'Daily Dosing'!$B$8,2)&" ml","Error")))) ->  | M54: ='Daily Dosing'!R61 -> 0.0
A55: 50 | B55: 2021-11-16 | C55: ='Daily Dosing'!E62 -> 1.960 | D55: =IF('Daily Dosing'!H62="","",IF('Daily Dosing'!B$7="Dry",ROUND('Daily Dosing'!E62/'Daily Dosing'!B$4*'Daily Dosing'!B$9,3)&" g",IF('Daily Dosing'!B$7="Liquid",ROUND('Daily Dosing'!E62/'Daily Dosing'!B$4*'Daily Dosing'!B$8,2)&" ml","Error"))) ->  | E55: =IF('Daily Dosing'!$H62="","",IF(E$4="N/A","N/A",IF('Daily Dosing'!$B$7="Dry",ROUND(E$4*'Daily Dosing'!$E62/'Daily Dosing'!$B$4*'Daily Dosing'!$B$9,3)&" g",IF('Daily Dosing'!$B$7="Liquid",ROUND(E$4*'Daily Dosing'!$E62/'Daily Dosing'!$B$4*'Daily Dosing'!$B$8,2)&" ml","Error")))) ->  | F55: =IF('Daily Dosing'!$H62="","",IF(F$4="N/A","N/A",IF('Daily Dosing'!$B$7="Dry",ROUND(F$4*'Daily Dosing'!$E62/'Daily Dosing'!$B$4*'Daily Dosing'!$B$9,3)&" g",IF('Daily Dosing'!$B$7="Liquid",ROUND(F$4*'Daily Dosing'!$E62/'Daily Dosing'!$B$4*'Daily Dosing'!$B$8,2)&" ml","Error")))) ->  | G55: =IF('Daily Dosing'!$H62="","",IF(G$4="N/A","N/A",IF('Daily Dosing'!$B$7="Dry",ROUND(G$4*'Daily Dosing'!$E62/'Daily Dosing'!$B$4*'Daily Dosing'!$B$9,3)&" g",IF('Daily Dosing'!$B$7="Liquid",ROUND(G$4*'Daily Dosing'!$E62/'Daily Dosing'!$B$4*'Daily Dosing'!$B$8,2)&" ml","Error")))) ->  | H55: =IF('Daily Dosing'!$H62="","",IF(H$4="N/A","N/A",IF('Daily Dosing'!$B$7="Dry",ROUND(H$4*'Daily Dosing'!$E62/'Daily Dosing'!$B$4*'Daily Dosing'!$B$9,3)&" g",IF('Daily Dosing'!$B$7="Liquid",ROUND(H$4*'Daily Dosing'!$E62/'Daily Dosing'!$B$4*'Daily Dosing'!$B$8,2)&" ml","Error")))) ->  | I55: =IF('Daily Dosing'!$H62="","",IF(I$4="N/A","N/A",IF('Daily Dosing'!$B$7="Dry",ROUND(I$4*'Daily Dosing'!$E62/'Daily Dosing'!$B$4*'Daily Dosing'!$B$9,3)&" g",IF('Daily Dosing'!$B$7="Liquid",ROUND(I$4*'Daily Dosing'!$E62/'Daily Dosing'!$B$4*'Daily Dosing'!$B$8,2)&" ml","Error")))) ->  | J55: =IF('Daily Dosing'!$H62="","",IF(J$4="N/A","N/A",IF('Daily Dosing'!$B$7="Dry",ROUND(J$4*'Daily Dosing'!$E62/'Daily Dosing'!$B$4*'Daily Dosing'!$B$9,3)&" g",IF('Daily Dosing'!$B$7="Liquid",ROUND(J$4*'Daily Dosing'!$E62/'Daily Dosing'!$B$4*'Daily Dosing'!$B$8,2)&" ml","Error")))) ->  | K55: =IF('Daily Dosing'!$H62="","",IF(K$4="N/A","N/A",IF('Daily Dosing'!$B$7="Dry",ROUND(K$4*'Daily Dosing'!$E62/'Daily Dosing'!$B$4*'Daily Dosing'!$B$9,3)&" g",IF('Daily Dosing'!$B$7="Liquid",ROUND(K$4*'Daily Dosing'!$E62/'Daily Dosing'!$B$4*'Daily Dosing'!$B$8,2)&" ml","Error")))) ->  | L55: =IF('Daily Dosing'!$H62="","",IF(L$4="N/A","N/A",IF('Daily Dosing'!$B$7="Dry",ROUND(L$4*'Daily Dosing'!$E62/'Daily Dosing'!$B$4*'Daily Dosing'!$B$9,3)&" g",IF('Daily Dosing'!$B$7="Liquid",ROUND(L$4*'Daily Dosing'!$E62/'Daily Dosing'!$B$4*'Daily Dosing'!$B$8,2)&" ml","Error")))) ->  | M55: ='Daily Dosing'!R62 -> 0.0
A56: 51 | B56: 2021-11-17 | C56: ='Daily Dosing'!E63 -> 1.960 | D56: =IF('Daily Dosing'!H63="","",IF('Daily Dosing'!B$7="Dry",ROUND('Daily Dosing'!E63/'Daily Dosing'!B$4*'Daily Dosing'!B$9,3)&" g",IF('Daily Dosing'!B$7="Liquid",ROUND('Daily Dosing'!E63/'Daily Dosing'!B$4*'Daily Dosing'!B$8,2)&" ml","Error"))) ->  | E56: =IF('Daily Dosing'!$H63="","",IF(E$4="N/A","N/A",IF('Daily Dosing'!$B$7="Dry",ROUND(E$4*'Daily Dosing'!$E63/'Daily Dosing'!$B$4*'Daily Dosing'!$B$9,3)&" g",IF('Daily Dosing'!$B$7="Liquid",ROUND(E$4*'Daily Dosing'!$E63/'Daily Dosing'!$B$4*'Daily Dosing'!$B$8,2)&" ml","Error")))) ->  | F56: =IF('Daily Dosing'!$H63="","",IF(F$4="N/A","N/A",IF('Daily Dosing'!$B$7="Dry",ROUND(F$4*'Daily Dosing'!$E63/'Daily Dosing'!$B$4*'Daily Dosing'!$B$9,3)&" g",IF('Daily Dosing'!$B$7="Liquid",ROUND(F$4*'Daily Dosing'!$E63/'Daily Dosing'!$B$4*'Daily Dosing'!$B$8,2)&" ml","Error")))) ->  | G56: =IF('Daily Dosing'!$H63="","",IF(G$4="N/A","N/A",IF('Daily Dosing'!$B$7="Dry",ROUND(G$4*'Daily Dosing'!$E63/'Daily Dosing'!$B$4*'Daily Dosing'!$B$9,3)&" g",IF('Daily Dosing'!$B$7="Liquid",ROUND(G$4*'Daily Dosing'!$E63/'Daily Dosing'!$B$4*'Daily Dosing'!$B$8,2)&" ml","Error")))) ->  | H56: =IF('Daily Dosing'!$H63="","",IF(H$4="N/A","N/A",IF('Daily Dosing'!$B$7="Dry",ROUND(H$4*'Daily Dosing'!$E63/'Daily Dosing'!$B$4*'Daily Dosing'!$B$9,3)&" g",IF('Daily Dosing'!$B$7="Liquid",ROUND(H$4*'Daily Dosing'!$E63/'Daily Dosing'!$B$4*'Daily Dosing'!$B$8,2)&" ml","Error")))) ->  | I56: =IF('Daily Dosing'!$H63="","",IF(I$4="N/A","N/A",IF('Daily Dosing'!$B$7="Dry",ROUND(I$4*'Daily Dosing'!$E63/'Daily Dosing'!$B$4*'Daily Dosing'!$B$9,3)&" g",IF('Daily Dosing'!$B$7="Liquid",ROUND(I$4*'Daily Dosing'!$E63/'Daily Dosing'!$B$4*'Daily Dosing'!$B$8,2)&" ml","Error")))) ->  | J56: =IF('Daily Dosing'!$H63="","",IF(J$4="N/A","N/A",IF('Daily Dosing'!$B$7="Dry",ROUND(J$4*'Daily Dosing'!$E63/'Daily Dosing'!$B$4*'Daily Dosing'!$B$9,3)&" g",IF('Daily Dosing'!$B$7="Liquid",ROUND(J$4*'Daily Dosing'!$E63/'Daily Dosing'!$B$4*'Daily Dosing'!$B$8,2)&" ml","Error")))) ->  | K56: =IF('Daily Dosing'!$H63="","",IF(K$4="N/A","N/A",IF('Daily Dosing'!$B$7="Dry",ROUND(K$4*'Daily Dosing'!$E63/'Daily Dosing'!$B$4*'Daily Dosing'!$B$9,3)&" g",IF('Daily Dosing'!$B$7="Liquid",ROUND(K$4*'Daily Dosing'!$E63/'Daily Dosing'!$B$4*'Daily Dosing'!$B$8,2)&" ml","Error")))) ->  | L56: =IF('Daily Dosing'!$H63="","",IF(L$4="N/A","N/A",IF('Daily Dosing'!$B$7="Dry",ROUND(L$4*'Daily Dosing'!$E63/'Daily Dosing'!$B$4*'Daily Dosing'!$B$9,3)&" g",IF('Daily Dosing'!$B$7="Liquid",ROUND(L$4*'Daily Dosing'!$E63/'Daily Dosing'!$B$4*'Daily Dosing'!$B$8,2)&" ml","Error")))) ->  | M56: ='Daily Dosing'!R63 -> 0.0
A57: 52 | B57: 2021-11-18 | C57: ='Daily Dosing'!E64 -> 1.960 | D57: =IF('Daily Dosing'!H64="","",IF('Daily Dosing'!B$7="Dry",ROUND('Daily Dosing'!E64/'Daily Dosing'!B$4*'Daily Dosing'!B$9,3)&" g",IF('Daily Dosing'!B$7="Liquid",ROUND('Daily Dosing'!E64/'Daily Dosing'!B$4*'Daily Dosing'!B$8,2)&" ml","Error"))) ->  | E57: =IF('Daily Dosing'!$H64="","",IF(E$4="N/A","N/A",IF('Daily Dosing'!$B$7="Dry",ROUND(E$4*'Daily Dosing'!$E64/'Daily Dosing'!$B$4*'Daily Dosing'!$B$9,3)&" g",IF('Daily Dosing'!$B$7="Liquid",ROUND(E$4*'Daily Dosing'!$E64/'Daily Dosing'!$B$4*'Daily Dosing'!$B$8,2)&" ml","Error")))) ->  | F57: =IF('Daily Dosing'!$H64="","",IF(F$4="N/A","N/A",IF('Daily Dosing'!$B$7="Dry",ROUND(F$4*'Daily Dosing'!$E64/'Daily Dosing'!$B$4*'Daily Dosing'!$B$9,3)&" g",IF('Daily Dosing'!$B$7="Liquid",ROUND(F$4*'Daily Dosing'!$E64/'Daily Dosing'!$B$4*'Daily Dosing'!$B$8,2)&" ml","Error")))) ->  | G57: =IF('Daily Dosing'!$H64="","",IF(G$4="N/A","N/A",IF('Daily Dosing'!$B$7="Dry",ROUND(G$4*'Daily Dosing'!$E64/'Daily Dosing'!$B$4*'Daily Dosing'!$B$9,3)&" g",IF('Daily Dosing'!$B$7="Liquid",ROUND(G$4*'Daily Dosing'!$E64/'Daily Dosing'!$B$4*'Daily Dosing'!$B$8,2)&" ml","Error")))) ->  | H57: =IF('Daily Dosing'!$H64="","",IF(H$4="N/A","N/A",IF('Daily Dosing'!$B$7="Dry",ROUND(H$4*'Daily Dosing'!$E64/'Daily Dosing'!$B$4*'Daily Dosing'!$B$9,3)&" g",IF('Daily Dosing'!$B$7="Liquid",ROUND(H$4*'Daily Dosing'!$E64/'Daily Dosing'!$B$4*'Daily Dosing'!$B$8,2)&" ml","Error")))) ->  | I57: =IF('Daily Dosing'!$H64="","",IF(I$4="N/A","N/A",IF('Daily Dosing'!$B$7="Dry",ROUND(I$4*'Daily Dosing'!$E64/'Daily Dosing'!$B$4*'Daily Dosing'!$B$9,3)&" g",IF('Daily Dosing'!$B$7="Liquid",ROUND(I$4*'Daily Dosing'!$E64/'Daily Dosing'!$B$4*'Daily Dosing'!$B$8,2)&" ml","Error")))) ->  | J57: =IF('Daily Dosing'!$H64="","",IF(J$4="N/A","N/A",IF('Daily Dosing'!$B$7="Dry",ROUND(J$4*'Daily Dosing'!$E64/'Daily Dosing'!$B$4*'Daily Dosing'!$B$9,3)&" g",IF('Daily Dosing'!$B$7="Liquid",ROUND(J$4*'Daily Dosing'!$E64/'Daily Dosing'!$B$4*'Daily Dosing'!$B$8,2)&" ml","Error")))) ->  | K57: =IF('Daily Dosing'!$H64="","",IF(K$4="N/A","N/A",IF('Daily Dosing'!$B$7="Dry",ROUND(K$4*'Daily Dosing'!$E64/'Daily Dosing'!$B$4*'Daily Dosing'!$B$9,3)&" g",IF('Daily Dosing'!$B$7="Liquid",ROUND(K$4*'Daily Dosing'!$E64/'Daily Dosing'!$B$4*'Daily Dosing'!$B$8,2)&" ml","Error")))) ->  | L57: =IF('Daily Dosing'!$H64="","",IF(L$4="N/A","N/A",IF('Daily Dosing'!$B$7="Dry",ROUND(L$4*'Daily Dosing'!$E64/'Daily Dosing'!$B$4*'Daily Dosing'!$B$9,3)&" g",IF('Daily Dosing'!$B$7="Liquid",ROUND(L$4*'Daily Dosing'!$E64/'Daily Dosing'!$B$4*'Daily Dosing'!$B$8,2)&" ml","Error")))) ->  | M57: ='Daily Dosing'!R64 -> 0.0
A58: 53 | B58: 2021-11-19 | C58: ='Daily Dosing'!E65 -> 1.960 | D58: =IF('Daily Dosing'!H65="","",IF('Daily Dosing'!B$7="Dry",ROUND('Daily Dosing'!E65/'Daily Dosing'!B$4*'Daily Dosing'!B$9,3)&" g",IF('Daily Dosing'!B$7="Liquid",ROUND('Daily Dosing'!E65/'Daily Dosing'!B$4*'Daily Dosing'!B$8,2)&" ml","Error"))) ->  | E58: =IF('Daily Dosing'!$H65="","",IF(E$4="N/A","N/A",IF('Daily Dosing'!$B$7="Dry",ROUND(E$4*'Daily Dosing'!$E65/'Daily Dosing'!$B$4*'Daily Dosing'!$B$9,3)&" g",IF('Daily Dosing'!$B$7="Liquid",ROUND(E$4*'Daily Dosing'!$E65/'Daily Dosing'!$B$4*'Daily Dosing'!$B$8,2)&" ml","Error")))) ->  | F58: =IF('Daily Dosing'!$H65="","",IF(F$4="N/A","N/A",IF('Daily Dosing'!$B$7="Dry",ROUND(F$4*'Daily Dosing'!$E65/'Daily Dosing'!$B$4*'Daily Dosing'!$B$9,3)&" g",IF('Daily Dosing'!$B$7="Liquid",ROUND(F$4*'Daily Dosing'!$E65/'Daily Dosing'!$B$4*'Daily Dosing'!$B$8,2)&" ml","Error")))) ->  | G58: =IF('Daily Dosing'!$H65="","",IF(G$4="N/A","N/A",IF('Daily Dosing'!$B$7="Dry",ROUND(G$4*'Daily Dosing'!$E65/'Daily Dosing'!$B$4*'Daily Dosing'!$B$9,3)&" g",IF('Daily Dosing'!$B$7="Liquid",ROUND(G$4*'Daily Dosing'!$E65/'Daily Dosing'!$B$4*'Daily Dosing'!$B$8,2)&" ml","Error")))) ->  | H58: =IF('Daily Dosing'!$H65="","",IF(H$4="N/A","N/A",IF('Daily Dosing'!$B$7="Dry",ROUND(H$4*'Daily Dosing'!$E65/'Daily Dosing'!$B$4*'Daily Dosing'!$B$9,3)&" g",IF('Daily Dosing'!$B$7="Liquid",ROUND(H$4*'Daily Dosing'!$E65/'Daily Dosing'!$B$4*'Daily Dosing'!$B$8,2)&" ml","Error")))) ->  | I58: =IF('Daily Dosing'!$H65="","",IF(I$4="N/A","N/A",IF('Daily Dosing'!$B$7="Dry",ROUND(I$4*'Daily Dosing'!$E65/'Daily Dosing'!$B$4*'Daily Dosing'!$B$9,3)&" g",IF('Daily Dosing'!$B$7="Liquid",ROUND(I$4*'Daily Dosing'!$E65/'Daily Dosing'!$B$4*'Daily Dosing'!$B$8,2)&" ml","Error")))) ->  | J58: =IF('Daily Dosing'!$H65="","",IF(J$4="N/A","N/A",IF('Daily Dosing'!$B$7="Dry",ROUND(J$4*'Daily Dosing'!$E65/'Daily Dosing'!$B$4*'Daily Dosing'!$B$9,3)&" g",IF('Daily Dosing'!$B$7="Liquid",ROUND(J$4*'Daily Dosing'!$E65/'Daily Dosing'!$B$4*'Daily Dosing'!$B$8,2)&" ml","Error")))) ->  | K58: =IF('Daily Dosing'!$H65="","",IF(K$4="N/A","N/A",IF('Daily Dosing'!$B$7="Dry",ROUND(K$4*'Daily Dosing'!$E65/'Daily Dosing'!$B$4*'Daily Dosing'!$B$9,3)&" g",IF('Daily Dosing'!$B$7="Liquid",ROUND(K$4*'Daily Dosing'!$E65/'Daily Dosing'!$B$4*'Daily Dosing'!$B$8,2)&" ml","Error")))) ->  | L58: =IF('Daily Dosing'!$H65="","",IF(L$4="N/A","N/A",IF('Daily Dosing'!$B$7="Dry",ROUND(L$4*'Daily Dosing'!$E65/'Daily Dosing'!$B$4*'Daily Dosing'!$B$9,3)&" g",IF('Daily Dosing'!$B$7="Liquid",ROUND(L$4*'Daily Dosing'!$E65/'Daily Dosing'!$B$4*'Daily Dosing'!$B$8,2)&" ml","Error")))) ->  | M58: ='Daily Dosing'!R65 -> 0.0
A59: 54 | B59: 2021-11-20 | C59: ='Daily Dosing'!E66 -> 1.960 | D59: =IF('Daily Dosing'!H66="","",IF('Daily Dosing'!B$7="Dry",ROUND('Daily Dosing'!E66/'Daily Dosing'!B$4*'Daily Dosing'!B$9,3)&" g",IF('Daily Dosing'!B$7="Liquid",ROUND('Daily Dosing'!E66/'Daily Dosing'!B$4*'Daily Dosing'!B$8,2)&" ml","Error"))) ->  | E59: =IF('Daily Dosing'!$H66="","",IF(E$4="N/A","N/A",IF('Daily Dosing'!$B$7="Dry",ROUND(E$4*'Daily Dosing'!$E66/'Daily Dosing'!$B$4*'Daily Dosing'!$B$9,3)&" g",IF('Daily Dosing'!$B$7="Liquid",ROUND(E$4*'Daily Dosing'!$E66/'Daily Dosing'!$B$4*'Daily Dosing'!$B$8,2)&" ml","Error")))) ->  | F59: =IF('Daily Dosing'!$H66="","",IF(F$4="N/A","N/A",IF('Daily Dosing'!$B$7="Dry",ROUND(F$4*'Daily Dosing'!$E66/'Daily Dosing'!$B$4*'Daily Dosing'!$B$9,3)&" g",IF('Daily Dosing'!$B$7="Liquid",ROUND(F$4*'Daily Dosing'!$E66/'Daily Dosing'!$B$4*'Daily Dosing'!$B$8,2)&" ml","Error")))) ->  | G59: =IF('Daily Dosing'!$H66="","",IF(G$4="N/A","N/A",IF('Daily Dosing'!$B$7="Dry",ROUND(G$4*'Daily Dosing'!$E66/'Daily Dosing'!$B$4*'Daily Dosing'!$B$9,3)&" g",IF('Daily Dosing'!$B$7="Liquid",ROUND(G$4*'Daily Dosing'!$E66/'Daily Dosing'!$B$4*'Daily Dosing'!$B$8,2)&" ml","Error")))) ->  | H59: =IF('Daily Dosing'!$H66="","",IF(H$4="N/A","N/A",IF('Daily Dosing'!$B$7="Dry",ROUND(H$4*'Daily Dosing'!$E66/'Daily Dosing'!$B$4*'Daily Dosing'!$B$9,3)&" g",IF('Daily Dosing'!$B$7="Liquid",ROUND(H$4*'Daily Dosing'!$E66/'Daily Dosing'!$B$4*'Daily Dosing'!$B$8,2)&" ml","Error")))) ->  | I59: =IF('Daily Dosing'!$H66="","",IF(I$4="N/A","N/A",IF('Daily Dosing'!$B$7="Dry",ROUND(I$4*'Daily Dosing'!$E66/'Daily Dosing'!$B$4*'Daily Dosing'!$B$9,3)&" g",IF('Daily Dosing'!$B$7="Liquid",ROUND(I$4*'Daily Dosing'!$E66/'Daily Dosing'!$B$4*'Daily Dosing'!$B$8,2)&" ml","Error")))) ->  | J59: =IF('Daily Dosing'!$H66="","",IF(J$4="N/A","N/A",IF('Daily Dosing'!$B$7="Dry",ROUND(J$4*'Daily Dosing'!$E66/'Daily Dosing'!$B$4*'Daily Dosing'!$B$9,3)&" g",IF('Daily Dosing'!$B$7="Liquid",ROUND(J$4*'Daily Dosing'!$E66/'Daily Dosing'!$B$4*'Daily Dosing'!$B$8,2)&" ml","Error")))) ->  | K59: =IF('Daily Dosing'!$H66="","",IF(K$4="N/A","N/A",IF('Daily Dosing'!$B$7="Dry",ROUND(K$4*'Daily Dosing'!$E66/'Daily Dosing'!$B$4*'Daily Dosing'!$B$9,3)&" g",IF('Daily Dosing'!$B$7="Liquid",ROUND(K$4*'Daily Dosing'!$E66/'Daily Dosing'!$B$4*'Daily Dosing'!$B$8,2)&" ml","Error")))) ->  | L59: =IF('Daily Dosing'!$H66="","",IF(L$4="N/A","N/A",IF('Daily Dosing'!$B$7="Dry",ROUND(L$4*'Daily Dosing'!$E66/'Daily Dosing'!$B$4*'Daily Dosing'!$B$9,3)&" g",IF('Daily Dosing'!$B$7="Liquid",ROUND(L$4*'Daily Dosing'!$E66/'Daily Dosing'!$B$4*'Daily Dosing'!$B$8,2)&" ml","Error")))) ->  | M59: ='Daily Dosing'!R66 -> 0.0
A60: 55 | B60: 2021-11-21 | C60: ='Daily Dosing'!E67 -> 1.960 | D60: =IF('Daily Dosing'!H67="","",IF('Daily Dosing'!B$7="Dry",ROUND('Daily Dosing'!E67/'Daily Dosing'!B$4*'Daily Dosing'!B$9,3)&" g",IF('Daily Dosing'!B$7="Liquid",ROUND('Daily Dosing'!E67/'Daily Dosing'!B$4*'Daily Dosing'!B$8,2)&" ml","Error"))) ->  | E60: =IF('Daily Dosing'!$H67="","",IF(E$4="N/A","N/A",IF('Daily Dosing'!$B$7="Dry",ROUND(E$4*'Daily Dosing'!$E67/'Daily Dosing'!$B$4*'Daily Dosing'!$B$9,3)&" g",IF('Daily Dosing'!$B$7="Liquid",ROUND(E$4*'Daily Dosing'!$E67/'Daily Dosing'!$B$4*'Daily Dosing'!$B$8,2)&" ml","Error")))) ->  | F60: =IF('Daily Dosing'!$H67="","",IF(F$4="N/A","N/A",IF('Daily Dosing'!$B$7="Dry",ROUND(F$4*'Daily Dosing'!$E67/'Daily Dosing'!$B$4*'Daily Dosing'!$B$9,3)&" g",IF('Daily Dosing'!$B$7="Liquid",ROUND(F$4*'Daily Dosing'!$E67/'Daily Dosing'!$B$4*'Daily Dosing'!$B$8,2)&" ml","Error")))) ->  | G60: =IF('Daily Dosing'!$H67="","",IF(G$4="N/A","N/A",IF('Daily Dosing'!$B$7="Dry",ROUND(G$4*'Daily Dosing'!$E67/'Daily Dosing'!$B$4*'Daily Dosing'!$B$9,3)&" g",IF('Daily Dosing'!$B$7="Liquid",ROUND(G$4*'Daily Dosing'!$E67/'Daily Dosing'!$B$4*'Daily Dosing'!$B$8,2)&" ml","Error")))) ->  | H60: =IF('Daily Dosing'!$H67="","",IF(H$4="N/A","N/A",IF('Daily Dosing'!$B$7="Dry",ROUND(H$4*'Daily Dosing'!$E67/'Daily Dosing'!$B$4*'Daily Dosing'!$B$9,3)&" g",IF('Daily Dosing'!$B$7="Liquid",ROUND(H$4*'Daily Dosing'!$E67/'Daily Dosing'!$B$4*'Daily Dosing'!$B$8,2)&" ml","Error")))) ->  | I60: =IF('Daily Dosing'!$H67="","",IF(I$4="N/A","N/A",IF('Daily Dosing'!$B$7="Dry",ROUND(I$4*'Daily Dosing'!$E67/'Daily Dosing'!$B$4*'Daily Dosing'!$B$9,3)&" g",IF('Daily Dosing'!$B$7="Liquid",ROUND(I$4*'Daily Dosing'!$E67/'Daily Dosing'!$B$4*'Daily Dosing'!$B$8,2)&" ml","Error")))) ->  | J60: =IF('Daily Dosing'!$H67="","",IF(J$4="N/A","N/A",IF('Daily Dosing'!$B$7="Dry",ROUND(J$4*'Daily Dosing'!$E67/'Daily Dosing'!$B$4*'Daily Dosing'!$B$9,3)&" g",IF('Daily Dosing'!$B$7="Liquid",ROUND(J$4*'Daily Dosing'!$E67/'Daily Dosing'!$B$4*'Daily Dosing'!$B$8,2)&" ml","Error")))) ->  | K60: =IF('Daily Dosing'!$H67="","",IF(K$4="N/A","N/A",IF('Daily Dosing'!$B$7="Dry",ROUND(K$4*'Daily Dosing'!$E67/'Daily Dosing'!$B$4*'Daily Dosing'!$B$9,3)&" g",IF('Daily Dosing'!$B$7="Liquid",ROUND(K$4*'Daily Dosing'!$E67/'Daily Dosing'!$B$4*'Daily Dosing'!$B$8,2)&" ml","Error")))) ->  | L60: =IF('Daily Dosing'!$H67="","",IF(L$4="N/A","N/A",IF('Daily Dosing'!$B$7="Dry",ROUND(L$4*'Daily Dosing'!$E67/'Daily Dosing'!$B$4*'Daily Dosing'!$B$9,3)&" g",IF('Daily Dosing'!$B$7="Liquid",ROUND(L$4*'Daily Dosing'!$E67/'Daily Dosing'!$B$4*'Daily Dosing'!$B$8,2)&" ml","Error")))) ->  | M60: ='Daily Dosing'!R67 -> 0.0
A61: 56 | B61: 2021-11-22 | C61: ='Daily Dosing'!E68 -> 1.960 | D61: =IF('Daily Dosing'!H68="","",IF('Daily Dosing'!B$7="Dry",ROUND('Daily Dosing'!E68/'Daily Dosing'!B$4*'Daily Dosing'!B$9,3)&" g",IF('Daily Dosing'!B$7="Liquid",ROUND('Daily Dosing'!E68/'Daily Dosing'!B$4*'Daily Dosing'!B$8,2)&" ml","Error"))) ->  | E61: =IF('Daily Dosing'!$H68="","",IF(E$4="N/A","N/A",IF('Daily Dosing'!$B$7="Dry",ROUND(E$4*'Daily Dosing'!$E68/'Daily Dosing'!$B$4*'Daily Dosing'!$B$9,3)&" g",IF('Daily Dosing'!$B$7="Liquid",ROUND(E$4*'Daily Dosing'!$E68/'Daily Dosing'!$B$4*'Daily Dosing'!$B$8,2)&" ml","Error")))) ->  | F61: =IF('Daily Dosing'!$H68="","",IF(F$4="N/A","N/A",IF('Daily Dosing'!$B$7="Dry",ROUND(F$4*'Daily Dosing'!$E68/'Daily Dosing'!$B$4*'Daily Dosing'!$B$9,3)&" g",IF('Daily Dosing'!$B$7="Liquid",ROUND(F$4*'Daily Dosing'!$E68/'Daily Dosing'!$B$4*'Daily Dosing'!$B$8,2)&" ml","Error")))) ->  | G61: =IF('Daily Dosing'!$H68="","",IF(G$4="N/A","N/A",IF('Daily Dosing'!$B$7="Dry",ROUND(G$4*'Daily Dosing'!$E68/'Daily Dosing'!$B$4*'Daily Dosing'!$B$9,3)&" g",IF('Daily Dosing'!$B$7="Liquid",ROUND(G$4*'Daily Dosing'!$E68/'Daily Dosing'!$B$4*'Daily Dosing'!$B$8,2)&" ml","Error")))) ->  | H61: =IF('Daily Dosing'!$H68="","",IF(H$4="N/A","N/A",IF('Daily Dosing'!$B$7="Dry",ROUND(H$4*'Daily Dosing'!$E68/'Daily Dosing'!$B$4*'Daily Dosing'!$B$9,3)&" g",IF('Daily Dosing'!$B$7="Liquid",ROUND(H$4*'Daily Dosing'!$E68/'Daily Dosing'!$B$4*'Daily Dosing'!$B$8,2)&" ml","Error")))) ->  | I61: =IF('Daily Dosing'!$H68="","",IF(I$4="N/A","N/A",IF('Daily Dosing'!$B$7="Dry",ROUND(I$4*'Daily Dosing'!$E68/'Daily Dosing'!$B$4*'Daily Dosing'!$B$9,3)&" g",IF('Daily Dosing'!$B$7="Liquid",ROUND(I$4*'Daily Dosing'!$E68/'Daily Dosing'!$B$4*'Daily Dosing'!$B$8,2)&" ml","Error")))) ->  | J61: =IF('Daily Dosing'!$H68="","",IF(J$4="N/A","N/A",IF('Daily Dosing'!$B$7="Dry",ROUND(J$4*'Daily Dosing'!$E68/'Daily Dosing'!$B$4*'Daily Dosing'!$B$9,3)&" g",IF('Daily Dosing'!$B$7="Liquid",ROUND(J$4*'Daily Dosing'!$E68/'Daily Dosing'!$B$4*'Daily Dosing'!$B$8,2)&" ml","Error")))) ->  | K61: =IF('Daily Dosing'!$H68="","",IF(K$4="N/A","N/A",IF('Daily Dosing'!$B$7="Dry",ROUND(K$4*'Daily Dosing'!$E68/'Daily Dosing'!$B$4*'Daily Dosing'!$B$9,3)&" g",IF('Daily Dosing'!$B$7="Liquid",ROUND(K$4*'Daily Dosing'!$E68/'Daily Dosing'!$B$4*'Daily Dosing'!$B$8,2)&" ml","Error")))) ->  | L61: =IF('Daily Dosing'!$H68="","",IF(L$4="N/A","N/A",IF('Daily Dosing'!$B$7="Dry",ROUND(L$4*'Daily Dosing'!$E68/'Daily Dosing'!$B$4*'Daily Dosing'!$B$9,3)&" g",IF('Daily Dosing'!$B$7="Liquid",ROUND(L$4*'Daily Dosing'!$E68/'Daily Dosing'!$B$4*'Daily Dosing'!$B$8,2)&" ml","Error")))) ->  | M61: ='Daily Dosing'!R68 -> 0.0
A62: 57 | B62: 2021-11-23 | C62: ='Daily Dosing'!E69 -> 1.960 | D62: =IF('Daily Dosing'!H69="","",IF('Daily Dosing'!B$7="Dry",ROUND('Daily Dosing'!E69/'Daily Dosing'!B$4*'Daily Dosing'!B$9,3)&" g",IF('Daily Dosing'!B$7="Liquid",ROUND('Daily Dosing'!E69/'Daily Dosing'!B$4*'Daily Dosing'!B$8,2)&" ml","Error"))) ->  | E62: =IF('Daily Dosing'!$H69="","",IF(E$4="N/A","N/A",IF('Daily Dosing'!$B$7="Dry",ROUND(E$4*'Daily Dosing'!$E69/'Daily Dosing'!$B$4*'Daily Dosing'!$B$9,3)&" g",IF('Daily Dosing'!$B$7="Liquid",ROUND(E$4*'Daily Dosing'!$E69/'Daily Dosing'!$B$4*'Daily Dosing'!$B$8,2)&" ml","Error")))) ->  | F62: =IF('Daily Dosing'!$H69="","",IF(F$4="N/A","N/A",IF('Daily Dosing'!$B$7="Dry",ROUND(F$4*'Daily Dosing'!$E69/'Daily Dosing'!$B$4*'Daily Dosing'!$B$9,3)&" g",IF('Daily Dosing'!$B$7="Liquid",ROUND(F$4*'Daily Dosing'!$E69/'Daily Dosing'!$B$4*'Daily Dosing'!$B$8,2)&" ml","Error")))) ->  | G62: =IF('Daily Dosing'!$H69="","",IF(G$4="N/A","N/A",IF('Daily Dosing'!$B$7="Dry",ROUND(G$4*'Daily Dosing'!$E69/'Daily Dosing'!$B$4*'Daily Dosing'!$B$9,3)&" g",IF('Daily Dosing'!$B$7="Liquid",ROUND(G$4*'Daily Dosing'!$E69/'Daily Dosing'!$B$4*'Daily Dosing'!$B$8,2)&" ml","Error")))) ->  | H62: =IF('Daily Dosing'!$H69="","",IF(H$4="N/A","N/A",IF('Daily Dosing'!$B$7="Dry",ROUND(H$4*'Daily Dosing'!$E69/'Daily Dosing'!$B$4*'Daily Dosing'!$B$9,3)&" g",IF('Daily Dosing'!$B$7="Liquid",ROUND(H$4*'Daily Dosing'!$E69/'Daily Dosing'!$B$4*'Daily Dosing'!$B$8,2)&" ml","Error")))) ->  | I62: =IF('Daily Dosing'!$H69="","",IF(I$4="N/A","N/A",IF('Daily Dosing'!$B$7="Dry",ROUND(I$4*'Daily Dosing'!$E69/'Daily Dosing'!$B$4*'Daily Dosing'!$B$9,3)&" g",IF('Daily Dosing'!$B$7="Liquid",ROUND(I$4*'Daily Dosing'!$E69/'Daily Dosing'!$B$4*'Daily Dosing'!$B$8,2)&" ml","Error")))) ->  | J62: =IF('Daily Dosing'!$H69="","",IF(J$4="N/A","N/A",IF('Daily Dosing'!$B$7="Dry",ROUND(J$4*'Daily Dosing'!$E69/'Daily Dosing'!$B$4*'Daily Dosing'!$B$9,3)&" g",IF('Daily Dosing'!$B$7="Liquid",ROUND(J$4*'Daily Dosing'!$E69/'Daily Dosing'!$B$4*'Daily Dosing'!$B$8,2)&" ml","Error")))) ->  | K62: =IF('Daily Dosing'!$H69="","",IF(K$4="N/A","N/A",IF('Daily Dosing'!$B$7="Dry",ROUND(K$4*'Daily Dosing'!$E69/'Daily Dosing'!$B$4*'Daily Dosing'!$B$9,3)&" g",IF('Daily Dosing'!$B$7="Liquid",ROUND(K$4*'Daily Dosing'!$E69/'Daily Dosing'!$B$4*'Daily Dosing'!$B$8,2)&" ml","Error")))) ->  | L62: =IF('Daily Dosing'!$H69="","",IF(L$4="N/A","N/A",IF('Daily Dosing'!$B$7="Dry",ROUND(L$4*'Daily Dosing'!$E69/'Daily Dosing'!$B$4*'Daily Dosing'!$B$9,3)&" g",IF('Daily Dosing'!$B$7="Liquid",ROUND(L$4*'Daily Dosing'!$E69/'Daily Dosing'!$B$4*'Daily Dosing'!$B$8,2)&" ml","Error")))) ->  | M62: ='Daily Dosing'!R69 -> 0.0
A63: 58 | B63: 2021-11-24 | C63: ='Daily Dosing'!E70 -> 1.960 | D63: =IF('Daily Dosing'!H70="","",IF('Daily Dosing'!B$7="Dry",ROUND('Daily Dosing'!E70/'Daily Dosing'!B$4*'Daily Dosing'!B$9,3)&" g",IF('Daily Dosing'!B$7="Liquid",ROUND('Daily Dosing'!E70/'Daily Dosing'!B$4*'Daily Dosing'!B$8,2)&" ml","Error"))) ->  | E63: =IF('Daily Dosing'!$H70="","",IF(E$4="N/A","N/A",IF('Daily Dosing'!$B$7="Dry",ROUND(E$4*'Daily Dosing'!$E70/'Daily Dosing'!$B$4*'Daily Dosing'!$B$9,3)&" g",IF('Daily Dosing'!$B$7="Liquid",ROUND(E$4*'Daily Dosing'!$E70/'Daily Dosing'!$B$4*'Daily Dosing'!$B$8,2)&" ml","Error")))) ->  | F63: =IF('Daily Dosing'!$H70="","",IF(F$4="N/A","N/A",IF('Daily Dosing'!$B$7="Dry",ROUND(F$4*'Daily Dosing'!$E70/'Daily Dosing'!$B$4*'Daily Dosing'!$B$9,3)&" g",IF('Daily Dosing'!$B$7="Liquid",ROUND(F$4*'Daily Dosing'!$E70/'Daily Dosing'!$B$4*'Daily Dosing'!$B$8,2)&" ml","Error")))) ->  | G63: =IF('Daily Dosing'!$H70="","",IF(G$4="N/A","N/A",IF('Daily Dosing'!$B$7="Dry",ROUND(G$4*'Daily Dosing'!$E70/'Daily Dosing'!$B$4*'Daily Dosing'!$B$9,3)&" g",IF('Daily Dosing'!$B$7="Liquid",ROUND(G$4*'Daily Dosing'!$E70/'Daily Dosing'!$B$4*'Daily Dosing'!$B$8,2)&" ml","Error")))) ->  | H63: =IF('Daily Dosing'!$H70="","",IF(H$4="N/A","N/A",IF('Daily Dosing'!$B$7="Dry",ROUND(H$4*'Daily Dosing'!$E70/'Daily Dosing'!$B$4*'Daily Dosing'!$B$9,3)&" g",IF('Daily Dosing'!$B$7="Liquid",ROUND(H$4*'Daily Dosing'!$E70/'Daily Dosing'!$B$4*'Daily Dosing'!$B$8,2)&" ml","Error")))) ->  | I63: =IF('Daily Dosing'!$H70="","",IF(I$4="N/A","N/A",IF('Daily Dosing'!$B$7="Dry",ROUND(I$4*'Daily Dosing'!$E70/'Daily Dosing'!$B$4*'Daily Dosing'!$B$9,3)&" g",IF('Daily Dosing'!$B$7="Liquid",ROUND(I$4*'Daily Dosing'!$E70/'Daily Dosing'!$B$4*'Daily Dosing'!$B$8,2)&" ml","Error")))) ->  | J63: =IF('Daily Dosing'!$H70="","",IF(J$4="N/A","N/A",IF('Daily Dosing'!$B$7="Dry",ROUND(J$4*'Daily Dosing'!$E70/'Daily Dosing'!$B$4*'Daily Dosing'!$B$9,3)&" g",IF('Daily Dosing'!$B$7="Liquid",ROUND(J$4*'Daily Dosing'!$E70/'Daily Dosing'!$B$4*'Daily Dosing'!$B$8,2)&" ml","Error")))) ->  | K63: =IF('Daily Dosing'!$H70="","",IF(K$4="N/A","N/A",IF('Daily Dosing'!$B$7="Dry",ROUND(K$4*'Daily Dosing'!$E70/'Daily Dosing'!$B$4*'Daily Dosing'!$B$9,3)&" g",IF('Daily Dosing'!$B$7="Liquid",ROUND(K$4*'Daily Dosing'!$E70/'Daily Dosing'!$B$4*'Daily Dosing'!$B$8,2)&" ml","Error")))) ->  | L63: =IF('Daily Dosing'!$H70="","",IF(L$4="N/A","N/A",IF('Daily Dosing'!$B$7="Dry",ROUND(L$4*'Daily Dosing'!$E70/'Daily Dosing'!$B$4*'Daily Dosing'!$B$9,3)&" g",IF('Daily Dosing'!$B$7="Liquid",ROUND(L$4*'Daily Dosing'!$E70/'Daily Dosing'!$B$4*'Daily Dosing'!$B$8,2)&" ml","Error")))) ->  | M63: ='Daily Dosing'!R70 -> 0.0
A64: 59 | B64: 2021-11-25 | C64: ='Daily Dosing'!E71 -> 1.960 | D64: =IF('Daily Dosing'!H71="","",IF('Daily Dosing'!B$7="Dry",ROUND('Daily Dosing'!E71/'Daily Dosing'!B$4*'Daily Dosing'!B$9,3)&" g",IF('Daily Dosing'!B$7="Liquid",ROUND('Daily Dosing'!E71/'Daily Dosing'!B$4*'Daily Dosing'!B$8,2)&" ml","Error"))) ->  | E64: =IF('Daily Dosing'!$H71="","",IF(E$4="N/A","N/A",IF('Daily Dosing'!$B$7="Dry",ROUND(E$4*'Daily Dosing'!$E71/'Daily Dosing'!$B$4*'Daily Dosing'!$B$9,3)&" g",IF('Daily Dosing'!$B$7="Liquid",ROUND(E$4*'Daily Dosing'!$E71/'Daily Dosing'!$B$4*'Daily Dosing'!$B$8,2)&" ml","Error")))) ->  | F64: =IF('Daily Dosing'!$H71="","",IF(F$4="N/A","N/A",IF('Daily Dosing'!$B$7="Dry",ROUND(F$4*'Daily Dosing'!$E71/'Daily Dosing'!$B$4*'Daily Dosing'!$B$9,3)&" g",IF('Daily Dosing'!$B$7="Liquid",ROUND(F$4*'Daily Dosing'!$E71/'Daily Dosing'!$B$4*'Daily Dosing'!$B$8,2)&" ml","Error")))) ->  | G64: =IF('Daily Dosing'!$H71="","",IF(G$4="N/A","N/A",IF('Daily Dosing'!$B$7="Dry",ROUND(G$4*'Daily Dosing'!$E71/'Daily Dosing'!$B$4*'Daily Dosing'!$B$9,3)&" g",IF('Daily Dosing'!$B$7="Liquid",ROUND(G$4*'Daily Dosing'!$E71/'Daily Dosing'!$B$4*'Daily Dosing'!$B$8,2)&" ml","Error")))) ->  | H64: =IF('Daily Dosing'!$H71="","",IF(H$4="N/A","N/A",IF('Daily Dosing'!$B$7="Dry",ROUND(H$4*'Daily Dosing'!$E71/'Daily Dosing'!$B$4*'Daily Dosing'!$B$9,3)&" g",IF('Daily Dosing'!$B$7="Liquid",ROUND(H$4*'Daily Dosing'!$E71/'Daily Dosing'!$B$4*'Daily Dosing'!$B$8,2)&" ml","Error")))) ->  | I64: =IF('Daily Dosing'!$H71="","",IF(I$4="N/A","N/A",IF('Daily Dosing'!$B$7="Dry",ROUND(I$4*'Daily Dosing'!$E71/'Daily Dosing'!$B$4*'Daily Dosing'!$B$9,3)&" g",IF('Daily Dosing'!$B$7="Liquid",ROUND(I$4*'Daily Dosing'!$E71/'Daily Dosing'!$B$4*'Daily Dosing'!$B$8,2)&" ml","Error")))) ->  | J64: =IF('Daily Dosing'!$H71="","",IF(J$4="N/A","N/A",IF('Daily Dosing'!$B$7="Dry",ROUND(J$4*'Daily Dosing'!$E71/'Daily Dosing'!$B$4*'Daily Dosing'!$B$9,3)&" g",IF('Daily Dosing'!$B$7="Liquid",ROUND(J$4*'Daily Dosing'!$E71/'Daily Dosing'!$B$4*'Daily Dosing'!$B$8,2)&" ml","Error")))) ->  | K64: =IF('Daily Dosing'!$H71="","",IF(K$4="N/A","N/A",IF('Daily Dosing'!$B$7="Dry",ROUND(K$4*'Daily Dosing'!$E71/'Daily Dosing'!$B$4*'Daily Dosing'!$B$9,3)&" g",IF('Daily Dosing'!$B$7="Liquid",ROUND(K$4*'Daily Dosing'!$E71/'Daily Dosing'!$B$4*'Daily Dosing'!$B$8,2)&" ml","Error")))) ->  | L64: =IF('Daily Dosing'!$H71="","",IF(L$4="N/A","N/A",IF('Daily Dosing'!$B$7="Dry",ROUND(L$4*'Daily Dosing'!$E71/'Daily Dosing'!$B$4*'Daily Dosing'!$B$9,3)&" g",IF('Daily Dosing'!$B$7="Liquid",ROUND(L$4*'Daily Dosing'!$E71/'Daily Dosing'!$B$4*'Daily Dosing'!$B$8,2)&" ml","Error")))) ->  | M64: ='Daily Dosing'!R71 -> 0.0
A65: 60 | B65: 2021-11-26 | C65: ='Daily Dosing'!E72 -> 1.960 | D65: =IF('Daily Dosing'!H72="","",IF('Daily Dosing'!B$7="Dry",ROUND('Daily Dosing'!E72/'Daily Dosing'!B$4*'Daily Dosing'!B$9,3)&" g",IF('Daily Dosing'!B$7="Liquid",ROUND('Daily Dosing'!E72/'Daily Dosing'!B$4*'Daily Dosing'!B$8,2)&" ml","Error"))) ->  | E65: =IF('Daily Dosing'!$H72="","",IF(E$4="N/A","N/A",IF('Daily Dosing'!$B$7="Dry",ROUND(E$4*'Daily Dosing'!$E72/'Daily Dosing'!$B$4*'Daily Dosing'!$B$9,3)&" g",IF('Daily Dosing'!$B$7="Liquid",ROUND(E$4*'Daily Dosing'!$E72/'Daily Dosing'!$B$4*'Daily Dosing'!$B$8,2)&" ml","Error")))) ->  | F65: =IF('Daily Dosing'!$H72="","",IF(F$4="N/A","N/A",IF('Daily Dosing'!$B$7="Dry",ROUND(F$4*'Daily Dosing'!$E72/'Daily Dosing'!$B$4*'Daily Dosing'!$B$9,3)&" g",IF('Daily Dosing'!$B$7="Liquid",ROUND(F$4*'Daily Dosing'!$E72/'Daily Dosing'!$B$4*'Daily Dosing'!$B$8,2)&" ml","Error")))) ->  | G65: =IF('Daily Dosing'!$H72="","",IF(G$4="N/A","N/A",IF('Daily Dosing'!$B$7="Dry",ROUND(G$4*'Daily Dosing'!$E72/'Daily Dosing'!$B$4*'Daily Dosing'!$B$9,3)&" g",IF('Daily Dosing'!$B$7="Liquid",ROUND(G$4*'Daily Dosing'!$E72/'Daily Dosing'!$B$4*'Daily Dosing'!$B$8,2)&" ml","Error")))) ->  | H65: =IF('Daily Dosing'!$H72="","",IF(H$4="N/A","N/A",IF('Daily Dosing'!$B$7="Dry",ROUND(H$4*'Daily Dosing'!$E72/'Daily Dosing'!$B$4*'Daily Dosing'!$B$9,3)&" g",IF('Daily Dosing'!$B$7="Liquid",ROUND(H$4*'Daily Dosing'!$E72/'Daily Dosing'!$B$4*'Daily Dosing'!$B$8,2)&" ml","Error")))) ->  | I65: =IF('Daily Dosing'!$H72="","",IF(I$4="N/A","N/A",IF('Daily Dosing'!$B$7="Dry",ROUND(I$4*'Daily Dosing'!$E72/'Daily Dosing'!$B$4*'Daily Dosing'!$B$9,3)&" g",IF('Daily Dosing'!$B$7="Liquid",ROUND(I$4*'Daily Dosing'!$E72/'Daily Dosing'!$B$4*'Daily Dosing'!$B$8,2)&" ml","Error")))) ->  | J65: =IF('Daily Dosing'!$H72="","",IF(J$4="N/A","N/A",IF('Daily Dosing'!$B$7="Dry",ROUND(J$4*'Daily Dosing'!$E72/'Daily Dosing'!$B$4*'Daily Dosing'!$B$9,3)&" g",IF('Daily Dosing'!$B$7="Liquid",ROUND(J$4*'Daily Dosing'!$E72/'Daily Dosing'!$B$4*'Daily Dosing'!$B$8,2)&" ml","Error")))) ->  | K65: =IF('Daily Dosing'!$H72="","",IF(K$4="N/A","N/A",IF('Daily Dosing'!$B$7="Dry",ROUND(K$4*'Daily Dosing'!$E72/'Daily Dosing'!$B$4*'Daily Dosing'!$B$9,3)&" g",IF('Daily Dosing'!$B$7="Liquid",ROUND(K$4*'Daily Dosing'!$E72/'Daily Dosing'!$B$4*'Daily Dosing'!$B$8,2)&" ml","Error")))) ->  | L65: =IF('Daily Dosing'!$H72="","",IF(L$4="N/A","N/A",IF('Daily Dosing'!$B$7="Dry",ROUND(L$4*'Daily Dosing'!$E72/'Daily Dosing'!$B$4*'Daily Dosing'!$B$9,3)&" g",IF('Daily Dosing'!$B$7="Liquid",ROUND(L$4*'Daily Dosing'!$E72/'Daily Dosing'!$B$4*'Daily Dosing'!$B$8,2)&" ml","Error")))) ->  | M65: ='Daily Dosing'!R72 -> 0.0
A66: 61 | B66: 2021-11-27 | C66: ='Daily Dosing'!E73 -> 1.960 | D66: =IF('Daily Dosing'!H73="","",IF('Daily Dosing'!B$7="Dry",ROUND('Daily Dosing'!E73/'Daily Dosing'!B$4*'Daily Dosing'!B$9,3)&" g",IF('Daily Dosing'!B$7="Liquid",ROUND('Daily Dosing'!E73/'Daily Dosing'!B$4*'Daily Dosing'!B$8,2)&" ml","Error"))) ->  | E66: =IF('Daily Dosing'!$H73="","",IF(E$4="N/A","N/A",IF('Daily Dosing'!$B$7="Dry",ROUND(E$4*'Daily Dosing'!$E73/'Daily Dosing'!$B$4*'Daily Dosing'!$B$9,3)&" g",IF('Daily Dosing'!$B$7="Liquid",ROUND(E$4*'Daily Dosing'!$E73/'Daily Dosing'!$B$4*'Daily Dosing'!$B$8,2)&" ml","Error")))) ->  | F66: =IF('Daily Dosing'!$H73="","",IF(F$4="N/A","N/A",IF('Daily Dosing'!$B$7="Dry",ROUND(F$4*'Daily Dosing'!$E73/'Daily Dosing'!$B$4*'Daily Dosing'!$B$9,3)&" g",IF('Daily Dosing'!$B$7="Liquid",ROUND(F$4*'Daily Dosing'!$E73/'Daily Dosing'!$B$4*'Daily Dosing'!$B$8,2)&" ml","Error")))) ->  | G66: =IF('Daily Dosing'!$H73="","",IF(G$4="N/A","N/A",IF('Daily Dosing'!$B$7="Dry",ROUND(G$4*'Daily Dosing'!$E73/'Daily Dosing'!$B$4*'Daily Dosing'!$B$9,3)&" g",IF('Daily Dosing'!$B$7="Liquid",ROUND(G$4*'Daily Dosing'!$E73/'Daily Dosing'!$B$4*'Daily Dosing'!$B$8,2)&" ml","Error")))) ->  | H66: =IF('Daily Dosing'!$H73="","",IF(H$4="N/A","N/A",IF('Daily Dosing'!$B$7="Dry",ROUND(H$4*'Daily Dosing'!$E73/'Daily Dosing'!$B$4*'Daily Dosing'!$B$9,3)&" g",IF('Daily Dosing'!$B$7="Liquid",ROUND(H$4*'Daily Dosing'!$E73/'Daily Dosing'!$B$4*'Daily Dosing'!$B$8,2)&" ml","Error")))) ->  | I66: =IF('Daily Dosing'!$H73="","",IF(I$4="N/A","N/A",IF('Daily Dosing'!$B$7="Dry",ROUND(I$4*'Daily Dosing'!$E73/'Daily Dosing'!$B$4*'Daily Dosing'!$B$9,3)&" g",IF('Daily Dosing'!$B$7="Liquid",ROUND(I$4*'Daily Dosing'!$E73/'Daily Dosing'!$B$4*'Daily Dosing'!$B$8,2)&" ml","Error")))) ->  | J66: =IF('Daily Dosing'!$H73="","",IF(J$4="N/A","N/A",IF('Daily Dosing'!$B$7="Dry",ROUND(J$4*'Daily Dosing'!$E73/'Daily Dosing'!$B$4*'Daily Dosing'!$B$9,3)&" g",IF('Daily Dosing'!$B$7="Liquid",ROUND(J$4*'Daily Dosing'!$E73/'Daily Dosing'!$B$4*'Daily Dosing'!$B$8,2)&" ml","Error")))) ->  | K66: =IF('Daily Dosing'!$H73="","",IF(K$4="N/A","N/A",IF('Daily Dosing'!$B$7="Dry",ROUND(K$4*'Daily Dosing'!$E73/'Daily Dosing'!$B$4*'Daily Dosing'!$B$9,3)&" g",IF('Daily Dosing'!$B$7="Liquid",ROUND(K$4*'Daily Dosing'!$E73/'Daily Dosing'!$B$4*'Daily Dosing'!$B$8,2)&" ml","Error")))) ->  | L66: =IF('Daily Dosing'!$H73="","",IF(L$4="N/A","N/A",IF('Daily Dosing'!$B$7="Dry",ROUND(L$4*'Daily Dosing'!$E73/'Daily Dosing'!$B$4*'Daily Dosing'!$B$9,3)&" g",IF('Daily Dosing'!$B$7="Liquid",ROUND(L$4*'Daily Dosing'!$E73/'Daily Dosing'!$B$4*'Daily Dosing'!$B$8,2)&" ml","Error")))) ->  | M66: ='Daily Dosing'!R73 -> 0.0
A67: 62 | B67: 2021-11-28 | C67: ='Daily Dosing'!E74 -> 1.960 | D67: =IF('Daily Dosing'!H74="","",IF('Daily Dosing'!B$7="Dry",ROUND('Daily Dosing'!E74/'Daily Dosing'!B$4*'Daily Dosing'!B$9,3)&" g",IF('Daily Dosing'!B$7="Liquid",ROUND('Daily Dosing'!E74/'Daily Dosing'!B$4*'Daily Dosing'!B$8,2)&" ml","Error"))) ->  | E67: =IF('Daily Dosing'!$H74="","",IF(E$4="N/A","N/A",IF('Daily Dosing'!$B$7="Dry",ROUND(E$4*'Daily Dosing'!$E74/'Daily Dosing'!$B$4*'Daily Dosing'!$B$9,3)&" g",IF('Daily Dosing'!$B$7="Liquid",ROUND(E$4*'Daily Dosing'!$E74/'Daily Dosing'!$B$4*'Daily Dosing'!$B$8,2)&" ml","Error")))) ->  | F67: =IF('Daily Dosing'!$H74="","",IF(F$4="N/A","N/A",IF('Daily Dosing'!$B$7="Dry",ROUND(F$4*'Daily Dosing'!$E74/'Daily Dosing'!$B$4*'Daily Dosing'!$B$9,3)&" g",IF('Daily Dosing'!$B$7="Liquid",ROUND(F$4*'Daily Dosing'!$E74/'Daily Dosing'!$B$4*'Daily Dosing'!$B$8,2)&" ml","Error")))) ->  | G67: =IF('Daily Dosing'!$H74="","",IF(G$4="N/A","N/A",IF('Daily Dosing'!$B$7="Dry",ROUND(G$4*'Daily Dosing'!$E74/'Daily Dosing'!$B$4*'Daily Dosing'!$B$9,3)&" g",IF('Daily Dosing'!$B$7="Liquid",ROUND(G$4*'Daily Dosing'!$E74/'Daily Dosing'!$B$4*'Daily Dosing'!$B$8,2)&" ml","Error")))) ->  | H67: =IF('Daily Dosing'!$H74="","",IF(H$4="N/A","N/A",IF('Daily Dosing'!$B$7="Dry",ROUND(H$4*'Daily Dosing'!$E74/'Daily Dosing'!$B$4*'Daily Dosing'!$B$9,3)&" g",IF('Daily Dosing'!$B$7="Liquid",ROUND(H$4*'Daily Dosing'!$E74/'Daily Dosing'!$B$4*'Daily Dosing'!$B$8,2)&" ml","Error")))) ->  | I67: =IF('Daily Dosing'!$H74="","",IF(I$4="N/A","N/A",IF('Daily Dosing'!$B$7="Dry",ROUND(I$4*'Daily Dosing'!$E74/'Daily Dosing'!$B$4*'Daily Dosing'!$B$9,3)&" g",IF('Daily Dosing'!$B$7="Liquid",ROUND(I$4*'Daily Dosing'!$E74/'Daily Dosing'!$B$4*'Daily Dosing'!$B$8,2)&" ml","Error")))) ->  | J67: =IF('Daily Dosing'!$H74="","",IF(J$4="N/A","N/A",IF('Daily Dosing'!$B$7="Dry",ROUND(J$4*'Daily Dosing'!$E74/'Daily Dosing'!$B$4*'Daily Dosing'!$B$9,3)&" g",IF('Daily Dosing'!$B$7="Liquid",ROUND(J$4*'Daily Dosing'!$E74/'Daily Dosing'!$B$4*'Daily Dosing'!$B$8,2)&" ml","Error")))) ->  | K67: =IF('Daily Dosing'!$H74="","",IF(K$4="N/A","N/A",IF('Daily Dosing'!$B$7="Dry",ROUND(K$4*'Daily Dosing'!$E74/'Daily Dosing'!$B$4*'Daily Dosing'!$B$9,3)&" g",IF('Daily Dosing'!$B$7="Liquid",ROUND(K$4*'Daily Dosing'!$E74/'Daily Dosing'!$B$4*'Daily Dosing'!$B$8,2)&" ml","Error")))) ->  | L67: =IF('Daily Dosing'!$H74="","",IF(L$4="N/A","N/A",IF('Daily Dosing'!$B$7="Dry",ROUND(L$4*'Daily Dosing'!$E74/'Daily Dosing'!$B$4*'Daily Dosing'!$B$9,3)&" g",IF('Daily Dosing'!$B$7="Liquid",ROUND(L$4*'Daily Dosing'!$E74/'Daily Dosing'!$B$4*'Daily Dosing'!$B$8,2)&" ml","Error")))) ->  | M67: ='Daily Dosing'!R74 -> 0.0
A68: 63 | B68: 2021-11-29 | C68: ='Daily Dosing'!E75 -> 1.960 | D68: =IF('Daily Dosing'!H75="","",IF('Daily Dosing'!B$7="Dry",ROUND('Daily Dosing'!E75/'Daily Dosing'!B$4*'Daily Dosing'!B$9,3)&" g",IF('Daily Dosing'!B$7="Liquid",ROUND('Daily Dosing'!E75/'Daily Dosing'!B$4*'Daily Dosing'!B$8,2)&" ml","Error"))) ->  | E68: =IF('Daily Dosing'!$H75="","",IF(E$4="N/A","N/A",IF('Daily Dosing'!$B$7="Dry",ROUND(E$4*'Daily Dosing'!$E75/'Daily Dosing'!$B$4*'Daily Dosing'!$B$9,3)&" g",IF('Daily Dosing'!$B$7="Liquid",ROUND(E$4*'Daily Dosing'!$E75/'Daily Dosing'!$B$4*'Daily Dosing'!$B$8,2)&" ml","Error")))) ->  | F68: =IF('Daily Dosing'!$H75="","",IF(F$4="N/A","N/A",IF('Daily Dosing'!$B$7="Dry",ROUND(F$4*'Daily Dosing'!$E75/'Daily Dosing'!$B$4*'Daily Dosing'!$B$9,3)&" g",IF('Daily Dosing'!$B$7="Liquid",ROUND(F$4*'Daily Dosing'!$E75/'Daily Dosing'!$B$4*'Daily Dosing'!$B$8,2)&" ml","Error")))) ->  | G68: =IF('Daily Dosing'!$H75="","",IF(G$4="N/A","N/A",IF('Daily Dosing'!$B$7="Dry",ROUND(G$4*'Daily Dosing'!$E75/'Daily Dosing'!$B$4*'Daily Dosing'!$B$9,3)&" g",IF('Daily Dosing'!$B$7="Liquid",ROUND(G$4*'Daily Dosing'!$E75/'Daily Dosing'!$B$4*'Daily Dosing'!$B$8,2)&" ml","Error")))) ->  | H68: =IF('Daily Dosing'!$H75="","",IF(H$4="N/A","N/A",IF('Daily Dosing'!$B$7="Dry",ROUND(H$4*'Daily Dosing'!$E75/'Daily Dosing'!$B$4*'Daily Dosing'!$B$9,3)&" g",IF('Daily Dosing'!$B$7="Liquid",ROUND(H$4*'Daily Dosing'!$E75/'Daily Dosing'!$B$4*'Daily Dosing'!$B$8,2)&" ml","Error")))) ->  | I68: =IF('Daily Dosing'!$H75="","",IF(I$4="N/A","N/A",IF('Daily Dosing'!$B$7="Dry",ROUND(I$4*'Daily Dosing'!$E75/'Daily Dosing'!$B$4*'Daily Dosing'!$B$9,3)&" g",IF('Daily Dosing'!$B$7="Liquid",ROUND(I$4*'Daily Dosing'!$E75/'Daily Dosing'!$B$4*'Daily Dosing'!$B$8,2)&" ml","Error")))) ->  | J68: =IF('Daily Dosing'!$H75="","",IF(J$4="N/A","N/A",IF('Daily Dosing'!$B$7="Dry",ROUND(J$4*'Daily Dosing'!$E75/'Daily Dosing'!$B$4*'Daily Dosing'!$B$9,3)&" g",IF('Daily Dosing'!$B$7="Liquid",ROUND(J$4*'Daily Dosing'!$E75/'Daily Dosing'!$B$4*'Daily Dosing'!$B$8,2)&" ml","Error")))) ->  | K68: =IF('Daily Dosing'!$H75="","",IF(K$4="N/A","N/A",IF('Daily Dosing'!$B$7="Dry",ROUND(K$4*'Daily Dosing'!$E75/'Daily Dosing'!$B$4*'Daily Dosing'!$B$9,3)&" g",IF('Daily Dosing'!$B$7="Liquid",ROUND(K$4*'Daily Dosing'!$E75/'Daily Dosing'!$B$4*'Daily Dosing'!$B$8,2)&" ml","Error")))) ->  | L68: =IF('Daily Dosing'!$H75="","",IF(L$4="N/A","N/A",IF('Daily Dosing'!$B$7="Dry",ROUND(L$4*'Daily Dosing'!$E75/'Daily Dosing'!$B$4*'Daily Dosing'!$B$9,3)&" g",IF('Daily Dosing'!$B$7="Liquid",ROUND(L$4*'Daily Dosing'!$E75/'Daily Dosing'!$B$4*'Daily Dosing'!$B$8,2)&" ml","Error")))) ->  | M68: ='Daily Dosing'!R75 -> 0.0
A69: 64 | B69: 2021-11-30 | C69: ='Daily Dosing'!E76 -> 1.960 | D69: =IF('Daily Dosing'!H76="","",IF('Daily Dosing'!B$7="Dry",ROUND('Daily Dosing'!E76/'Daily Dosing'!B$4*'Daily Dosing'!B$9,3)&" g",IF('Daily Dosing'!B$7="Liquid",ROUND('Daily Dosing'!E76/'Daily Dosing'!B$4*'Daily Dosing'!B$8,2)&" ml","Error"))) ->  | E69: =IF('Daily Dosing'!$H76="","",IF(E$4="N/A","N/A",IF('Daily Dosing'!$B$7="Dry",ROUND(E$4*'Daily Dosing'!$E76/'Daily Dosing'!$B$4*'Daily Dosing'!$B$9,3)&" g",IF('Daily Dosing'!$B$7="Liquid",ROUND(E$4*'Daily Dosing'!$E76/'Daily Dosing'!$B$4*'Daily Dosing'!$B$8,2)&" ml","Error")))) ->  | F69: =IF('Daily Dosing'!$H76="","",IF(F$4="N/A","N/A",IF('Daily Dosing'!$B$7="Dry",ROUND(F$4*'Daily Dosing'!$E76/'Daily Dosing'!$B$4*'Daily Dosing'!$B$9,3)&" g",IF('Daily Dosing'!$B$7="Liquid",ROUND(F$4*'Daily Dosing'!$E76/'Daily Dosing'!$B$4*'Daily Dosing'!$B$8,2)&" ml","Error")))) ->  | G69: =IF('Daily Dosing'!$H76="","",IF(G$4="N/A","N/A",IF('Daily Dosing'!$B$7="Dry",ROUND(G$4*'Daily Dosing'!$E76/'Daily Dosing'!$B$4*'Daily Dosing'!$B$9,3)&" g",IF('Daily Dosing'!$B$7="Liquid",ROUND(G$4*'Daily Dosing'!$E76/'Daily Dosing'!$B$4*'Daily Dosing'!$B$8,2)&" ml","Error")))) ->  | H69: =IF('Daily Dosing'!$H76="","",IF(H$4="N/A","N/A",IF('Daily Dosing'!$B$7="Dry",ROUND(H$4*'Daily Dosing'!$E76/'Daily Dosing'!$B$4*'Daily Dosing'!$B$9,3)&" g",IF('Daily Dosing'!$B$7="Liquid",ROUND(H$4*'Daily Dosing'!$E76/'Daily Dosing'!$B$4*'Daily Dosing'!$B$8,2)&" ml","Error")))) ->  | I69: =IF('Daily Dosing'!$H76="","",IF(I$4="N/A","N/A",IF('Daily Dosing'!$B$7="Dry",ROUND(I$4*'Daily Dosing'!$E76/'Daily Dosing'!$B$4*'Daily Dosing'!$B$9,3)&" g",IF('Daily Dosing'!$B$7="Liquid",ROUND(I$4*'Daily Dosing'!$E76/'Daily Dosing'!$B$4*'Daily Dosing'!$B$8,2)&" ml","Error")))) ->  | J69: =IF('Daily Dosing'!$H76="","",IF(J$4="N/A","N/A",IF('Daily Dosing'!$B$7="Dry",ROUND(J$4*'Daily Dosing'!$E76/'Daily Dosing'!$B$4*'Daily Dosing'!$B$9,3)&" g",IF('Daily Dosing'!$B$7="Liquid",ROUND(J$4*'Daily Dosing'!$E76/'Daily Dosing'!$B$4*'Daily Dosing'!$B$8,2)&" ml","Error")))) ->  | K69: =IF('Daily Dosing'!$H76="","",IF(K$4="N/A","N/A",IF('Daily Dosing'!$B$7="Dry",ROUND(K$4*'Daily Dosing'!$E76/'Daily Dosing'!$B$4*'Daily Dosing'!$B$9,3)&" g",IF('Daily Dosing'!$B$7="Liquid",ROUND(K$4*'Daily Dosing'!$E76/'Daily Dosing'!$B$4*'Daily Dosing'!$B$8,2)&" ml","Error")))) ->  | L69: =IF('Daily Dosing'!$H76="","",IF(L$4="N/A","N/A",IF('Daily Dosing'!$B$7="Dry",ROUND(L$4*'Daily Dosing'!$E76/'Daily Dosing'!$B$4*'Daily Dosing'!$B$9,3)&" g",IF('Daily Dosing'!$B$7="Liquid",ROUND(L$4*'Daily Dosing'!$E76/'Daily Dosing'!$B$4*'Daily Dosing'!$B$8,2)&" ml","Error")))) ->  | M69: ='Daily Dosing'!R76 -> 0.0
A70: 65 | B70: 2021-12-01 | C70: ='Daily Dosing'!E77 -> 1.960 | D70: =IF('Daily Dosing'!H77="","",IF('Daily Dosing'!B$7="Dry",ROUND('Daily Dosing'!E77/'Daily Dosing'!B$4*'Daily Dosing'!B$9,3)&" g",IF('Daily Dosing'!B$7="Liquid",ROUND('Daily Dosing'!E77/'Daily Dosing'!B$4*'Daily Dosing'!B$8,2)&" ml","Error"))) ->  | E70: =IF('Daily Dosing'!$H77="","",IF(E$4="N/A","N/A",IF('Daily Dosing'!$B$7="Dry",ROUND(E$4*'Daily Dosing'!$E77/'Daily Dosing'!$B$4*'Daily Dosing'!$B$9,3)&" g",IF('Daily Dosing'!$B$7="Liquid",ROUND(E$4*'Daily Dosing'!$E77/'Daily Dosing'!$B$4*'Daily Dosing'!$B$8,2)&" ml","Error")))) ->  | F70: =IF('Daily Dosing'!$H77="","",IF(F$4="N/A","N/A",IF('Daily Dosing'!$B$7="Dry",ROUND(F$4*'Daily Dosing'!$E77/'Daily Dosing'!$B$4*'Daily Dosing'!$B$9,3)&" g",IF('Daily Dosing'!$B$7="Liquid",ROUND(F$4*'Daily Dosing'!$E77/'Daily Dosing'!$B$4*'Daily Dosing'!$B$8,2)&" ml","Error")))) ->  | G70: =IF('Daily Dosing'!$H77="","",IF(G$4="N/A","N/A",IF('Daily Dosing'!$B$7="Dry",ROUND(G$4*'Daily Dosing'!$E77/'Daily Dosing'!$B$4*'Daily Dosing'!$B$9,3)&" g",IF('Daily Dosing'!$B$7="Liquid",ROUND(G$4*'Daily Dosing'!$E77/'Daily Dosing'!$B$4*'Daily Dosing'!$B$8,2)&" ml","Error")))) ->  | H70: =IF('Daily Dosing'!$H77="","",IF(H$4="N/A","N/A",IF('Daily Dosing'!$B$7="Dry",ROUND(H$4*'Daily Dosing'!$E77/'Daily Dosing'!$B$4*'Daily Dosing'!$B$9,3)&" g",IF('Daily Dosing'!$B$7="Liquid",ROUND(H$4*'Daily Dosing'!$E77/'Daily Dosing'!$B$4*'Daily Dosing'!$B$8,2)&" ml","Error")))) ->  | I70: =IF('Daily Dosing'!$H77="","",IF(I$4="N/A","N/A",IF('Daily Dosing'!$B$7="Dry",ROUND(I$4*'Daily Dosing'!$E77/'Daily Dosing'!$B$4*'Daily Dosing'!$B$9,3)&" g",IF('Daily Dosing'!$B$7="Liquid",ROUND(I$4*'Daily Dosing'!$E77/'Daily Dosing'!$B$4*'Daily Dosing'!$B$8,2)&" ml","Error")))) ->  | J70: =IF('Daily Dosing'!$H77="","",IF(J$4="N/A","N/A",IF('Daily Dosing'!$B$7="Dry",ROUND(J$4*'Daily Dosing'!$E77/'Daily Dosing'!$B$4*'Daily Dosing'!$B$9,3)&" g",IF('Daily Dosing'!$B$7="Liquid",ROUND(J$4*'Daily Dosing'!$E77/'Daily Dosing'!$B$4*'Daily Dosing'!$B$8,2)&" ml","Error")))) ->  | K70: =IF('Daily Dosing'!$H77="","",IF(K$4="N/A","N/A",IF('Daily Dosing'!$B$7="Dry",ROUND(K$4*'Daily Dosing'!$E77/'Daily Dosing'!$B$4*'Daily Dosing'!$B$9,3)&" g",IF('Daily Dosing'!$B$7="Liquid",ROUND(K$4*'Daily Dosing'!$E77/'Daily Dosing'!$B$4*'Daily Dosing'!$B$8,2)&" ml","Error")))) ->  | L70: =IF('Daily Dosing'!$H77="","",IF(L$4="N/A","N/A",IF('Daily Dosing'!$B$7="Dry",ROUND(L$4*'Daily Dosing'!$E77/'Daily Dosing'!$B$4*'Daily Dosing'!$B$9,3)&" g",IF('Daily Dosing'!$B$7="Liquid",ROUND(L$4*'Daily Dosing'!$E77/'Daily Dosing'!$B$4*'Daily Dosing'!$B$8,2)&" ml","Error")))) ->  | M70: ='Daily Dosing'!R77 -> 0.0
A71: 66 | B71: 2021-12-02 | C71: ='Daily Dosing'!E78 -> 1.960 | D71: =IF('Daily Dosing'!H78="","",IF('Daily Dosing'!B$7="Dry",ROUND('Daily Dosing'!E78/'Daily Dosing'!B$4*'Daily Dosing'!B$9,3)&" g",IF('Daily Dosing'!B$7="Liquid",ROUND('Daily Dosing'!E78/'Daily Dosing'!B$4*'Daily Dosing'!B$8,2)&" ml","Error"))) ->  | E71: =IF('Daily Dosing'!$H78="","",IF(E$4="N/A","N/A",IF('Daily Dosing'!$B$7="Dry",ROUND(E$4*'Daily Dosing'!$E78/'Daily Dosing'!$B$4*'Daily Dosing'!$B$9,3)&" g",IF('Daily Dosing'!$B$7="Liquid",ROUND(E$4*'Daily Dosing'!$E78/'Daily Dosing'!$B$4*'Daily Dosing'!$B$8,2)&" ml","Error")))) ->  | F71: =IF('Daily Dosing'!$H78="","",IF(F$4="N/A","N/A",IF('Daily Dosing'!$B$7="Dry",ROUND(F$4*'Daily Dosing'!$E78/'Daily Dosing'!$B$4*'Daily Dosing'!$B$9,3)&" g",IF('Daily Dosing'!$B$7="Liquid",ROUND(F$4*'Daily Dosing'!$E78/'Daily Dosing'!$B$4*'Daily Dosing'!$B$8,2)&" ml","Error")))) ->  | G71: =IF('Daily Dosing'!$H78="","",IF(G$4="N/A","N/A",IF('Daily Dosing'!$B$7="Dry",ROUND(G$4*'Daily Dosing'!$E78/'Daily Dosing'!$B$4*'Daily Dosing'!$B$9,3)&" g",IF('Daily Dosing'!$B$7="Liquid",ROUND(G$4*'Daily Dosing'!$E78/'Daily Dosing'!$B$4*'Daily Dosing'!$B$8,2)&" ml","Error")))) ->  | H71: =IF('Daily Dosing'!$H78="","",IF(H$4="N/A","N/A",IF('Daily Dosing'!$B$7="Dry",ROUND(H$4*'Daily Dosing'!$E78/'Daily Dosing'!$B$4*'Daily Dosing'!$B$9,3)&" g",IF('Daily Dosing'!$B$7="Liquid",ROUND(H$4*'Daily Dosing'!$E78/'Daily Dosing'!$B$4*'Daily Dosing'!$B$8,2)&" ml","Error")))) ->  | I71: =IF('Daily Dosing'!$H78="","",IF(I$4="N/A","N/A",IF('Daily Dosing'!$B$7="Dry",ROUND(I$4*'Daily Dosing'!$E78/'Daily Dosing'!$B$4*'Daily Dosing'!$B$9,3)&" g",IF('Daily Dosing'!$B$7="Liquid",ROUND(I$4*'Daily Dosing'!$E78/'Daily Dosing'!$B$4*'Daily Dosing'!$B$8,2)&" ml","Error")))) ->  | J71: =IF('Daily Dosing'!$H78="","",IF(J$4="N/A","N/A",IF('Daily Dosing'!$B$7="Dry",ROUND(J$4*'Daily Dosing'!$E78/'Daily Dosing'!$B$4*'Daily Dosing'!$B$9,3)&" g",IF('Daily Dosing'!$B$7="Liquid",ROUND(J$4*'Daily Dosing'!$E78/'Daily Dosing'!$B$4*'Daily Dosing'!$B$8,2)&" ml","Error")))) ->  | K71: =IF('Daily Dosing'!$H78="","",IF(K$4="N/A","N/A",IF('Daily Dosing'!$B$7="Dry",ROUND(K$4*'Daily Dosing'!$E78/'Daily Dosing'!$B$4*'Daily Dosing'!$B$9,3)&" g",IF('Daily Dosing'!$B$7="Liquid",ROUND(K$4*'Daily Dosing'!$E78/'Daily Dosing'!$B$4*'Daily Dosing'!$B$8,2)&" ml","Error")))) ->  | L71: =IF('Daily Dosing'!$H78="","",IF(L$4="N/A","N/A",IF('Daily Dosing'!$B$7="Dry",ROUND(L$4*'Daily Dosing'!$E78/'Daily Dosing'!$B$4*'Daily Dosing'!$B$9,3)&" g",IF('Daily Dosing'!$B$7="Liquid",ROUND(L$4*'Daily Dosing'!$E78/'Daily Dosing'!$B$4*'Daily Dosing'!$B$8,2)&" ml","Error")))) ->  | M71: ='Daily Dosing'!R78 -> 0.0
A72: 67 | B72: 2021-12-03 | C72: ='Daily Dosing'!E79 -> 1.960 | D72: =IF('Daily Dosing'!H79="","",IF('Daily Dosing'!B$7="Dry",ROUND('Daily Dosing'!E79/'Daily Dosing'!B$4*'Daily Dosing'!B$9,3)&" g",IF('Daily Dosing'!B$7="Liquid",ROUND('Daily Dosing'!E79/'Daily Dosing'!B$4*'Daily Dosing'!B$8,2)&" ml","Error"))) ->  | E72: =IF('Daily Dosing'!$H79="","",IF(E$4="N/A","N/A",IF('Daily Dosing'!$B$7="Dry",ROUND(E$4*'Daily Dosing'!$E79/'Daily Dosing'!$B$4*'Daily Dosing'!$B$9,3)&" g",IF('Daily Dosing'!$B$7="Liquid",ROUND(E$4*'Daily Dosing'!$E79/'Daily Dosing'!$B$4*'Daily Dosing'!$B$8,2)&" ml","Error")))) ->  | F72: =IF('Daily Dosing'!$H79="","",IF(F$4="N/A","N/A",IF('Daily Dosing'!$B$7="Dry",ROUND(F$4*'Daily Dosing'!$E79/'Daily Dosing'!$B$4*'Daily Dosing'!$B$9,3)&" g",IF('Daily Dosing'!$B$7="Liquid",ROUND(F$4*'Daily Dosing'!$E79/'Daily Dosing'!$B$4*'Daily Dosing'!$B$8,2)&" ml","Error")))) ->  | G72: =IF('Daily Dosing'!$H79="","",IF(G$4="N/A","N/A",IF('Daily Dosing'!$B$7="Dry",ROUND(G$4*'Daily Dosing'!$E79/'Daily Dosing'!$B$4*'Daily Dosing'!$B$9,3)&" g",IF('Daily Dosing'!$B$7="Liquid",ROUND(G$4*'Daily Dosing'!$E79/'Daily Dosing'!$B$4*'Daily Dosing'!$B$8,2)&" ml","Error")))) ->  | H72: =IF('Daily Dosing'!$H79="","",IF(H$4="N/A","N/A",IF('Daily Dosing'!$B$7="Dry",ROUND(H$4*'Daily Dosing'!$E79/'Daily Dosing'!$B$4*'Daily Dosing'!$B$9,3)&" g",IF('Daily Dosing'!$B$7="Liquid",ROUND(H$4*'Daily Dosing'!$E79/'Daily Dosing'!$B$4*'Daily Dosing'!$B$8,2)&" ml","Error")))) ->  | I72: =IF('Daily Dosing'!$H79="","",IF(I$4="N/A","N/A",IF('Daily Dosing'!$B$7="Dry",ROUND(I$4*'Daily Dosing'!$E79/'Daily Dosing'!$B$4*'Daily Dosing'!$B$9,3)&" g",IF('Daily Dosing'!$B$7="Liquid",ROUND(I$4*'Daily Dosing'!$E79/'Daily Dosing'!$B$4*'Daily Dosing'!$B$8,2)&" ml","Error")))) ->  | J72: =IF('Daily Dosing'!$H79="","",IF(J$4="N/A","N/A",IF('Daily Dosing'!$B$7="Dry",ROUND(J$4*'Daily Dosing'!$E79/'Daily Dosing'!$B$4*'Daily Dosing'!$B$9,3)&" g",IF('Daily Dosing'!$B$7="Liquid",ROUND(J$4*'Daily Dosing'!$E79/'Daily Dosing'!$B$4*'Daily Dosing'!$B$8,2)&" ml","Error")))) ->  | K72: =IF('Daily Dosing'!$H79="","",IF(K$4="N/A","N/A",IF('Daily Dosing'!$B$7="Dry",ROUND(K$4*'Daily Dosing'!$E79/'Daily Dosing'!$B$4*'Daily Dosing'!$B$9,3)&" g",IF('Daily Dosing'!$B$7="Liquid",ROUND(K$4*'Daily Dosing'!$E79/'Daily Dosing'!$B$4*'Daily Dosing'!$B$8,2)&" ml","Error")))) ->  | L72: =IF('Daily Dosing'!$H79="","",IF(L$4="N/A","N/A",IF('Daily Dosing'!$B$7="Dry",ROUND(L$4*'Daily Dosing'!$E79/'Daily Dosing'!$B$4*'Daily Dosing'!$B$9,3)&" g",IF('Daily Dosing'!$B$7="Liquid",ROUND(L$4*'Daily Dosing'!$E79/'Daily Dosing'!$B$4*'Daily Dosing'!$B$8,2)&" ml","Error")))) ->  | M72: ='Daily Dosing'!R79 -> 0.0
A73: 68 | B73: 2021-12-04 | C73: ='Daily Dosing'!E80 -> 1.960 | D73: =IF('Daily Dosing'!H80="","",IF('Daily Dosing'!B$7="Dry",ROUND('Daily Dosing'!E80/'Daily Dosing'!B$4*'Daily Dosing'!B$9,3)&" g",IF('Daily Dosing'!B$7="Liquid",ROUND('Daily Dosing'!E80/'Daily Dosing'!B$4*'Daily Dosing'!B$8,2)&" ml","Error"))) ->  | E73: =IF('Daily Dosing'!$H80="","",IF(E$4="N/A","N/A",IF('Daily Dosing'!$B$7="Dry",ROUND(E$4*'Daily Dosing'!$E80/'Daily Dosing'!$B$4*'Daily Dosing'!$B$9,3)&" g",IF('Daily Dosing'!$B$7="Liquid",ROUND(E$4*'Daily Dosing'!$E80/'Daily Dosing'!$B$4*'Daily Dosing'!$B$8,2)&" ml","Error")))) ->  | F73: =IF('Daily Dosing'!$H80="","",IF(F$4="N/A","N/A",IF('Daily Dosing'!$B$7="Dry",ROUND(F$4*'Daily Dosing'!$E80/'Daily Dosing'!$B$4*'Daily Dosing'!$B$9,3)&" g",IF('Daily Dosing'!$B$7="Liquid",ROUND(F$4*'Daily Dosing'!$E80/'Daily Dosing'!$B$4*'Daily Dosing'!$B$8,2)&" ml","Error")))) ->  | G73: =IF('Daily Dosing'!$H80="","",IF(G$4="N/A","N/A",IF('Daily Dosing'!$B$7="Dry",ROUND(G$4*'Daily Dosing'!$E80/'Daily Dosing'!$B$4*'Daily Dosing'!$B$9,3)&" g",IF('Daily Dosing'!$B$7="Liquid",ROUND(G$4*'Daily Dosing'!$E80/'Daily Dosing'!$B$4*'Daily Dosing'!$B$8,2)&" ml","Error")))) ->  | H73: =IF('Daily Dosing'!$H80="","",IF(H$4="N/A","N/A",IF('Daily Dosing'!$B$7="Dry",ROUND(H$4*'Daily Dosing'!$E80/'Daily Dosing'!$B$4*'Daily Dosing'!$B$9,3)&" g",IF('Daily Dosing'!$B$7="Liquid",ROUND(H$4*'Daily Dosing'!$E80/'Daily Dosing'!$B$4*'Daily Dosing'!$B$8,2)&" ml","Error")))) ->  | I73: =IF('Daily Dosing'!$H80="","",IF(I$4="N/A","N/A",IF('Daily Dosing'!$B$7="Dry",ROUND(I$4*'Daily Dosing'!$E80/'Daily Dosing'!$B$4*'Daily Dosing'!$B$9,3)&" g",IF('Daily Dosing'!$B$7="Liquid",ROUND(I$4*'Daily Dosing'!$E80/'Daily Dosing'!$B$4*'Daily Dosing'!$B$8,2)&" ml","Error")))) ->  | J73: =IF('Daily Dosing'!$H80="","",IF(J$4="N/A","N/A",IF('Daily Dosing'!$B$7="Dry",ROUND(J$4*'Daily Dosing'!$E80/'Daily Dosing'!$B$4*'Daily Dosing'!$B$9,3)&" g",IF('Daily Dosing'!$B$7="Liquid",ROUND(J$4*'Daily Dosing'!$E80/'Daily Dosing'!$B$4*'Daily Dosing'!$B$8,2)&" ml","Error")))) ->  | K73: =IF('Daily Dosing'!$H80="","",IF(K$4="N/A","N/A",IF('Daily Dosing'!$B$7="Dry",ROUND(K$4*'Daily Dosing'!$E80/'Daily Dosing'!$B$4*'Daily Dosing'!$B$9,3)&" g",IF('Daily Dosing'!$B$7="Liquid",ROUND(K$4*'Daily Dosing'!$E80/'Daily Dosing'!$B$4*'Daily Dosing'!$B$8,2)&" ml","Error")))) ->  | L73: =IF('Daily Dosing'!$H80="","",IF(L$4="N/A","N/A",IF('Daily Dosing'!$B$7="Dry",ROUND(L$4*'Daily Dosing'!$E80/'Daily Dosing'!$B$4*'Daily Dosing'!$B$9,3)&" g",IF('Daily Dosing'!$B$7="Liquid",ROUND(L$4*'Daily Dosing'!$E80/'Daily Dosing'!$B$4*'Daily Dosing'!$B$8,2)&" ml","Error")))) ->  | M73: ='Daily Dosing'!R80 -> 0.0
A74: 69 | B74: 2021-12-05 | C74: ='Daily Dosing'!E81 -> 1.960 | D74: =IF('Daily Dosing'!H81="","",IF('Daily Dosing'!B$7="Dry",ROUND('Daily Dosing'!E81/'Daily Dosing'!B$4*'Daily Dosing'!B$9,3)&" g",IF('Daily Dosing'!B$7="Liquid",ROUND('Daily Dosing'!E81/'Daily Dosing'!B$4*'Daily Dosing'!B$8,2)&" ml","Error"))) ->  | E74: =IF('Daily Dosing'!$H81="","",IF(E$4="N/A","N/A",IF('Daily Dosing'!$B$7="Dry",ROUND(E$4*'Daily Dosing'!$E81/'Daily Dosing'!$B$4*'Daily Dosing'!$B$9,3)&" g",IF('Daily Dosing'!$B$7="Liquid",ROUND(E$4*'Daily Dosing'!$E81/'Daily Dosing'!$B$4*'Daily Dosing'!$B$8,2)&" ml","Error")))) ->  | F74: =IF('Daily Dosing'!$H81="","",IF(F$4="N/A","N/A",IF('Daily Dosing'!$B$7="Dry",ROUND(F$4*'Daily Dosing'!$E81/'Daily Dosing'!$B$4*'Daily Dosing'!$B$9,3)&" g",IF('Daily Dosing'!$B$7="Liquid",ROUND(F$4*'Daily Dosing'!$E81/'Daily Dosing'!$B$4*'Daily Dosing'!$B$8,2)&" ml","Error")))) ->  | G74: =IF('Daily Dosing'!$H81="","",IF(G$4="N/A","N/A",IF('Daily Dosing'!$B$7="Dry",ROUND(G$4*'Daily Dosing'!$E81/'Daily Dosing'!$B$4*'Daily Dosing'!$B$9,3)&" g",IF('Daily Dosing'!$B$7="Liquid",ROUND(G$4*'Daily Dosing'!$E81/'Daily Dosing'!$B$4*'Daily Dosing'!$B$8,2)&" ml","Error")))) ->  | H74: =IF('Daily Dosing'!$H81="","",IF(H$4="N/A","N/A",IF('Daily Dosing'!$B$7="Dry",ROUND(H$4*'Daily Dosing'!$E81/'Daily Dosing'!$B$4*'Daily Dosing'!$B$9,3)&" g",IF('Daily Dosing'!$B$7="Liquid",ROUND(H$4*'Daily Dosing'!$E81/'Daily Dosing'!$B$4*'Daily Dosing'!$B$8,2)&" ml","Error")))) ->  | I74: =IF('Daily Dosing'!$H81="","",IF(I$4="N/A","N/A",IF('Daily Dosing'!$B$7="Dry",ROUND(I$4*'Daily Dosing'!$E81/'Daily Dosing'!$B$4*'Daily Dosing'!$B$9,3)&" g",IF('Daily Dosing'!$B$7="Liquid",ROUND(I$4*'Daily Dosing'!$E81/'Daily Dosing'!$B$4*'Daily Dosing'!$B$8,2)&" ml","Error")))) ->  | J74: =IF('Daily Dosing'!$H81="","",IF(J$4="N/A","N/A",IF('Daily Dosing'!$B$7="Dry",ROUND(J$4*'Daily Dosing'!$E81/'Daily Dosing'!$B$4*'Daily Dosing'!$B$9,3)&" g",IF('Daily Dosing'!$B$7="Liquid",ROUND(J$4*'Daily Dosing'!$E81/'Daily Dosing'!$B$4*'Daily Dosing'!$B$8,2)&" ml","Error")))) ->  | K74: =IF('Daily Dosing'!$H81="","",IF(K$4="N/A","N/A",IF('Daily Dosing'!$B$7="Dry",ROUND(K$4*'Daily Dosing'!$E81/'Daily Dosing'!$B$4*'Daily Dosing'!$B$9,3)&" g",IF('Daily Dosing'!$B$7="Liquid",ROUND(K$4*'Daily Dosing'!$E81/'Daily Dosing'!$B$4*'Daily Dosing'!$B$8,2)&" ml","Error")))) ->  | L74: =IF('Daily Dosing'!$H81="","",IF(L$4="N/A","N/A",IF('Daily Dosing'!$B$7="Dry",ROUND(L$4*'Daily Dosing'!$E81/'Daily Dosing'!$B$4*'Daily Dosing'!$B$9,3)&" g",IF('Daily Dosing'!$B$7="Liquid",ROUND(L$4*'Daily Dosing'!$E81/'Daily Dosing'!$B$4*'Daily Dosing'!$B$8,2)&" ml","Error")))) ->  | M74: ='Daily Dosing'!R81 -> 0.0
A75: 70 | B75: 2021-12-06 | C75: ='Daily Dosing'!E82 -> 1.960 | D75: =IF('Daily Dosing'!H82="","",IF('Daily Dosing'!B$7="Dry",ROUND('Daily Dosing'!E82/'Daily Dosing'!B$4*'Daily Dosing'!B$9,3)&" g",IF('Daily Dosing'!B$7="Liquid",ROUND('Daily Dosing'!E82/'Daily Dosing'!B$4*'Daily Dosing'!B$8,2)&" ml","Error"))) ->  | E75: =IF('Daily Dosing'!$H82="","",IF(E$4="N/A","N/A",IF('Daily Dosing'!$B$7="Dry",ROUND(E$4*'Daily Dosing'!$E82/'Daily Dosing'!$B$4*'Daily Dosing'!$B$9,3)&" g",IF('Daily Dosing'!$B$7="Liquid",ROUND(E$4*'Daily Dosing'!$E82/'Daily Dosing'!$B$4*'Daily Dosing'!$B$8,2)&" ml","Error")))) ->  | F75: =IF('Daily Dosing'!$H82="","",IF(F$4="N/A","N/A",IF('Daily Dosing'!$B$7="Dry",ROUND(F$4*'Daily Dosing'!$E82/'Daily Dosing'!$B$4*'Daily Dosing'!$B$9,3)&" g",IF('Daily Dosing'!$B$7="Liquid",ROUND(F$4*'Daily Dosing'!$E82/'Daily Dosing'!$B$4*'Daily Dosing'!$B$8,2)&" ml","Error")))) ->  | G75: =IF('Daily Dosing'!$H82="","",IF(G$4="N/A","N/A",IF('Daily Dosing'!$B$7="Dry",ROUND(G$4*'Daily Dosing'!$E82/'Daily Dosing'!$B$4*'Daily Dosing'!$B$9,3)&" g",IF('Daily Dosing'!$B$7="Liquid",ROUND(G$4*'Daily Dosing'!$E82/'Daily Dosing'!$B$4*'Daily Dosing'!$B$8,2)&" ml","Error")))) ->  | H75: =IF('Daily Dosing'!$H82="","",IF(H$4="N/A","N/A",IF('Daily Dosing'!$B$7="Dry",ROUND(H$4*'Daily Dosing'!$E82/'Daily Dosing'!$B$4*'Daily Dosing'!$B$9,3)&" g",IF('Daily Dosing'!$B$7="Liquid",ROUND(H$4*'Daily Dosing'!$E82/'Daily Dosing'!$B$4*'Daily Dosing'!$B$8,2)&" ml","Error")))) ->  | I75: =IF('Daily Dosing'!$H82="","",IF(I$4="N/A","N/A",IF('Daily Dosing'!$B$7="Dry",ROUND(I$4*'Daily Dosing'!$E82/'Daily Dosing'!$B$4*'Daily Dosing'!$B$9,3)&" g",IF('Daily Dosing'!$B$7="Liquid",ROUND(I$4*'Daily Dosing'!$E82/'Daily Dosing'!$B$4*'Daily Dosing'!$B$8,2)&" ml","Error")))) ->  | J75: =IF('Daily Dosing'!$H82="","",IF(J$4="N/A","N/A",IF('Daily Dosing'!$B$7="Dry",ROUND(J$4*'Daily Dosing'!$E82/'Daily Dosing'!$B$4*'Daily Dosing'!$B$9,3)&" g",IF('Daily Dosing'!$B$7="Liquid",ROUND(J$4*'Daily Dosing'!$E82/'Daily Dosing'!$B$4*'Daily Dosing'!$B$8,2)&" ml","Error")))) ->  | K75: =IF('Daily Dosing'!$H82="","",IF(K$4="N/A","N/A",IF('Daily Dosing'!$B$7="Dry",ROUND(K$4*'Daily Dosing'!$E82/'Daily Dosing'!$B$4*'Daily Dosing'!$B$9,3)&" g",IF('Daily Dosing'!$B$7="Liquid",ROUND(K$4*'Daily Dosing'!$E82/'Daily Dosing'!$B$4*'Daily Dosing'!$B$8,2)&" ml","Error")))) ->  | L75: =IF('Daily Dosing'!$H82="","",IF(L$4="N/A","N/A",IF('Daily Dosing'!$B$7="Dry",ROUND(L$4*'Daily Dosing'!$E82/'Daily Dosing'!$B$4*'Daily Dosing'!$B$9,3)&" g",IF('Daily Dosing'!$B$7="Liquid",ROUND(L$4*'Daily Dosing'!$E82/'Daily Dosing'!$B$4*'Daily Dosing'!$B$8,2)&" ml","Error")))) ->  | M75: ='Daily Dosing'!R82 -> 0.0
A76: 71 | B76: 2021-12-07 | C76: ='Daily Dosing'!E83 -> 1.960 | D76: =IF('Daily Dosing'!H83="","",IF('Daily Dosing'!B$7="Dry",ROUND('Daily Dosing'!E83/'Daily Dosing'!B$4*'Daily Dosing'!B$9,3)&" g",IF('Daily Dosing'!B$7="Liquid",ROUND('Daily Dosing'!E83/'Daily Dosing'!B$4*'Daily Dosing'!B$8,2)&" ml","Error"))) ->  | E76: =IF('Daily Dosing'!$H83="","",IF(E$4="N/A","N/A",IF('Daily Dosing'!$B$7="Dry",ROUND(E$4*'Daily Dosing'!$E83/'Daily Dosing'!$B$4*'Daily Dosing'!$B$9,3)&" g",IF('Daily Dosing'!$B$7="Liquid",ROUND(E$4*'Daily Dosing'!$E83/'Daily Dosing'!$B$4*'Daily Dosing'!$B$8,2)&" ml","Error")))) ->  | F76: =IF('Daily Dosing'!$H83="","",IF(F$4="N/A","N/A",IF('Daily Dosing'!$B$7="Dry",ROUND(F$4*'Daily Dosing'!$E83/'Daily Dosing'!$B$4*'Daily Dosing'!$B$9,3)&" g",IF('Daily Dosing'!$B$7="Liquid",ROUND(F$4*'Daily Dosing'!$E83/'Daily Dosing'!$B$4*'Daily Dosing'!$B$8,2)&" ml","Error")))) ->  | G76: =IF('Daily Dosing'!$H83="","",IF(G$4="N/A","N/A",IF('Daily Dosing'!$B$7="Dry",ROUND(G$4*'Daily Dosing'!$E83/'Daily Dosing'!$B$4*'Daily Dosing'!$B$9,3)&" g",IF('Daily Dosing'!$B$7="Liquid",ROUND(G$4*'Daily Dosing'!$E83/'Daily Dosing'!$B$4*'Daily Dosing'!$B$8,2)&" ml","Error")))) ->  | H76: =IF('Daily Dosing'!$H83="","",IF(H$4="N/A","N/A",IF('Daily Dosing'!$B$7="Dry",ROUND(H$4*'Daily Dosing'!$E83/'Daily Dosing'!$B$4*'Daily Dosing'!$B$9,3)&" g",IF('Daily Dosing'!$B$7="Liquid",ROUND(H$4*'Daily Dosing'!$E83/'Daily Dosing'!$B$4*'Daily Dosing'!$B$8,2)&" ml","Error")))) ->  | I76: =IF('Daily Dosing'!$H83="","",IF(I$4="N/A","N/A",IF('Daily Dosing'!$B$7="Dry",ROUND(I$4*'Daily Dosing'!$E83/'Daily Dosing'!$B$4*'Daily Dosing'!$B$9,3)&" g",IF('Daily Dosing'!$B$7="Liquid",ROUND(I$4*'Daily Dosing'!$E83/'Daily Dosing'!$B$4*'Daily Dosing'!$B$8,2)&" ml","Error")))) ->  | J76: =IF('Daily Dosing'!$H83="","",IF(J$4="N/A","N/A",IF('Daily Dosing'!$B$7="Dry",ROUND(J$4*'Daily Dosing'!$E83/'Daily Dosing'!$B$4*'Daily Dosing'!$B$9,3)&" g",IF('Daily Dosing'!$B$7="Liquid",ROUND(J$4*'Daily Dosing'!$E83/'Daily Dosing'!$B$4*'Daily Dosing'!$B$8,2)&" ml","Error")))) ->  | K76: =IF('Daily Dosing'!$H83="","",IF(K$4="N/A","N/A",IF('Daily Dosing'!$B$7="Dry",ROUND(K$4*'Daily Dosing'!$E83/'Daily Dosing'!$B$4*'Daily Dosing'!$B$9,3)&" g",IF('Daily Dosing'!$B$7="Liquid",ROUND(K$4*'Daily Dosing'!$E83/'Daily Dosing'!$B$4*'Daily Dosing'!$B$8,2)&" ml","Error")))) ->  | L76: =IF('Daily Dosing'!$H83="","",IF(L$4="N/A","N/A",IF('Daily Dosing'!$B$7="Dry",ROUND(L$4*'Daily Dosing'!$E83/'Daily Dosing'!$B$4*'Daily Dosing'!$B$9,3)&" g",IF('Daily Dosing'!$B$7="Liquid",ROUND(L$4*'Daily Dosing'!$E83/'Daily Dosing'!$B$4*'Daily Dosing'!$B$8,2)&" ml","Error")))) ->  | M76: ='Daily Dosing'!R83 -> 0.0
A77: 72 | B77: 2021-12-08 | C77: ='Daily Dosing'!E84 -> 1.960 | D77: =IF('Daily Dosing'!H84="","",IF('Daily Dosing'!B$7="Dry",ROUND('Daily Dosing'!E84/'Daily Dosing'!B$4*'Daily Dosing'!B$9,3)&" g",IF('Daily Dosing'!B$7="Liquid",ROUND('Daily Dosing'!E84/'Daily Dosing'!B$4*'Daily Dosing'!B$8,2)&" ml","Error"))) ->  | E77: =IF('Daily Dosing'!$H84="","",IF(E$4="N/A","N/A",IF('Daily Dosing'!$B$7="Dry",ROUND(E$4*'Daily Dosing'!$E84/'Daily Dosing'!$B$4*'Daily Dosing'!$B$9,3)&" g",IF('Daily Dosing'!$B$7="Liquid",ROUND(E$4*'Daily Dosing'!$E84/'Daily Dosing'!$B$4*'Daily Dosing'!$B$8,2)&" ml","Error")))) ->  | F77: =IF('Daily Dosing'!$H84="","",IF(F$4="N/A","N/A",IF('Daily Dosing'!$B$7="Dry",ROUND(F$4*'Daily Dosing'!$E84/'Daily Dosing'!$B$4*'Daily Dosing'!$B$9,3)&" g",IF('Daily Dosing'!$B$7="Liquid",ROUND(F$4*'Daily Dosing'!$E84/'Daily Dosing'!$B$4*'Daily Dosing'!$B$8,2)&" ml","Error")))) ->  | G77: =IF('Daily Dosing'!$H84="","",IF(G$4="N/A","N/A",IF('Daily Dosing'!$B$7="Dry",ROUND(G$4*'Daily Dosing'!$E84/'Daily Dosing'!$B$4*'Daily Dosing'!$B$9,3)&" g",IF('Daily Dosing'!$B$7="Liquid",ROUND(G$4*'Daily Dosing'!$E84/'Daily Dosing'!$B$4*'Daily Dosing'!$B$8,2)&" ml","Error")))) ->  | H77: =IF('Daily Dosing'!$H84="","",IF(H$4="N/A","N/A",IF('Daily Dosing'!$B$7="Dry",ROUND(H$4*'Daily Dosing'!$E84/'Daily Dosing'!$B$4*'Daily Dosing'!$B$9,3)&" g",IF('Daily Dosing'!$B$7="Liquid",ROUND(H$4*'Daily Dosing'!$E84/'Daily Dosing'!$B$4*'Daily Dosing'!$B$8,2)&" ml","Error")))) ->  | I77: =IF('Daily Dosing'!$H84="","",IF(I$4="N/A","N/A",IF('Daily Dosing'!$B$7="Dry",ROUND(I$4*'Daily Dosing'!$E84/'Daily Dosing'!$B$4*'Daily Dosing'!$B$9,3)&" g",IF('Daily Dosing'!$B$7="Liquid",ROUND(I$4*'Daily Dosing'!$E84/'Daily Dosing'!$B$4*'Daily Dosing'!$B$8,2)&" ml","Error")))) ->  | J77: =IF('Daily Dosing'!$H84="","",IF(J$4="N/A","N/A",IF('Daily Dosing'!$B$7="Dry",ROUND(J$4*'Daily Dosing'!$E84/'Daily Dosing'!$B$4*'Daily Dosing'!$B$9,3)&" g",IF('Daily Dosing'!$B$7="Liquid",ROUND(J$4*'Daily Dosing'!$E84/'Daily Dosing'!$B$4*'Daily Dosing'!$B$8,2)&" ml","Error")))) ->  | K77: =IF('Daily Dosing'!$H84="","",IF(K$4="N/A","N/A",IF('Daily Dosing'!$B$7="Dry",ROUND(K$4*'Daily Dosing'!$E84/'Daily Dosing'!$B$4*'Daily Dosing'!$B$9,3)&" g",IF('Daily Dosing'!$B$7="Liquid",ROUND(K$4*'Daily Dosing'!$E84/'Daily Dosing'!$B$4*'Daily Dosing'!$B$8,2)&" ml","Error")))) ->  | L77: =IF('Daily Dosing'!$H84="","",IF(L$4="N/A","N/A",IF('Daily Dosing'!$B$7="Dry",ROUND(L$4*'Daily Dosing'!$E84/'Daily Dosing'!$B$4*'Daily Dosing'!$B$9,3)&" g",IF('Daily Dosing'!$B$7="Liquid",ROUND(L$4*'Daily Dosing'!$E84/'Daily Dosing'!$B$4*'Daily Dosing'!$B$8,2)&" ml","Error")))) ->  | M77: ='Daily Dosing'!R84 -> 0.0
A78: 73 | B78: 2021-12-09 | C78: ='Daily Dosing'!E85 -> 1.960 | D78: =IF('Daily Dosing'!H85="","",IF('Daily Dosing'!B$7="Dry",ROUND('Daily Dosing'!E85/'Daily Dosing'!B$4*'Daily Dosing'!B$9,3)&" g",IF('Daily Dosing'!B$7="Liquid",ROUND('Daily Dosing'!E85/'Daily Dosing'!B$4*'Daily Dosing'!B$8,2)&" ml","Error"))) ->  | E78: =IF('Daily Dosing'!$H85="","",IF(E$4="N/A","N/A",IF('Daily Dosing'!$B$7="Dry",ROUND(E$4*'Daily Dosing'!$E85/'Daily Dosing'!$B$4*'Daily Dosing'!$B$9,3)&" g",IF('Daily Dosing'!$B$7="Liquid",ROUND(E$4*'Daily Dosing'!$E85/'Daily Dosing'!$B$4*'Daily Dosing'!$B$8,2)&" ml","Error")))) ->  | F78: =IF('Daily Dosing'!$H85="","",IF(F$4="N/A","N/A",IF('Daily Dosing'!$B$7="Dry",ROUND(F$4*'Daily Dosing'!$E85/'Daily Dosing'!$B$4*'Daily Dosing'!$B$9,3)&" g",IF('Daily Dosing'!$B$7="Liquid",ROUND(F$4*'Daily Dosing'!$E85/'Daily Dosing'!$B$4*'Daily Dosing'!$B$8,2)&" ml","Error")))) ->  | G78: =IF('Daily Dosing'!$H85="","",IF(G$4="N/A","N/A",IF('Daily Dosing'!$B$7="Dry",ROUND(G$4*'Daily Dosing'!$E85/'Daily Dosing'!$B$4*'Daily Dosing'!$B$9,3)&" g",IF('Daily Dosing'!$B$7="Liquid",ROUND(G$4*'Daily Dosing'!$E85/'Daily Dosing'!$B$4*'Daily Dosing'!$B$8,2)&" ml","Error")))) ->  | H78: =IF('Daily Dosing'!$H85="","",IF(H$4="N/A","N/A",IF('Daily Dosing'!$B$7="Dry",ROUND(H$4*'Daily Dosing'!$E85/'Daily Dosing'!$B$4*'Daily Dosing'!$B$9,3)&" g",IF('Daily Dosing'!$B$7="Liquid",ROUND(H$4*'Daily Dosing'!$E85/'Daily Dosing'!$B$4*'Daily Dosing'!$B$8,2)&" ml","Error")))) ->  | I78: =IF('Daily Dosing'!$H85="","",IF(I$4="N/A","N/A",IF('Daily Dosing'!$B$7="Dry",ROUND(I$4*'Daily Dosing'!$E85/'Daily Dosing'!$B$4*'Daily Dosing'!$B$9,3)&" g",IF('Daily Dosing'!$B$7="Liquid",ROUND(I$4*'Daily Dosing'!$E85/'Daily Dosing'!$B$4*'Daily Dosing'!$B$8,2)&" ml","Error")))) ->  | J78: =IF('Daily Dosing'!$H85="","",IF(J$4="N/A","N/A",IF('Daily Dosing'!$B$7="Dry",ROUND(J$4*'Daily Dosing'!$E85/'Daily Dosing'!$B$4*'Daily Dosing'!$B$9,3)&" g",IF('Daily Dosing'!$B$7="Liquid",ROUND(J$4*'Daily Dosing'!$E85/'Daily Dosing'!$B$4*'Daily Dosing'!$B$8,2)&" ml","Error")))) ->  | K78: =IF('Daily Dosing'!$H85="","",IF(K$4="N/A","N/A",IF('Daily Dosing'!$B$7="Dry",ROUND(K$4*'Daily Dosing'!$E85/'Daily Dosing'!$B$4*'Daily Dosing'!$B$9,3)&" g",IF('Daily Dosing'!$B$7="Liquid",ROUND(K$4*'Daily Dosing'!$E85/'Daily Dosing'!$B$4*'Daily Dosing'!$B$8,2)&" ml","Error")))) ->  | L78: =IF('Daily Dosing'!$H85="","",IF(L$4="N/A","N/A",IF('Daily Dosing'!$B$7="Dry",ROUND(L$4*'Daily Dosing'!$E85/'Daily Dosing'!$B$4*'Daily Dosing'!$B$9,3)&" g",IF('Daily Dosing'!$B$7="Liquid",ROUND(L$4*'Daily Dosing'!$E85/'Daily Dosing'!$B$4*'Daily Dosing'!$B$8,2)&" ml","Error")))) ->  | M78: ='Daily Dosing'!R85 -> 0.0
A79: 74 | B79: 2021-12-10 | C79: ='Daily Dosing'!E86 -> 1.960 | D79: =IF('Daily Dosing'!H86="","",IF('Daily Dosing'!B$7="Dry",ROUND('Daily Dosing'!E86/'Daily Dosing'!B$4*'Daily Dosing'!B$9,3)&" g",IF('Daily Dosing'!B$7="Liquid",ROUND('Daily Dosing'!E86/'Daily Dosing'!B$4*'Daily Dosing'!B$8,2)&" ml","Error"))) ->  | E79: =IF('Daily Dosing'!$H86="","",IF(E$4="N/A","N/A",IF('Daily Dosing'!$B$7="Dry",ROUND(E$4*'Daily Dosing'!$E86/'Daily Dosing'!$B$4*'Daily Dosing'!$B$9,3)&" g",IF('Daily Dosing'!$B$7="Liquid",ROUND(E$4*'Daily Dosing'!$E86/'Daily Dosing'!$B$4*'Daily Dosing'!$B$8,2)&" ml","Error")))) ->  | F79: =IF('Daily Dosing'!$H86="","",IF(F$4="N/A","N/A",IF('Daily Dosing'!$B$7="Dry",ROUND(F$4*'Daily Dosing'!$E86/'Daily Dosing'!$B$4*'Daily Dosing'!$B$9,3)&" g",IF('Daily Dosing'!$B$7="Liquid",ROUND(F$4*'Daily Dosing'!$E86/'Daily Dosing'!$B$4*'Daily Dosing'!$B$8,2)&" ml","Error")))) ->  | G79: =IF('Daily Dosing'!$H86="","",IF(G$4="N/A","N/A",IF('Daily Dosing'!$B$7="Dry",ROUND(G$4*'Daily Dosing'!$E86/'Daily Dosing'!$B$4*'Daily Dosing'!$B$9,3)&" g",IF('Daily Dosing'!$B$7="Liquid",ROUND(G$4*'Daily Dosing'!$E86/'Daily Dosing'!$B$4*'Daily Dosing'!$B$8,2)&" ml","Error")))) ->  | H79: =IF('Daily Dosing'!$H86="","",IF(H$4="N/A","N/A",IF('Daily Dosing'!$B$7="Dry",ROUND(H$4*'Daily Dosing'!$E86/'Daily Dosing'!$B$4*'Daily Dosing'!$B$9,3)&" g",IF('Daily Dosing'!$B$7="Liquid",ROUND(H$4*'Daily Dosing'!$E86/'Daily Dosing'!$B$4*'Daily Dosing'!$B$8,2)&" ml","Error")))) ->  | I79: =IF('Daily Dosing'!$H86="","",IF(I$4="N/A","N/A",IF('Daily Dosing'!$B$7="Dry",ROUND(I$4*'Daily Dosing'!$E86/'Daily Dosing'!$B$4*'Daily Dosing'!$B$9,3)&" g",IF('Daily Dosing'!$B$7="Liquid",ROUND(I$4*'Daily Dosing'!$E86/'Daily Dosing'!$B$4*'Daily Dosing'!$B$8,2)&" ml","Error")))) ->  | J79: =IF('Daily Dosing'!$H86="","",IF(J$4="N/A","N/A",IF('Daily Dosing'!$B$7="Dry",ROUND(J$4*'Daily Dosing'!$E86/'Daily Dosing'!$B$4*'Daily Dosing'!$B$9,3)&" g",IF('Daily Dosing'!$B$7="Liquid",ROUND(J$4*'Daily Dosing'!$E86/'Daily Dosing'!$B$4*'Daily Dosing'!$B$8,2)&" ml","Error")))) ->  | K79: =IF('Daily Dosing'!$H86="","",IF(K$4="N/A","N/A",IF('Daily Dosing'!$B$7="Dry",ROUND(K$4*'Daily Dosing'!$E86/'Daily Dosing'!$B$4*'Daily Dosing'!$B$9,3)&" g",IF('Daily Dosing'!$B$7="Liquid",ROUND(K$4*'Daily Dosing'!$E86/'Daily Dosing'!$B$4*'Daily Dosing'!$B$8,2)&" ml","Error")))) ->  | L79: =IF('Daily Dosing'!$H86="","",IF(L$4="N/A","N/A",IF('Daily Dosing'!$B$7="Dry",ROUND(L$4*'Daily Dosing'!$E86/'Daily Dosing'!$B$4*'Daily Dosing'!$B$9,3)&" g",IF('Daily Dosing'!$B$7="Liquid",ROUND(L$4*'Daily Dosing'!$E86/'Daily Dosing'!$B$4*'Daily Dosing'!$B$8,2)&" ml","Error")))) ->  | M79: ='Daily Dosing'!R86 -> 0.0
A80: 75 | B80: 2021-12-11 | C80: ='Daily Dosing'!E87 -> 1.960 | D80: =IF('Daily Dosing'!H87="","",IF('Daily Dosing'!B$7="Dry",ROUND('Daily Dosing'!E87/'Daily Dosing'!B$4*'Daily Dosing'!B$9,3)&" g",IF('Daily Dosing'!B$7="Liquid",ROUND('Daily Dosing'!E87/'Daily Dosing'!B$4*'Daily Dosing'!B$8,2)&" ml","Error"))) ->  | E80: =IF('Daily Dosing'!$H87="","",IF(E$4="N/A","N/A",IF('Daily Dosing'!$B$7="Dry",ROUND(E$4*'Daily Dosing'!$E87/'Daily Dosing'!$B$4*'Daily Dosing'!$B$9,3)&" g",IF('Daily Dosing'!$B$7="Liquid",ROUND(E$4*'Daily Dosing'!$E87/'Daily Dosing'!$B$4*'Daily Dosing'!$B$8,2)&" ml","Error")))) ->  | F80: =IF('Daily Dosing'!$H87="","",IF(F$4="N/A","N/A",IF('Daily Dosing'!$B$7="Dry",ROUND(F$4*'Daily Dosing'!$E87/'Daily Dosing'!$B$4*'Daily Dosing'!$B$9,3)&" g",IF('Daily Dosing'!$B$7="Liquid",ROUND(F$4*'Daily Dosing'!$E87/'Daily Dosing'!$B$4*'Daily Dosing'!$B$8,2)&" ml","Error")))) ->  | G80: =IF('Daily Dosing'!$H87="","",IF(G$4="N/A","N/A",IF('Daily Dosing'!$B$7="Dry",ROUND(G$4*'Daily Dosing'!$E87/'Daily Dosing'!$B$4*'Daily Dosing'!$B$9,3)&" g",IF('Daily Dosing'!$B$7="Liquid",ROUND(G$4*'Daily Dosing'!$E87/'Daily Dosing'!$B$4*'Daily Dosing'!$B$8,2)&" ml","Error")))) ->  | H80: =IF('Daily Dosing'!$H87="","",IF(H$4="N/A","N/A",IF('Daily Dosing'!$B$7="Dry",ROUND(H$4*'Daily Dosing'!$E87/'Daily Dosing'!$B$4*'Daily Dosing'!$B$9,3)&" g",IF('Daily Dosing'!$B$7="Liquid",ROUND(H$4*'Daily Dosing'!$E87/'Daily Dosing'!$B$4*'Daily Dosing'!$B$8,2)&" ml","Error")))) ->  | I80: =IF('Daily Dosing'!$H87="","",IF(I$4="N/A","N/A",IF('Daily Dosing'!$B$7="Dry",ROUND(I$4*'Daily Dosing'!$E87/'Daily Dosing'!$B$4*'Daily Dosing'!$B$9,3)&" g",IF('Daily Dosing'!$B$7="Liquid",ROUND(I$4*'Daily Dosing'!$E87/'Daily Dosing'!$B$4*'Daily Dosing'!$B$8,2)&" ml","Error")))) ->  | J80: =IF('Daily Dosing'!$H87="","",IF(J$4="N/A","N/A",IF('Daily Dosing'!$B$7="Dry",ROUND(J$4*'Daily Dosing'!$E87/'Daily Dosing'!$B$4*'Daily Dosing'!$B$9,3)&" g",IF('Daily Dosing'!$B$7="Liquid",ROUND(J$4*'Daily Dosing'!$E87/'Daily Dosing'!$B$4*'Daily Dosing'!$B$8,2)&" ml","Error")))) ->  | K80: =IF('Daily Dosing'!$H87="","",IF(K$4="N/A","N/A",IF('Daily Dosing'!$B$7="Dry",ROUND(K$4*'Daily Dosing'!$E87/'Daily Dosing'!$B$4*'Daily Dosing'!$B$9,3)&" g",IF('Daily Dosing'!$B$7="Liquid",ROUND(K$4*'Daily Dosing'!$E87/'Daily Dosing'!$B$4*'Daily Dosing'!$B$8,2)&" ml","Error")))) ->  | L80: =IF('Daily Dosing'!$H87="","",IF(L$4="N/A","N/A",IF('Daily Dosing'!$B$7="Dry",ROUND(L$4*'Daily Dosing'!$E87/'Daily Dosing'!$B$4*'Daily Dosing'!$B$9,3)&" g",IF('Daily Dosing'!$B$7="Liquid",ROUND(L$4*'Daily Dosing'!$E87/'Daily Dosing'!$B$4*'Daily Dosing'!$B$8,2)&" ml","Error")))) ->  | M80: ='Daily Dosing'!R87 -> 0.0
A81: 76 | B81: 2021-12-12 | C81: ='Daily Dosing'!E88 -> 1.960 | D81: =IF('Daily Dosing'!H88="","",IF('Daily Dosing'!B$7="Dry",ROUND('Daily Dosing'!E88/'Daily Dosing'!B$4*'Daily Dosing'!B$9,3)&" g",IF('Daily Dosing'!B$7="Liquid",ROUND('Daily Dosing'!E88/'Daily Dosing'!B$4*'Daily Dosing'!B$8,2)&" ml","Error"))) ->  | E81: =IF('Daily Dosing'!$H88="","",IF(E$4="N/A","N/A",IF('Daily Dosing'!$B$7="Dry",ROUND(E$4*'Daily Dosing'!$E88/'Daily Dosing'!$B$4*'Daily Dosing'!$B$9,3)&" g",IF('Daily Dosing'!$B$7="Liquid",ROUND(E$4*'Daily Dosing'!$E88/'Daily Dosing'!$B$4*'Daily Dosing'!$B$8,2)&" ml","Error")))) ->  | F81: =IF('Daily Dosing'!$H88="","",IF(F$4="N/A","N/A",IF('Daily Dosing'!$B$7="Dry",ROUND(F$4*'Daily Dosing'!$E88/'Daily Dosing'!$B$4*'Daily Dosing'!$B$9,3)&" g",IF('Daily Dosing'!$B$7="Liquid",ROUND(F$4*'Daily Dosing'!$E88/'Daily Dosing'!$B$4*'Daily Dosing'!$B$8,2)&" ml","Error")))) ->  | G81: =IF('Daily Dosing'!$H88="","",IF(G$4="N/A","N/A",IF('Daily Dosing'!$B$7="Dry",ROUND(G$4*'Daily Dosing'!$E88/'Daily Dosing'!$B$4*'Daily Dosing'!$B$9,3)&" g",IF('Daily Dosing'!$B$7="Liquid",ROUND(G$4*'Daily Dosing'!$E88/'Daily Dosing'!$B$4*'Daily Dosing'!$B$8,2)&" ml","Error")))) ->  | H81: =IF('Daily Dosing'!$H88="","",IF(H$4="N/A","N/A",IF('Daily Dosing'!$B$7="Dry",ROUND(H$4*'Daily Dosing'!$E88/'Daily Dosing'!$B$4*'Daily Dosing'!$B$9,3)&" g",IF('Daily Dosing'!$B$7="Liquid",ROUND(H$4*'Daily Dosing'!$E88/'Daily Dosing'!$B$4*'Daily Dosing'!$B$8,2)&" ml","Error")))) ->  | I81: =IF('Daily Dosing'!$H88="","",IF(I$4="N/A","N/A",IF('Daily Dosing'!$B$7="Dry",ROUND(I$4*'Daily Dosing'!$E88/'Daily Dosing'!$B$4*'Daily Dosing'!$B$9,3)&" g",IF('Daily Dosing'!$B$7="Liquid",ROUND(I$4*'Daily Dosing'!$E88/'Daily Dosing'!$B$4*'Daily Dosing'!$B$8,2)&" ml","Error")))) ->  | J81: =IF('Daily Dosing'!$H88="","",IF(J$4="N/A","N/A",IF('Daily Dosing'!$B$7="Dry",ROUND(J$4*'Daily Dosing'!$E88/'Daily Dosing'!$B$4*'Daily Dosing'!$B$9,3)&" g",IF('Daily Dosing'!$B$7="Liquid",ROUND(J$4*'Daily Dosing'!$E88/'Daily Dosing'!$B$4*'Daily Dosing'!$B$8,2)&" ml","Error")))) ->  | K81: =IF('Daily Dosing'!$H88="","",IF(K$4="N/A","N/A",IF('Daily Dosing'!$B$7="Dry",ROUND(K$4*'Daily Dosing'!$E88/'Daily Dosing'!$B$4*'Daily Dosing'!$B$9,3)&" g",IF('Daily Dosing'!$B$7="Liquid",ROUND(K$4*'Daily Dosing'!$E88/'Daily Dosing'!$B$4*'Daily Dosing'!$B$8,2)&" ml","Error")))) ->  | L81: =IF('Daily Dosing'!$H88="","",IF(L$4="N/A","N/A",IF('Daily Dosing'!$B$7="Dry",ROUND(L$4*'Daily Dosing'!$E88/'Daily Dosing'!$B$4*'Daily Dosing'!$B$9,3)&" g",IF('Daily Dosing'!$B$7="Liquid",ROUND(L$4*'Daily Dosing'!$E88/'Daily Dosing'!$B$4*'Daily Dosing'!$B$8,2)&" ml","Error")))) ->  | M81: ='Daily Dosing'!R88 -> 0.0
A82: 77 | B82: 2021-12-13 | C82: ='Daily Dosing'!E89 -> 1.960 | D82: =IF('Daily Dosing'!H89="","",IF('Daily Dosing'!B$7="Dry",ROUND('Daily Dosing'!E89/'Daily Dosing'!B$4*'Daily Dosing'!B$9,3)&" g",IF('Daily Dosing'!B$7="Liquid",ROUND('Daily Dosing'!E89/'Daily Dosing'!B$4*'Daily Dosing'!B$8,2)&" ml","Error"))) ->  | E82: =IF('Daily Dosing'!$H89="","",IF(E$4="N/A","N/A",IF('Daily Dosing'!$B$7="Dry",ROUND(E$4*'Daily Dosing'!$E89/'Daily Dosing'!$B$4*'Daily Dosing'!$B$9,3)&" g",IF('Daily Dosing'!$B$7="Liquid",ROUND(E$4*'Daily Dosing'!$E89/'Daily Dosing'!$B$4*'Daily Dosing'!$B$8,2)&" ml","Error")))) ->  | F82: =IF('Daily Dosing'!$H89="","",IF(F$4="N/A","N/A",IF('Daily Dosing'!$B$7="Dry",ROUND(F$4*'Daily Dosing'!$E89/'Daily Dosing'!$B$4*'Daily Dosing'!$B$9,3)&" g",IF('Daily Dosing'!$B$7="Liquid",ROUND(F$4*'Daily Dosing'!$E89/'Daily Dosing'!$B$4*'Daily Dosing'!$B$8,2)&" ml","Error")))) ->  | G82: =IF('Daily Dosing'!$H89="","",IF(G$4="N/A","N/A",IF('Daily Dosing'!$B$7="Dry",ROUND(G$4*'Daily Dosing'!$E89/'Daily Dosing'!$B$4*'Daily Dosing'!$B$9,3)&" g",IF('Daily Dosing'!$B$7="Liquid",ROUND(G$4*'Daily Dosing'!$E89/'Daily Dosing'!$B$4*'Daily Dosing'!$B$8,2)&" ml","Error")))) ->  | H82: =IF('Daily Dosing'!$H89="","",IF(H$4="N/A","N/A",IF('Daily Dosing'!$B$7="Dry",ROUND(H$4*'Daily Dosing'!$E89/'Daily Dosing'!$B$4*'Daily Dosing'!$B$9,3)&" g",IF('Daily Dosing'!$B$7="Liquid",ROUND(H$4*'Daily Dosing'!$E89/'Daily Dosing'!$B$4*'Daily Dosing'!$B$8,2)&" ml","Error")))) ->  | I82: =IF('Daily Dosing'!$H89="","",IF(I$4="N/A","N/A",IF('Daily Dosing'!$B$7="Dry",ROUND(I$4*'Daily Dosing'!$E89/'Daily Dosing'!$B$4*'Daily Dosing'!$B$9,3)&" g",IF('Daily Dosing'!$B$7="Liquid",ROUND(I$4*'Daily Dosing'!$E89/'Daily Dosing'!$B$4*'Daily Dosing'!$B$8,2)&" ml","Error")))) ->  | J82: =IF('Daily Dosing'!$H89="","",IF(J$4="N/A","N/A",IF('Daily Dosing'!$B$7="Dry",ROUND(J$4*'Daily Dosing'!$E89/'Daily Dosing'!$B$4*'Daily Dosing'!$B$9,3)&" g",IF('Daily Dosing'!$B$7="Liquid",ROUND(J$4*'Daily Dosing'!$E89/'Daily Dosing'!$B$4*'Daily Dosing'!$B$8,2)&" ml","Error")))) ->  | K82: =IF('Daily Dosing'!$H89="","",IF(K$4="N/A","N/A",IF('Daily Dosing'!$B$7="Dry",ROUND(K$4*'Daily Dosing'!$E89/'Daily Dosing'!$B$4*'Daily Dosing'!$B$9,3)&" g",IF('Daily Dosing'!$B$7="Liquid",ROUND(K$4*'Daily Dosing'!$E89/'Daily Dosing'!$B$4*'Daily Dosing'!$B$8,2)&" ml","Error")))) ->  | L82: =IF('Daily Dosing'!$H89="","",IF(L$4="N/A","N/A",IF('Daily Dosing'!$B$7="Dry",ROUND(L$4*'Daily Dosing'!$E89/'Daily Dosing'!$B$4*'Daily Dosing'!$B$9,3)&" g",IF('Daily Dosing'!$B$7="Liquid",ROUND(L$4*'Daily Dosing'!$E89/'Daily Dosing'!$B$4*'Daily Dosing'!$B$8,2)&" ml","Error")))) ->  | M82: ='Daily Dosing'!R89 -> 0.0
A83: 78 | B83: 2021-12-14 | C83: ='Daily Dosing'!E90 -> 1.960 | D83: =IF('Daily Dosing'!H90="","",IF('Daily Dosing'!B$7="Dry",ROUND('Daily Dosing'!E90/'Daily Dosing'!B$4*'Daily Dosing'!B$9,3)&" g",IF('Daily Dosing'!B$7="Liquid",ROUND('Daily Dosing'!E90/'Daily Dosing'!B$4*'Daily Dosing'!B$8,2)&" ml","Error"))) ->  | E83: =IF('Daily Dosing'!$H90="","",IF(E$4="N/A","N/A",IF('Daily Dosing'!$B$7="Dry",ROUND(E$4*'Daily Dosing'!$E90/'Daily Dosing'!$B$4*'Daily Dosing'!$B$9,3)&" g",IF('Daily Dosing'!$B$7="Liquid",ROUND(E$4*'Daily Dosing'!$E90/'Daily Dosing'!$B$4*'Daily Dosing'!$B$8,2)&" ml","Error")))) ->  | F83: =IF('Daily Dosing'!$H90="","",IF(F$4="N/A","N/A",IF('Daily Dosing'!$B$7="Dry",ROUND(F$4*'Daily Dosing'!$E90/'Daily Dosing'!$B$4*'Daily Dosing'!$B$9,3)&" g",IF('Daily Dosing'!$B$7="Liquid",ROUND(F$4*'Daily Dosing'!$E90/'Daily Dosing'!$B$4*'Daily Dosing'!$B$8,2)&" ml","Error")))) ->  | G83: =IF('Daily Dosing'!$H90="","",IF(G$4="N/A","N/A",IF('Daily Dosing'!$B$7="Dry",ROUND(G$4*'Daily Dosing'!$E90/'Daily Dosing'!$B$4*'Daily Dosing'!$B$9,3)&" g",IF('Daily Dosing'!$B$7="Liquid",ROUND(G$4*'Daily Dosing'!$E90/'Daily Dosing'!$B$4*'Daily Dosing'!$B$8,2)&" ml","Error")))) ->  | H83: =IF('Daily Dosing'!$H90="","",IF(H$4="N/A","N/A",IF('Daily Dosing'!$B$7="Dry",ROUND(H$4*'Daily Dosing'!$E90/'Daily Dosing'!$B$4*'Daily Dosing'!$B$9,3)&" g",IF('Daily Dosing'!$B$7="Liquid",ROUND(H$4*'Daily Dosing'!$E90/'Daily Dosing'!$B$4*'Daily Dosing'!$B$8,2)&" ml","Error")))) ->  | I83: =IF('Daily Dosing'!$H90="","",IF(I$4="N/A","N/A",IF('Daily Dosing'!$B$7="Dry",ROUND(I$4*'Daily Dosing'!$E90/'Daily Dosing'!$B$4*'Daily Dosing'!$B$9,3)&" g",IF('Daily Dosing'!$B$7="Liquid",ROUND(I$4*'Daily Dosing'!$E90/'Daily Dosing'!$B$4*'Daily Dosing'!$B$8,2)&" ml","Error")))) ->  | J83: =IF('Daily Dosing'!$H90="","",IF(J$4="N/A","N/A",IF('Daily Dosing'!$B$7="Dry",ROUND(J$4*'Daily Dosing'!$E90/'Daily Dosing'!$B$4*'Daily Dosing'!$B$9,3)&" g",IF('Daily Dosing'!$B$7="Liquid",ROUND(J$4*'Daily Dosing'!$E90/'Daily Dosing'!$B$4*'Daily Dosing'!$B$8,2)&" ml","Error")))) ->  | K83: =IF('Daily Dosing'!$H90="","",IF(K$4="N/A","N/A",IF('Daily Dosing'!$B$7="Dry",ROUND(K$4*'Daily Dosing'!$E90/'Daily Dosing'!$B$4*'Daily Dosing'!$B$9,3)&" g",IF('Daily Dosing'!$B$7="Liquid",ROUND(K$4*'Daily Dosing'!$E90/'Daily Dosing'!$B$4*'Daily Dosing'!$B$8,2)&" ml","Error")))) ->  | L83: =IF('Daily Dosing'!$H90="","",IF(L$4="N/A","N/A",IF('Daily Dosing'!$B$7="Dry",ROUND(L$4*'Daily Dosing'!$E90/'Daily Dosing'!$B$4*'Daily Dosing'!$B$9,3)&" g",IF('Daily Dosing'!$B$7="Liquid",ROUND(L$4*'Daily Dosing'!$E90/'Daily Dosing'!$B$4*'Daily Dosing'!$B$8,2)&" ml","Error")))) ->  | M83: ='Daily Dosing'!R90 -> 0.0
A84: 79 | B84: 2021-12-15 | C84: ='Daily Dosing'!E91 -> 1.960 | D84: =IF('Daily Dosing'!H91="","",IF('Daily Dosing'!B$7="Dry",ROUND('Daily Dosing'!E91/'Daily Dosing'!B$4*'Daily Dosing'!B$9,3)&" g",IF('Daily Dosing'!B$7="Liquid",ROUND('Daily Dosing'!E91/'Daily Dosing'!B$4*'Daily Dosing'!B$8,2)&" ml","Error"))) ->  | E84: =IF('Daily Dosing'!$H91="","",IF(E$4="N/A","N/A",IF('Daily Dosing'!$B$7="Dry",ROUND(E$4*'Daily Dosing'!$E91/'Daily Dosing'!$B$4*'Daily Dosing'!$B$9,3)&" g",IF('Daily Dosing'!$B$7="Liquid",ROUND(E$4*'Daily Dosing'!$E91/'Daily Dosing'!$B$4*'Daily Dosing'!$B$8,2)&" ml","Error")))) ->  | F84: =IF('Daily Dosing'!$H91="","",IF(F$4="N/A","N/A",IF('Daily Dosing'!$B$7="Dry",ROUND(F$4*'Daily Dosing'!$E91/'Daily Dosing'!$B$4*'Daily Dosing'!$B$9,3)&" g",IF('Daily Dosing'!$B$7="Liquid",ROUND(F$4*'Daily Dosing'!$E91/'Daily Dosing'!$B$4*'Daily Dosing'!$B$8,2)&" ml","Error")))) ->  | G84: =IF('Daily Dosing'!$H91="","",IF(G$4="N/A","N/A",IF('Daily Dosing'!$B$7="Dry",ROUND(G$4*'Daily Dosing'!$E91/'Daily Dosing'!$B$4*'Daily Dosing'!$B$9,3)&" g",IF('Daily Dosing'!$B$7="Liquid",ROUND(G$4*'Daily Dosing'!$E91/'Daily Dosing'!$B$4*'Daily Dosing'!$B$8,2)&" ml","Error")))) ->  | H84: =IF('Daily Dosing'!$H91="","",IF(H$4="N/A","N/A",IF('Daily Dosing'!$B$7="Dry",ROUND(H$4*'Daily Dosing'!$E91/'Daily Dosing'!$B$4*'Daily Dosing'!$B$9,3)&" g",IF('Daily Dosing'!$B$7="Liquid",ROUND(H$4*'Daily Dosing'!$E91/'Daily Dosing'!$B$4*'Daily Dosing'!$B$8,2)&" ml","Error")))) ->  | I84: =IF('Daily Dosing'!$H91="","",IF(I$4="N/A","N/A",IF('Daily Dosing'!$B$7="Dry",ROUND(I$4*'Daily Dosing'!$E91/'Daily Dosing'!$B$4*'Daily Dosing'!$B$9,3)&" g",IF('Daily Dosing'!$B$7="Liquid",ROUND(I$4*'Daily Dosing'!$E91/'Daily Dosing'!$B$4*'Daily Dosing'!$B$8,2)&" ml","Error")))) ->  | J84: =IF('Daily Dosing'!$H91="","",IF(J$4="N/A","N/A",IF('Daily Dosing'!$B$7="Dry",ROUND(J$4*'Daily Dosing'!$E91/'Daily Dosing'!$B$4*'Daily Dosing'!$B$9,3)&" g",IF('Daily Dosing'!$B$7="Liquid",ROUND(J$4*'Daily Dosing'!$E91/'Daily Dosing'!$B$4*'Daily Dosing'!$B$8,2)&" ml","Error")))) ->  | K84: =IF('Daily Dosing'!$H91="","",IF(K$4="N/A","N/A",IF('Daily Dosing'!$B$7="Dry",ROUND(K$4*'Daily Dosing'!$E91/'Daily Dosing'!$B$4*'Daily Dosing'!$B$9,3)&" g",IF('Daily Dosing'!$B$7="Liquid",ROUND(K$4*'Daily Dosing'!$E91/'Daily Dosing'!$B$4*'Daily Dosing'!$B$8,2)&" ml","Error")))) ->  | L84: =IF('Daily Dosing'!$H91="","",IF(L$4="N/A","N/A",IF('Daily Dosing'!$B$7="Dry",ROUND(L$4*'Daily Dosing'!$E91/'Daily Dosing'!$B$4*'Daily Dosing'!$B$9,3)&" g",IF('Daily Dosing'!$B$7="Liquid",ROUND(L$4*'Daily Dosing'!$E91/'Daily Dosing'!$B$4*'Daily Dosing'!$B$8,2)&" ml","Error")))) ->  | M84: ='Daily Dosing'!R91 -> 0.0
A85: =A84+1 -> 80 | B85: =B84+1 -> 2021-12-16 | C85: ='Daily Dosing'!E92 -> 1.960 | D85: =IF('Daily Dosing'!H92="","",IF('Daily Dosing'!B$7="Dry",ROUND('Daily Dosing'!E92/'Daily Dosing'!B$4*'Daily Dosing'!B$9,3)&" g",IF('Daily Dosing'!B$7="Liquid",ROUND('Daily Dosing'!E92/'Daily Dosing'!B$4*'Daily Dosing'!B$8,2)&" ml","Error"))) ->  | E85: =IF('Daily Dosing'!$H92="","",IF(E$4="N/A","N/A",IF('Daily Dosing'!$B$7="Dry",ROUND(E$4*'Daily Dosing'!$E92/'Daily Dosing'!$B$4*'Daily Dosing'!$B$9,3)&" g",IF('Daily Dosing'!$B$7="Liquid",ROUND(E$4*'Daily Dosing'!$E92/'Daily Dosing'!$B$4*'Daily Dosing'!$B$8,2)&" ml","Error")))) ->  | F85: =IF('Daily Dosing'!$H92="","",IF(F$4="N/A","N/A",IF('Daily Dosing'!$B$7="Dry",ROUND(F$4*'Daily Dosing'!$E92/'Daily Dosing'!$B$4*'Daily Dosing'!$B$9,3)&" g",IF('Daily Dosing'!$B$7="Liquid",ROUND(F$4*'Daily Dosing'!$E92/'Daily Dosing'!$B$4*'Daily Dosing'!$B$8,2)&" ml","Error")))) ->  | G85: =IF('Daily Dosing'!$H92="","",IF(G$4="N/A","N/A",IF('Daily Dosing'!$B$7="Dry",ROUND(G$4*'Daily Dosing'!$E92/'Daily Dosing'!$B$4*'Daily Dosing'!$B$9,3)&" g",IF('Daily Dosing'!$B$7="Liquid",ROUND(G$4*'Daily Dosing'!$E92/'Daily Dosing'!$B$4*'Daily Dosing'!$B$8,2)&" ml","Error")))) ->  | H85: =IF('Daily Dosing'!$H92="","",IF(H$4="N/A","N/A",IF('Daily Dosing'!$B$7="Dry",ROUND(H$4*'Daily Dosing'!$E92/'Daily Dosing'!$B$4*'Daily Dosing'!$B$9,3)&" g",IF('Daily Dosing'!$B$7="Liquid",ROUND(H$4*'Daily Dosing'!$E92/'Daily Dosing'!$B$4*'Daily Dosing'!$B$8,2)&" ml","Error")))) ->  | I85: =IF('Daily Dosing'!$H92="","",IF(I$4="N/A","N/A",IF('Daily Dosing'!$B$7="Dry",ROUND(I$4*'Daily Dosing'!$E92/'Daily Dosing'!$B$4*'Daily Dosing'!$B$9,3)&" g",IF('Daily Dosing'!$B$7="Liquid",ROUND(I$4*'Daily Dosing'!$E92/'Daily Dosing'!$B$4*'Daily Dosing'!$B$8,2)&" ml","Error")))) ->  | J85: =IF('Daily Dosing'!$H92="","",IF(J$4="N/A","N/A",IF('Daily Dosing'!$B$7="Dry",ROUND(J$4*'Daily Dosing'!$E92/'Daily Dosing'!$B$4*'Daily Dosing'!$B$9,3)&" g",IF('Daily Dosing'!$B$7="Liquid",ROUND(J$4*'Daily Dosing'!$E92/'Daily Dosing'!$B$4*'Daily Dosing'!$B$8,2)&" ml","Error")))) ->  | K85: =IF('Daily Dosing'!$H92="","",IF(K$4="N/A","N/A",IF('Daily Dosing'!$B$7="Dry",ROUND(K$4*'Daily Dosing'!$E92/'Daily Dosing'!$B$4*'Daily Dosing'!$B$9,3)&" g",IF('Daily Dosing'!$B$7="Liquid",ROUND(K$4*'Daily Dosing'!$E92/'Daily Dosing'!$B$4*'Daily Dosing'!$B$8,2)&" ml","Error")))) ->  | L85: =IF('Daily Dosing'!$H92="","",IF(L$4="N/A","N/A",IF('Daily Dosing'!$B$7="Dry",ROUND(L$4*'Daily Dosing'!$E92/'Daily Dosing'!$B$4*'Daily Dosing'!$B$9,3)&" g",IF('Daily Dosing'!$B$7="Liquid",ROUND(L$4*'Daily Dosing'!$E92/'Daily Dosing'!$B$4*'Daily Dosing'!$B$8,2)&" ml","Error")))) ->  | M85: ='Daily Dosing'!R92 -> 0.0
A86: 81 | B86: 2021-12-17 | C86: ='Daily Dosing'!E93 -> 1.960 | D86: =IF('Daily Dosing'!H93="","",IF('Daily Dosing'!B$7="Dry",ROUND('Daily Dosing'!E93/'Daily Dosing'!B$4*'Daily Dosing'!B$9,3)&" g",IF('Daily Dosing'!B$7="Liquid",ROUND('Daily Dosing'!E93/'Daily Dosing'!B$4*'Daily Dosing'!B$8,2)&" ml","Error"))) ->  | E86: =IF('Daily Dosing'!$H93="","",IF(E$4="N/A","N/A",IF('Daily Dosing'!$B$7="Dry",ROUND(E$4*'Daily Dosing'!$E93/'Daily Dosing'!$B$4*'Daily Dosing'!$B$9,3)&" g",IF('Daily Dosing'!$B$7="Liquid",ROUND(E$4*'Daily Dosing'!$E93/'Daily Dosing'!$B$4*'Daily Dosing'!$B$8,2)&" ml","Error")))) ->  | F86: =IF('Daily Dosing'!$H93="","",IF(F$4="N/A","N/A",IF('Daily Dosing'!$B$7="Dry",ROUND(F$4*'Daily Dosing'!$E93/'Daily Dosing'!$B$4*'Daily Dosing'!$B$9,3)&" g",IF('Daily Dosing'!$B$7="Liquid",ROUND(F$4*'Daily Dosing'!$E93/'Daily Dosing'!$B$4*'Daily Dosing'!$B$8,2)&" ml","Error")))) ->  | G86: =IF('Daily Dosing'!$H93="","",IF(G$4="N/A","N/A",IF('Daily Dosing'!$B$7="Dry",ROUND(G$4*'Daily Dosing'!$E93/'Daily Dosing'!$B$4*'Daily Dosing'!$B$9,3)&" g",IF('Daily Dosing'!$B$7="Liquid",ROUND(G$4*'Daily Dosing'!$E93/'Daily Dosing'!$B$4*'Daily Dosing'!$B$8,2)&" ml","Error")))) ->  | H86: =IF('Daily Dosing'!$H93="","",IF(H$4="N/A","N/A",IF('Daily Dosing'!$B$7="Dry",ROUND(H$4*'Daily Dosing'!$E93/'Daily Dosing'!$B$4*'Daily Dosing'!$B$9,3)&" g",IF('Daily Dosing'!$B$7="Liquid",ROUND(H$4*'Daily Dosing'!$E93/'Daily Dosing'!$B$4*'Daily Dosing'!$B$8,2)&" ml","Error")))) ->  | I86: =IF('Daily Dosing'!$H93="","",IF(I$4="N/A","N/A",IF('Daily Dosing'!$B$7="Dry",ROUND(I$4*'Daily Dosing'!$E93/'Daily Dosing'!$B$4*'Daily Dosing'!$B$9,3)&" g",IF('Daily Dosing'!$B$7="Liquid",ROUND(I$4*'Daily Dosing'!$E93/'Daily Dosing'!$B$4*'Daily Dosing'!$B$8,2)&" ml","Error")))) ->  | J86: =IF('Daily Dosing'!$H93="","",IF(J$4="N/A","N/A",IF('Daily Dosing'!$B$7="Dry",ROUND(J$4*'Daily Dosing'!$E93/'Daily Dosing'!$B$4*'Daily Dosing'!$B$9,3)&" g",IF('Daily Dosing'!$B$7="Liquid",ROUND(J$4*'Daily Dosing'!$E93/'Daily Dosing'!$B$4*'Daily Dosing'!$B$8,2)&" ml","Error")))) ->  | K86: =IF('Daily Dosing'!$H93="","",IF(K$4="N/A","N/A",IF('Daily Dosing'!$B$7="Dry",ROUND(K$4*'Daily Dosing'!$E93/'Daily Dosing'!$B$4*'Daily Dosing'!$B$9,3)&" g",IF('Daily Dosing'!$B$7="Liquid",ROUND(K$4*'Daily Dosing'!$E93/'Daily Dosing'!$B$4*'Daily Dosing'!$B$8,2)&" ml","Error")))) ->  | L86: =IF('Daily Dosing'!$H93="","",IF(L$4="N/A","N/A",IF('Daily Dosing'!$B$7="Dry",ROUND(L$4*'Daily Dosing'!$E93/'Daily Dosing'!$B$4*'Daily Dosing'!$B$9,3)&" g",IF('Daily Dosing'!$B$7="Liquid",ROUND(L$4*'Daily Dosing'!$E93/'Daily Dosing'!$B$4*'Daily Dosing'!$B$8,2)&" ml","Error")))) ->  | M86: ='Daily Dosing'!R93 -> 0.0
A87: 82 | B87: 2021-12-18 | C87: ='Daily Dosing'!E94 -> 1.960 | D87: =IF('Daily Dosing'!H94="","",IF('Daily Dosing'!B$7="Dry",ROUND('Daily Dosing'!E94/'Daily Dosing'!B$4*'Daily Dosing'!B$9,3)&" g",IF('Daily Dosing'!B$7="Liquid",ROUND('Daily Dosing'!E94/'Daily Dosing'!B$4*'Daily Dosing'!B$8,2)&" ml","Error"))) ->  | E87: =IF('Daily Dosing'!$H94="","",IF(E$4="N/A","N/A",IF('Daily Dosing'!$B$7="Dry",ROUND(E$4*'Daily Dosing'!$E94/'Daily Dosing'!$B$4*'Daily Dosing'!$B$9,3)&" g",IF('Daily Dosing'!$B$7="Liquid",ROUND(E$4*'Daily Dosing'!$E94/'Daily Dosing'!$B$4*'Daily Dosing'!$B$8,2)&" ml","Error")))) ->  | F87: =IF('Daily Dosing'!$H94="","",IF(F$4="N/A","N/A",IF('Daily Dosing'!$B$7="Dry",ROUND(F$4*'Daily Dosing'!$E94/'Daily Dosing'!$B$4*'Daily Dosing'!$B$9,3)&" g",IF('Daily Dosing'!$B$7="Liquid",ROUND(F$4*'Daily Dosing'!$E94/'Daily Dosing'!$B$4*'Daily Dosing'!$B$8,2)&" ml","Error")))) ->  | G87: =IF('Daily Dosing'!$H94="","",IF(G$4="N/A","N/A",IF('Daily Dosing'!$B$7="Dry",ROUND(G$4*'Daily Dosing'!$E94/'Daily Dosing'!$B$4*'Daily Dosing'!$B$9,3)&" g",IF('Daily Dosing'!$B$7="Liquid",ROUND(G$4*'Daily Dosing'!$E94/'Daily Dosing'!$B$4*'Daily Dosing'!$B$8,2)&" ml","Error")))) ->  | H87: =IF('Daily Dosing'!$H94="","",IF(H$4="N/A","N/A",IF('Daily Dosing'!$B$7="Dry",ROUND(H$4*'Daily Dosing'!$E94/'Daily Dosing'!$B$4*'Daily Dosing'!$B$9,3)&" g",IF('Daily Dosing'!$B$7="Liquid",ROUND(H$4*'Daily Dosing'!$E94/'Daily Dosing'!$B$4*'Daily Dosing'!$B$8,2)&" ml","Error")))) ->  | I87: =IF('Daily Dosing'!$H94="","",IF(I$4="N/A","N/A",IF('Daily Dosing'!$B$7="Dry",ROUND(I$4*'Daily Dosing'!$E94/'Daily Dosing'!$B$4*'Daily Dosing'!$B$9,3)&" g",IF('Daily Dosing'!$B$7="Liquid",ROUND(I$4*'Daily Dosing'!$E94/'Daily Dosing'!$B$4*'Daily Dosing'!$B$8,2)&" ml","Error")))) ->  | J87: =IF('Daily Dosing'!$H94="","",IF(J$4="N/A","N/A",IF('Daily Dosing'!$B$7="Dry",ROUND(J$4*'Daily Dosing'!$E94/'Daily Dosing'!$B$4*'Daily Dosing'!$B$9,3)&" g",IF('Daily Dosing'!$B$7="Liquid",ROUND(J$4*'Daily Dosing'!$E94/'Daily Dosing'!$B$4*'Daily Dosing'!$B$8,2)&" ml","Error")))) ->  | K87: =IF('Daily Dosing'!$H94="","",IF(K$4="N/A","N/A",IF('Daily Dosing'!$B$7="Dry",ROUND(K$4*'Daily Dosing'!$E94/'Daily Dosing'!$B$4*'Daily Dosing'!$B$9,3)&" g",IF('Daily Dosing'!$B$7="Liquid",ROUND(K$4*'Daily Dosing'!$E94/'Daily Dosing'!$B$4*'Daily Dosing'!$B$8,2)&" ml","Error")))) ->  | L87: =IF('Daily Dosing'!$H94="","",IF(L$4="N/A","N/A",IF('Daily Dosing'!$B$7="Dry",ROUND(L$4*'Daily Dosing'!$E94/'Daily Dosing'!$B$4*'Daily Dosing'!$B$9,3)&" g",IF('Daily Dosing'!$B$7="Liquid",ROUND(L$4*'Daily Dosing'!$E94/'Daily Dosing'!$B$4*'Daily Dosing'!$B$8,2)&" ml","Error")))) ->  | M87: ='Daily Dosing'!R94 -> 0.0
A88: 83 | B88: 2021-12-19 | C88: ='Daily Dosing'!E95 -> 1.960 | D88: =IF('Daily Dosing'!H95="","",IF('Daily Dosing'!B$7="Dry",ROUND('Daily Dosing'!E95/'Daily Dosing'!B$4*'Daily Dosing'!B$9,3)&" g",IF('Daily Dosing'!B$7="Liquid",ROUND('Daily Dosing'!E95/'Daily Dosing'!B$4*'Daily Dosing'!B$8,2)&" ml","Error"))) ->  | E88: =IF('Daily Dosing'!$H95="","",IF(E$4="N/A","N/A",IF('Daily Dosing'!$B$7="Dry",ROUND(E$4*'Daily Dosing'!$E95/'Daily Dosing'!$B$4*'Daily Dosing'!$B$9,3)&" g",IF('Daily Dosing'!$B$7="Liquid",ROUND(E$4*'Daily Dosing'!$E95/'Daily Dosing'!$B$4*'Daily Dosing'!$B$8,2)&" ml","Error")))) ->  | F88: =IF('Daily Dosing'!$H95="","",IF(F$4="N/A","N/A",IF('Daily Dosing'!$B$7="Dry",ROUND(F$4*'Daily Dosing'!$E95/'Daily Dosing'!$B$4*'Daily Dosing'!$B$9,3)&" g",IF('Daily Dosing'!$B$7="Liquid",ROUND(F$4*'Daily Dosing'!$E95/'Daily Dosing'!$B$4*'Daily Dosing'!$B$8,2)&" ml","Error")))) ->  | G88: =IF('Daily Dosing'!$H95="","",IF(G$4="N/A","N/A",IF('Daily Dosing'!$B$7="Dry",ROUND(G$4*'Daily Dosing'!$E95/'Daily Dosing'!$B$4*'Daily Dosing'!$B$9,3)&" g",IF('Daily Dosing'!$B$7="Liquid",ROUND(G$4*'Daily Dosing'!$E95/'Daily Dosing'!$B$4*'Daily Dosing'!$B$8,2)&" ml","Error")))) ->  | H88: =IF('Daily Dosing'!$H95="","",IF(H$4="N/A","N/A",IF('Daily Dosing'!$B$7="Dry",ROUND(H$4*'Daily Dosing'!$E95/'Daily Dosing'!$B$4*'Daily Dosing'!$B$9,3)&" g",IF('Daily Dosing'!$B$7="Liquid",ROUND(H$4*'Daily Dosing'!$E95/'Daily Dosing'!$B$4*'Daily Dosing'!$B$8,2)&" ml","Error")))) ->  | I88: =IF('Daily Dosing'!$H95="","",IF(I$4="N/A","N/A",IF('Daily Dosing'!$B$7="Dry",ROUND(I$4*'Daily Dosing'!$E95/'Daily Dosing'!$B$4*'Daily Dosing'!$B$9,3)&" g",IF('Daily Dosing'!$B$7="Liquid",ROUND(I$4*'Daily Dosing'!$E95/'Daily Dosing'!$B$4*'Daily Dosing'!$B$8,2)&" ml","Error")))) ->  | J88: =IF('Daily Dosing'!$H95="","",IF(J$4="N/A","N/A",IF('Daily Dosing'!$B$7="Dry",ROUND(J$4*'Daily Dosing'!$E95/'Daily Dosing'!$B$4*'Daily Dosing'!$B$9,3)&" g",IF('Daily Dosing'!$B$7="Liquid",ROUND(J$4*'Daily Dosing'!$E95/'Daily Dosing'!$B$4*'Daily Dosing'!$B$8,2)&" ml","Error")))) ->  | K88: =IF('Daily Dosing'!$H95="","",IF(K$4="N/A","N/A",IF('Daily Dosing'!$B$7="Dry",ROUND(K$4*'Daily Dosing'!$E95/'Daily Dosing'!$B$4*'Daily Dosing'!$B$9,3)&" g",IF('Daily Dosing'!$B$7="Liquid",ROUND(K$4*'Daily Dosing'!$E95/'Daily Dosing'!$B$4*'Daily Dosing'!$B$8,2)&" ml","Error")))) ->  | L88: =IF('Daily Dosing'!$H95="","",IF(L$4="N/A","N/A",IF('Daily Dosing'!$B$7="Dry",ROUND(L$4*'Daily Dosing'!$E95/'Daily Dosing'!$B$4*'Daily Dosing'!$B$9,3)&" g",IF('Daily Dosing'!$B$7="Liquid",ROUND(L$4*'Daily Dosing'!$E95/'Daily Dosing'!$B$4*'Daily Dosing'!$B$8,2)&" ml","Error")))) ->  | M88: ='Daily Dosing'!R95 -> 0.0
A89: 84 | B89: 2021-12-20 | C89: ='Daily Dosing'!E96 -> 1.960 | D89: =IF('Daily Dosing'!H96="","",IF('Daily Dosing'!B$7="Dry",ROUND('Daily Dosing'!E96/'Daily Dosing'!B$4*'Daily Dosing'!B$9,3)&" g",IF('Daily Dosing'!B$7="Liquid",ROUND('Daily Dosing'!E96/'Daily Dosing'!B$4*'Daily Dosing'!B$8,2)&" ml","Error"))) ->  | E89: =IF('Daily Dosing'!$H96="","",IF(E$4="N/A","N/A",IF('Daily Dosing'!$B$7="Dry",ROUND(E$4*'Daily Dosing'!$E96/'Daily Dosing'!$B$4*'Daily Dosing'!$B$9,3)&" g",IF('Daily Dosing'!$B$7="Liquid",ROUND(E$4*'Daily Dosing'!$E96/'Daily Dosing'!$B$4*'Daily Dosing'!$B$8,2)&" ml","Error")))) ->  | F89: =IF('Daily Dosing'!$H96="","",IF(F$4="N/A","N/A",IF('Daily Dosing'!$B$7="Dry",ROUND(F$4*'Daily Dosing'!$E96/'Daily Dosing'!$B$4*'Daily Dosing'!$B$9,3)&" g",IF('Daily Dosing'!$B$7="Liquid",ROUND(F$4*'Daily Dosing'!$E96/'Daily Dosing'!$B$4*'Daily Dosing'!$B$8,2)&" ml","Error")))) ->  | G89: =IF('Daily Dosing'!$H96="","",IF(G$4="N/A","N/A",IF('Daily Dosing'!$B$7="Dry",ROUND(G$4*'Daily Dosing'!$E96/'Daily Dosing'!$B$4*'Daily Dosing'!$B$9,3)&" g",IF('Daily Dosing'!$B$7="Liquid",ROUND(G$4*'Daily Dosing'!$E96/'Daily Dosing'!$B$4*'Daily Dosing'!$B$8,2)&" ml","Error")))) ->  | H89: =IF('Daily Dosing'!$H96="","",IF(H$4="N/A","N/A",IF('Daily Dosing'!$B$7="Dry",ROUND(H$4*'Daily Dosing'!$E96/'Daily Dosing'!$B$4*'Daily Dosing'!$B$9,3)&" g",IF('Daily Dosing'!$B$7="Liquid",ROUND(H$4*'Daily Dosing'!$E96/'Daily Dosing'!$B$4*'Daily Dosing'!$B$8,2)&" ml","Error")))) ->  | I89: =IF('Daily Dosing'!$H96="","",IF(I$4="N/A","N/A",IF('Daily Dosing'!$B$7="Dry",ROUND(I$4*'Daily Dosing'!$E96/'Daily Dosing'!$B$4*'Daily Dosing'!$B$9,3)&" g",IF('Daily Dosing'!$B$7="Liquid",ROUND(I$4*'Daily Dosing'!$E96/'Daily Dosing'!$B$4*'Daily Dosing'!$B$8,2)&" ml","Error")))) ->  | J89: =IF('Daily Dosing'!$H96="","",IF(J$4="N/A","N/A",IF('Daily Dosing'!$B$7="Dry",ROUND(J$4*'Daily Dosing'!$E96/'Daily Dosing'!$B$4*'Daily Dosing'!$B$9,3)&" g",IF('Daily Dosing'!$B$7="Liquid",ROUND(J$4*'Daily Dosing'!$E96/'Daily Dosing'!$B$4*'Daily Dosing'!$B$8,2)&" ml","Error")))) ->  | K89: =IF('Daily Dosing'!$H96="","",IF(K$4="N/A","N/A",IF('Daily Dosing'!$B$7="Dry",ROUND(K$4*'Daily Dosing'!$E96/'Daily Dosing'!$B$4*'Daily Dosing'!$B$9,3)&" g",IF('Daily Dosing'!$B$7="Liquid",ROUND(K$4*'Daily Dosing'!$E96/'Daily Dosing'!$B$4*'Daily Dosing'!$B$8,2)&" ml","Error")))) ->  | L89: =IF('Daily Dosing'!$H96="","",IF(L$4="N/A","N/A",IF('Daily Dosing'!$B$7="Dry",ROUND(L$4*'Daily Dosing'!$E96/'Daily Dosing'!$B$4*'Daily Dosing'!$B$9,3)&" g",IF('Daily Dosing'!$B$7="Liquid",ROUND(L$4*'Daily Dosing'!$E96/'Daily Dosing'!$B$4*'Daily Dosing'!$B$8,2)&" ml","Error")))) ->  | M89: ='Daily Dosing'!R96 -> 0.0
A90: 85 | B90: 2021-12-21 | C90: ='Daily Dosing'!E97 -> 1.960 | D90: =IF('Daily Dosing'!H97="","",IF('Daily Dosing'!B$7="Dry",ROUND('Daily Dosing'!E97/'Daily Dosing'!B$4*'Daily Dosing'!B$9,3)&" g",IF('Daily Dosing'!B$7="Liquid",ROUND('Daily Dosing'!E97/'Daily Dosing'!B$4*'Daily Dosing'!B$8,2)&" ml","Error"))) ->  | E90: =IF('Daily Dosing'!$H97="","",IF(E$4="N/A","N/A",IF('Daily Dosing'!$B$7="Dry",ROUND(E$4*'Daily Dosing'!$E97/'Daily Dosing'!$B$4*'Daily Dosing'!$B$9,3)&" g",IF('Daily Dosing'!$B$7="Liquid",ROUND(E$4*'Daily Dosing'!$E97/'Daily Dosing'!$B$4*'Daily Dosing'!$B$8,2)&" ml","Error")))) ->  | F90: =IF('Daily Dosing'!$H97="","",IF(F$4="N/A","N/A",IF('Daily Dosing'!$B$7="Dry",ROUND(F$4*'Daily Dosing'!$E97/'Daily Dosing'!$B$4*'Daily Dosing'!$B$9,3)&" g",IF('Daily Dosing'!$B$7="Liquid",ROUND(F$4*'Daily Dosing'!$E97/'Daily Dosing'!$B$4*'Daily Dosing'!$B$8,2)&" ml","Error")))) ->  | G90: =IF('Daily Dosing'!$H97="","",IF(G$4="N/A","N/A",IF('Daily Dosing'!$B$7="Dry",ROUND(G$4*'Daily Dosing'!$E97/'Daily Dosing'!$B$4*'Daily Dosing'!$B$9,3)&" g",IF('Daily Dosing'!$B$7="Liquid",ROUND(G$4*'Daily Dosing'!$E97/'Daily Dosing'!$B$4*'Daily Dosing'!$B$8,2)&" ml","Error")))) ->  | H90: =IF('Daily Dosing'!$H97="","",IF(H$4="N/A","N/A",IF('Daily Dosing'!$B$7="Dry",ROUND(H$4*'Daily Dosing'!$E97/'Daily Dosing'!$B$4*'Daily Dosing'!$B$9,3)&" g",IF('Daily Dosing'!$B$7="Liquid",ROUND(H$4*'Daily Dosing'!$E97/'Daily Dosing'!$B$4*'Daily Dosing'!$B$8,2)&" ml","Error")))) ->  | I90: =IF('Daily Dosing'!$H97="","",IF(I$4="N/A","N/A",IF('Daily Dosing'!$B$7="Dry",ROUND(I$4*'Daily Dosing'!$E97/'Daily Dosing'!$B$4*'Daily Dosing'!$B$9,3)&" g",IF('Daily Dosing'!$B$7="Liquid",ROUND(I$4*'Daily Dosing'!$E97/'Daily Dosing'!$B$4*'Daily Dosing'!$B$8,2)&" ml","Error")))) ->  | J90: =IF('Daily Dosing'!$H97="","",IF(J$4="N/A","N/A",IF('Daily Dosing'!$B$7="Dry",ROUND(J$4*'Daily Dosing'!$E97/'Daily Dosing'!$B$4*'Daily Dosing'!$B$9,3)&" g",IF('Daily Dosing'!$B$7="Liquid",ROUND(J$4*'Daily Dosing'!$E97/'Daily Dosing'!$B$4*'Daily Dosing'!$B$8,2)&" ml","Error")))) ->  | K90: =IF('Daily Dosing'!$H97="","",IF(K$4="N/A","N/A",IF('Daily Dosing'!$B$7="Dry",ROUND(K$4*'Daily Dosing'!$E97/'Daily Dosing'!$B$4*'Daily Dosing'!$B$9,3)&" g",IF('Daily Dosing'!$B$7="Liquid",ROUND(K$4*'Daily Dosing'!$E97/'Daily Dosing'!$B$4*'Daily Dosing'!$B$8,2)&" ml","Error")))) ->  | L90: =IF('Daily Dosing'!$H97="","",IF(L$4="N/A","N/A",IF('Daily Dosing'!$B$7="Dry",ROUND(L$4*'Daily Dosing'!$E97/'Daily Dosing'!$B$4*'Daily Dosing'!$B$9,3)&" g",IF('Daily Dosing'!$B$7="Liquid",ROUND(L$4*'Daily Dosing'!$E97/'Daily Dosing'!$B$4*'Daily Dosing'!$B$8,2)&" ml","Error")))) ->  | M90: ='Daily Dosing'!R97 -> 0.0
A91: 86 | B91: 2021-12-22 | C91: ='Daily Dosing'!E98 -> 1.960 | D91: =IF('Daily Dosing'!H98="","",IF('Daily Dosing'!B$7="Dry",ROUND('Daily Dosing'!E98/'Daily Dosing'!B$4*'Daily Dosing'!B$9,3)&" g",IF('Daily Dosing'!B$7="Liquid",ROUND('Daily Dosing'!E98/'Daily Dosing'!B$4*'Daily Dosing'!B$8,2)&" ml","Error"))) ->  | E91: =IF('Daily Dosing'!$H98="","",IF(E$4="N/A","N/A",IF('Daily Dosing'!$B$7="Dry",ROUND(E$4*'Daily Dosing'!$E98/'Daily Dosing'!$B$4*'Daily Dosing'!$B$9,3)&" g",IF('Daily Dosing'!$B$7="Liquid",ROUND(E$4*'Daily Dosing'!$E98/'Daily Dosing'!$B$4*'Daily Dosing'!$B$8,2)&" ml","Error")))) ->  | F91: =IF('Daily Dosing'!$H98="","",IF(F$4="N/A","N/A",IF('Daily Dosing'!$B$7="Dry",ROUND(F$4*'Daily Dosing'!$E98/'Daily Dosing'!$B$4*'Daily Dosing'!$B$9,3)&" g",IF('Daily Dosing'!$B$7="Liquid",ROUND(F$4*'Daily Dosing'!$E98/'Daily Dosing'!$B$4*'Daily Dosing'!$B$8,2)&" ml","Error")))) ->  | G91: =IF('Daily Dosing'!$H98="","",IF(G$4="N/A","N/A",IF('Daily Dosing'!$B$7="Dry",ROUND(G$4*'Daily Dosing'!$E98/'Daily Dosing'!$B$4*'Daily Dosing'!$B$9,3)&" g",IF('Daily Dosing'!$B$7="Liquid",ROUND(G$4*'Daily Dosing'!$E98/'Daily Dosing'!$B$4*'Daily Dosing'!$B$8,2)&" ml","Error")))) ->  | H91: =IF('Daily Dosing'!$H98="","",IF(H$4="N/A","N/A",IF('Daily Dosing'!$B$7="Dry",ROUND(H$4*'Daily Dosing'!$E98/'Daily Dosing'!$B$4*'Daily Dosing'!$B$9,3)&" g",IF('Daily Dosing'!$B$7="Liquid",ROUND(H$4*'Daily Dosing'!$E98/'Daily Dosing'!$B$4*'Daily Dosing'!$B$8,2)&" ml","Error")))) ->  | I91: =IF('Daily Dosing'!$H98="","",IF(I$4="N/A","N/A",IF('Daily Dosing'!$B$7="Dry",ROUND(I$4*'Daily Dosing'!$E98/'Daily Dosing'!$B$4*'Daily Dosing'!$B$9,3)&" g",IF('Daily Dosing'!$B$7="Liquid",ROUND(I$4*'Daily Dosing'!$E98/'Daily Dosing'!$B$4*'Daily Dosing'!$B$8,2)&" ml","Error")))) ->  | J91: =IF('Daily Dosing'!$H98="","",IF(J$4="N/A","N/A",IF('Daily Dosing'!$B$7="Dry",ROUND(J$4*'Daily Dosing'!$E98/'Daily Dosing'!$B$4*'Daily Dosing'!$B$9,3)&" g",IF('Daily Dosing'!$B$7="Liquid",ROUND(J$4*'Daily Dosing'!$E98/'Daily Dosing'!$B$4*'Daily Dosing'!$B$8,2)&" ml","Error")))) ->  | K91: =IF('Daily Dosing'!$H98="","",IF(K$4="N/A","N/A",IF('Daily Dosing'!$B$7="Dry",ROUND(K$4*'Daily Dosing'!$E98/'Daily Dosing'!$B$4*'Daily Dosing'!$B$9,3)&" g",IF('Daily Dosing'!$B$7="Liquid",ROUND(K$4*'Daily Dosing'!$E98/'Daily Dosing'!$B$4*'Daily Dosing'!$B$8,2)&" ml","Error")))) ->  | L91: =IF('Daily Dosing'!$H98="","",IF(L$4="N/A","N/A",IF('Daily Dosing'!$B$7="Dry",ROUND(L$4*'Daily Dosing'!$E98/'Daily Dosing'!$B$4*'Daily Dosing'!$B$9,3)&" g",IF('Daily Dosing'!$B$7="Liquid",ROUND(L$4*'Daily Dosing'!$E98/'Daily Dosing'!$B$4*'Daily Dosing'!$B$8,2)&" ml","Error")))) ->  | M91: ='Daily Dosing'!R98 -> 0.0
A92: 87 | B92: 2021-12-23 | C92: ='Daily Dosing'!E99 -> 1.960 | D92: =IF('Daily Dosing'!H99="","",IF('Daily Dosing'!B$7="Dry",ROUND('Daily Dosing'!E99/'Daily Dosing'!B$4*'Daily Dosing'!B$9,3)&" g",IF('Daily Dosing'!B$7="Liquid",ROUND('Daily Dosing'!E99/'Daily Dosing'!B$4*'Daily Dosing'!B$8,2)&" ml","Error"))) ->  | E92: =IF('Daily Dosing'!$H99="","",IF(E$4="N/A","N/A",IF('Daily Dosing'!$B$7="Dry",ROUND(E$4*'Daily Dosing'!$E99/'Daily Dosing'!$B$4*'Daily Dosing'!$B$9,3)&" g",IF('Daily Dosing'!$B$7="Liquid",ROUND(E$4*'Daily Dosing'!$E99/'Daily Dosing'!$B$4*'Daily Dosing'!$B$8,2)&" ml","Error")))) ->  | F92: =IF('Daily Dosing'!$H99="","",IF(F$4="N/A","N/A",IF('Daily Dosing'!$B$7="Dry",ROUND(F$4*'Daily Dosing'!$E99/'Daily Dosing'!$B$4*'Daily Dosing'!$B$9,3)&" g",IF('Daily Dosing'!$B$7="Liquid",ROUND(F$4*'Daily Dosing'!$E99/'Daily Dosing'!$B$4*'Daily Dosing'!$B$8,2)&" ml","Error")))) ->  | G92: =IF('Daily Dosing'!$H99="","",IF(G$4="N/A","N/A",IF('Daily Dosing'!$B$7="Dry",ROUND(G$4*'Daily Dosing'!$E99/'Daily Dosing'!$B$4*'Daily Dosing'!$B$9,3)&" g",IF('Daily Dosing'!$B$7="Liquid",ROUND(G$4*'Daily Dosing'!$E99/'Daily Dosing'!$B$4*'Daily Dosing'!$B$8,2)&" ml","Error")))) ->  | H92: =IF('Daily Dosing'!$H99="","",IF(H$4="N/A","N/A",IF('Daily Dosing'!$B$7="Dry",ROUND(H$4*'Daily Dosing'!$E99/'Daily Dosing'!$B$4*'Daily Dosing'!$B$9,3)&" g",IF('Daily Dosing'!$B$7="Liquid",ROUND(H$4*'Daily Dosing'!$E99/'Daily Dosing'!$B$4*'Daily Dosing'!$B$8,2)&" ml","Error")))) ->  | I92: =IF('Daily Dosing'!$H99="","",IF(I$4="N/A","N/A",IF('Daily Dosing'!$B$7="Dry",ROUND(I$4*'Daily Dosing'!$E99/'Daily Dosing'!$B$4*'Daily Dosing'!$B$9,3)&" g",IF('Daily Dosing'!$B$7="Liquid",ROUND(I$4*'Daily Dosing'!$E99/'Daily Dosing'!$B$4*'Daily Dosing'!$B$8,2)&" ml","Error")))) ->  | J92: =IF('Daily Dosing'!$H99="","",IF(J$4="N/A","N/A",IF('Daily Dosing'!$B$7="Dry",ROUND(J$4*'Daily Dosing'!$E99/'Daily Dosing'!$B$4*'Daily Dosing'!$B$9,3)&" g",IF('Daily Dosing'!$B$7="Liquid",ROUND(J$4*'Daily Dosing'!$E99/'Daily Dosing'!$B$4*'Daily Dosing'!$B$8,2)&" ml","Error")))) ->  | K92: =IF('Daily Dosing'!$H99="","",IF(K$4="N/A","N/A",IF('Daily Dosing'!$B$7="Dry",ROUND(K$4*'Daily Dosing'!$E99/'Daily Dosing'!$B$4*'Daily Dosing'!$B$9,3)&" g",IF('Daily Dosing'!$B$7="Liquid",ROUND(K$4*'Daily Dosing'!$E99/'Daily Dosing'!$B$4*'Daily Dosing'!$B$8,2)&" ml","Error")))) ->  | L92: =IF('Daily Dosing'!$H99="","",IF(L$4="N/A","N/A",IF('Daily Dosing'!$B$7="Dry",ROUND(L$4*'Daily Dosing'!$E99/'Daily Dosing'!$B$4*'Daily Dosing'!$B$9,3)&" g",IF('Daily Dosing'!$B$7="Liquid",ROUND(L$4*'Daily Dosing'!$E99/'Daily Dosing'!$B$4*'Daily Dosing'!$B$8,2)&" ml","Error")))) ->  | M92: ='Daily Dosing'!R99 -> 0.0
A93: 88 | B93: 2021-12-24 | C93: ='Daily Dosing'!E100 -> 1.960 | D93: =IF('Daily Dosing'!H100="","",IF('Daily Dosing'!B$7="Dry",ROUND('Daily Dosing'!E100/'Daily Dosing'!B$4*'Daily Dosing'!B$9,3)&" g",IF('Daily Dosing'!B$7="Liquid",ROUND('Daily Dosing'!E100/'Daily Dosing'!B$4*'Daily Dosing'!B$8,2)&" ml","Error"))) ->  | E93: =IF('Daily Dosing'!$H100="","",IF(E$4="N/A","N/A",IF('Daily Dosing'!$B$7="Dry",ROUND(E$4*'Daily Dosing'!$E100/'Daily Dosing'!$B$4*'Daily Dosing'!$B$9,3)&" g",IF('Daily Dosing'!$B$7="Liquid",ROUND(E$4*'Daily Dosing'!$E100/'Daily Dosing'!$B$4*'Daily Dosing'!$B$8,2)&" ml","Error")))) ->  | F93: =IF('Daily Dosing'!$H100="","",IF(F$4="N/A","N/A",IF('Daily Dosing'!$B$7="Dry",ROUND(F$4*'Daily Dosing'!$E100/'Daily Dosing'!$B$4*'Daily Dosing'!$B$9,3)&" g",IF('Daily Dosing'!$B$7="Liquid",ROUND(F$4*'Daily Dosing'!$E100/'Daily Dosing'!$B$4*'Daily Dosing'!$B$8,2)&" ml","Error")))) ->  | G93: =IF('Daily Dosing'!$H100="","",IF(G$4="N/A","N/A",IF('Daily Dosing'!$B$7="Dry",ROUND(G$4*'Daily Dosing'!$E100/'Daily Dosing'!$B$4*'Daily Dosing'!$B$9,3)&" g",IF('Daily Dosing'!$B$7="Liquid",ROUND(G$4*'Daily Dosing'!$E100/'Daily Dosing'!$B$4*'Daily Dosing'!$B$8,2)&" ml","Error")))) ->  | H93: =IF('Daily Dosing'!$H100="","",IF(H$4="N/A","N/A",IF('Daily Dosing'!$B$7="Dry",ROUND(H$4*'Daily Dosing'!$E100/'Daily Dosing'!$B$4*'Daily Dosing'!$B$9,3)&" g",IF('Daily Dosing'!$B$7="Liquid",ROUND(H$4*'Daily Dosing'!$E100/'Daily Dosing'!$B$4*'Daily Dosing'!$B$8,2)&" ml","Error")))) ->  | I93: =IF('Daily Dosing'!$H100="","",IF(I$4="N/A","N/A",IF('Daily Dosing'!$B$7="Dry",ROUND(I$4*'Daily Dosing'!$E100/'Daily Dosing'!$B$4*'Daily Dosing'!$B$9,3)&" g",IF('Daily Dosing'!$B$7="Liquid",ROUND(I$4*'Daily Dosing'!$E100/'Daily Dosing'!$B$4*'Daily Dosing'!$B$8,2)&" ml","Error")))) ->  | J93: =IF('Daily Dosing'!$H100="","",IF(J$4="N/A","N/A",IF('Daily Dosing'!$B$7="Dry",ROUND(J$4*'Daily Dosing'!$E100/'Daily Dosing'!$B$4*'Daily Dosing'!$B$9,3)&" g",IF('Daily Dosing'!$B$7="Liquid",ROUND(J$4*'Daily Dosing'!$E100/'Daily Dosing'!$B$4*'Daily Dosing'!$B$8,2)&" ml","Error")))) ->  | K93: =IF('Daily Dosing'!$H100="","",IF(K$4="N/A","N/A",IF('Daily Dosing'!$B$7="Dry",ROUND(K$4*'Daily Dosing'!$E100/'Daily Dosing'!$B$4*'Daily Dosing'!$B$9,3)&" g",IF('Daily Dosing'!$B$7="Liquid",ROUND(K$4*'Daily Dosing'!$E100/'Daily Dosing'!$B$4*'Daily Dosing'!$B$8,2)&" ml","Error")))) ->  | L93: =IF('Daily Dosing'!$H100="","",IF(L$4="N/A","N/A",IF('Daily Dosing'!$B$7="Dry",ROUND(L$4*'Daily Dosing'!$E100/'Daily Dosing'!$B$4*'Daily Dosing'!$B$9,3)&" g",IF('Daily Dosing'!$B$7="Liquid",ROUND(L$4*'Daily Dosing'!$E100/'Daily Dosing'!$B$4*'Daily Dosing'!$B$8,2)&" ml","Error")))) ->  | M93: ='Daily Dosing'!R100 -> 0.0
A94: 89 | B94: 2021-12-25 | C94: ='Daily Dosing'!E101 -> 1.960 | D94: =IF('Daily Dosing'!H101="","",IF('Daily Dosing'!B$7="Dry",ROUND('Daily Dosing'!E101/'Daily Dosing'!B$4*'Daily Dosing'!B$9,3)&" g",IF('Daily Dosing'!B$7="Liquid",ROUND('Daily Dosing'!E101/'Daily Dosing'!B$4*'Daily Dosing'!B$8,2)&" ml","Error"))) ->  | E94: =IF('Daily Dosing'!$H101="","",IF(E$4="N/A","N/A",IF('Daily Dosing'!$B$7="Dry",ROUND(E$4*'Daily Dosing'!$E101/'Daily Dosing'!$B$4*'Daily Dosing'!$B$9,3)&" g",IF('Daily Dosing'!$B$7="Liquid",ROUND(E$4*'Daily Dosing'!$E101/'Daily Dosing'!$B$4*'Daily Dosing'!$B$8,2)&" ml","Error")))) ->  | F94: =IF('Daily Dosing'!$H101="","",IF(F$4="N/A","N/A",IF('Daily Dosing'!$B$7="Dry",ROUND(F$4*'Daily Dosing'!$E101/'Daily Dosing'!$B$4*'Daily Dosing'!$B$9,3)&" g",IF('Daily Dosing'!$B$7="Liquid",ROUND(F$4*'Daily Dosing'!$E101/'Daily Dosing'!$B$4*'Daily Dosing'!$B$8,2)&" ml","Error")))) ->  | G94: =IF('Daily Dosing'!$H101="","",IF(G$4="N/A","N/A",IF('Daily Dosing'!$B$7="Dry",ROUND(G$4*'Daily Dosing'!$E101/'Daily Dosing'!$B$4*'Daily Dosing'!$B$9,3)&" g",IF('Daily Dosing'!$B$7="Liquid",ROUND(G$4*'Daily Dosing'!$E101/'Daily Dosing'!$B$4*'Daily Dosing'!$B$8,2)&" ml","Error")))) ->  | H94: =IF('Daily Dosing'!$H101="","",IF(H$4="N/A","N/A",IF('Daily Dosing'!$B$7="Dry",ROUND(H$4*'Daily Dosing'!$E101/'Daily Dosing'!$B$4*'Daily Dosing'!$B$9,3)&" g",IF('Daily Dosing'!$B$7="Liquid",ROUND(H$4*'Daily Dosing'!$E101/'Daily Dosing'!$B$4*'Daily Dosing'!$B$8,2)&" ml","Error")))) ->  | I94: =IF('Daily Dosing'!$H101="","",IF(I$4="N/A","N/A",IF('Daily Dosing'!$B$7="Dry",ROUND(I$4*'Daily Dosing'!$E101/'Daily Dosing'!$B$4*'Daily Dosing'!$B$9,3)&" g",IF('Daily Dosing'!$B$7="Liquid",ROUND(I$4*'Daily Dosing'!$E101/'Daily Dosing'!$B$4*'Daily Dosing'!$B$8,2)&" ml","Error")))) ->  | J94: =IF('Daily Dosing'!$H101="","",IF(J$4="N/A","N/A",IF('Daily Dosing'!$B$7="Dry",ROUND(J$4*'Daily Dosing'!$E101/'Daily Dosing'!$B$4*'Daily Dosing'!$B$9,3)&" g",IF('Daily Dosing'!$B$7="Liquid",ROUND(J$4*'Daily Dosing'!$E101/'Daily Dosing'!$B$4*'Daily Dosing'!$B$8,2)&" ml","Error")))) ->  | K94: =IF('Daily Dosing'!$H101="","",IF(K$4="N/A","N/A",IF('Daily Dosing'!$B$7="Dry",ROUND(K$4*'Daily Dosing'!$E101/'Daily Dosing'!$B$4*'Daily Dosing'!$B$9,3)&" g",IF('Daily Dosing'!$B$7="Liquid",ROUND(K$4*'Daily Dosing'!$E101/'Daily Dosing'!$B$4*'Daily Dosing'!$B$8,2)&" ml","Error")))) ->  | L94: =IF('Daily Dosing'!$H101="","",IF(L$4="N/A","N/A",IF('Daily Dosing'!$B$7="Dry",ROUND(L$4*'Daily Dosing'!$E101/'Daily Dosing'!$B$4*'Daily Dosing'!$B$9,3)&" g",IF('Daily Dosing'!$B$7="Liquid",ROUND(L$4*'Daily Dosing'!$E101/'Daily Dosing'!$B$4*'Daily Dosing'!$B$8,2)&" ml","Error")))) ->  | M94: ='Daily Dosing'!R101 -> 0.0
A95: 90 | B95: 2021-12-26 | C95: ='Daily Dosing'!E102 -> 1.960 | D95: =IF('Daily Dosing'!H102="","",IF('Daily Dosing'!B$7="Dry",ROUND('Daily Dosing'!E102/'Daily Dosing'!B$4*'Daily Dosing'!B$9,3)&" g",IF('Daily Dosing'!B$7="Liquid",ROUND('Daily Dosing'!E102/'Daily Dosing'!B$4*'Daily Dosing'!B$8,2)&" ml","Error"))) ->  | E95: =IF('Daily Dosing'!$H102="","",IF(E$4="N/A","N/A",IF('Daily Dosing'!$B$7="Dry",ROUND(E$4*'Daily Dosing'!$E102/'Daily Dosing'!$B$4*'Daily Dosing'!$B$9,3)&" g",IF('Daily Dosing'!$B$7="Liquid",ROUND(E$4*'Daily Dosing'!$E102/'Daily Dosing'!$B$4*'Daily Dosing'!$B$8,2)&" ml","Error")))) ->  | F95: =IF('Daily Dosing'!$H102="","",IF(F$4="N/A","N/A",IF('Daily Dosing'!$B$7="Dry",ROUND(F$4*'Daily Dosing'!$E102/'Daily Dosing'!$B$4*'Daily Dosing'!$B$9,3)&" g",IF('Daily Dosing'!$B$7="Liquid",ROUND(F$4*'Daily Dosing'!$E102/'Daily Dosing'!$B$4*'Daily Dosing'!$B$8,2)&" ml","Error")))) ->  | G95: =IF('Daily Dosing'!$H102="","",IF(G$4="N/A","N/A",IF('Daily Dosing'!$B$7="Dry",ROUND(G$4*'Daily Dosing'!$E102/'Daily Dosing'!$B$4*'Daily Dosing'!$B$9,3)&" g",IF('Daily Dosing'!$B$7="Liquid",ROUND(G$4*'Daily Dosing'!$E102/'Daily Dosing'!$B$4*'Daily Dosing'!$B$8,2)&" ml","Error")))) ->  | H95: =IF('Daily Dosing'!$H102="","",IF(H$4="N/A","N/A",IF('Daily Dosing'!$B$7="Dry",ROUND(H$4*'Daily Dosing'!$E102/'Daily Dosing'!$B$4*'Daily Dosing'!$B$9,3)&" g",IF('Daily Dosing'!$B$7="Liquid",ROUND(H$4*'Daily Dosing'!$E102/'Daily Dosing'!$B$4*'Daily Dosing'!$B$8,2)&" ml","Error")))) ->  | I95: =IF('Daily Dosing'!$H102="","",IF(I$4="N/A","N/A",IF('Daily Dosing'!$B$7="Dry",ROUND(I$4*'Daily Dosing'!$E102/'Daily Dosing'!$B$4*'Daily Dosing'!$B$9,3)&" g",IF('Daily Dosing'!$B$7="Liquid",ROUND(I$4*'Daily Dosing'!$E102/'Daily Dosing'!$B$4*'Daily Dosing'!$B$8,2)&" ml","Error")))) ->  | J95: =IF('Daily Dosing'!$H102="","",IF(J$4="N/A","N/A",IF('Daily Dosing'!$B$7="Dry",ROUND(J$4*'Daily Dosing'!$E102/'Daily Dosing'!$B$4*'Daily Dosing'!$B$9,3)&" g",IF('Daily Dosing'!$B$7="Liquid",ROUND(J$4*'Daily Dosing'!$E102/'Daily Dosing'!$B$4*'Daily Dosing'!$B$8,2)&" ml","Error")))) ->  | K95: =IF('Daily Dosing'!$H102="","",IF(K$4="N/A","N/A",IF('Daily Dosing'!$B$7="Dry",ROUND(K$4*'Daily Dosing'!$E102/'Daily Dosing'!$B$4*'Daily Dosing'!$B$9,3)&" g",IF('Daily Dosing'!$B$7="Liquid",ROUND(K$4*'Daily Dosing'!$E102/'Daily Dosing'!$B$4*'Daily Dosing'!$B$8,2)&" ml","Error")))) ->  | L95: =IF('Daily Dosing'!$H102="","",IF(L$4="N/A","N/A",IF('Daily Dosing'!$B$7="Dry",ROUND(L$4*'Daily Dosing'!$E102/'Daily Dosing'!$B$4*'Daily Dosing'!$B$9,3)&" g",IF('Daily Dosing'!$B$7="Liquid",ROUND(L$4*'Daily Dosing'!$E102/'Daily Dosing'!$B$4*'Daily Dosing'!$B$8,2)&" ml","Error")))) ->  | M95: ='Daily Dosing'!R102 -> 0.0
A96: 91 | B96: 2021-12-27 | C96: ='Daily Dosing'!E103 -> 1.960 | D96: =IF('Daily Dosing'!H103="","",IF('Daily Dosing'!B$7="Dry",ROUND('Daily Dosing'!E103/'Daily Dosing'!B$4*'Daily Dosing'!B$9,3)&" g",IF('Daily Dosing'!B$7="Liquid",ROUND('Daily Dosing'!E103/'Daily Dosing'!B$4*'Daily Dosing'!B$8,2)&" ml","Error"))) ->  | E96: =IF('Daily Dosing'!$H103="","",IF(E$4="N/A","N/A",IF('Daily Dosing'!$B$7="Dry",ROUND(E$4*'Daily Dosing'!$E103/'Daily Dosing'!$B$4*'Daily Dosing'!$B$9,3)&" g",IF('Daily Dosing'!$B$7="Liquid",ROUND(E$4*'Daily Dosing'!$E103/'Daily Dosing'!$B$4*'Daily Dosing'!$B$8,2)&" ml","Error")))) ->  | F96: =IF('Daily Dosing'!$H103="","",IF(F$4="N/A","N/A",IF('Daily Dosing'!$B$7="Dry",ROUND(F$4*'Daily Dosing'!$E103/'Daily Dosing'!$B$4*'Daily Dosing'!$B$9,3)&" g",IF('Daily Dosing'!$B$7="Liquid",ROUND(F$4*'Daily Dosing'!$E103/'Daily Dosing'!$B$4*'Daily Dosing'!$B$8,2)&" ml","Error")))) ->  | G96: =IF('Daily Dosing'!$H103="","",IF(G$4="N/A","N/A",IF('Daily Dosing'!$B$7="Dry",ROUND(G$4*'Daily Dosing'!$E103/'Daily Dosing'!$B$4*'Daily Dosing'!$B$9,3)&" g",IF('Daily Dosing'!$B$7="Liquid",ROUND(G$4*'Daily Dosing'!$E103/'Daily Dosing'!$B$4*'Daily Dosing'!$B$8,2)&" ml","Error")))) ->  | H96: =IF('Daily Dosing'!$H103="","",IF(H$4="N/A","N/A",IF('Daily Dosing'!$B$7="Dry",ROUND(H$4*'Daily Dosing'!$E103/'Daily Dosing'!$B$4*'Daily Dosing'!$B$9,3)&" g",IF('Daily Dosing'!$B$7="Liquid",ROUND(H$4*'Daily Dosing'!$E103/'Daily Dosing'!$B$4*'Daily Dosing'!$B$8,2)&" ml","Error")))) ->  | I96: =IF('Daily Dosing'!$H103="","",IF(I$4="N/A","N/A",IF('Daily Dosing'!$B$7="Dry",ROUND(I$4*'Daily Dosing'!$E103/'Daily Dosing'!$B$4*'Daily Dosing'!$B$9,3)&" g",IF('Daily Dosing'!$B$7="Liquid",ROUND(I$4*'Daily Dosing'!$E103/'Daily Dosing'!$B$4*'Daily Dosing'!$B$8,2)&" ml","Error")))) ->  | J96: =IF('Daily Dosing'!$H103="","",IF(J$4="N/A","N/A",IF('Daily Dosing'!$B$7="Dry",ROUND(J$4*'Daily Dosing'!$E103/'Daily Dosing'!$B$4*'Daily Dosing'!$B$9,3)&" g",IF('Daily Dosing'!$B$7="Liquid",ROUND(J$4*'Daily Dosing'!$E103/'Daily Dosing'!$B$4*'Daily Dosing'!$B$8,2)&" ml","Error")))) ->  | K96: =IF('Daily Dosing'!$H103="","",IF(K$4="N/A","N/A",IF('Daily Dosing'!$B$7="Dry",ROUND(K$4*'Daily Dosing'!$E103/'Daily Dosing'!$B$4*'Daily Dosing'!$B$9,3)&" g",IF('Daily Dosing'!$B$7="Liquid",ROUND(K$4*'Daily Dosing'!$E103/'Daily Dosing'!$B$4*'Daily Dosing'!$B$8,2)&" ml","Error")))) ->  | L96: =IF('Daily Dosing'!$H103="","",IF(L$4="N/A","N/A",IF('Daily Dosing'!$B$7="Dry",ROUND(L$4*'Daily Dosing'!$E103/'Daily Dosing'!$B$4*'Daily Dosing'!$B$9,3)&" g",IF('Daily Dosing'!$B$7="Liquid",ROUND(L$4*'Daily Dosing'!$E103/'Daily Dosing'!$B$4*'Daily Dosing'!$B$8,2)&" ml","Error")))) ->  | M96: ='Daily Dosing'!R103 -> 0.0
A97: 92 | B97: 2021-12-28 | C97: ='Daily Dosing'!E104 -> 1.960 | D97: =IF('Daily Dosing'!H104="","",IF('Daily Dosing'!B$7="Dry",ROUND('Daily Dosing'!E104/'Daily Dosing'!B$4*'Daily Dosing'!B$9,3)&" g",IF('Daily Dosing'!B$7="Liquid",ROUND('Daily Dosing'!E104/'Daily Dosing'!B$4*'Daily Dosing'!B$8,2)&" ml","Error"))) ->  | E97: =IF('Daily Dosing'!$H104="","",IF(E$4="N/A","N/A",IF('Daily Dosing'!$B$7="Dry",ROUND(E$4*'Daily Dosing'!$E104/'Daily Dosing'!$B$4*'Daily Dosing'!$B$9,3)&" g",IF('Daily Dosing'!$B$7="Liquid",ROUND(E$4*'Daily Dosing'!$E104/'Daily Dosing'!$B$4*'Daily Dosing'!$B$8,2)&" ml","Error")))) ->  | F97: =IF('Daily Dosing'!$H104="","",IF(F$4="N/A","N/A",IF('Daily Dosing'!$B$7="Dry",ROUND(F$4*'Daily Dosing'!$E104/'Daily Dosing'!$B$4*'Daily Dosing'!$B$9,3)&" g",IF('Daily Dosing'!$B$7="Liquid",ROUND(F$4*'Daily Dosing'!$E104/'Daily Dosing'!$B$4*'Daily Dosing'!$B$8,2)&" ml","Error")))) ->  | G97: =IF('Daily Dosing'!$H104="","",IF(G$4="N/A","N/A",IF('Daily Dosing'!$B$7="Dry",ROUND(G$4*'Daily Dosing'!$E104/'Daily Dosing'!$B$4*'Daily Dosing'!$B$9,3)&" g",IF('Daily Dosing'!$B$7="Liquid",ROUND(G$4*'Daily Dosing'!$E104/'Daily Dosing'!$B$4*'Daily Dosing'!$B$8,2)&" ml","Error")))) ->  | H97: =IF('Daily Dosing'!$H104="","",IF(H$4="N/A","N/A",IF('Daily Dosing'!$B$7="Dry",ROUND(H$4*'Daily Dosing'!$E104/'Daily Dosing'!$B$4*'Daily Dosing'!$B$9,3)&" g",IF('Daily Dosing'!$B$7="Liquid",ROUND(H$4*'Daily Dosing'!$E104/'Daily Dosing'!$B$4*'Daily Dosing'!$B$8,2)&" ml","Error")))) ->  | I97: =IF('Daily Dosing'!$H104="","",IF(I$4="N/A","N/A",IF('Daily Dosing'!$B$7="Dry",ROUND(I$4*'Daily Dosing'!$E104/'Daily Dosing'!$B$4*'Daily Dosing'!$B$9,3)&" g",IF('Daily Dosing'!$B$7="Liquid",ROUND(I$4*'Daily Dosing'!$E104/'Daily Dosing'!$B$4*'Daily Dosing'!$B$8,2)&" ml","Error")))) ->  | J97: =IF('Daily Dosing'!$H104="","",IF(J$4="N/A","N/A",IF('Daily Dosing'!$B$7="Dry",ROUND(J$4*'Daily Dosing'!$E104/'Daily Dosing'!$B$4*'Daily Dosing'!$B$9,3)&" g",IF('Daily Dosing'!$B$7="Liquid",ROUND(J$4*'Daily Dosing'!$E104/'Daily Dosing'!$B$4*'Daily Dosing'!$B$8,2)&" ml","Error")))) ->  | K97: =IF('Daily Dosing'!$H104="","",IF(K$4="N/A","N/A",IF('Daily Dosing'!$B$7="Dry",ROUND(K$4*'Daily Dosing'!$E104/'Daily Dosing'!$B$4*'Daily Dosing'!$B$9,3)&" g",IF('Daily Dosing'!$B$7="Liquid",ROUND(K$4*'Daily Dosing'!$E104/'Daily Dosing'!$B$4*'Daily Dosing'!$B$8,2)&" ml","Error")))) ->  | L97: =IF('Daily Dosing'!$H104="","",IF(L$4="N/A","N/A",IF('Daily Dosing'!$B$7="Dry",ROUND(L$4*'Daily Dosing'!$E104/'Daily Dosing'!$B$4*'Daily Dosing'!$B$9,3)&" g",IF('Daily Dosing'!$B$7="Liquid",ROUND(L$4*'Daily Dosing'!$E104/'Daily Dosing'!$B$4*'Daily Dosing'!$B$8,2)&" ml","Error")))) ->  | M97: ='Daily Dosing'!R104 -> 0.0
A98: 93 | B98: 2021-12-29 | C98: ='Daily Dosing'!E105 -> 1.960 | D98: =IF('Daily Dosing'!H105="","",IF('Daily Dosing'!B$7="Dry",ROUND('Daily Dosing'!E105/'Daily Dosing'!B$4*'Daily Dosing'!B$9,3)&" g",IF('Daily Dosing'!B$7="Liquid",ROUND('Daily Dosing'!E105/'Daily Dosing'!B$4*'Daily Dosing'!B$8,2)&" ml","Error"))) ->  | E98: =IF('Daily Dosing'!$H105="","",IF(E$4="N/A","N/A",IF('Daily Dosing'!$B$7="Dry",ROUND(E$4*'Daily Dosing'!$E105/'Daily Dosing'!$B$4*'Daily Dosing'!$B$9,3)&" g",IF('Daily Dosing'!$B$7="Liquid",ROUND(E$4*'Daily Dosing'!$E105/'Daily Dosing'!$B$4*'Daily Dosing'!$B$8,2)&" ml","Error")))) ->  | F98: =IF('Daily Dosing'!$H105="","",IF(F$4="N/A","N/A",IF('Daily Dosing'!$B$7="Dry",ROUND(F$4*'Daily Dosing'!$E105/'Daily Dosing'!$B$4*'Daily Dosing'!$B$9,3)&" g",IF('Daily Dosing'!$B$7="Liquid",ROUND(F$4*'Daily Dosing'!$E105/'Daily Dosing'!$B$4*'Daily Dosing'!$B$8,2)&" ml","Error")))) ->  | G98: =IF('Daily Dosing'!$H105="","",IF(G$4="N/A","N/A",IF('Daily Dosing'!$B$7="Dry",ROUND(G$4*'Daily Dosing'!$E105/'Daily Dosing'!$B$4*'Daily Dosing'!$B$9,3)&" g",IF('Daily Dosing'!$B$7="Liquid",ROUND(G$4*'Daily Dosing'!$E105/'Daily Dosing'!$B$4*'Daily Dosing'!$B$8,2)&" ml","Error")))) ->  | H98: =IF('Daily Dosing'!$H105="","",IF(H$4="N/A","N/A",IF('Daily Dosing'!$B$7="Dry",ROUND(H$4*'Daily Dosing'!$E105/'Daily Dosing'!$B$4*'Daily Dosing'!$B$9,3)&" g",IF('Daily Dosing'!$B$7="Liquid",ROUND(H$4*'Daily Dosing'!$E105/'Daily Dosing'!$B$4*'Daily Dosing'!$B$8,2)&" ml","Error")))) ->  | I98: =IF('Daily Dosing'!$H105="","",IF(I$4="N/A","N/A",IF('Daily Dosing'!$B$7="Dry",ROUND(I$4*'Daily Dosing'!$E105/'Daily Dosing'!$B$4*'Daily Dosing'!$B$9,3)&" g",IF('Daily Dosing'!$B$7="Liquid",ROUND(I$4*'Daily Dosing'!$E105/'Daily Dosing'!$B$4*'Daily Dosing'!$B$8,2)&" ml","Error")))) ->  | J98: =IF('Daily Dosing'!$H105="","",IF(J$4="N/A","N/A",IF('Daily Dosing'!$B$7="Dry",ROUND(J$4*'Daily Dosing'!$E105/'Daily Dosing'!$B$4*'Daily Dosing'!$B$9,3)&" g",IF('Daily Dosing'!$B$7="Liquid",ROUND(J$4*'Daily Dosing'!$E105/'Daily Dosing'!$B$4*'Daily Dosing'!$B$8,2)&" ml","Error")))) ->  | K98: =IF('Daily Dosing'!$H105="","",IF(K$4="N/A","N/A",IF('Daily Dosing'!$B$7="Dry",ROUND(K$4*'Daily Dosing'!$E105/'Daily Dosing'!$B$4*'Daily Dosing'!$B$9,3)&" g",IF('Daily Dosing'!$B$7="Liquid",ROUND(K$4*'Daily Dosing'!$E105/'Daily Dosing'!$B$4*'Daily Dosing'!$B$8,2)&" ml","Error")))) ->  | L98: =IF('Daily Dosing'!$H105="","",IF(L$4="N/A","N/A",IF('Daily Dosing'!$B$7="Dry",ROUND(L$4*'Daily Dosing'!$E105/'Daily Dosing'!$B$4*'Daily Dosing'!$B$9,3)&" g",IF('Daily Dosing'!$B$7="Liquid",ROUND(L$4*'Daily Dosing'!$E105/'Daily Dosing'!$B$4*'Daily Dosing'!$B$8,2)&" ml","Error")))) ->  | M98: ='Daily Dosing'!R105 -> 0.0
A99: 94 | B99: 2021-12-30 | C99: ='Daily Dosing'!E106 -> 1.960 | D99: =IF('Daily Dosing'!H106="","",IF('Daily Dosing'!B$7="Dry",ROUND('Daily Dosing'!E106/'Daily Dosing'!B$4*'Daily Dosing'!B$9,3)&" g",IF('Daily Dosing'!B$7="Liquid",ROUND('Daily Dosing'!E106/'Daily Dosing'!B$4*'Daily Dosing'!B$8,2)&" ml","Error"))) ->  | E99: =IF('Daily Dosing'!$H106="","",IF(E$4="N/A","N/A",IF('Daily Dosing'!$B$7="Dry",ROUND(E$4*'Daily Dosing'!$E106/'Daily Dosing'!$B$4*'Daily Dosing'!$B$9,3)&" g",IF('Daily Dosing'!$B$7="Liquid",ROUND(E$4*'Daily Dosing'!$E106/'Daily Dosing'!$B$4*'Daily Dosing'!$B$8,2)&" ml","Error")))) ->  | F99: =IF('Daily Dosing'!$H106="","",IF(F$4="N/A","N/A",IF('Daily Dosing'!$B$7="Dry",ROUND(F$4*'Daily Dosing'!$E106/'Daily Dosing'!$B$4*'Daily Dosing'!$B$9,3)&" g",IF('Daily Dosing'!$B$7="Liquid",ROUND(F$4*'Daily Dosing'!$E106/'Daily Dosing'!$B$4*'Daily Dosing'!$B$8,2)&" ml","Error")))) ->  | G99: =IF('Daily Dosing'!$H106="","",IF(G$4="N/A","N/A",IF('Daily Dosing'!$B$7="Dry",ROUND(G$4*'Daily Dosing'!$E106/'Daily Dosing'!$B$4*'Daily Dosing'!$B$9,3)&" g",IF('Daily Dosing'!$B$7="Liquid",ROUND(G$4*'Daily Dosing'!$E106/'Daily Dosing'!$B$4*'Daily Dosing'!$B$8,2)&" ml","Error")))) ->  | H99: =IF('Daily Dosing'!$H106="","",IF(H$4="N/A","N/A",IF('Daily Dosing'!$B$7="Dry",ROUND(H$4*'Daily Dosing'!$E106/'Daily Dosing'!$B$4*'Daily Dosing'!$B$9,3)&" g",IF('Daily Dosing'!$B$7="Liquid",ROUND(H$4*'Daily Dosing'!$E106/'Daily Dosing'!$B$4*'Daily Dosing'!$B$8,2)&" ml","Error")))) ->  | I99: =IF('Daily Dosing'!$H106="","",IF(I$4="N/A","N/A",IF('Daily Dosing'!$B$7="Dry",ROUND(I$4*'Daily Dosing'!$E106/'Daily Dosing'!$B$4*'Daily Dosing'!$B$9,3)&" g",IF('Daily Dosing'!$B$7="Liquid",ROUND(I$4*'Daily Dosing'!$E106/'Daily Dosing'!$B$4*'Daily Dosing'!$B$8,2)&" ml","Error")))) ->  | J99: =IF('Daily Dosing'!$H106="","",IF(J$4="N/A","N/A",IF('Daily Dosing'!$B$7="Dry",ROUND(J$4*'Daily Dosing'!$E106/'Daily Dosing'!$B$4*'Daily Dosing'!$B$9,3)&" g",IF('Daily Dosing'!$B$7="Liquid",ROUND(J$4*'Daily Dosing'!$E106/'Daily Dosing'!$B$4*'Daily Dosing'!$B$8,2)&" ml","Error")))) ->  | K99: =IF('Daily Dosing'!$H106="","",IF(K$4="N/A","N/A",IF('Daily Dosing'!$B$7="Dry",ROUND(K$4*'Daily Dosing'!$E106/'Daily Dosing'!$B$4*'Daily Dosing'!$B$9,3)&" g",IF('Daily Dosing'!$B$7="Liquid",ROUND(K$4*'Daily Dosing'!$E106/'Daily Dosing'!$B$4*'Daily Dosing'!$B$8,2)&" ml","Error")))) ->  | L99: =IF('Daily Dosing'!$H106="","",IF(L$4="N/A","N/A",IF('Daily Dosing'!$B$7="Dry",ROUND(L$4*'Daily Dosing'!$E106/'Daily Dosing'!$B$4*'Daily Dosing'!$B$9,3)&" g",IF('Daily Dosing'!$B$7="Liquid",ROUND(L$4*'Daily Dosing'!$E106/'Daily Dosing'!$B$4*'Daily Dosing'!$B$8,2)&" ml","Error")))) ->  | M99: ='Daily Dosing'!R106 -> 0.0
A100: 95 | B100: 2021-12-31 | C100: ='Daily Dosing'!E107 -> 1.960 | D100: =IF('Daily Dosing'!H107="","",IF('Daily Dosing'!B$7="Dry",ROUND('Daily Dosing'!E107/'Daily Dosing'!B$4*'Daily Dosing'!B$9,3)&" g",IF('Daily Dosing'!B$7="Liquid",ROUND('Daily Dosing'!E107/'Daily Dosing'!B$4*'Daily Dosing'!B$8,2)&" ml","Error"))) ->  | E100: =IF('Daily Dosing'!$H107="","",IF(E$4="N/A","N/A",IF('Daily Dosing'!$B$7="Dry",ROUND(E$4*'Daily Dosing'!$E107/'Daily Dosing'!$B$4*'Daily Dosing'!$B$9,3)&" g",IF('Daily Dosing'!$B$7="Liquid",ROUND(E$4*'Daily Dosing'!$E107/'Daily Dosing'!$B$4*'Daily Dosing'!$B$8,2)&" ml","Error")))) ->  | F100: =IF('Daily Dosing'!$H107="","",IF(F$4="N/A","N/A",IF('Daily Dosing'!$B$7="Dry",ROUND(F$4*'Daily Dosing'!$E107/'Daily Dosing'!$B$4*'Daily Dosing'!$B$9,3)&" g",IF('Daily Dosing'!$B$7="Liquid",ROUND(F$4*'Daily Dosing'!$E107/'Daily Dosing'!$B$4*'Daily Dosing'!$B$8,2)&" ml","Error")))) ->  | G100: =IF('Daily Dosing'!$H107="","",IF(G$4="N/A","N/A",IF('Daily Dosing'!$B$7="Dry",ROUND(G$4*'Daily Dosing'!$E107/'Daily Dosing'!$B$4*'Daily Dosing'!$B$9,3)&" g",IF('Daily Dosing'!$B$7="Liquid",ROUND(G$4*'Daily Dosing'!$E107/'Daily Dosing'!$B$4*'Daily Dosing'!$B$8,2)&" ml","Error")))) ->  | H100: =IF('Daily Dosing'!$H107="","",IF(H$4="N/A","N/A",IF('Daily Dosing'!$B$7="Dry",ROUND(H$4*'Daily Dosing'!$E107/'Daily Dosing'!$B$4*'Daily Dosing'!$B$9,3)&" g",IF('Daily Dosing'!$B$7="Liquid",ROUND(H$4*'Daily Dosing'!$E107/'Daily Dosing'!$B$4*'Daily Dosing'!$B$8,2)&" ml","Error")))) ->  | I100: =IF('Daily Dosing'!$H107="","",IF(I$4="N/A","N/A",IF('Daily Dosing'!$B$7="Dry",ROUND(I$4*'Daily Dosing'!$E107/'Daily Dosing'!$B$4*'Daily Dosing'!$B$9,3)&" g",IF('Daily Dosing'!$B$7="Liquid",ROUND(I$4*'Daily Dosing'!$E107/'Daily Dosing'!$B$4*'Daily Dosing'!$B$8,2)&" ml","Error")))) ->  | J100: =IF('Daily Dosing'!$H107="","",IF(J$4="N/A","N/A",IF('Daily Dosing'!$B$7="Dry",ROUND(J$4*'Daily Dosing'!$E107/'Daily Dosing'!$B$4*'Daily Dosing'!$B$9,3)&" g",IF('Daily Dosing'!$B$7="Liquid",ROUND(J$4*'Daily Dosing'!$E107/'Daily Dosing'!$B$4*'Daily Dosing'!$B$8,2)&" ml","Error")))) ->  | K100: =IF('Daily Dosing'!$H107="","",IF(K$4="N/A","N/A",IF('Daily Dosing'!$B$7="Dry",ROUND(K$4*'Daily Dosing'!$E107/'Daily Dosing'!$B$4*'Daily Dosing'!$B$9,3)&" g",IF('Daily Dosing'!$B$7="Liquid",ROUND(K$4*'Daily Dosing'!$E107/'Daily Dosing'!$B$4*'Daily Dosing'!$B$8,2)&" ml","Error")))) ->  | L100: =IF('Daily Dosing'!$H107="","",IF(L$4="N/A","N/A",IF('Daily Dosing'!$B$7="Dry",ROUND(L$4*'Daily Dosing'!$E107/'Daily Dosing'!$B$4*'Daily Dosing'!$B$9,3)&" g",IF('Daily Dosing'!$B$7="Liquid",ROUND(L$4*'Daily Dosing'!$E107/'Daily Dosing'!$B$4*'Daily Dosing'!$B$8,2)&" ml","Error")))) ->  | M100: ='Daily Dosing'!R107 -> 0.0
A101: 96 | B101: 2022-01-01 | C101: ='Daily Dosing'!E108 -> 1.960 | D101: =IF('Daily Dosing'!H108="","",IF('Daily Dosing'!B$7="Dry",ROUND('Daily Dosing'!E108/'Daily Dosing'!B$4*'Daily Dosing'!B$9,3)&" g",IF('Daily Dosing'!B$7="Liquid",ROUND('Daily Dosing'!E108/'Daily Dosing'!B$4*'Daily Dosing'!B$8,2)&" ml","Error"))) ->  | E101: =IF('Daily Dosing'!$H108="","",IF(E$4="N/A","N/A",IF('Daily Dosing'!$B$7="Dry",ROUND(E$4*'Daily Dosing'!$E108/'Daily Dosing'!$B$4*'Daily Dosing'!$B$9,3)&" g",IF('Daily Dosing'!$B$7="Liquid",ROUND(E$4*'Daily Dosing'!$E108/'Daily Dosing'!$B$4*'Daily Dosing'!$B$8,2)&" ml","Error")))) ->  | F101: =IF('Daily Dosing'!$H108="","",IF(F$4="N/A","N/A",IF('Daily Dosing'!$B$7="Dry",ROUND(F$4*'Daily Dosing'!$E108/'Daily Dosing'!$B$4*'Daily Dosing'!$B$9,3)&" g",IF('Daily Dosing'!$B$7="Liquid",ROUND(F$4*'Daily Dosing'!$E108/'Daily Dosing'!$B$4*'Daily Dosing'!$B$8,2)&" ml","Error")))) ->  | G101: =IF('Daily Dosing'!$H108="","",IF(G$4="N/A","N/A",IF('Daily Dosing'!$B$7="Dry",ROUND(G$4*'Daily Dosing'!$E108/'Daily Dosing'!$B$4*'Daily Dosing'!$B$9,3)&" g",IF('Daily Dosing'!$B$7="Liquid",ROUND(G$4*'Daily Dosing'!$E108/'Daily Dosing'!$B$4*'Daily Dosing'!$B$8,2)&" ml","Error")))) ->  | H101: =IF('Daily Dosing'!$H108="","",IF(H$4="N/A","N/A",IF('Daily Dosing'!$B$7="Dry",ROUND(H$4*'Daily Dosing'!$E108/'Daily Dosing'!$B$4*'Daily Dosing'!$B$9,3)&" g",IF('Daily Dosing'!$B$7="Liquid",ROUND(H$4*'Daily Dosing'!$E108/'Daily Dosing'!$B$4*'Daily Dosing'!$B$8,2)&" ml","Error")))) ->  | I101: =IF('Daily Dosing'!$H108="","",IF(I$4="N/A","N/A",IF('Daily Dosing'!$B$7="Dry",ROUND(I$4*'Daily Dosing'!$E108/'Daily Dosing'!$B$4*'Daily Dosing'!$B$9,3)&" g",IF('Daily Dosing'!$B$7="Liquid",ROUND(I$4*'Daily Dosing'!$E108/'Daily Dosing'!$B$4*'Daily Dosing'!$B$8,2)&" ml","Error")))) ->  | J101: =IF('Daily Dosing'!$H108="","",IF(J$4="N/A","N/A",IF('Daily Dosing'!$B$7="Dry",ROUND(J$4*'Daily Dosing'!$E108/'Daily Dosing'!$B$4*'Daily Dosing'!$B$9,3)&" g",IF('Daily Dosing'!$B$7="Liquid",ROUND(J$4*'Daily Dosing'!$E108/'Daily Dosing'!$B$4*'Daily Dosing'!$B$8,2)&" ml","Error")))) ->  | K101: =IF('Daily Dosing'!$H108="","",IF(K$4="N/A","N/A",IF('Daily Dosing'!$B$7="Dry",ROUND(K$4*'Daily Dosing'!$E108/'Daily Dosing'!$B$4*'Daily Dosing'!$B$9,3)&" g",IF('Daily Dosing'!$B$7="Liquid",ROUND(K$4*'Daily Dosing'!$E108/'Daily Dosing'!$B$4*'Daily Dosing'!$B$8,2)&" ml","Error")))) ->  | L101: =IF('Daily Dosing'!$H108="","",IF(L$4="N/A","N/A",IF('Daily Dosing'!$B$7="Dry",ROUND(L$4*'Daily Dosing'!$E108/'Daily Dosing'!$B$4*'Daily Dosing'!$B$9,3)&" g",IF('Daily Dosing'!$B$7="Liquid",ROUND(L$4*'Daily Dosing'!$E108/'Daily Dosing'!$B$4*'Daily Dosing'!$B$8,2)&" ml","Error")))) ->  | M101: ='Daily Dosing'!R108 -> 0.0
A102: 97 | B102: 2022-01-02 | C102: ='Daily Dosing'!E109 -> 1.960 | D102: =IF('Daily Dosing'!H109="","",IF('Daily Dosing'!B$7="Dry",ROUND('Daily Dosing'!E109/'Daily Dosing'!B$4*'Daily Dosing'!B$9,3)&" g",IF('Daily Dosing'!B$7="Liquid",ROUND('Daily Dosing'!E109/'Daily Dosing'!B$4*'Daily Dosing'!B$8,2)&" ml","Error"))) ->  | E102: =IF('Daily Dosing'!$H109="","",IF(E$4="N/A","N/A",IF('Daily Dosing'!$B$7="Dry",ROUND(E$4*'Daily Dosing'!$E109/'Daily Dosing'!$B$4*'Daily Dosing'!$B$9,3)&" g",IF('Daily Dosing'!$B$7="Liquid",ROUND(E$4*'Daily Dosing'!$E109/'Daily Dosing'!$B$4*'Daily Dosing'!$B$8,2)&" ml","Error")))) ->  | F102: =IF('Daily Dosing'!$H109="","",IF(F$4="N/A","N/A",IF('Daily Dosing'!$B$7="Dry",ROUND(F$4*'Daily Dosing'!$E109/'Daily Dosing'!$B$4*'Daily Dosing'!$B$9,3)&" g",IF('Daily Dosing'!$B$7="Liquid",ROUND(F$4*'Daily Dosing'!$E109/'Daily Dosing'!$B$4*'Daily Dosing'!$B$8,2)&" ml","Error")))) ->  | G102: =IF('Daily Dosing'!$H109="","",IF(G$4="N/A","N/A",IF('Daily Dosing'!$B$7="Dry",ROUND(G$4*'Daily Dosing'!$E109/'Daily Dosing'!$B$4*'Daily Dosing'!$B$9,3)&" g",IF('Daily Dosing'!$B$7="Liquid",ROUND(G$4*'Daily Dosing'!$E109/'Daily Dosing'!$B$4*'Daily Dosing'!$B$8,2)&" ml","Error")))) ->  | H102: =IF('Daily Dosing'!$H109="","",IF(H$4="N/A","N/A",IF('Daily Dosing'!$B$7="Dry",ROUND(H$4*'Daily Dosing'!$E109/'Daily Dosing'!$B$4*'Daily Dosing'!$B$9,3)&" g",IF('Daily Dosing'!$B$7="Liquid",ROUND(H$4*'Daily Dosing'!$E109/'Daily Dosing'!$B$4*'Daily Dosing'!$B$8,2)&" ml","Error")))) ->  | I102: =IF('Daily Dosing'!$H109="","",IF(I$4="N/A","N/A",IF('Daily Dosing'!$B$7="Dry",ROUND(I$4*'Daily Dosing'!$E109/'Daily Dosing'!$B$4*'Daily Dosing'!$B$9,3)&" g",IF('Daily Dosing'!$B$7="Liquid",ROUND(I$4*'Daily Dosing'!$E109/'Daily Dosing'!$B$4*'Daily Dosing'!$B$8,2)&" ml","Error")))) ->  | J102: =IF('Daily Dosing'!$H109="","",IF(J$4="N/A","N/A",IF('Daily Dosing'!$B$7="Dry",ROUND(J$4*'Daily Dosing'!$E109/'Daily Dosing'!$B$4*'Daily Dosing'!$B$9,3)&" g",IF('Daily Dosing'!$B$7="Liquid",ROUND(J$4*'Daily Dosing'!$E109/'Daily Dosing'!$B$4*'Daily Dosing'!$B$8,2)&" ml","Error")))) ->  | K102: =IF('Daily Dosing'!$H109="","",IF(K$4="N/A","N/A",IF('Daily Dosing'!$B$7="Dry",ROUND(K$4*'Daily Dosing'!$E109/'Daily Dosing'!$B$4*'Daily Dosing'!$B$9,3)&" g",IF('Daily Dosing'!$B$7="Liquid",ROUND(K$4*'Daily Dosing'!$E109/'Daily Dosing'!$B$4*'Daily Dosing'!$B$8,2)&" ml","Error")))) ->  | L102: =IF('Daily Dosing'!$H109="","",IF(L$4="N/A","N/A",IF('Daily Dosing'!$B$7="Dry",ROUND(L$4*'Daily Dosing'!$E109/'Daily Dosing'!$B$4*'Daily Dosing'!$B$9,3)&" g",IF('Daily Dosing'!$B$7="Liquid",ROUND(L$4*'Daily Dosing'!$E109/'Daily Dosing'!$B$4*'Daily Dosing'!$B$8,2)&" ml","Error")))) ->  | M102: ='Daily Dosing'!R109 -> 0.0
